Workbook

Sheet cover
A1: Original Research Article for Theoretical and Applied Genetics
A3: Genetic factors inherited from both diploid parents interact to affect genome stability and fertility in resynthesized allotetraploid B. napus
A5: Elizabeth Ihien Katche, Antje Schierholt, Sarah-Veronica Schiessl, Zhenling LV, Jacqueline Batley, Heiko C. Becker, Annaliese S. Mason
A7: Department of Plant Breeding, Justus Liebig University. Heinrich-Buff-Ring 26-32, Giessen 35392 Germany
A9: Plant Breeding Department, The University of Bonn, Katzenburgweg 5, 53115 Bonn, Germany
A11: Corresponding author
A12: Annaliese S. Mason
A13: Email: annaliese.mason@uni-bonn.de
A14: ORCID ID: https://orcid.org/0000-0003-2701-7964

Sheet Supplementary File S2
A1: Supplementary File S2 SNPs of all S1 resynthesized individual lines across the A and C genome after quality control
A2: chromosome_Darmor_v8.1 | B2: Name | C2: Start_v8.1 | D2: End_v8.1 | E2: Ag Spectrum | F2: Boomer | G2: Monty DH028 | H2: Surpass 400 | I2: Control_rapa_1a | J2: Control_rapa_1b | K2: Control_rapa_2 | L2: Control_juncea_1a | M2: Control_juncea_1b | N2: Control_juncea_2a | O2: Control_oleracea_1 | P2: Control_oleracea_2 | Q2: O1 | R2: Control_carinata_1 | S2: Control_carinata_2a | T2: Control_carinata_2b | U2: A4C34_1 | V2: A4C34_2 | W2: A4C34_3 | X2: A4C36_1 | Y2: A4C36_2 | Z2: A4C36_3 | AA2: A4C37_1 | AB2: A4C37_2 | AC2: A4C37_3 | AD2: A4C42_1 | AE2: A4C42_2 | AF2: A4C42_3 | AG2: A4C46_1 | AH2: A4C46_2 | AI2: A4C46_3 | AJ2: A4C47_1 | AK2: A4C47_2 | AL2: A4C47_3 | AM2: A4C49_1 | AN2: A4C49_2 | AO2: A4C49_3 | AP2: A6C37_1 | AQ2: A6C37_2 | AR2: A6C37_3 | AS2: A6C38_1 | AT2: A6C38_2 | AU2: A6C38_3 | AV2: A6C42_1 | AW2: A6C42_2 | AX2: A6C42_3 | AY2: A6C46_1 | AZ2: A6C46_2 | BA2: A6C46_3 | BB2: A7C34_1 | BC2: A7C34_2 | BD2: A7C34_3 | BE2: A7C36_1 | BF2: A7C36_2 | BG2: A7C36_3 | BH2: A7C37_1 | BI2: A7C37_2 | BJ2: A7C37_3 | BK2: A7C38_1 | BL2: A7C38_2 | BM2: A7C38_3 | BN2: A7C42_1 | BO2: A7C42_2 | BP2: A7C42_3 | BQ2: A7C46_1 | BR2: A7C46_2 | BS2: A7C46_3 | BT2: A8C34_1 | BU2: A8C34_2 | BV2: A8C34_3 | BW2: A8C36_1 | BX2: A8C36_2 | BY2: A8C36_3 | BZ2: A8C37_1 | CA2: A8C37_2 | CB2: A8C37_3 | CC2: A8C42_1 | CD2: A8C42_2 | CE2: A8C42_3 | CF2: A8C46_1 | CG2: A8C46_2 | CH2: A8C46_3 | CI2: A8C47_1 | CJ2: A8C47_2 | CK2: A8C47_3 | CL2: A8C49_1 | CM2: A8C49_2 | CN2: A8C49_3 | CO2: A9C36_1 | CP2: A9C36_2 | CQ2: A9C36_3 | CR2: A9C38_1 | CS2: A9C38_2 | CT2: A9C38_3 | CU2: A9C42_1 | CV2: A9C42_2 | CW2: A9C42_3 | CX2: A9C46_1 | CY2: A9C46_2 | CZ2: A9C46_3 | DA2: A9C47_1 | DB2: A9C47_2 | DC2: A9C47_3 | DD2: A13C36_1 | DE2: A13C36_2 | DF2: A13C36_3 | DG2: A16C37_1 | DH2: A16C37_2 | DI2: A16C37_3 | DJ2: A16C38_1 | DK2: A16C38_2 | DL2: A16C38_3 | DM2: A16C42_1 | DN2: A16C42_2 | DO2: A16C42_3 | DP2: A16C46_1 | DQ2: A16C46_2 | DR2: A16C46_3 | DS2: A16C47_1 | DT2: A16C47_2 | DU2: A16C47_3 | DV2: A16C49_1 | DW2: A16C49_2 | DX2: A16C49_3 | DY2: A19C36_1 | DZ2: A19C36_2 | EA2: A19C36_3 | EB2: A19C37_1 | EC2: A19C37_2 | ED2: A19C37_3 | EE2: A19C47_1 | EF2: A19C47_2 | EG2: A19C47_3 | EH2: A19C49_1 | EI2: A19C49_2 | EJ2: A19C49_3 | EK2: A6C47_1 | EL2: A6C47_2 | EM2: A6C47_3 | EN2: NC count | EO2: AA | EP2: BB | EQ2: AB | ER2: BB | ES2: total | ET2: total calls | EU2: %NC | EV2: %AA | EW2: %BB | EX2: %AB
A3: A01 | B3: Bn-A01-p436141 | C3: 29,879 | D3: 29830 | E3: BB | F3: BB | G3: AA | H3: NC | I3: BB | J3: BB | K3: AA | L3: BB | M3: AB | N3: NC | O3: NC | P3: NC | Q3: NC | R3: NC | S3: NC | T3: NC | U3: BB | V3: BB | W3: BB | X3: BB | Y3: BB | Z3: BB | AA3: BB | AB3: BB | AC3: BB | AD3: BB | AE3: BB | AF3: BB | AG3: BB | AH3: BB | AI3: BB | AJ3: BB | AK3: BB | AL3: BB | AM3: BB | AN3: BB | AO3: BB | AP3: BB | AQ3: BB | AR3: BB | AS3: AA | AT3: AA | AU3: AA | AV3: AA | AW3: AA | AX3: AA | AY3: BB | AZ3: BB | BA3: BB | BB3: BB | BC3: BB | BD3: BB | BE3: BB | BF3: BB | BG3: BB | BH3: BB | BI3: BB | BJ3: BB | BK3: BB | BL3: BB | BM3: BB | BN3: BB | BO3: BB | BP3: BB | BQ3: BB | BR3: BB | BS3: BB | BT3: BB | BU3: BB | BV3: BB | BW3: BB | BX3: BB | BY3: BB | BZ3: BB | CA3: BB | CB3: BB | CC3: BB | CD3: BB | CE3: BB | CF3: BB | CG3: BB | CH3: BB | CI3: BB | CJ3: BB | CK3: BB | CL3: BB | CM3: BB | CN3: BB | CO3: NC | CP3: BB | CQ3: BB | CR3: BB | CS3: BB | CT3: BB | CU3: BB | CV3: BB | CW3: BB | CX3: BB | CY3: BB | CZ3: BB | DA3: BB | DB3: BB | DC3: BB | DD3: BB | DE3: BB | DF3: BB | DG3: BB | DH3: BB | DI3: BB | DJ3: BB | DK3: BB | DL3: BB | DM3: BB | DN3: BB | DO3: BB | DP3: BB | DQ3: BB | DR3: BB | DS3: BB | DT3: BB | DU3: BB | DV3: BB | DW3: BB | DX3: BB | DY3: BB | DZ3: BB | EA3: BB | EB3: BB | EC3: BB | ED3: BB | EE3: BB | EF3: BB | EG3: BB | EH3: BB | EI3: BB | EJ3: BB | EK3: BB | EL3: BB | EM3: NC | EN3: =COUNTIF(E3:EM3,"NC") -> 10 | EO3: =COUNTIF(E3:EM3,"AA") -> 8 | EQ3: =COUNTIF(E3:EM3,"AB") -> 1 | ER3: =COUNTIF(E3:EM3,"BB") -> 120 | ES3: =SUM(EN3:ER3) -> 139 | ET3: =SUM(EO3:ER3) -> 129 | EU3: =EN3/ES3*100 -> 7 | EV3: =EO3/ES3*100 -> 6 | EW3: =ER3/ES3*100 -> 86 | EX3: =EQ3/ES3*100 -> 1
A4: A01 | B4: Bn-A01-p467816 | C4: 57,609 | D4: 57658 | E4: BB | F4: BB | G4: AA | H4: NC | I4: AA | J4: AA | K4: AB | L4: BB | M4: AB | N4: NC | O4: NC | P4: NC | Q4: NC | R4: NC | S4: NC | T4: NC | U4: BB | V4: BB | W4: BB | X4: BB | Y4: BB | Z4: BB | AA4: BB | AB4: BB | AC4: BB | AD4: BB | AE4: BB | AF4: BB | AG4: BB | AH4: BB | AI4: BB | AJ4: BB | AK4: BB | AL4: BB | AM4: BB | AN4: BB | AO4: BB | AP4: AA | AQ4: AA | AR4: AA | AS4: BB | AT4: BB | AU4: BB | AV4: BB | AW4: BB | AX4: BB | AY4: AA | AZ4: AA | BA4: AA | BB4: AA | BC4: AA | BD4: AA | BE4: AA | BF4: AA | BG4: AA | BH4: AA | BI4: AA | BJ4: AA | BK4: AA | BL4: AA | BM4: AA | BN4: AA | BO4: AA | BP4: AA | BQ4: AA | BR4: AA | BS4: AA | BT4: AA | BU4: AA | BV4: AA | BW4: BB | BX4: BB | BY4: BB | BZ4: BB | CA4: BB | CB4: BB | CC4: BB | CD4: BB | CE4: BB | CF4: BB | CG4: BB | CH4: BB | CI4: BB | CJ4: BB | CK4: BB | CL4: BB | CM4: BB | CN4: BB | CO4: NC | CP4: AA | CQ4: BB | CR4: AA | CS4: AA | CT4: AA | CU4: AA | CV4: AA | CW4: AA | CX4: AA | CY4: AA | CZ4: AA | DA4: AA | DB4: AA | DC4: AA | DD4: AA | DE4: AA | DF4: AA | DG4: BB | DH4: BB | DI4: BB | DJ4: BB | DK4: BB | DL4: BB | DM4: BB | DN4: BB | DO4: BB | DP4: BB | DQ4: BB | DR4: BB | DS4: BB | DT4: BB | DU4: BB | DV4: BB | DW4: BB | DX4: BB | DY4: BB | DZ4: BB | EA4: BB | EB4: BB | EC4: BB | ED4: BB | EE4: BB | EF4: BB | EG4: BB | EH4: BB | EI4: BB | EJ4: BB | EK4: AA | EL4: AA | EM4: NC | EN4: 10 | EO4: 48 | EQ4: 2 | ER4: 79 | ES4: 139 | ET4: 129 | EU4: 7 | EV4: 35 | EW4: 57 | EX4: 1
A5: A01 | B5: Bn-A01-p595651 | C5: 175,836 | D5: 175787 | E5: BB | F5: BB | G5: AA | H5: NC | I5: BB | J5: BB | K5: AA | L5: BB | M5: AA | N5: AA | O5: NC | P5: NC | Q5: NC | R5: NC | S5: NC | T5: NC | U5: AA | V5: AA | W5: AA | X5: AA | Y5: AA | Z5: AA | AA5: AA | AB5: AA | AC5: AA | AD5: AA | AE5: AA | AF5: AA | AG5: AA | AH5: AA | AI5: AA | AJ5: AA | AK5: AA | AL5: AA | AM5: AA | AN5: AA | AO5: AA | AP5: BB | AQ5: BB | AR5: BB | AS5: AA | AT5: AA | AU5: AA | AV5: AA | AW5: AA | AX5: AA | AY5: BB | AZ5: BB | BA5: BB | BB5: AA | BC5: AA | BD5: AA | BE5: AA | BF5: AA | BG5: AA | BH5: AA | BI5: AA | BJ5: AA | BK5: AA | BL5: AA | BM5: AA | BN5: AA | BO5: AA | BP5: AA | BQ5: AA | BR5: AA | BS5: AA | BT5: AA | BU5: AA | BV5: AA | BW5: AA | BX5: AA | BY5: AA | BZ5: AA | CA5: AA | CB5: AA | CC5: AA | CD5: AA | CE5: AA | CF5: AA | CG5: AA | CH5: AA | CI5: AA | CJ5: AA | CK5: AA | CL5: AA | CM5: AA | CN5: AA | CO5: NC | CP5: BB | CQ5: AA | CR5: BB | CS5: BB | CT5: BB | CU5: BB | CV5: BB | CW5: BB | CX5: BB | CY5: BB | CZ5: BB | DA5: BB | DB5: BB | DC5: BB | DD5: BB | DE5: BB | DF5: BB | DG5: AA | DH5: AA | DI5: AA | DJ5: AA | DK5: AA | DL5: AA | DM5: AA | DN5: AA | DO5: AA | DP5: AA | DQ5: AA | DR5: AA | DS5: AA | DT5: AA | DU5: AA | DV5: AA | DW5: AA | DX5: AA | DY5: AA | DZ5: AA | EA5: AA | EB5: AA | EC5: AA | ED5: AA | EE5: AA | EF5: AA | EG5: AA | EH5: AA | EI5: AA | EJ5: AA | EK5: BB | EL5: BB | EM5: NC | EN5: 9 | EO5: 101 | EQ5: 0 | ER5: 29 | ES5: 139 | ET5: 130 | EU5: 6 | EV5: 73 | EW5: 21 | EX5: 0
A6: A01 | B6: Bn-A01-p599910 | C6: 182,529 | D6: 182578 | E6: BB | F6: BB | G6: AA | H6: NC | I6: AA | J6: AA | K6: AA | L6: BB | M6: AA | N6: NC | O6: NC | P6: NC | Q6: NC | R6: NC | S6: NC | T6: NC | U6: AA | V6: AA | W6: AA | X6: AA | Y6: AA | Z6: AA | AA6: AA | AB6: AA | AC6: AA | AD6: AA | AE6: AA | AF6: AA | AG6: AA | AH6: AA | AI6: AA | AJ6: AA | AK6: AA | AL6: AA | AM6: AA | AN6: AA | AO6: AA | AP6: AA | AQ6: AA | AR6: AA | AS6: AA | AT6: AA | AU6: AA | AV6: AA | AW6: AA | AX6: AA | AY6: AA | AZ6: AA | BA6: AA | BB6: AA | BC6: AA | BD6: AA | BE6: AA | BF6: AA | BG6: AA | BH6: AA | BI6: AA | BJ6: AA | BK6: AA | BL6: AA | BM6: AA | BN6: AA | BO6: AA | BP6: AA | BQ6: AA | BR6: AA | BS6: AA | BT6: AA | BU6: AA | BV6: AA | BW6: AA | BX6: AA | BY6: AA | BZ6: AA | CA6: AA | CB6: AA | CC6: AA | CD6: AA | CE6: AA | CF6: AA | CG6: AA | CH6: AA | CI6: AA | CJ6: AA | CK6: AA | CL6: AA | CM6: AA | CN6: AA | CO6: NC | CP6: BB | CQ6: AA | CR6: BB | CS6: BB | CT6: BB | CU6: BB | CV6: BB | CW6: BB | CX6: BB | CY6: BB | CZ6: BB | DA6: BB | DB6: BB | DC6: BB | DD6: AA | DE6: AA | DF6: AA | DG6: AA | DH6: AA | DI6: AA | DJ6: AA | DK6: AA | DL6: AA | DM6: AA | DN6: AA | DO6: AA | DP6: AA | DQ6: AA | DR6: AA | DS6: AA | DT6: AA | DU6: AA | DV6: AA | DW6: AA | DX6: AA | DY6: AA | DZ6: AA | EA6: AA | EB6: AA | EC6: AA | ED6: AA | EE6: AA | EF6: AA | EG6: AA | EH6: AA | EI6: AA | EJ6: AA | EK6: AA | EL6: AA | EM6: NC | EN6: 10 | EO6: 113 | EQ6: 0 | ER6: 16 | ES6: 139 | ET6: 129 | EU6: 7 | EV6: 81 | EW6: 12 | EX6: 0
A7: A01 | B7: Bn-A01-p609857 | C7: 198,673 | D7: 198722 | E7: BB | F7: BB | G7: BB | H7: NC | I7: BB | J7: BB | K7: BB | L7: BB | M7: BB | N7: NC | O7: NC | P7: NC | Q7: NC | R7: NC | S7: NC | T7: NC | U7: BB | V7: BB | W7: BB | X7: BB | Y7: BB | Z7: BB | AA7: BB | AB7: BB | AC7: BB | AD7: BB | AE7: BB | AF7: BB | AG7: BB | AH7: BB | AI7: BB | AJ7: BB | AK7: BB | AL7: BB | AM7: BB | AN7: BB | AO7: BB | AP7: BB | AQ7: BB | AR7: BB | AS7: AA | AT7: AA | AU7: AA | AV7: AA | AW7: AA | AX7: AA | AY7: BB | AZ7: BB | BA7: BB | BB7: AA | BC7: AA | BD7: AA | BE7: AA | BF7: AA | BG7: AA | BH7: AA | BI7: AA | BJ7: AA | BK7: AA | BL7: AA | BM7: AA | BN7: AA | BO7: AA | BP7: AA | BQ7: AA | BR7: AA | BS7: AA | BT7: AA | BU7: AA | BV7: AA | BW7: BB | BX7: BB | BY7: BB | BZ7: BB | CA7: BB | CB7: BB | CC7: BB | CD7: BB | CE7: BB | CF7: BB | CG7: BB | CH7: BB | CI7: BB | CJ7: BB | CK7: BB | CL7: BB | CM7: BB | CN7: BB | CO7: NC | CP7: BB | CQ7: BB | CR7: BB | CS7: BB | CT7: BB | CU7: BB | CV7: BB | CW7: BB | CX7: BB | CY7: BB | CZ7: BB | DA7: BB | DB7: BB | DC7: BB | DD7: BB | DE7: BB | DF7: BB | DG7: BB | DH7: BB | DI7: BB | DJ7: BB | DK7: BB | DL7: BB | DM7: BB | DN7: BB | DO7: BB | DP7: BB | DQ7: BB | DR7: BB | DS7: BB | DT7: BB | DU7: BB | DV7: BB | DW7: BB | DX7: BB | DY7: BB | DZ7: BB | EA7: BB | EB7: BB | EC7: BB | ED7: BB | EE7: BB | EF7: BB | EG7: BB | EH7: BB | EI7: BB | EJ7: BB | EK7: BB | EL7: BB | EM7: NC | EN7: 10 | EO7: 27 | EQ7: 0 | ER7: 102 | ES7: 139 | ET7: 129 | EU7: 7 | EV7: 19 | EW7: 73 | EX7: 0
A8: A01 | B8: Bn-A01-p657852 | C8: 244,222 | D8: 244173 | E8: AA | F8: AA | G8: BB | H8: NC | I8: BB | J8: BB | K8: AB | L8: AA | M8: AA | N8: NC | O8: NC | P8: NC | Q8: NC | R8: NC | S8: NC | T8: NC | U8: AA | V8: AA | W8: AA | X8: AA | Y8: AA | Z8: AA | AA8: AA | AB8: AA | AC8: AA | AD8: AA | AE8: AA | AF8: AA | AG8: AA | AH8: AA | AI8: AA | AJ8: AA | AK8: AA | AL8: AA | AM8: AA | AN8: AA | AO8: AA | AP8: AA | AQ8: AA | AR8: AA | AS8: AA | AT8: AA | AU8: AA | AV8: AA | AW8: AA | AX8: AA | AY8: AA | AZ8: AA | BA8: AA | BB8: AA | BC8: AA | BD8: AA | BE8: AA | BF8: AA | BG8: AA | BH8: AA | BI8: AA | BJ8: AA | BK8: AA | BL8: AA | BM8: AA | BN8: AA | BO8: AA | BP8: AA | BQ8: AA | BR8: AA | BS8: AA | BT8: AA | BU8: AA | BV8: AA | BW8: AA | BX8: AA | BY8: AA | BZ8: AA | CA8: AA | CB8: AA | CC8: AA | CD8: AA | CE8: AA | CF8: AA | CG8: AA | CH8: AA | CI8: AA | CJ8: AA | CK8: AA | CL8: AA | CM8: AA | CN8: AA | CO8: NC | CP8: AA | CQ8: AA | CR8: AA | CS8: AA | CT8: AA | CU8: AA | CV8: AA | CW8: AA | CX8: AA | CY8: AA | CZ8: AA | DA8: AA | DB8: AA | DC8: AA | DD8: AA | DE8: AA | DF8: AA | DG8: AA | DH8: AA | DI8: AA | DJ8: AA | DK8: AA | DL8: AA | DM8: AA | DN8: AA | DO8: AA | DP8: AA | DQ8: AA | DR8: AA | DS8: AA | DT8: AA | DU8: AA | DV8: AA | DW8: AA | DX8: AA | DY8: AA | DZ8: AA | EA8: AA | EB8: AA | EC8: AA | ED8: AA | EE8: AA | EF8: AA | EG8: AA | EH8: AA | EI8: AA | EJ8: AA | EK8: AA | EL8: AA | EM8: NC | EN8: 10 | EO8: 125 | EQ8: 1 | ER8: 3 | ES8: 139 | ET8: 129 | EU8: 7 | EV8: 90 | EW8: 2 | EX8: 1
A9: A01 | B9: Bn-A01-p688355 | C9: 282,178 | D9: 282129 | E9: BB | F9: BB | G9: BB | H9: NC | I9: BB | J9: BB | K9: BB | L9: BB | M9: AA | N9: NC | O9: NC | P9: NC | Q9: NC | R9: NC | S9: NC | T9: NC | U9: BB | V9: BB | W9: BB | X9: BB | Y9: BB | Z9: BB | AA9: BB | AB9: BB | AC9: BB | AD9: BB | AE9: BB | AF9: BB | AG9: BB | AH9: BB | AI9: BB | AJ9: BB | AK9: BB | AL9: BB | AM9: BB | AN9: BB | AO9: BB | AP9: BB | AQ9: BB | AR9: BB | AS9: BB | AT9: BB | AU9: BB | AV9: BB | AW9: BB | AX9: BB | AY9: BB | AZ9: BB | BA9: BB | BB9: AA | BC9: AA | BD9: AA | BE9: AA | BF9: AA | BG9: AA | BH9: AA | BI9: AA | BJ9: AA | BK9: AA | BL9: AA | BM9: AA | BN9: AA | BO9: AA | BP9: AA | BQ9: AA | BR9: AA | BS9: AA | BT9: AA | BU9: AA | BV9: AA | BW9: BB | BX9: BB | BY9: BB | BZ9: BB | CA9: BB | CB9: BB | CC9: BB | CD9: BB | CE9: BB | CF9: BB | CG9: BB | CH9: BB | CI9: BB | CJ9: BB | CK9: BB | CL9: BB | CM9: BB | CN9: BB | CO9: NC | CP9: AA | CQ9: BB | CR9: AA | CS9: AA | CT9: AA | CU9: AA | CV9: AA | CW9: AA | CX9: AA | CY9: AA | CZ9: AA | DA9: AA | DB9: AA | DC9: AA | DD9: AA | DE9: AA | DF9: AA | DG9: BB | DH9: BB | DI9: BB | DJ9: BB | DK9: BB | DL9: BB | DM9: BB | DN9: BB | DO9: BB | DP9: BB | DQ9: BB | DR9: BB | DS9: BB | DT9: BB | DU9: BB | DV9: BB | DW9: BB | DX9: BB | DY9: BB | DZ9: BB | EA9: BB | EB9: BB | EC9: BB | ED9: BB | EE9: BB | EF9: BB | EG9: BB | EH9: BB | EI9: BB | EJ9: BB | EK9: BB | EL9: BB | EM9: NC | EN9: 10 | EO9: 38 | EQ9: 0 | ER9: 91 | ES9: 139 | ET9: 129 | EU9: 7 | EV9: 27 | EW9: 65 | EX9: 0
A10: A01 | B10: Bn-A01-p737560 | C10: 358,318 | D10: 358367 | E10: BB | F10: BB | G10: BB | H10: NC | I10: AA | J10: AA | K10: AA | L10: AA | M10: AA | N10: AA | O10: NC | P10: NC | Q10: NC | R10: NC | S10: NC | T10: NC | U10: AA | V10: AA | W10: AA | X10: AA | Y10: AA | Z10: AA | AA10: AA | AB10: AA | AC10: AA | AD10: AA | AE10: AA | AF10: AA | AG10: AA | AH10: AA | AI10: AA | AJ10: AA | AK10: AA | AL10: AA | AM10: AA | AN10: AA | AO10: AA | AP10: AA | AQ10: AA | AR10: AA | AS10: BB | AT10: BB | AU10: BB | AV10: BB | AW10: BB | AX10: BB | AY10: AA | AZ10: AA | BA10: AA | BB10: AA | BC10: AA | BD10: AA | BE10: AA | BF10: AA | BG10: AA | BH10: AA | BI10: AA | BJ10: AA | BK10: AA | BL10: AA | BM10: AA | BN10: AA | BO10: AA | BP10: AA | BQ10: AA | BR10: AA | BS10: AA | BT10: BB | BU10: BB | BV10: BB | BW10: AA | BX10: AA | BY10: AA | BZ10: AA | CA10: AA | CB10: AA | CC10: AA | CD10: AA | CE10: AA | CF10: AA | CG10: AA | CH10: AA | CI10: AA | CJ10: AA | CK10: AA | CL10: AA | CM10: AA | CN10: AA | CO10: NC | CP10: BB | CQ10: AA | CR10: BB | CS10: BB | CT10: BB | CU10: BB | CV10: BB | CW10: BB | CX10: BB | CY10: BB | CZ10: BB | DA10: BB | DB10: BB | DC10: BB | DD10: BB | DE10: BB | DF10: BB | DG10: AA | DH10: AA | DI10: AA | DJ10: AA | DK10: AA | DL10: AA | DM10: AA | DN10: AA | DO10: AA | DP10: AA | DQ10: AA | DR10: AA | DS10: AA | DT10: AA | DU10: AA | DV10: AA | DW10: AA | DX10: AA | DY10: AA | DZ10: AA | EA10: AA | EB10: AA | EC10: AA | ED10: AA | EE10: AA | EF10: AA | EG10: AA | EH10: AA | EI10: AA | EJ10: AA | EK10: AA | EL10: AA | EM10: NC | EN10: 9 | EO10: 102 | EQ10: 0 | ER10: 28 | ES10: 139 | ET10: 130 | EU10: 6 | EV10: 73 | EW10: 20 | EX10: 0
A11: A01 | B11: Bn-A01-p739098 | C11: 359,959 | D11: 359910 | E11: BB | F11: BB | G11: AA | H11: NC | I11: AA | J11: AA | K11: AA | L11: AA | M11: AA | N11: AA | O11: NC | P11: NC | Q11: NC | R11: NC | S11: NC | T11: NC | U11: AA | V11: AA | W11: AA | X11: AA | Y11: AA | Z11: AA | AA11: AA | AB11: AA | AC11: AA | AD11: AA | AE11: AA | AF11: AA | AG11: AA | AH11: AA | AI11: AA | AJ11: AA | AK11: AA | AL11: AA | AM11: AA | AN11: AA | AO11: AA | AP11: AA | AQ11: AA | AR11: AA | AS11: BB | AT11: BB | AU11: BB | AV11: BB | AW11: BB | AX11: BB | AY11: AA | AZ11: AA | BA11: AA | BB11: AA | BC11: AA | BD11: AA | BE11: AA | BF11: AA | BG11: AA | BH11: AA | BI11: AA | BJ11: AA | BK11: AA | BL11: AA | BM11: AA | BN11: AA | BO11: AA | BP11: AA | BQ11: AA | BR11: AA | BS11: AA | BT11: AA | BU11: AA | BV11: AA | BW11: AA | BX11: AA | BY11: AA | BZ11: AA | CA11: AA | CB11: AA | CC11: AA | CD11: AA | CE11: AA | CF11: AA | CG11: AA | CH11: AA | CI11: AA | CJ11: AA | CK11: AA | CL11: AA | CM11: AA | CN11: AA | CO11: NC | CP11: AA | CQ11: AA | CR11: AA | CS11: AA | CT11: AA | CU11: AA | CV11: AA | CW11: AA | CX11: AA | CY11: AA | CZ11: AA | DA11: AA | DB11: AA | DC11: AA | DD11: BB | DE11: BB | DF11: BB | DG11: AA | DH11: AA | DI11: AA | DJ11: AA | DK11: AA | DL11: AA | DM11: AA | DN11: AA | DO11: AA | DP11: AA | DQ11: AA | DR11: AA | DS11: AA | DT11: AA | DU11: AA | DV11: AA | DW11: AA | DX11: AA | DY11: AA | DZ11: AA | EA11: AA | EB11: AA | EC11: AA | ED11: AA | EE11: AA | EF11: AA | EG11: AA | EH11: AA | EI11: AA | EJ11: AA | EK11: AA | EL11: AA | EM11: NC | EN11: 9 | EO11: 119 | EQ11: 0 | ER11: 11 | ES11: 139 | ET11: 130 | EU11: 6 | EV11: 86 | EW11: 8 | EX11: 0
A12: A01 | B12: Bn-A01-p830221 | C12: 458,733 | D12: 458782 | E12: BB | F12: BB | G12: AA | H12: NC | I12: AA | J12: AA | K12: AA | L12: AA | M12: AA | N12: AA | O12: NC | P12: NC | Q12: NC | R12: NC | S12: NC | T12: NC | U12: AA | V12: AA | W12: AA | X12: AA | Y12: AA | Z12: AA | AA12: AA | AB12: AA | AC12: AA | AD12: AA | AE12: AA | AF12: AA | AG12: AA | AH12: AA | AI12: AA | AJ12: AA | AK12: AA | AL12: AA | AM12: AA | AN12: AA | AO12: AA | AP12: BB | AQ12: BB | AR12: BB | AS12: BB | AT12: BB | AU12: BB | AV12: BB | AW12: BB | AX12: BB | AY12: BB | AZ12: BB | BA12: BB | BB12: BB | BC12: BB | BD12: BB | BE12: BB | BF12: BB | BG12: BB | BH12: BB | BI12: BB | BJ12: BB | BK12: BB | BL12: BB | BM12: BB | BN12: BB | BO12: BB | BP12: BB | BQ12: BB | BR12: BB | BS12: BB | BT12: BB | BU12: BB | BV12: BB | BW12: AA | BX12: AA | BY12: AA | BZ12: AA | CA12: AA | CB12: AA | CC12: AA | CD12: AA | CE12: AA | CF12: AA | CG12: AA | CH12: AA | CI12: AA | CJ12: AA | CK12: AA | CL12: AA | CM12: AA | CN12: AA | CO12: NC | CP12: BB | CQ12: AA | CR12: BB | CS12: BB | CT12: BB | CU12: BB | CV12: BB | CW12: BB | CX12: BB | CY12: BB | CZ12: BB | DA12: BB | DB12: BB | DC12: BB | DD12: BB | DE12: BB | DF12: BB | DG12: AA | DH12: AA | DI12: AA | DJ12: AA | DK12: AA | DL12: AA | DM12: AA | DN12: AA | DO12: AA | DP12: AA | DQ12: AA | DR12: AA | DS12: AA | DT12: AA | DU12: AA | DV12: AA | DW12: AA | DX12: AA | DY12: AA | DZ12: AA | EA12: AA | EB12: AA | EC12: AA | ED12: AA | EE12: AA | EF12: AA | EG12: AA | EH12: AA | EI12: AA | EJ12: AA | EK12: BB | EL12: BB | EM12: NC | EN12: 9 | EO12: 77 | EQ12: 0 | ER12: 53 | ES12: 139 | ET12: 130 | EU12: 6 | EV12: 55 | EW12: 38 | EX12: 0
A13: A01 | B13: Bn-A01-p849125 | C13: 478,942 | D13: 478892 | E13: BB | F13: BB | G13: AA | H13: NC | I13: AA | J13: AA | K13: AA | L13: AA | M13: AA | N13: NC | O13: NC | P13: NC | Q13: NC | R13: NC | S13: NC | T13: NC | U13: AA | V13: AA | W13: AA | X13: AA | Y13: AA | Z13: AA | AA13: AA | AB13: AA | AC13: AA | AD13: AA | AE13: AA | AF13: AA | AG13: AA | AH13: AA | AI13: AA | AJ13: AA | AK13: AA | AL13: AA | AM13: AA | AN13: AA | AO13: AA | AP13: BB | AQ13: BB | AR13: BB | AS13: BB | AT13: BB | AU13: BB | AV13: BB | AW13: BB | AX13: BB | AY13: BB | AZ13: BB | BA13: BB | BB13: BB | BC13: BB | BD13: BB | BE13: BB | BF13: BB | BG13: BB | BH13: BB | BI13: BB | BJ13: BB | BK13: BB | BL13: BB | BM13: BB | BN13: BB | BO13: BB | BP13: BB | BQ13: BB | BR13: BB | BS13: BB | BT13: BB | BU13: BB | BV13: BB | BW13: AA | BX13: AA | BY13: AA | BZ13: AA | CA13: AA | CB13: AA | CC13: AA | CD13: AA | CE13: AA | CF13: AA | CG13: AA | CH13: AA | CI13: AA | CJ13: AA | CK13: AA | CL13: AA | CM13: AA | CN13: AA | CO13: NC | CP13: BB | CQ13: AA | CR13: BB | CS13: BB | CT13: BB | CU13: BB | CV13: BB | CW13: BB | CX13: BB | CY13: BB | CZ13: BB | DA13: BB | DB13: BB | DC13: BB | DD13: AA | DE13: AA | DF13: AA | DG13: AA | DH13: AA | DI13: AA | DJ13: AA | DK13: AA | DL13: AA | DM13: AA | DN13: AA | DO13: AA | DP13: AA | DQ13: AA | DR13: AA | DS13: AA | DT13: AA | DU13: AA | DV13: AA | DW13: AA | DX13: AA | DY13: AA | DZ13: AA | EA13: AA | EB13: AA | EC13: AA | ED13: AA | EE13: AA | EF13: AA | EG13: AA | EH13: AA | EI13: AA | EJ13: AA | EK13: BB | EL13: BB | EM13: NC | EN13: 10 | EO13: 79 | EQ13: 0 | ER13: 50 | ES13: 139 | ET13: 129 | EU13: 7 | EV13: 57 | EW13: 36 | EX13: 0
A14: A01 | B14: Bn-A01-p877322 | C14: 504,496 | D14: 504447 | E14: BB | F14: BB | G14: AA | H14: NC | I14: BB | J14: BB | K14: AA | L14: AA | M14: AA | N14: AA | O14: NC | P14: NC | Q14: NC | R14: NC | S14: NC | T14: NC | U14: BB | V14: BB | W14: BB | X14: BB | Y14: BB | Z14: BB | AA14: BB | AB14: BB | AC14: BB | AD14: BB | AE14: BB | AF14: BB | AG14: BB | AH14: BB | AI14: BB | AJ14: BB | AK14: BB | AL14: BB | AM14: BB | AN14: BB | AO14: BB | AP14: BB | AQ14: BB | AR14: BB | AS14: BB | AT14: BB | AU14: BB | AV14: BB | AW14: BB | AX14: BB | AY14: BB | AZ14: BB | BA14: BB | BB14: BB | BC14: BB | BD14: BB | BE14: BB | BF14: BB | BG14: BB | BH14: BB | BI14: BB | BJ14: BB | BK14: BB | BL14: BB | BM14: BB | BN14: BB | BO14: BB | BP14: BB | BQ14: BB | BR14: BB | BS14: BB | BT14: BB | BU14: BB | BV14: BB | BW14: BB | BX14: BB | BY14: BB | BZ14: BB | CA14: BB | CB14: BB | CC14: BB | CD14: BB | CE14: BB | CF14: BB | CG14: BB | CH14: BB | CI14: BB | CJ14: BB | CK14: BB | CL14: BB | CM14: BB | CN14: BB | CO14: NC | CP14: BB | CQ14: BB | CR14: BB | CS14: BB | CT14: BB | CU14: BB | CV14: BB | CW14: BB | CX14: BB | CY14: BB | CZ14: BB | DA14: BB | DB14: BB | DC14: BB | DD14: BB | DE14: BB | DF14: BB | DG14: BB | DH14: BB | DI14: BB | DJ14: BB | DK14: BB | DL14: BB | DM14: BB | DN14: BB | DO14: BB | DP14: BB | DQ14: BB | DR14: BB | DS14: BB | DT14: BB | DU14: BB | DV14: BB | DW14: BB | DX14: BB | DY14: BB | DZ14: BB | EA14: BB | EB14: BB | EC14: BB | ED14: BB | EE14: BB | EF14: BB | EG14: BB | EH14: BB | EI14: BB | EJ14: BB | EK14: BB | EL14: BB | EM14: NC | EN14: 9 | EO14: 5 | EQ14: 0 | ER14: 125 | ES14: 139 | ET14: 130 | EU14: 6 | EV14: 4 | EW14: 90 | EX14: 0
A15: A01 | B15: Bn-A01-p912298 | C15: 530,442 | D15: 530491 | E15: BB | F15: BB | G15: BB | H15: NC | I15: AA | J15: AA | K15: BB | L15: BB | M15: BB | N15: NC | O15: NC | P15: NC | Q15: NC | R15: NC | S15: NC | T15: NC | U15: AA | V15: AA | W15: AA | X15: AA | Y15: AA | Z15: AA | AA15: AA | AB15: AA | AC15: AA | AD15: AA | AE15: AA | AF15: AA | AG15: AA | AH15: AA | AI15: AA | AJ15: AA | AK15: AA | AL15: AA | AM15: AA | AN15: AA | AO15: AA | AP15: AA | AQ15: AA | AR15: AA | AS15: AA | AT15: AA | AU15: AA | AV15: AA | AW15: AA | AX15: AA | AY15: AA | AZ15: AA | BA15: AA | BB15: AA | BC15: AA | BD15: AA | BE15: AA | BF15: AA | BG15: AA | BH15: AA | BI15: AA | BJ15: AA | BK15: AA | BL15: AA | BM15: AA | BN15: AA | BO15: AA | BP15: AA | BQ15: AA | BR15: AA | BS15: AA | BT15: AA | BU15: AA | BV15: AA | BW15: AA | BX15: AA | BY15: AA | BZ15: AA | CA15: AA | CB15: AA | CC15: AA | CD15: AA | CE15: AA | CF15: AA | CG15: AA | CH15: AA | CI15: AA | CJ15: AA | CK15: AA | CL15: AA | CM15: AA | CN15: AA | CO15: NC | CP15: AA | CQ15: AA | CR15: AA | CS15: AA | CT15: AA | CU15: AA | CV15: AA | CW15: AA | CX15: AA | CY15: AA | CZ15: AA | DA15: AA | DB15: AA | DC15: AA | DD15: BB | DE15: BB | DF15: BB | DG15: AA | DH15: AA | DI15: AA | DJ15: AA | DK15: AA | DL15: AA | DM15: AA | DN15: AA | DO15: AA | DP15: AA | DQ15: AA | DR15: AA | DS15: AA | DT15: AA | DU15: AA | DV15: AA | DW15: AA | DX15: AA | DY15: AA | DZ15: AA | EA15: AA | EB15: AA | EC15: AA | ED15: AA | EE15: AA | EF15: AA | EG15: AA | EH15: AA | EI15: AA | EJ15: AA | EK15: AA | EL15: AA | EM15: NC | EN15: 10 | EO15: 120 | EQ15: 0 | ER15: 9 | ES15: 139 | ET15: 129 | EU15: 7 | EV15: 86 | EW15: 6 | EX15: 0
A16: A01 | B16: Bn-A01-p968465 | C16: 586,011 | D16: 586060 | E16: BB | F16: BB | G16: BB | H16: NC | I16: BB | J16: BB | K16: BB | L16: BB | M16: BB | N16: BB | O16: NC | P16: NC | Q16: NC | R16: NC | S16: NC | T16: NC | U16: BB | V16: BB | W16: BB | X16: BB | Y16: BB | Z16: BB | AA16: BB | AB16: BB | AC16: BB | AD16: BB | AE16: BB | AF16: BB | AG16: BB | AH16: BB | AI16: BB | AJ16: BB | AK16: BB | AL16: BB | AM16: BB | AN16: BB | AO16: BB | AP16: BB | AQ16: BB | AR16: BB | AS16: BB | AT16: BB | AU16: BB | AV16: BB | AW16: BB | AX16: BB | AY16: BB | AZ16: BB | BA16: BB | BB16: BB | BC16: BB | BD16: BB | BE16: BB | BF16: BB | BG16: BB | BH16: BB | BI16: BB | BJ16: BB | BK16: BB | BL16: BB | BM16: BB | BN16: BB | BO16: BB | BP16: BB | BQ16: BB | BR16: BB | BS16: BB | BT16: BB | BU16: BB | BV16: BB | BW16: BB | BX16: BB | BY16: BB | BZ16: BB | CA16: BB | CB16: BB | CC16: BB | CD16: BB | CE16: BB | CF16: BB | CG16: BB | CH16: BB | CI16: BB | CJ16: BB | CK16: BB | CL16: BB | CM16: BB | CN16: BB | CO16: NC | CP16: BB | CQ16: BB | CR16: BB | CS16: BB | CT16: BB | CU16: BB | CV16: BB | CW16: BB | CX16: BB | CY16: BB | CZ16: BB | DA16: BB | DB16: BB | DC16: BB | DD16: BB | DE16: BB | DF16: BB | DG16: BB | DH16: BB | DI16: BB | DJ16: BB | DK16: BB | DL16: BB | DM16: BB | DN16: BB | DO16: BB | DP16: BB | DQ16: BB | DR16: BB | DS16: BB | DT16: BB | DU16: BB | DV16: BB | DW16: BB | DX16: BB | DY16: BB | DZ16: BB | EA16: BB | EB16: BB | EC16: BB | ED16: BB | EE16: BB | EF16: BB | EG16: BB | EH16: BB | EI16: BB | EJ16: BB | EK16: BB | EL16: BB | EM16: NC | EN16: 9 | EO16: 0 | EQ16: 0 | ER16: 130 | ES16: 139 | ET16: 130 | EU16: 6 | EV16: 0 | EW16: 94 | EX16: 0
A17: A01 | B17: Bn-A01-p970103 | C17: 587,914 | D17: 587963 | E17: BB | F17: BB | G17: BB | H17: NC | I17: BB | J17: BB | K17: BB | L17: BB | M17: BB | N17: NC | O17: NC | P17: NC | Q17: NC | R17: NC | S17: NC | T17: NC | U17: BB | V17: BB | W17: BB | X17: BB | Y17: BB | Z17: BB | AA17: BB | AB17: BB | AC17: BB | AD17: BB | AE17: BB | AF17: BB | AG17: BB | AH17: BB | AI17: BB | AJ17: BB | AK17: BB | AL17: BB | AM17: BB | AN17: BB | AO17: BB | AP17: BB | AQ17: BB | AR17: BB | AS17: BB | AT17: BB | AU17: BB | AV17: BB | AW17: BB | AX17: BB | AY17: BB | AZ17: BB | BA17: BB | BB17: AA | BC17: AA | BD17: AA | BE17: AA | BF17: AA | BG17: AA | BH17: AA | BI17: AA | BJ17: AA | BK17: AA | BL17: AA | BM17: AA | BN17: AA | BO17: AA | BP17: AA | BQ17: AA | BR17: AA | BS17: AA | BT17: BB | BU17: BB | BV17: BB | BW17: BB | BX17: BB | BY17: BB | BZ17: BB | CA17: BB | CB17: BB | CC17: BB | CD17: BB | CE17: BB | CF17: BB | CG17: BB | CH17: BB | CI17: BB | CJ17: BB | CK17: BB | CL17: BB | CM17: BB | CN17: BB | CO17: NC | CP17: BB | CQ17: BB | CR17: BB | CS17: BB | CT17: BB | CU17: BB | CV17: BB | CW17: BB | CX17: BB | CY17: BB | CZ17: BB | DA17: BB | DB17: BB | DC17: BB | DD17: BB | DE17: BB | DF17: BB | DG17: BB | DH17: BB | DI17: BB | DJ17: BB | DK17: BB | DL17: BB | DM17: BB | DN17: BB | DO17: BB | DP17: BB | DQ17: BB | DR17: BB | DS17: BB | DT17: BB | DU17: BB | DV17: BB | DW17: BB | DX17: BB | DY17: BB | DZ17: BB | EA17: BB | EB17: BB | EC17: BB | ED17: BB | EE17: BB | EF17: BB | EG17: BB | EH17: BB | EI17: BB | EJ17: BB | EK17: BB | EL17: BB | EM17: NC | EN17: 10 | EO17: 18 | EQ17: 0 | ER17: 111 | ES17: 139 | ET17: 129 | EU17: 7 | EV17: 13 | EW17: 80 | EX17: 0
A18: A01 | B18: Bn-A01-p974934 | C18: 591,607 | D18: 591558 | E18: BB | F18: BB | G18: BB | H18: NC | I18: BB | J18: BB | K18: BB | L18: BB | M18: BB | N18: BB | O18: NC | P18: NC | Q18: NC | R18: NC | S18: NC | T18: NC | U18: BB | V18: BB | W18: BB | X18: BB | Y18: BB | Z18: BB | AA18: BB | AB18: BB | AC18: BB | AD18: BB | AE18: BB | AF18: BB | AG18: BB | AH18: BB | AI18: BB | AJ18: BB | AK18: BB | AL18: BB | AM18: BB | AN18: BB | AO18: BB | AP18: BB | AQ18: BB | AR18: BB | AS18: BB | AT18: BB | AU18: BB | AV18: BB | AW18: BB | AX18: BB | AY18: BB | AZ18: BB | BA18: BB | BB18: BB | BC18: BB | BD18: BB | BE18: BB | BF18: BB | BG18: BB | BH18: BB | BI18: BB | BJ18: BB | BK18: BB | BL18: BB | BM18: BB | BN18: BB | BO18: BB | BP18: BB | BQ18: BB | BR18: BB | BS18: BB | BT18: BB | BU18: BB | BV18: BB | BW18: BB | BX18: BB | BY18: BB | BZ18: BB | CA18: BB | CB18: BB | CC18: BB | CD18: BB | CE18: BB | CF18: BB | CG18: BB | CH18: BB | CI18: BB | CJ18: BB | CK18: BB | CL18: BB | CM18: BB | CN18: BB | CO18: NC | CP18: BB | CQ18: BB | CR18: BB | CS18: BB | CT18: BB | CU18: BB | CV18: BB | CW18: BB | CX18: BB | CY18: BB | CZ18: BB | DA18: BB | DB18: BB | DC18: BB | DD18: BB | DE18: BB | DF18: BB | DG18: BB | DH18: BB | DI18: BB | DJ18: BB | DK18: BB | DL18: BB | DM18: BB | DN18: BB | DO18: BB | DP18: BB | DQ18: BB | DR18: BB | DS18: BB | DT18: BB | DU18: BB | DV18: BB | DW18: BB | DX18: BB | DY18: BB | DZ18: BB | EA18: BB | EB18: BB | EC18: BB | ED18: BB | EE18: BB | EF18: BB | EG18: BB | EH18: BB | EI18: BB | EJ18: BB | EK18: BB | EL18: BB | EM18: NC | EN18: 9 | EO18: 0 | EQ18: 0 | ER18: 130 | ES18: 139 | ET18: 130 | EU18: 6 | EV18: 0 | EW18: 94 | EX18: 0
A19: A01 | B19: Bn-A01-p978860 | C19: 595,490 | D19: 595441 | E19: AA | F19: AA | G19: BB | H19: NC | I19: BB | J19: BB | K19: BB | L19: AA | M19: AA | N19: AA | O19: NC | P19: NC | Q19: NC | R19: NC | S19: NC | T19: NC | U19: BB | V19: BB | W19: BB | X19: BB | Y19: BB | Z19: BB | AA19: BB | AB19: BB | AC19: BB | AD19: BB | AE19: BB | AF19: BB | AG19: BB | AH19: BB | AI19: BB | AJ19: BB | AK19: BB | AL19: BB | AM19: BB | AN19: BB | AO19: BB | AP19: AA | AQ19: AA | AR19: AA | AS19: NC | AT19: NC | AU19: NC | AV19: NC | AW19: NC | AX19: NC | AY19: AA | AZ19: AA | BA19: AA | BB19: AA | BC19: AA | BD19: AA | BE19: AA | BF19: AA | BG19: AA | BH19: AA | BI19: AA | BJ19: AA | BK19: AA | BL19: AA | BM19: AA | BN19: AA | BO19: AA | BP19: AA | BQ19: AA | BR19: AA | BS19: AA | BT19: AA | BU19: AA | BV19: AA | BW19: BB | BX19: BB | BY19: BB | BZ19: BB | CA19: BB | CB19: BB | CC19: BB | CD19: BB | CE19: BB | CF19: BB | CG19: BB | CH19: BB | CI19: BB | CJ19: BB | CK19: BB | CL19: BB | CM19: BB | CN19: BB | CO19: NC | CP19: AA | CQ19: BB | CR19: AA | CS19: AA | CT19: AA | CU19: AA | CV19: AA | CW19: AA | CX19: AA | CY19: AA | CZ19: AA | DA19: AA | DB19: AA | DC19: AA | DD19: AA | DE19: AA | DF19: AA | DG19: BB | DH19: BB | DI19: BB | DJ19: BB | DK19: BB | DL19: BB | DM19: BB | DN19: BB | DO19: BB | DP19: BB | DQ19: BB | DR19: BB | DS19: BB | DT19: BB | DU19: BB | DV19: BB | DW19: BB | DX19: BB | DY19: BB | DZ19: BB | EA19: BB | EB19: BB | EC19: BB | ED19: BB | EE19: BB | EF19: BB | EG19: BB | EH19: BB | EI19: BB | EJ19: BB | EK19: AA | EL19: AA | EM19: NC | EN19: 15 | EO19: 50 | EQ19: 0 | ER19: 74 | ES19: 139 | ET19: 124 | EU19: 11 | EV19: 36 | EW19: 53 | EX19: 0
A20: A01 | B20: Bn-A01-p994722 | C20: 611,307 | D20: 611356 | E20: AA | F20: AA | G20: BB | H20: NC | I20: BB | J20: BB | K20: BB | L20: AA | M20: AA | N20: NC | O20: NC | P20: NC | Q20: NC | R20: NC | S20: NC | T20: NC | U20: BB | V20: BB | W20: BB | X20: BB | Y20: BB | Z20: BB | AA20: BB | AB20: BB | AC20: BB | AD20: BB | AE20: BB | AF20: BB | AG20: BB | AH20: BB | AI20: BB | AJ20: BB | AK20: BB | AL20: BB | AM20: BB | AN20: BB | AO20: BB | AP20: AA | AQ20: AA | AR20: AA | AS20: BB | AT20: BB | AU20: BB | AV20: BB | AW20: BB | AX20: BB | AY20: AA | AZ20: AA | BA20: AA | BB20: AA | BC20: AA | BD20: AA | BE20: AA | BF20: AA | BG20: AA | BH20: AA | BI20: AA | BJ20: AA | BK20: AA | BL20: AA | BM20: AA | BN20: AA | BO20: AA | BP20: AA | BQ20: AA | BR20: AA | BS20: AA | BT20: AA | BU20: AA | BV20: AA | BW20: BB | BX20: BB | BY20: BB | BZ20: BB | CA20: BB | CB20: BB | CC20: BB | CD20: BB | CE20: BB | CF20: BB | CG20: BB | CH20: BB | CI20: BB | CJ20: BB | CK20: BB | CL20: BB | CM20: BB | CN20: BB | CO20: NC | CP20: AA | CQ20: BB | CR20: AA | CS20: AA | CT20: AA | CU20: AA | CV20: AA | CW20: AA | CX20: AA | CY20: AA | CZ20: AA | DA20: AA | DB20: AA | DC20: AA | DD20: AA | DE20: AA | DF20: AA | DG20: BB | DH20: BB | DI20: BB | DJ20: BB | DK20: BB | DL20: BB | DM20: BB | DN20: BB | DO20: BB | DP20: BB | DQ20: BB | DR20: BB | DS20: BB | DT20: BB | DU20: BB | DV20: BB | DW20: BB | DX20: BB | DY20: BB | DZ20: BB | EA20: BB | EB20: BB | EC20: BB | ED20: BB | EE20: BB | EF20: BB | EG20: BB | EH20: BB | EI20: BB | EJ20: BB | EK20: AA | EL20: AA | EM20: NC | EN20: 10 | EO20: 49 | EQ20: 0 | ER20: 80 | ES20: 139 | ET20: 129 | EU20: 7 | EV20: 35 | EW20: 58 | EX20: 0
A21: A01 | B21: Bn-A01-p1095733 | C21: 695,438 | D21: 695389 | E21: AA | F21: AA | G21: BB | H21: NC | I21: BB | J21: BB | K21: BB | L21: BB | M21: BB | N21: BB | O21: NC | P21: NC | Q21: NC | R21: NC | S21: NC | T21: NC | U21: BB | V21: BB | W21: BB | X21: BB | Y21: BB | Z21: BB | AA21: BB | AB21: BB | AC21: BB | AD21: BB | AE21: BB | AF21: BB | AG21: BB | AH21: BB | AI21: BB | AJ21: BB | AK21: BB | AL21: BB | AM21: BB | AN21: BB | AO21: BB | AP21: BB | AQ21: BB | AR21: BB | AS21: BB | AT21: BB | AU21: BB | AV21: BB | AW21: BB | AX21: BB | AY21: BB | AZ21: BB | BA21: BB | BB21: BB | BC21: BB | BD21: BB | BE21: BB | BF21: BB | BG21: BB | BH21: BB | BI21: BB | BJ21: BB | BK21: BB | BL21: BB | BM21: BB | BN21: BB | BO21: BB | BP21: BB | BQ21: BB | BR21: BB | BS21: BB | BT21: BB | BU21: BB | BV21: BB | BW21: BB | BX21: BB | BY21: BB | BZ21: BB | CA21: BB | CB21: BB | CC21: BB | CD21: BB | CE21: BB | CF21: BB | CG21: BB | CH21: BB | CI21: BB | CJ21: BB | CK21: BB | CL21: BB | CM21: BB | CN21: BB | CO21: NC | CP21: BB | CQ21: BB | CR21: BB | CS21: BB | CT21: BB | CU21: BB | CV21: BB | CW21: BB | CX21: BB | CY21: BB | CZ21: BB | DA21: BB | DB21: BB | DC21: BB | DD21: BB | DE21: BB | DF21: BB | DG21: BB | DH21: BB | DI21: BB | DJ21: BB | DK21: BB | DL21: BB | DM21: BB | DN21: BB | DO21: BB | DP21: BB | DQ21: BB | DR21: BB | DS21: BB | DT21: BB | DU21: BB | DV21: BB | DW21: BB | DX21: BB | DY21: BB | DZ21: BB | EA21: BB | EB21: BB | EC21: BB | ED21: BB | EE21: BB | EF21: BB | EG21: BB | EH21: BB | EI21: BB | EJ21: BB | EK21: BB | EL21: BB | EM21: NC | EN21: 9 | EO21: 2 | EQ21: 0 | ER21: 128 | ES21: 139 | ET21: 130 | EU21: 6 | EV21: 1 | EW21: 92 | EX21: 0
A22: A01 | B22: Bn-A01-p1104187 | C22: 700,491 | D22: 700442 | E22: BB | F22: AA | G22: BB | H22: NC | I22: BB | J22: BB | K22: AA | L22: BB | M22: AA | N22: AA | O22: NC | P22: NC | Q22: NC | R22: NC | S22: NC | T22: NC | U22: BB | V22: BB | W22: BB | X22: BB | Y22: BB | Z22: BB | AA22: BB | AB22: BB | AC22: BB | AD22: BB | AE22: BB | AF22: BB | AG22: BB | AH22: BB | AI22: BB | AJ22: BB | AK22: BB | AL22: BB | AM22: BB | AN22: BB | AO22: BB | AP22: BB | AQ22: BB | AR22: BB | AS22: AA | AT22: AA | AU22: AA | AV22: AA | AW22: AA | AX22: AA | AY22: BB | AZ22: BB | BA22: BB | BB22: AA | BC22: AA | BD22: AA | BE22: AA | BF22: AA | BG22: AA | BH22: AA | BI22: AA | BJ22: AA | BK22: AA | BL22: AA | BM22: AA | BN22: AA | BO22: AA | BP22: AA | BQ22: AA | BR22: AA | BS22: AA | BT22: BB | BU22: BB | BV22: BB | BW22: BB | BX22: BB | BY22: BB | BZ22: BB | CA22: BB | CB22: BB | CC22: BB | CD22: BB | CE22: BB | CF22: BB | CG22: BB | CH22: BB | CI22: BB | CJ22: BB | CK22: BB | CL22: BB | CM22: BB | CN22: BB | CO22: NC | CP22: BB | CQ22: BB | CR22: BB | CS22: BB | CT22: BB | CU22: BB | CV22: BB | CW22: BB | CX22: BB | CY22: BB | CZ22: BB | DA22: BB | DB22: BB | DC22: BB | DD22: BB | DE22: BB | DF22: BB | DG22: BB | DH22: BB | DI22: BB | DJ22: BB | DK22: BB | DL22: BB | DM22: BB | DN22: BB | DO22: BB | DP22: BB | DQ22: BB | DR22: BB | DS22: BB | DT22: BB | DU22: BB | DV22: BB | DW22: BB | DX22: BB | DY22: BB | DZ22: BB | EA22: BB | EB22: BB | EC22: BB | ED22: BB | EE22: BB | EF22: BB | EG22: BB | EH22: BB | EI22: BB | EJ22: BB | EK22: BB | EL22: BB | EM22: NC | EN22: 9 | EO22: 28 | EQ22: 0 | ER22: 102 | ES22: 139 | ET22: 130 | EU22: 6 | EV22: 20 | EW22: 73 | EX22: 0
A23: A01 | B23: Bn-A01-p1125565 | C23: 722,959 | D23: 722910 | E23: BB | F23: BB | G23: AA | H23: NC | I23: AA | J23: AA | K23: AA | L23: AA | M23: AA | N23: NC | O23: NC | P23: NC | Q23: NC | R23: NC | S23: NC | T23: NC | U23: BB | V23: BB | W23: BB | X23: BB | Y23: BB | Z23: BB | AA23: BB | AB23: BB | AC23: BB | AD23: BB | AE23: BB | AF23: BB | AG23: BB | AH23: BB | AI23: BB | AJ23: BB | AK23: BB | AL23: BB | AM23: BB | AN23: BB | AO23: BB | AP23: AA | AQ23: AA | AR23: AA | AS23: AA | AT23: AA | AU23: AA | AV23: AA | AW23: AA | AX23: AA | AY23: AA | AZ23: AA | BA23: AA | BB23: AA | BC23: AA | BD23: AA | BE23: AA | BF23: AA | BG23: AA | BH23: AA | BI23: AA | BJ23: AA | BK23: AA | BL23: AA | BM23: AA | BN23: AA | BO23: AA | BP23: AA | BQ23: AA | BR23: AA | BS23: AA | BT23: AA | BU23: AA | BV23: AA | BW23: BB | BX23: BB | BY23: BB | BZ23: BB | CA23: BB | CB23: BB | CC23: BB | CD23: BB | CE23: BB | CF23: BB | CG23: BB | CH23: BB | CI23: BB | CJ23: BB | CK23: BB | CL23: BB | CM23: BB | CN23: BB | CO23: NC | CP23: AA | CQ23: BB | CR23: AA | CS23: AA | CT23: AA | CU23: AA | CV23: AA | CW23: AA | CX23: AA | CY23: AA | CZ23: AA | DA23: AA | DB23: AA | DC23: AA | DD23: BB | DE23: BB | DF23: BB | DG23: BB | DH23: BB | DI23: BB | DJ23: BB | DK23: BB | DL23: BB | DM23: BB | DN23: BB | DO23: BB | DP23: BB | DQ23: BB | DR23: BB | DS23: BB | DT23: BB | DU23: BB | DV23: BB | DW23: BB | DX23: BB | DY23: BB | DZ23: BB | EA23: BB | EB23: BB | EC23: BB | ED23: BB | EE23: BB | EF23: BB | EG23: BB | EH23: BB | EI23: BB | EJ23: BB | EK23: AA | EL23: AA | EM23: NC | EN23: 10 | EO23: 54 | EQ23: 0 | ER23: 75 | ES23: 139 | ET23: 129 | EU23: 7 | EV23: 39 | EW23: 54 | EX23: 0
A24: A01 | B24: Bn-A01-p1126874 | C24: 724,020 | D24: 723971 | E24: AA | F24: AA | G24: BB | H24: NC | I24: BB | J24: BB | K24: BB | L24: BB | M24: BB | N24: BB | O24: NC | P24: NC | Q24: NC | R24: NC | S24: NC | T24: NC | U24: AA | V24: AA | W24: AA | X24: AA | Y24: AA | Z24: AA | AA24: AA | AB24: AA | AC24: AA | AD24: AA | AE24: AA | AF24: AA | AG24: AA | AH24: AA | AI24: AA | AJ24: AA | AK24: AA | AL24: AA | AM24: AA | AN24: AA | AO24: AA | AP24: BB | AQ24: BB | AR24: BB | AS24: BB | AT24: BB | AU24: BB | AV24: BB | AW24: BB | AX24: BB | AY24: BB | AZ24: BB | BA24: BB | BB24: BB | BC24: BB | BD24: BB | BE24: BB | BF24: BB | BG24: BB | BH24: BB | BI24: BB | BJ24: BB | BK24: BB | BL24: BB | BM24: BB | BN24: BB | BO24: BB | BP24: BB | BQ24: BB | BR24: BB | BS24: BB | BT24: BB | BU24: BB | BV24: BB | BW24: AA | BX24: AA | BY24: AA | BZ24: AA | CA24: AA | CB24: AA | CC24: AA | CD24: AA | CE24: AA | CF24: AA | CG24: AA | CH24: AA | CI24: AA | CJ24: AA | CK24: AA | CL24: AA | CM24: AA | CN24: AA | CO24: NC | CP24: BB | CQ24: AA | CR24: BB | CS24: BB | CT24: BB | CU24: BB | CV24: BB | CW24: BB | CX24: BB | CY24: BB | CZ24: BB | DA24: BB | DB24: BB | DC24: BB | DD24: AA | DE24: AA | DF24: AA | DG24: AA | DH24: AA | DI24: AA | DJ24: AA | DK24: AA | DL24: AA | DM24: AA | DN24: AA | DO24: AA | DP24: AA | DQ24: AA | DR24: AA | DS24: AA | DT24: AA | DU24: AA | DV24: AA | DW24: AA | DX24: AA | DY24: AA | DZ24: AA | EA24: AA | EB24: AA | EC24: AA | ED24: AA | EE24: AA | EF24: AA | EG24: AA | EH24: AA | EI24: AA | EJ24: AA | EK24: BB | EL24: BB | EM24: NC | EN24: 9 | EO24: 75 | EQ24: 0 | ER24: 55 | ES24: 139 | ET24: 130 | EU24: 6 | EV24: 54 | EW24: 40 | EX24: 0
A25: A01 | B25: Bn-A01-p1132885 | C25: 729,912 | D25: 729961 | E25: AA | F25: AA | G25: BB | H25: NC | I25: AA | J25: AA | K25: BB | L25: AA | M25: NC | N25: AB | O25: NC | P25: NC | Q25: NC | R25: NC | S25: NC | T25: BB | U25: BB | V25: BB | W25: BB | X25: BB | Y25: BB | Z25: BB | AA25: BB | AB25: BB | AC25: BB | AD25: BB | AE25: BB | AF25: BB | AG25: BB | AH25: BB | AI25: BB | AJ25: BB | AK25: BB | AL25: BB | AM25: BB | AN25: BB | AO25: BB | AP25: BB | AQ25: BB | AR25: BB | AS25: AA | AT25: AA | AU25: AA | AV25: AA | AW25: AA | AX25: AA | AY25: BB | AZ25: BB | BA25: BB | BB25: AA | BC25: AA | BD25: AA | BE25: AA | BF25: AA | BG25: AA | BH25: AA | BI25: AA | BJ25: AA | BK25: AA | BL25: AA | BM25: AA | BN25: AA | BO25: AA | BP25: AA | BQ25: AA | BR25: AA | BS25: AA | BT25: BB | BU25: BB | BV25: BB | BW25: BB | BX25: BB | BY25: BB | BZ25: BB | CA25: BB | CB25: BB | CC25: BB | CD25: BB | CE25: BB | CF25: BB | CG25: BB | CH25: BB | CI25: BB | CJ25: BB | CK25: BB | CL25: BB | CM25: BB | CN25: BB | CO25: NC | CP25: BB | CQ25: BB | CR25: BB | CS25: BB | CT25: BB | CU25: BB | CV25: BB | CW25: BB | CX25: BB | CY25: BB | CZ25: BB | DA25: BB | DB25: BB | DC25: BB | DD25: BB | DE25: BB | DF25: BB | DG25: BB | DH25: BB | DI25: BB | DJ25: BB | DK25: BB | DL25: BB | DM25: BB | DN25: BB | DO25: BB | DP25: BB | DQ25: BB | DR25: BB | DS25: BB | DT25: BB | DU25: BB | DV25: BB | DW25: BB | DX25: BB | DY25: BB | DZ25: BB | EA25: BB | EB25: BB | EC25: BB | ED25: BB | EE25: BB | EF25: BB | EG25: BB | EH25: BB | EI25: BB | EJ25: BB | EK25: BB | EL25: BB | EM25: NC | EN25: 9 | EO25: 29 | EQ25: 1 | ER25: 100 | ES25: 139 | ET25: 130 | EU25: 6 | EV25: 21 | EW25: 72 | EX25: 1
A26: A01 | B26: Bn-A01-p1133447 | C26: 730,474 | D26: 730523 | E26: AA | F26: AA | G26: AA | H26: NC | I26: BB | J26: BB | K26: BB | L26: AA | M26: AA | N26: AA | O26: NC | P26: NC | Q26: NC | R26: NC | S26: NC | T26: NC | U26: BB | V26: BB | W26: BB | X26: BB | Y26: BB | Z26: BB | AA26: BB | AB26: BB | AC26: BB | AD26: BB | AE26: BB | AF26: BB | AG26: BB | AH26: BB | AI26: BB | AJ26: BB | AK26: BB | AL26: BB | AM26: BB | AN26: BB | AO26: BB | AP26: AA | AQ26: AA | AR26: AA | AS26: BB | AT26: BB | AU26: BB | AV26: BB | AW26: BB | AX26: BB | AY26: AA | AZ26: AA | BA26: AA | BB26: BB | BC26: BB | BD26: BB | BE26: BB | BF26: BB | BG26: BB | BH26: BB | BI26: BB | BJ26: BB | BK26: BB | BL26: BB | BM26: BB | BN26: BB | BO26: BB | BP26: BB | BQ26: BB | BR26: BB | BS26: BB | BT26: AA | BU26: AA | BV26: AA | BW26: BB | BX26: BB | BY26: BB | BZ26: BB | CA26: BB | CB26: BB | CC26: BB | CD26: BB | CE26: BB | CF26: BB | CG26: BB | CH26: BB | CI26: BB | CJ26: BB | CK26: BB | CL26: BB | CM26: BB | CN26: BB | CO26: NC | CP26: AA | CQ26: BB | CR26: AA | CS26: AA | CT26: AA | CU26: AA | CV26: AA | CW26: AA | CX26: AA | CY26: AA | CZ26: AA | DA26: AA | DB26: AA | DC26: AA | DD26: BB | DE26: BB | DF26: BB | DG26: BB | DH26: BB | DI26: BB | DJ26: BB | DK26: BB | DL26: BB | DM26: BB | DN26: BB | DO26: BB | DP26: BB | DQ26: BB | DR26: BB | DS26: BB | DT26: BB | DU26: BB | DV26: BB | DW26: BB | DX26: BB | DY26: BB | DZ26: BB | EA26: BB | EB26: BB | EC26: BB | ED26: BB | EE26: BB | EF26: BB | EG26: BB | EH26: BB | EI26: BB | EJ26: BB | EK26: AA | EL26: AA | EM26: NC | EN26: 9 | EO26: 30 | EQ26: 0 | ER26: 100 | ES26: 139 | ET26: 130 | EU26: 6 | EV26: 22 | EW26: 72 | EX26: 0
A27: A01 | B27: Bn-A01-p1145674 | C27: 749,050 | D27: 749001 | E27: BB | F27: BB | G27: AA | H27: NC | I27: AA | J27: AA | K27: AA | L27: AA | M27: AA | N27: NC | O27: NC | P27: NC | Q27: NC | R27: NC | S27: NC | T27: NC | U27: AA | V27: AA | W27: AA | X27: AA | Y27: AA | Z27: AA | AA27: AA | AB27: AA | AC27: AA | AD27: AA | AE27: AA | AF27: AA | AG27: AA | AH27: AA | AI27: AA | AJ27: AA | AK27: AA | AL27: AA | AM27: AA | AN27: AA | AO27: AA | AP27: AA | AQ27: AA | AR27: AA | AS27: NC | AT27: NC | AU27: NC | AV27: NC | AW27: NC | AX27: NC | AY27: AA | AZ27: AA | BA27: AA | BB27: AA | BC27: AA | BD27: AA | BE27: AA | BF27: AA | BG27: AA | BH27: AA | BI27: AA | BJ27: AA | BK27: AA | BL27: AA | BM27: AA | BN27: AA | BO27: AA | BP27: AA | BQ27: AA | BR27: AA | BS27: AA | BT27: AA | BU27: AA | BV27: AA | BW27: AA | BX27: AA | BY27: AA | BZ27: AA | CA27: AA | CB27: AA | CC27: AA | CD27: AA | CE27: AA | CF27: AA | CG27: AA | CH27: AA | CI27: AA | CJ27: AA | CK27: AA | CL27: AA | CM27: AA | CN27: AA | CO27: NC | CP27: AA | CQ27: AA | CR27: AA | CS27: AA | CT27: AA | CU27: AA | CV27: AA | CW27: AA | CX27: AA | CY27: AA | CZ27: AA | DA27: AA | DB27: AA | DC27: AA | DD27: AA | DE27: AA | DF27: AA | DG27: AA | DH27: AA | DI27: AA | DJ27: AA | DK27: AA | DL27: AA | DM27: AA | DN27: AA | DO27: AA | DP27: AA | DQ27: AA | DR27: AA | DS27: AA | DT27: AA | DU27: AA | DV27: AA | DW27: AA | DX27: AA | DY27: AA | DZ27: AA | EA27: AA | EB27: AA | EC27: AA | ED27: AA | EE27: AA | EF27: AA | EG27: AA | EH27: AA | EI27: AA | EJ27: AA | EK27: AA | EL27: AA | EM27: NC | EN27: 16 | EO27: 121 | EQ27: 0 | ER27: 2 | ES27: 139 | ET27: 123 | EU27: 12 | EV27: 87 | EW27: 1 | EX27: 0
A28: A01 | B28: Bn-A01-p1187868 | C28: 786,525 | D28: 786574 | E28: AA | F28: AA | G28: AA | H28: NC | I28: AA | J28: AA | K28: AA | L28: AA | M28: AA | N28: AA | O28: NC | P28: NC | Q28: NC | R28: NC | S28: NC | T28: NC | U28: AA | V28: AA | W28: AA | X28: AA | Y28: AA | Z28: AA | AA28: AA | AB28: AA | AC28: AA | AD28: AA | AE28: AA | AF28: AA | AG28: AA | AH28: AA | AI28: AA | AJ28: AA | AK28: AA | AL28: AA | AM28: AA | AN28: AA | AO28: AA | AP28: AA | AQ28: AA | AR28: AA | AS28: AA | AT28: AA | AU28: AA | AV28: AA | AW28: AA | AX28: AA | AY28: AA | AZ28: AA | BA28: AA | BB28: AA | BC28: AA | BD28: AA | BE28: AA | BF28: AA | BG28: AA | BH28: AA | BI28: AA | BJ28: AA | BK28: AA | BL28: AA | BM28: AA | BN28: AA | BO28: AA | BP28: AA | BQ28: AA | BR28: AA | BS28: AA | BT28: AA | BU28: AA | BV28: AA | BW28: AA | BX28: AA | BY28: AA | BZ28: AA | CA28: AA | CB28: AA | CC28: AA | CD28: AA | CE28: AA | CF28: AA | CG28: AA | CH28: AA | CI28: AA | CJ28: AA | CK28: AA | CL28: AA | CM28: AA | CN28: AA | CO28: NC | CP28: AA | CQ28: AA | CR28: AA | CS28: AA | CT28: AA | CU28: AA | CV28: AA | CW28: AA | CX28: AA | CY28: AA | CZ28: AA | DA28: AA | DB28: AA | DC28: AA | DD28: AA | DE28: AA | DF28: AA | DG28: AA | DH28: AA | DI28: AA | DJ28: AA | DK28: AA | DL28: AA | DM28: AA | DN28: AA | DO28: AA | DP28: AA | DQ28: AA | DR28: AA | DS28: AA | DT28: AA | DU28: AA | DV28: AA | DW28: AA | DX28: AA | DY28: AA | DZ28: AA | EA28: AA | EB28: AA | EC28: AA | ED28: AA | EE28: AA | EF28: AA | EG28: AA | EH28: AA | EI28: AA | EJ28: AA | EK28: AA | EL28: AA | EM28: NC | EN28: 9 | EO28: 130 | EQ28: 0 | ER28: 0 | ES28: 139 | ET28: 130 | EU28: 6 | EV28: 94 | EW28: 0 | EX28: 0
A29: A01 | B29: Bn-A01-p1235334 | C29: 833,354 | D29: 833403 | E29: AA | F29: AA | G29: AA | H29: BB | I29: AA | J29: AA | K29: AA | L29: AA | M29: AA | N29: NC | O29: NC | P29: NC | Q29: NC | R29: NC | S29: NC | T29: NC | U29: AA | V29: AA | W29: AA | X29: AA | Y29: AA | Z29: AA | AA29: AA | AB29: AA | AC29: AA | AD29: AA | AE29: AA | AF29: AA | AG29: AA | AH29: AA | AI29: AA | AJ29: AA | AK29: AA | AL29: AA | AM29: AA | AN29: AA | AO29: AA | AP29: AA | AQ29: AA | AR29: AA | AS29: AA | AT29: AA | AU29: AA | AV29: AA | AW29: AA | AX29: AA | AY29: AA | AZ29: AA | BA29: AA | BB29: AA | BC29: AA | BD29: AA | BE29: AA | BF29: AA | BG29: AA | BH29: AA | BI29: AA | BJ29: AA | BK29: AA | BL29: AA | BM29: AA | BN29: AA | BO29: AA | BP29: AA | BQ29: AA | BR29: AA | BS29: AA | BT29: AA | BU29: AA | BV29: AA | BW29: AA | BX29: AA | BY29: AA | BZ29: AA | CA29: AA | CB29: AA | CC29: AA | CD29: AA | CE29: AA | CF29: AA | CG29: AA | CH29: AA | CI29: AA | CJ29: AA | CK29: AA | CL29: AA | CM29: AA | CN29: AA | CO29: NC | CP29: AA | CQ29: AA | CR29: AA | CS29: AA | CT29: AA | CU29: AA | CV29: AA | CW29: AA | CX29: AA | CY29: AA | CZ29: AA | DA29: AA | DB29: AA | DC29: AA | DD29: AA | DE29: AA | DF29: AA | DG29: AA | DH29: AA | DI29: AA | DJ29: AA | DK29: AA | DL29: AA | DM29: AA | DN29: AA | DO29: AA | DP29: AA | DQ29: AA | DR29: AA | DS29: AA | DT29: AA | DU29: AA | DV29: AA | DW29: AA | DX29: AA | DY29: AA | DZ29: AA | EA29: AA | EB29: AA | EC29: AA | ED29: AA | EE29: AA | EF29: AA | EG29: AA | EH29: AA | EI29: AA | EJ29: AA | EK29: AA | EL29: AA | EM29: NC | EN29: 9 | EO29: 129 | EQ29: 0 | ER29: 1 | ES29: 139 | ET29: 130 | EU29: 6 | EV29: 93 | EW29: 1 | EX29: 0
A30: A01 | B30: Bn-A01-p1247899 | C30: 848,280 | D30: 848329 | E30: AA | F30: AA | G30: BB | H30: BB | I30: BB | J30: BB | K30: BB | L30: AA | M30: AB | N30: NC | O30: NC | P30: NC | Q30: NC | R30: NC | S30: NC | T30: NC | U30: AA | V30: AA | W30: AA | X30: AA | Y30: AA | Z30: AA | AA30: AA | AB30: AA | AC30: AA | AD30: AA | AE30: AA | AF30: AA | AG30: AA | AH30: AA | AI30: AA | AJ30: AA | AK30: AA | AL30: AA | AM30: AA | AN30: AA | AO30: AA | AP30: BB | AQ30: BB | AR30: BB | AS30: AA | AT30: AA | AU30: AA | AV30: AA | AW30: AA | AX30: AA | AY30: BB | AZ30: BB | BA30: BB | BB30: AA | BC30: AA | BD30: AA | BE30: BB | BF30: BB | BG30: BB | BH30: BB | BI30: BB | BJ30: BB | BK30: BB | BL30: BB | BM30: BB | BN30: BB | BO30: BB | BP30: BB | BQ30: BB | BR30: BB | BS30: BB | BT30: BB | BU30: BB | BV30: BB | BW30: AA | BX30: AA | BY30: AA | BZ30: AA | CA30: AA | CB30: AA | CC30: AA | CD30: AA | CE30: AA | CF30: AA | CG30: AA | CH30: AA | CI30: AA | CJ30: AA | CK30: AA | CL30: AA | CM30: AA | CN30: AA | CO30: NC | CP30: BB | CQ30: AA | CR30: BB | CS30: BB | CT30: BB | CU30: BB | CV30: BB | CW30: BB | CX30: BB | CY30: BB | CZ30: BB | DA30: BB | DB30: BB | DC30: BB | DD30: AA | DE30: AA | DF30: AA | DG30: AA | DH30: AA | DI30: AA | DJ30: AA | DK30: AA | DL30: AA | DM30: AA | DN30: AA | DO30: AA | DP30: AA | DQ30: AA | DR30: AA | DS30: AA | DT30: AA | DU30: AA | DV30: AA | DW30: AA | DX30: AA | DY30: AA | DZ30: AA | EA30: AA | EB30: AA | EC30: AA | ED30: AA | EE30: AA | EF30: AA | EG30: AA | EH30: AA | EI30: AA | EJ30: AA | EK30: BB | EL30: BB | EM30: NC | EN30: 9 | EO30: 85 | EQ30: 1 | ER30: 44 | ES30: 139 | ET30: 130 | EU30: 6 | EV30: 61 | EW30: 32 | EX30: 1
A31: A01 | B31: Bn-A01-p1249847 | C31: 850,337 | D31: 850288 | E31: BB | F31: BB | G31: BB | H31: AA | I31: BB | J31: BB | K31: AA | L31: AA | M31: AA | N31: NC | O31: NC | P31: NC | Q31: NC | R31: NC | S31: NC | T31: NC | U31: AA | V31: AA | W31: AA | X31: AA | Y31: AA | Z31: AA | AA31: AA | AB31: AA | AC31: AA | AD31: AA | AE31: AA | AF31: AA | AG31: AA | AH31: AA | AI31: AA | AJ31: AA | AK31: AA | AL31: AA | AM31: AA | AN31: AA | AO31: AA | AP31: NC | AQ31: NC | AR31: NC | AS31: BB | AT31: BB | AU31: BB | AV31: BB | AW31: BB | AX31: BB | AY31: NC | AZ31: NC | BA31: NC | BB31: BB | BC31: BB | BD31: BB | BE31: BB | BF31: BB | BG31: BB | BH31: BB | BI31: BB | BJ31: BB | BK31: BB | BL31: BB | BM31: BB | BN31: BB | BO31: BB | BP31: BB | BQ31: BB | BR31: BB | BS31: BB | BT31: NC | BU31: NC | BV31: NC | BW31: AA | BX31: AA | BY31: AA | BZ31: AA | CA31: AA | CB31: AA | CC31: AA | CD31: AA | CE31: AA | CF31: AA | CG31: AA | CH31: AA | CI31: AA | CJ31: AA | CK31: AA | CL31: AA | CM31: AA | CN31: AA | CO31: NC | CP31: NC | CQ31: AA | CR31: NC | CS31: NC | CT31: NC | CU31: NC | CV31: NC | CW31: NC | CX31: NC | CY31: NC | CZ31: NC | DA31: NC | DB31: NC | DC31: NC | DD31: AA | DE31: AA | DF31: AA | DG31: AA | DH31: AA | DI31: AA | DJ31: AA | DK31: AA | DL31: AA | DM31: AA | DN31: AA | DO31: AA | DP31: AA | DQ31: AA | DR31: AA | DS31: AA | DT31: AA | DU31: AA | DV31: AA | DW31: AA | DX31: AA | DY31: AA | DZ31: AA | EA31: AA | EB31: AA | EC31: AA | ED31: AA | EE31: AA | EF31: AA | EG31: AA | EH31: AA | EI31: AA | EJ31: AA | EK31: NC | EL31: NC | EM31: NC | EN31: 33 | EO31: 77 | EQ31: 0 | ER31: 29 | ES31: 139 | ET31: 106 | EU31: 24 | EV31: 55 | EW31: 21 | EX31: 0
A32: A01 | B32: Bn-A01-p1261017 | C32: 861,413 | D32: 861364 | E32: AA | F32: AA | G32: AA | H32: AA | I32: BB | J32: BB | K32: AA | L32: AA | M32: AA | N32: NC | O32: NC | P32: NC | Q32: NC | R32: NC | S32: NC | T32: NC | U32: BB | V32: BB | W32: BB | X32: BB | Y32: BB | Z32: BB | AA32: BB | AB32: BB | AC32: BB | AD32: BB | AE32: BB | AF32: BB | AG32: BB | AH32: BB | AI32: BB | AJ32: BB | AK32: BB | AL32: BB | AM32: BB | AN32: BB | AO32: BB | AP32: AA | AQ32: AA | AR32: AA | AS32: AA | AT32: AA | AU32: AA | AV32: AA | AW32: AA | AX32: AA | AY32: AA | AZ32: AA | BA32: AA | BB32: AA | BC32: AA | BD32: AA | BE32: AA | BF32: AA | BG32: AA | BH32: AA | BI32: AA | BJ32: AA | BK32: AA | BL32: AA | BM32: AA | BN32: AA | BO32: AA | BP32: AA | BQ32: AA | BR32: AA | BS32: AA | BT32: AA | BU32: AA | BV32: AA | BW32: BB | BX32: BB | BY32: BB | BZ32: BB | CA32: BB | CB32: BB | CC32: BB | CD32: BB | CE32: BB | CF32: BB | CG32: BB | CH32: BB | CI32: BB | CJ32: BB | CK32: BB | CL32: BB | CM32: BB | CN32: BB | CO32: NC | CP32: AA | CQ32: BB | CR32: AA | CS32: AA | CT32: AA | CU32: AA | CV32: AA | CW32: AA | CX32: AA | CY32: AA | CZ32: AA | DA32: AA | DB32: AA | DC32: AA | DD32: BB | DE32: BB | DF32: BB | DG32: BB | DH32: BB | DI32: BB | DJ32: BB | DK32: BB | DL32: BB | DM32: BB | DN32: BB | DO32: BB | DP32: BB | DQ32: BB | DR32: BB | DS32: BB | DT32: BB | DU32: BB | DV32: BB | DW32: BB | DX32: BB | DY32: BB | DZ32: BB | EA32: BB | EB32: BB | EC32: BB | ED32: BB | EE32: BB | EF32: BB | EG32: BB | EH32: BB | EI32: BB | EJ32: BB | EK32: AA | EL32: AA | EM32: NC | EN32: 9 | EO32: 55 | EQ32: 0 | ER32: 75 | ES32: 139 | ET32: 130 | EU32: 6 | EV32: 40 | EW32: 54 | EX32: 0
A33: A01 | B33: Bn-A01-p1275284 | C33: 873,075 | D33: 873124 | E33: BB | F33: BB | G33: AA | H33: AA | I33: AA | J33: AA | K33: AB | L33: BB | M33: BB | N33: NC | O33: NC | P33: NC | Q33: NC | R33: NC | S33: NC | T33: NC | U33: AA | V33: AA | W33: AA | X33: AA | Y33: AA | Z33: AA | AA33: AA | AB33: AA | AC33: AA | AD33: AA | AE33: AA | AF33: AA | AG33: AA | AH33: AA | AI33: AA | AJ33: AA | AK33: AA | AL33: AA | AM33: AA | AN33: AA | AO33: AA | AP33: BB | AQ33: BB | AR33: BB | AS33: BB | AT33: BB | AU33: BB | AV33: BB | AW33: BB | AX33: BB | AY33: BB | AZ33: BB | BA33: BB | BB33: BB | BC33: BB | BD33: BB | BE33: AA | BF33: AA | BG33: AA | BH33: AA | BI33: AA | BJ33: AA | BK33: AA | BL33: AA | BM33: AA | BN33: AA | BO33: AA | BP33: AA | BQ33: AA | BR33: AA | BS33: AA | BT33: BB | BU33: BB | BV33: BB | BW33: AA | BX33: AA | BY33: AA | BZ33: AA | CA33: AA | CB33: AA | CC33: AA | CD33: AA | CE33: AA | CF33: AA | CG33: AA | CH33: AA | CI33: AA | CJ33: AA | CK33: AA | CL33: AA | CM33: AA | CN33: AA | CO33: NC | CP33: BB | CQ33: AA | CR33: BB | CS33: BB | CT33: BB | CU33: BB | CV33: BB | CW33: BB | CX33: BB | CY33: BB | CZ33: BB | DA33: BB | DB33: BB | DC33: BB | DD33: AA | DE33: AA | DF33: AA | DG33: AA | DH33: AA | DI33: AA | DJ33: AA | DK33: AA | DL33: AA | DM33: AA | DN33: AA | DO33: AA | DP33: AA | DQ33: AA | DR33: AA | DS33: AA | DT33: AA | DU33: AA | DV33: AA | DW33: AA | DX33: AA | DY33: AA | DZ33: AA | EA33: AA | EB33: AA | EC33: AA | ED33: AA | EE33: AA | EF33: AA | EG33: AA | EH33: AA | EI33: AA | EJ33: AA | EK33: BB | EL33: BB | EM33: NC | EN33: 9 | EO33: 92 | EQ33: 1 | ER33: 37 | ES33: 139 | ET33: 130 | EU33: 6 | EV33: 66 | EW33: 27 | EX33: 1
A34: A01 | B34: Bn-A01-p1276504 | C34: 874,407 | D34: 874358 | E34: AA | F34: AA | G34: AA | H34: BB | I34: BB | J34: BB | K34: AA | L34: AA | M34: AA | N34: NC | O34: NC | P34: NC | Q34: NC | R34: NC | S34: NC | T34: NC | U34: AA | V34: AA | W34: AA | X34: AA | Y34: AA | Z34: AA | AA34: AA | AB34: AA | AC34: AA | AD34: AA | AE34: AA | AF34: AA | AG34: AA | AH34: AA | AI34: AA | AJ34: AA | AK34: AA | AL34: AA | AM34: AA | AN34: AA | AO34: AA | AP34: AA | AQ34: AA | AR34: AA | AS34: AA | AT34: AA | AU34: AA | AV34: AA | AW34: AA | AX34: AA | AY34: AA | AZ34: AA | BA34: AA | BB34: AA | BC34: AA | BD34: AA | BE34: BB | BF34: BB | BG34: BB | BH34: BB | BI34: BB | BJ34: BB | BK34: BB | BL34: BB | BM34: BB | BN34: BB | BO34: BB | BP34: BB | BQ34: BB | BR34: BB | BS34: BB | BT34: AA | BU34: AA | BV34: AA | BW34: AA | BX34: AA | BY34: AA | BZ34: AA | CA34: AA | CB34: AA | CC34: AA | CD34: AA | CE34: AA | CF34: AA | CG34: AA | CH34: AA | CI34: AA | CJ34: AA | CK34: AA | CL34: AA | CM34: AA | CN34: AA | CO34: NC | CP34: AA | CQ34: AA | CR34: AA | CS34: AA | CT34: AA | CU34: AA | CV34: AA | CW34: AA | CX34: AA | CY34: AA | CZ34: AA | DA34: AA | DB34: AA | DC34: AA | DD34: BB | DE34: BB | DF34: BB | DG34: AA | DH34: AA | DI34: AA | DJ34: AA | DK34: AA | DL34: AA | DM34: AA | DN34: AA | DO34: AA | DP34: AA | DQ34: AA | DR34: AA | DS34: AA | DT34: AA | DU34: AA | DV34: AA | DW34: AA | DX34: AA | DY34: AA | DZ34: AA | EA34: AA | EB34: AA | EC34: AA | ED34: AA | EE34: AA | EF34: AA | EG34: AA | EH34: AA | EI34: AA | EJ34: AA | EK34: AA | EL34: AA | EM34: NC | EN34: 9 | EO34: 109 | EQ34: 0 | ER34: 21 | ES34: 139 | ET34: 130 | EU34: 6 | EV34: 78 | EW34: 15 | EX34: 0
A35: A01 | B35: Bn-A01-p1320368 | C35: 921,500 | D35: 921530 | E35: AA | F35: AA | G35: AA | H35: NC | I35: BB | J35: BB | K35: BB | L35: AA | M35: AA | N35: AA | O35: NC | P35: NC | Q35: NC | R35: NC | S35: NC | T35: NC | U35: BB | V35: BB | W35: BB | X35: BB | Y35: BB | Z35: BB | AA35: BB | AB35: BB | AC35: BB | AD35: BB | AE35: BB | AF35: BB | AG35: BB | AH35: BB | AI35: BB | AJ35: BB | AK35: BB | AL35: BB | AM35: BB | AN35: BB | AO35: BB | AP35: AA | AQ35: AA | AR35: AA | AS35: AA | AT35: AA | AU35: AA | AV35: AA | AW35: AA | AX35: AA | AY35: AA | AZ35: AA | BA35: AA | BB35: AA | BC35: AA | BD35: AA | BE35: AA | BF35: AA | BG35: AA | BH35: AA | BI35: AA | BJ35: AA | BK35: AA | BL35: AA | BM35: AA | BN35: AA | BO35: AA | BP35: AA | BQ35: AA | BR35: AA | BS35: AA | BT35: AA | BU35: AA | BV35: AA | BW35: BB | BX35: BB | BY35: BB | BZ35: BB | CA35: BB | CB35: BB | CC35: BB | CD35: BB | CE35: BB | CF35: BB | CG35: BB | CH35: BB | CI35: BB | CJ35: BB | CK35: BB | CL35: BB | CM35: BB | CN35: BB | CO35: NC | CP35: AA | CQ35: BB | CR35: AA | CS35: AA | CT35: AA | CU35: AA | CV35: AA | CW35: AA | CX35: AA | CY35: AA | CZ35: AA | DA35: AA | DB35: AA | DC35: AA | DD35: BB | DE35: BB | DF35: BB | DG35: BB | DH35: BB | DI35: BB | DJ35: BB | DK35: BB | DL35: BB | DM35: BB | DN35: BB | DO35: BB | DP35: BB | DQ35: BB | DR35: BB | DS35: BB | DT35: BB | DU35: BB | DV35: BB | DW35: BB | DX35: BB | DY35: BB | DZ35: BB | EA35: BB | EB35: BB | EC35: BB | ED35: BB | EE35: BB | EF35: BB | EG35: BB | EH35: BB | EI35: BB | EJ35: BB | EK35: AA | EL35: AA | EM35: NC | EN35: 9 | EO35: 54 | EQ35: 0 | ER35: 76 | ES35: 139 | ET35: 130 | EU35: 6 | EV35: 39 | EW35: 55 | EX35: 0
A36: A01 | B36: Bn-A01-p1373104 | C36: 974,159 | D36: 974110 | E36: AA | F36: AA | G36: BB | H36: BB | I36: AA | J36: AA | K36: BB | L36: BB | M36: AB | N36: BB | O36: NC | P36: NC | Q36: NC | R36: NC | S36: NC | T36: NC | U36: BB | V36: BB | W36: BB | X36: BB | Y36: BB | Z36: BB | AA36: BB | AB36: BB | AC36: BB | AD36: BB | AE36: BB | AF36: BB | AG36: BB | AH36: BB | AI36: BB | AJ36: BB | AK36: BB | AL36: BB | AM36: BB | AN36: BB | AO36: BB | AP36: AA | AQ36: AA | AR36: AA | AS36: BB | AT36: BB | AU36: BB | AV36: BB | AW36: BB | AX36: BB | AY36: AA | AZ36: AA | BA36: AA | BB36: BB | BC36: BB | BD36: BB | BE36: AA | BF36: AA | BG36: AA | BH36: AA | BI36: AA | BJ36: AA | BK36: AA | BL36: AA | BM36: AA | BN36: AA | BO36: AA | BP36: AA | BQ36: AA | BR36: AA | BS36: AA | BT36: AA | BU36: AA | BV36: AA | BW36: BB | BX36: BB | BY36: BB | BZ36: BB | CA36: BB | CB36: BB | CC36: BB | CD36: BB | CE36: BB | CF36: BB | CG36: BB | CH36: BB | CI36: BB | CJ36: BB | CK36: BB | CL36: BB | CM36: BB | CN36: BB | CO36: NC | CP36: AA | CQ36: BB | CR36: AA | CS36: AA | CT36: AA | CU36: AA | CV36: AA | CW36: AA | CX36: AA | CY36: AA | CZ36: AA | DA36: AA | DB36: AA | DC36: AA | DD36: BB | DE36: BB | DF36: BB | DG36: BB | DH36: BB | DI36: BB | DJ36: BB | DK36: BB | DL36: BB | DM36: BB | DN36: BB | DO36: BB | DP36: BB | DQ36: BB | DR36: BB | DS36: BB | DT36: BB | DU36: BB | DV36: BB | DW36: BB | DX36: BB | DY36: BB | DZ36: BB | EA36: BB | EB36: BB | EC36: BB | ED36: BB | EE36: BB | EF36: BB | EG36: BB | EH36: BB | EI36: BB | EJ36: BB | EK36: AA | EL36: AA | EM36: NC | EN36: 8 | EO36: 43 | EQ36: 1 | ER36: 87 | ES36: 139 | ET36: 131 | EU36: 6 | EV36: 31 | EW36: 63 | EX36: 1
A37: A01 | B37: Bn-A01-p1373827 | C37: 974,785 | D37: 974834 | E37: BB | F37: BB | G37: AA | H37: BB | I37: AA | J37: AA | K37: BB | L37: BB | M37: BB | N37: BB | O37: NC | P37: NC | Q37: NC | R37: NC | S37: NC | T37: NC | U37: BB | V37: BB | W37: BB | X37: BB | Y37: BB | Z37: BB | AA37: BB | AB37: BB | AC37: BB | AD37: BB | AE37: BB | AF37: BB | AG37: BB | AH37: BB | AI37: BB | AJ37: BB | AK37: BB | AL37: BB | AM37: BB | AN37: BB | AO37: BB | AP37: BB | AQ37: BB | AR37: BB | AS37: BB | AT37: BB | AU37: BB | AV37: BB | AW37: BB | AX37: BB | AY37: BB | AZ37: BB | BA37: BB | BB37: BB | BC37: BB | BD37: BB | BE37: AA | BF37: AA | BG37: AA | BH37: AA | BI37: AA | BJ37: AA | BK37: AA | BL37: AA | BM37: AA | BN37: AA | BO37: AA | BP37: AA | BQ37: AA | BR37: AA | BS37: AA | BT37: BB | BU37: BB | BV37: BB | BW37: BB | BX37: BB | BY37: BB | BZ37: BB | CA37: BB | CB37: BB | CC37: BB | CD37: BB | CE37: BB | CF37: BB | CG37: BB | CH37: BB | CI37: BB | CJ37: BB | CK37: BB | CL37: BB | CM37: BB | CN37: BB | CO37: NC | CP37: BB | CQ37: BB | CR37: BB | CS37: BB | CT37: BB | CU37: BB | CV37: BB | CW37: BB | CX37: BB | CY37: BB | CZ37: BB | DA37: BB | DB37: BB | DC37: BB | DD37: BB | DE37: BB | DF37: BB | DG37: BB | DH37: BB | DI37: BB | DJ37: BB | DK37: BB | DL37: BB | DM37: BB | DN37: BB | DO37: BB | DP37: BB | DQ37: BB | DR37: BB | DS37: BB | DT37: BB | DU37: BB | DV37: BB | DW37: BB | DX37: BB | DY37: BB | DZ37: BB | EA37: BB | EB37: BB | EC37: BB | ED37: BB | EE37: BB | EF37: BB | EG37: BB | EH37: BB | EI37: BB | EJ37: BB | EK37: BB | EL37: BB | EM37: NC | EN37: 8 | EO37: 18 | EQ37: 0 | ER37: 113 | ES37: 139 | ET37: 131 | EU37: 6 | EV37: 13 | EW37: 81 | EX37: 0
A38: A01 | B38: Bn-A01-p1373838 | C38: 974,895 | D38: 974847 | E38: AA | F38: AA | G38: BB | H38: AA | I38: BB | J38: BB | K38: AA | L38: AA | M38: AA | N38: AA | O38: NC | P38: NC | Q38: NC | R38: NC | S38: NC | T38: NC | U38: AA | V38: AA | W38: AA | X38: AA | Y38: AA | Z38: AA | AA38: AA | AB38: AA | AC38: AA | AD38: AA | AE38: AA | AF38: AA | AG38: AA | AH38: AA | AI38: AA | AJ38: AA | AK38: AA | AL38: AA | AM38: AA | AN38: AA | AO38: AA | AP38: AA | AQ38: AA | AR38: AA | AS38: AA | AT38: AA | AU38: AA | AV38: AA | AW38: AA | AX38: AA | AY38: AA | AZ38: AA | BA38: AA | BB38: AA | BC38: AA | BD38: AA | BE38: BB | BF38: BB | BG38: BB | BH38: BB | BI38: BB | BJ38: BB | BK38: BB | BL38: BB | BM38: BB | BN38: BB | BO38: BB | BP38: BB | BQ38: BB | BR38: BB | BS38: BB | BT38: AA | BU38: AA | BV38: AA | BW38: AA | BX38: AA | BY38: AA | BZ38: AA | CA38: AA | CB38: AA | CC38: AA | CD38: AA | CE38: AA | CF38: AA | CG38: AA | CH38: AA | CI38: AA | CJ38: AA | CK38: AA | CL38: AA | CM38: AA | CN38: AA | CO38: NC | CP38: AA | CQ38: AA | CR38: AA | CS38: AA | CT38: AA | CU38: AA | CV38: AA | CW38: AA | CX38: AA | CY38: AA | CZ38: AA | DA38: AA | DB38: AA | DC38: AA | DD38: AA | DE38: AA | DF38: AA | DG38: AA | DH38: AA | DI38: AA | DJ38: AA | DK38: AA | DL38: AA | DM38: AA | DN38: AA | DO38: AA | DP38: AA | DQ38: AA | DR38: AA | DS38: AA | DT38: AA | DU38: AA | DV38: AA | DW38: AA | DX38: AA | DY38: AA | DZ38: AA | EA38: AA | EB38: AA | EC38: AA | ED38: AA | EE38: AA | EF38: AA | EG38: AA | EH38: AA | EI38: AA | EJ38: AA | EK38: AA | EL38: AA | EM38: NC | EN38: 8 | EO38: 113 | EQ38: 0 | ER38: 18 | ES38: 139 | ET38: 131 | EU38: 6 | EV38: 81 | EW38: 13 | EX38: 0
A39: A01 | B39: Bn-A01-p1373965 | C39: 975,027 | D39: 974978 | E39: AA | F39: AA | G39: BB | H39: AA | I39: BB | J39: BB | K39: AA | L39: AA | M39: AA | N39: AA | O39: NC | P39: NC | Q39: NC | R39: NC | S39: NC | T39: NC | U39: AA | V39: AA | W39: AA | X39: AA | Y39: AA | Z39: AA | AA39: AA | AB39: AA | AC39: AA | AD39: AA | AE39: AA | AF39: AA | AG39: AA | AH39: AA | AI39: AA | AJ39: AA | AK39: AA | AL39: AA | AM39: AA | AN39: AA | AO39: AA | AP39: AA | AQ39: AA | AR39: AA | AS39: AA | AT39: AA | AU39: AA | AV39: AA | AW39: AA | AX39: AA | AY39: AA | AZ39: AA | BA39: AA | BB39: AA | BC39: AA | BD39: AA | BE39: BB | BF39: BB | BG39: BB | BH39: BB | BI39: BB | BJ39: BB | BK39: BB | BL39: BB | BM39: BB | BN39: BB | BO39: BB | BP39: BB | BQ39: BB | BR39: BB | BS39: BB | BT39: AA | BU39: AA | BV39: AA | BW39: AA | BX39: AA | BY39: AA | BZ39: AA | CA39: AA | CB39: AA | CC39: AA | CD39: AA | CE39: AA | CF39: AA | CG39: AA | CH39: AA | CI39: AA | CJ39: AA | CK39: AA | CL39: AA | CM39: AA | CN39: AA | CO39: NC | CP39: AA | CQ39: AA | CR39: AA | CS39: AA | CT39: AA | CU39: AA | CV39: AA | CW39: AA | CX39: AA | CY39: AA | CZ39: AA | DA39: AA | DB39: AA | DC39: AA | DD39: AA | DE39: AA | DF39: AA | DG39: AA | DH39: AA | DI39: AA | DJ39: AA | DK39: AA | DL39: AA | DM39: AA | DN39: AA | DO39: AA | DP39: AA | DQ39: AA | DR39: AA | DS39: AA | DT39: AA | DU39: AA | DV39: AA | DW39: AA | DX39: AA | DY39: AA | DZ39: AA | EA39: AA | EB39: AA | EC39: AA | ED39: AA | EE39: AA | EF39: AA | EG39: AA | EH39: AA | EI39: AA | EJ39: AA | EK39: AA | EL39: AA | EM39: NC | EN39: 8 | EO39: 113 | EQ39: 0 | ER39: 18 | ES39: 139 | ET39: 131 | EU39: 6 | EV39: 81 | EW39: 13 | EX39: 0
A40: A01 | B40: Bn-A01-p1376589 | C40: 977,602 | D40: 977651 | E40: AA | F40: AA | G40: BB | H40: AA | I40: BB | J40: BB | K40: BB | L40: BB | M40: BB | N40: NC | O40: NC | P40: NC | Q40: NC | R40: NC | S40: NC | T40: NC | U40: BB | V40: BB | W40: BB | X40: BB | Y40: BB | Z40: BB | AA40: BB | AB40: BB | AC40: BB | AD40: BB | AE40: BB | AF40: BB | AG40: BB | AH40: BB | AI40: BB | AJ40: BB | AK40: BB | AL40: BB | AM40: BB | AN40: BB | AO40: BB | AP40: BB | AQ40: BB | AR40: BB | AS40: BB | AT40: BB | AU40: BB | AV40: BB | AW40: BB | AX40: BB | AY40: BB | AZ40: BB | BA40: BB | BB40: BB | BC40: BB | BD40: BB | BE40: BB | BF40: BB | BG40: BB | BH40: BB | BI40: BB | BJ40: BB | BK40: BB | BL40: BB | BM40: BB | BN40: BB | BO40: BB | BP40: BB | BQ40: BB | BR40: BB | BS40: BB | BT40: BB | BU40: BB | BV40: BB | BW40: BB | BX40: BB | BY40: BB | BZ40: BB | CA40: BB | CB40: BB | CC40: BB | CD40: BB | CE40: BB | CF40: BB | CG40: BB | CH40: BB | CI40: BB | CJ40: BB | CK40: BB | CL40: BB | CM40: BB | CN40: BB | CO40: NC | CP40: BB | CQ40: BB | CR40: BB | CS40: BB | CT40: BB | CU40: BB | CV40: BB | CW40: BB | CX40: BB | CY40: BB | CZ40: BB | DA40: BB | DB40: BB | DC40: BB | DD40: BB | DE40: BB | DF40: BB | DG40: BB | DH40: BB | DI40: BB | DJ40: BB | DK40: BB | DL40: BB | DM40: BB | DN40: BB | DO40: BB | DP40: BB | DQ40: BB | DR40: BB | DS40: BB | DT40: BB | DU40: BB | DV40: BB | DW40: BB | DX40: BB | DY40: BB | DZ40: BB | EA40: BB | EB40: BB | EC40: BB | ED40: BB | EE40: BB | EF40: BB | EG40: BB | EH40: BB | EI40: BB | EJ40: BB | EK40: BB | EL40: BB | EM40: NC | EN40: 9 | EO40: 3 | EQ40: 0 | ER40: 127 | ES40: 139 | ET40: 130 | EU40: 6 | EV40: 2 | EW40: 91 | EX40: 0
A41: A01 | B41: Bn-A01-p1384609 | C41: 985,217 | D41: 985168 | E41: AA | F41: AA | G41: BB | H41: AA | I41: BB | J41: BB | K41: BB | L41: BB | M41: BB | N41: BB | O41: NC | P41: NC | Q41: NC | R41: NC | S41: NC | T41: NC | U41: BB | V41: BB | W41: BB | X41: BB | Y41: BB | Z41: BB | AA41: BB | AB41: BB | AC41: BB | AD41: BB | AE41: BB | AF41: BB | AG41: BB | AH41: BB | AI41: BB | AJ41: BB | AK41: BB | AL41: BB | AM41: BB | AN41: BB | AO41: BB | AP41: BB | AQ41: BB | AR41: BB | AS41: BB | AT41: BB | AU41: BB | AV41: BB | AW41: BB | AX41: BB | AY41: BB | AZ41: BB | BA41: BB | BB41: BB | BC41: BB | BD41: BB | BE41: BB | BF41: BB | BG41: BB | BH41: BB | BI41: BB | BJ41: BB | BK41: BB | BL41: BB | BM41: BB | BN41: BB | BO41: BB | BP41: BB | BQ41: BB | BR41: BB | BS41: BB | BT41: BB | BU41: BB | BV41: BB | BW41: BB | BX41: BB | BY41: BB | BZ41: BB | CA41: BB | CB41: BB | CC41: BB | CD41: BB | CE41: BB | CF41: BB | CG41: BB | CH41: BB | CI41: BB | CJ41: BB | CK41: BB | CL41: BB | CM41: BB | CN41: BB | CO41: NC | CP41: BB | CQ41: BB | CR41: BB | CS41: BB | CT41: BB | CU41: BB | CV41: BB | CW41: BB | CX41: BB | CY41: BB | CZ41: BB | DA41: BB | DB41: BB | DC41: BB | DD41: BB | DE41: BB | DF41: BB | DG41: BB | DH41: BB | DI41: BB | DJ41: BB | DK41: BB | DL41: BB | DM41: BB | DN41: BB | DO41: BB | DP41: BB | DQ41: BB | DR41: BB | DS41: BB | DT41: BB | DU41: BB | DV41: BB | DW41: BB | DX41: BB | DY41: BB | DZ41: BB | EA41: BB | EB41: BB | EC41: BB | ED41: BB | EE41: BB | EF41: BB | EG41: BB | EH41: BB | EI41: BB | EJ41: BB | EK41: BB | EL41: BB | EM41: NC | EN41: 8 | EO41: 3 | EQ41: 0 | ER41: 128 | ES41: 139 | ET41: 131 | EU41: 6 | EV41: 2 | EW41: 92 | EX41: 0
A42: A01 | B42: Bn-A01-p1387769 | C42: 988,332 | D42: 988381 | E42: BB | F42: BB | G42: NC | H42: AA | I42: AA | J42: AA | K42: AA | L42: BB | M42: NC | N42: AA | O42: NC | P42: NC | Q42: NC | R42: NC | S42: NC | T42: NC | U42: BB | V42: BB | W42: BB | X42: BB | Y42: BB | Z42: BB | AA42: BB | AB42: BB | AC42: BB | AD42: BB | AE42: BB | AF42: BB | AG42: BB | AH42: BB | AI42: BB | AJ42: BB | AK42: BB | AL42: BB | AM42: BB | AN42: BB | AO42: BB | AP42: BB | AQ42: BB | AR42: BB | AS42: AA | AT42: AA | AU42: AA | AV42: AA | AW42: AA | AX42: AA | AY42: BB | AZ42: BB | BA42: BB | BB42: AA | BC42: AA | BD42: AA | BE42: AA | BF42: AA | BG42: AA | BH42: AA | BI42: AA | BJ42: AA | BK42: AA | BL42: AA | BM42: AA | BN42: AA | BO42: AA | BP42: AA | BQ42: AA | BR42: AA | BS42: AA | BT42: BB | BU42: BB | BV42: BB | BW42: BB | BX42: BB | BY42: BB | BZ42: BB | CA42: BB | CB42: BB | CC42: BB | CD42: BB | CE42: BB | CF42: BB | CG42: BB | CH42: BB | CI42: BB | CJ42: BB | CK42: BB | CL42: BB | CM42: BB | CN42: BB | CO42: NC | CP42: BB | CQ42: BB | CR42: BB | CS42: BB | CT42: BB | CU42: BB | CV42: BB | CW42: BB | CX42: BB | CY42: BB | CZ42: BB | DA42: BB | DB42: BB | DC42: BB | DD42: AA | DE42: AA | DF42: AA | DG42: BB | DH42: BB | DI42: BB | DJ42: BB | DK42: BB | DL42: BB | DM42: BB | DN42: BB | DO42: BB | DP42: BB | DQ42: BB | DR42: BB | DS42: BB | DT42: BB | DU42: BB | DV42: BB | DW42: BB | DX42: BB | DY42: BB | DZ42: BB | EA42: BB | EB42: BB | EC42: BB | ED42: BB | EE42: BB | EF42: BB | EG42: BB | EH42: BB | EI42: BB | EJ42: BB | EK42: BB | EL42: BB | EM42: NC | EN42: 10 | EO42: 32 | EQ42: 0 | ER42: 97 | ES42: 139 | ET42: 129 | EU42: 7 | EV42: 23 | EW42: 70 | EX42: 0
A43: A01 | B43: Bn-A01-p1440009 | C43: 1,035,982 | D43: 1035933 | E43: AA | F43: AA | G43: AA | H43: AA | I43: AA | J43: AA | K43: AA | L43: AA | M43: AA | N43: AA | O43: NC | P43: NC | Q43: NC | R43: NC | S43: NC | T43: NC | U43: AA | V43: AA | W43: AA | X43: AA | Y43: AA | Z43: AA | AA43: AA | AB43: AA | AC43: AA | AD43: AA | AE43: AA | AF43: AA | AG43: AA | AH43: AA | AI43: AA | AJ43: AA | AK43: AA | AL43: AA | AM43: AA | AN43: AA | AO43: AA | AP43: AA | AQ43: AA | AR43: AA | AS43: BB | AT43: BB | AU43: BB | AV43: BB | AW43: BB | AX43: BB | AY43: AA | AZ43: AA | BA43: AA | BB43: BB | BC43: BB | BD43: BB | BE43: BB | BF43: BB | BG43: BB | BH43: BB | BI43: BB | BJ43: BB | BK43: BB | BL43: BB | BM43: BB | BN43: BB | BO43: BB | BP43: BB | BQ43: BB | BR43: BB | BS43: BB | BT43: AA | BU43: AA | BV43: AA | BW43: AA | BX43: AA | BY43: AA | BZ43: AA | CA43: AA | CB43: AA | CC43: AA | CD43: AA | CE43: AA | CF43: AA | CG43: AA | CH43: AA | CI43: AA | CJ43: AA | CK43: AA | CL43: AA | CM43: AA | CN43: AA | CO43: NC | CP43: AA | CQ43: AA | CR43: AA | CS43: AA | CT43: AA | CU43: AA | CV43: AA | CW43: AA | CX43: AA | CY43: AA | CZ43: AA | DA43: AA | DB43: AA | DC43: AA | DD43: BB | DE43: BB | DF43: BB | DG43: AA | DH43: AA | DI43: AA | DJ43: AA | DK43: AA | DL43: AA | DM43: AA | DN43: AA | DO43: AA | DP43: AA | DQ43: AA | DR43: AA | DS43: AA | DT43: AA | DU43: AA | DV43: AA | DW43: AA | DX43: AA | DY43: AA | DZ43: AA | EA43: AA | EB43: AA | EC43: AA | ED43: AA | EE43: AA | EF43: AA | EG43: AA | EH43: AA | EI43: AA | EJ43: AA | EK43: AA | EL43: AA | EM43: NC | EN43: 8 | EO43: 104 | EQ43: 0 | ER43: 27 | ES43: 139 | ET43: 131 | EU43: 6 | EV43: 75 | EW43: 19 | EX43: 0
A44: A01 | B44: Bn-A01-p1449865 | C44: 1,045,766 | D44: 1045815 | E44: AA | F44: AA | G44: AA | H44: AA | I44: AA | J44: AA | K44: BB | L44: BB | M44: BB | N44: BB | O44: NC | P44: NC | Q44: NC | R44: NC | S44: NC | T44: NC | U44: BB | V44: BB | W44: BB | X44: BB | Y44: BB | Z44: BB | AA44: BB | AB44: BB | AC44: BB | AD44: BB | AE44: BB | AF44: BB | AG44: BB | AH44: BB | AI44: BB | AJ44: BB | AK44: BB | AL44: BB | AM44: BB | AN44: BB | AO44: BB | AP44: BB | AQ44: BB | AR44: BB | AS44: BB | AT44: BB | AU44: BB | AV44: BB | AW44: BB | AX44: BB | AY44: BB | AZ44: BB | BA44: BB | BB44: BB | BC44: BB | BD44: BB | BE44: BB | BF44: BB | BG44: BB | BH44: BB | BI44: BB | BJ44: BB | BK44: BB | BL44: BB | BM44: BB | BN44: BB | BO44: BB | BP44: BB | BQ44: BB | BR44: BB | BS44: BB | BT44: BB | BU44: BB | BV44: BB | BW44: BB | BX44: BB | BY44: BB | BZ44: BB | CA44: BB | CB44: BB | CC44: BB | CD44: BB | CE44: BB | CF44: BB | CG44: BB | CH44: BB | CI44: BB | CJ44: BB | CK44: BB | CL44: BB | CM44: BB | CN44: BB | CO44: NC | CP44: BB | CQ44: BB | CR44: BB | CS44: BB | CT44: BB | CU44: BB | CV44: BB | CW44: BB | CX44: BB | CY44: BB | CZ44: BB | DA44: BB | DB44: BB | DC44: BB | DD44: BB | DE44: BB | DF44: BB | DG44: BB | DH44: BB | DI44: BB | DJ44: BB | DK44: BB | DL44: BB | DM44: BB | DN44: BB | DO44: BB | DP44: BB | DQ44: BB | DR44: BB | DS44: BB | DT44: BB | DU44: BB | DV44: BB | DW44: BB | DX44: BB | DY44: BB | DZ44: BB | EA44: BB | EB44: BB | EC44: BB | ED44: BB | EE44: BB | EF44: BB | EG44: BB | EH44: BB | EI44: BB | EJ44: BB | EK44: BB | EL44: BB | EM44: NC | EN44: 8 | EO44: 6 | EQ44: 0 | ER44: 125 | ES44: 139 | ET44: 131 | EU44: 6 | EV44: 4 | EW44: 90 | EX44: 0
A45: A01 | B45: Bn-A01-p1453156 | C45: 1,048,374 | D45: 1048325 | E45: BB | F45: BB | G45: AA | H45: AA | I45: AA | J45: AA | K45: BB | L45: BB | M45: NC | N45: BB | O45: NC | P45: NC | Q45: NC | R45: NC | S45: NC | T45: NC | U45: AA | V45: AA | W45: AA | X45: AA | Y45: AA | Z45: AA | AA45: AA | AB45: AA | AC45: AA | AD45: AA | AE45: AA | AF45: AA | AG45: AA | AH45: AA | AI45: AA | AJ45: AA | AK45: AA | AL45: AA | AM45: AA | AN45: AA | AO45: AA | AP45: BB | AQ45: BB | AR45: BB | AS45: BB | AT45: BB | AU45: BB | AV45: BB | AW45: BB | AX45: BB | AY45: BB | AZ45: BB | BA45: BB | BB45: BB | BC45: BB | BD45: BB | BE45: BB | BF45: BB | BG45: BB | BH45: BB | BI45: BB | BJ45: BB | BK45: BB | BL45: BB | BM45: BB | BN45: BB | BO45: BB | BP45: BB | BQ45: BB | BR45: BB | BS45: BB | BT45: BB | BU45: BB | BV45: BB | BW45: AA | BX45: AA | BY45: AA | BZ45: AA | CA45: AA | CB45: AA | CC45: AA | CD45: AA | CE45: AA | CF45: AA | CG45: AA | CH45: AA | CI45: AA | CJ45: AA | CK45: AA | CL45: AA | CM45: AA | CN45: AA | CO45: NC | CP45: BB | CQ45: AA | CR45: BB | CS45: BB | CT45: BB | CU45: BB | CV45: BB | CW45: BB | CX45: BB | CY45: BB | CZ45: BB | DA45: BB | DB45: BB | DC45: BB | DD45: AA | DE45: AA | DF45: AA | DG45: AA | DH45: AA | DI45: AA | DJ45: AA | DK45: AA | DL45: AA | DM45: AA | DN45: AA | DO45: AA | DP45: AA | DQ45: AA | DR45: AA | DS45: AA | DT45: AA | DU45: AA | DV45: AA | DW45: AA | DX45: AA | DY45: AA | DZ45: AA | EA45: AA | EB45: AA | EC45: AA | ED45: AA | EE45: AA | EF45: AA | EG45: AA | EH45: AA | EI45: AA | EJ45: AA | EK45: BB | EL45: BB | EM45: NC | EN45: 9 | EO45: 77 | EQ45: 0 | ER45: 53 | ES45: 139 | ET45: 130 | EU45: 6 | EV45: 55 | EW45: 38 | EX45: 0
A46: A01 | B46: Bn-A01-p1456256 | C46: 1,051,523 | D46: 1051572 | E46: AA | F46: AA | G46: BB | H46: BB | I46: AA | J46: AA | K46: AA | L46: AA | M46: AA | N46: AA | O46: NC | P46: NC | Q46: NC | R46: NC | S46: NC | T46: NC | U46: AA | V46: AA | W46: AA | X46: AA | Y46: AA | Z46: AA | AA46: AA | AB46: AA | AC46: AA | AD46: AA | AE46: AA | AF46: AA | AG46: AA | AH46: AA | AI46: AA | AJ46: AA | AK46: AA | AL46: AA | AM46: AA | AN46: AA | AO46: AA | AP46: BB | AQ46: BB | AR46: BB | AS46: AA | AT46: AA | AU46: AA | AV46: AA | AW46: AA | AX46: AA | AY46: BB | AZ46: BB | BA46: BB | BB46: AA | BC46: AA | BD46: AA | BE46: AA | BF46: AA | BG46: AA | BH46: AA | BI46: AA | BJ46: AA | BK46: AA | BL46: AA | BM46: AA | BN46: AA | BO46: AA | BP46: AA | BQ46: AA | BR46: AA | BS46: AA | BT46: BB | BU46: BB | BV46: BB | BW46: AA | BX46: AA | BY46: AA | BZ46: AA | CA46: AA | CB46: AA | CC46: AA | CD46: AA | CE46: AA | CF46: AA | CG46: AA | CH46: AA | CI46: AA | CJ46: AA | CK46: AA | CL46: AA | CM46: AA | CN46: AA | CO46: NC | CP46: BB | CQ46: AA | CR46: BB | CS46: BB | CT46: BB | CU46: BB | CV46: BB | CW46: BB | CX46: BB | CY46: BB | CZ46: BB | DA46: BB | DB46: BB | DC46: BB | DD46: AA | DE46: AA | DF46: AA | DG46: AA | DH46: AA | DI46: AA | DJ46: AA | DK46: AA | DL46: AA | DM46: AA | DN46: AA | DO46: AA | DP46: AA | DQ46: AA | DR46: AA | DS46: AA | DT46: AA | DU46: AA | DV46: AA | DW46: AA | DX46: AA | DY46: AA | DZ46: AA | EA46: AA | EB46: AA | EC46: AA | ED46: AA | EE46: AA | EF46: AA | EG46: AA | EH46: AA | EI46: AA | EJ46: AA | EK46: BB | EL46: BB | EM46: NC | EN46: 8 | EO46: 105 | EQ46: 0 | ER46: 26 | ES46: 139 | ET46: 131 | EU46: 6 | EV46: 76 | EW46: 19 | EX46: 0
A47: A01 | B47: Bn-A01-p1637234 | C47: 1,175,394 | D47: 1175345 | E47: AA | F47: AA | G47: AA | H47: AA | I47: AA | J47: AA | K47: AA | L47: AA | M47: AA | N47: AA | O47: AA | P47: NC | Q47: AA | R47: NC | S47: NC | T47: NC | U47: AA | V47: AA | W47: AA | X47: AA | Y47: AA | Z47: AA | AA47: AA | AB47: AA | AC47: AA | AD47: AA | AE47: AA | AF47: AA | AG47: AA | AH47: AA | AI47: AA | AJ47: AA | AK47: AA | AL47: AA | AM47: AA | AN47: AA | AO47: AA | AP47: AA | AQ47: AA | AR47: AA | AS47: AA | AT47: AA | AU47: AA | AV47: AA | AW47: AA | AX47: AA | AY47: AA | AZ47: AA | BA47: AA | BB47: AA | BC47: AA | BD47: AA | BE47: AA | BF47: AA | BG47: AA | BH47: AA | BI47: AA | BJ47: AA | BK47: AA | BL47: AA | BM47: AA | BN47: AA | BO47: AA | BP47: AA | BQ47: AA | BR47: AA | BS47: AA | BT47: AA | BU47: AA | BV47: AA | BW47: AA | BX47: AA | BY47: AA | BZ47: AA | CA47: AA | CB47: AA | CC47: AA | CD47: AA | CE47: AA | CF47: AA | CG47: AA | CH47: AA | CI47: AA | CJ47: AA | CK47: AA | CL47: AA | CM47: AA | CN47: AA | CO47: AA | CP47: AA | CQ47: AA | CR47: AA | CS47: AA | CT47: AA | CU47: AA | CV47: AA | CW47: AA | CX47: AA | CY47: AA | CZ47: AA | DA47: AA | DB47: AA | DC47: AA | DD47: AA | DE47: AA | DF47: AA | DG47: AA | DH47: AA | DI47: AA | DJ47: AA | DK47: AA | DL47: AA | DM47: AA | DN47: AA | DO47: AA | DP47: AA | DQ47: AA | DR47: AA | DS47: AA | DT47: AA | DU47: AA | DV47: AA | DW47: AA | DX47: AA | DY47: AA | DZ47: AA | EA47: AA | EB47: AA | EC47: AA | ED47: AA | EE47: AA | EF47: AA | EG47: AA | EH47: AA | EI47: AA | EJ47: AA | EK47: AA | EL47: AA | EM47: NC | EN47: 5 | EO47: 134 | EQ47: 0 | ER47: 0 | ES47: 139 | ET47: 134 | EU47: 4 | EV47: 96 | EW47: 0 | EX47: 0
A48: A01 | B48: Bn-A01-p1639922 | C48: 1,178,132 | D48: 1178083 | E48: BB | F48: BB | G48: BB | H48: NC | I48: BB | J48: BB | K48: BB | L48: BB | M48: BB | N48: NC | O48: BB | P48: BB | Q48: NC | R48: NC | S48: NC | T48: NC | U48: BB | V48: BB | W48: BB | X48: BB | Y48: BB | Z48: BB | AA48: BB | AB48: BB | AC48: BB | AD48: BB | AE48: BB | AF48: BB | AG48: BB | AH48: BB | AI48: BB | AJ48: BB | AK48: BB | AL48: BB | AM48: BB | AN48: BB | AO48: BB | AP48: BB | AQ48: BB | AR48: BB | AS48: BB | AT48: BB | AU48: BB | AV48: NC | AW48: NC | AX48: NC | AY48: BB | AZ48: BB | BA48: BB | BB48: BB | BC48: BB | BD48: BB | BE48: BB | BF48: BB | BG48: BB | BH48: BB | BI48: BB | BJ48: BB | BK48: BB | BL48: BB | BM48: BB | BN48: NC | BO48: NC | BP48: NC | BQ48: NC | BR48: NC | BS48: NC | BT48: BB | BU48: BB | BV48: BB | BW48: BB | BX48: BB | BY48: BB | BZ48: BB | CA48: BB | CB48: BB | CC48: BB | CD48: BB | CE48: BB | CF48: BB | CG48: BB | CH48: BB | CI48: BB | CJ48: BB | CK48: BB | CL48: BB | CM48: BB | CN48: BB | CO48: BB | CP48: BB | CQ48: BB | CR48: BB | CS48: BB | CT48: BB | CU48: BB | CV48: BB | CW48: BB | CX48: BB | CY48: BB | CZ48: BB | DA48: BB | DB48: BB | DC48: BB | DD48: BB | DE48: BB | DF48: BB | DG48: BB | DH48: BB | DI48: BB | DJ48: BB | DK48: BB | DL48: BB | DM48: BB | DN48: BB | DO48: BB | DP48: BB | DQ48: BB | DR48: BB | DS48: BB | DT48: BB | DU48: BB | DV48: BB | DW48: BB | DX48: BB | DY48: BB | DZ48: BB | EA48: BB | EB48: BB | EC48: BB | ED48: BB | EE48: BB | EF48: BB | EG48: BB | EH48: BB | EI48: BB | EJ48: BB | EK48: BB | EL48: BB | EM48: NC | EN48: 16 | EO48: 0 | EQ48: 0 | ER48: 123 | ES48: 139 | ET48: 123 | EU48: 12 | EV48: 0 | EW48: 88 | EX48: 0
A49: A01 | B49: Bn-A01-p1661180 | C49: 1,208,621 | D49: 1208572 | E49: AA | F49: AA | G49: BB | H49: BB | I49: BB | J49: BB | K49: AA | L49: AA | M49: AA | N49: NC | O49: NC | P49: NC | Q49: NC | R49: NC | S49: NC | T49: NC | U49: AA | V49: AA | W49: AA | X49: AA | Y49: AA | Z49: AA | AA49: AA | AB49: AA | AC49: AA | AD49: AA | AE49: AA | AF49: AA | AG49: AA | AH49: AA | AI49: AA | AJ49: AA | AK49: AA | AL49: AA | AM49: AA | AN49: AA | AO49: AA | AP49: AA | AQ49: AA | AR49: AA | AS49: BB | AT49: BB | AU49: BB | AV49: BB | AW49: BB | AX49: BB | AY49: AA | AZ49: AA | BA49: AA | BB49: BB | BC49: BB | BD49: BB | BE49: AA | BF49: AA | BG49: AA | BH49: AA | BI49: AA | BJ49: AA | BK49: AA | BL49: AA | BM49: AA | BN49: AA | BO49: AA | BP49: AA | BQ49: AA | BR49: AA | BS49: AA | BT49: AA | BU49: AA | BV49: AA | BW49: AA | BX49: AA | BY49: AA | BZ49: AA | CA49: AA | CB49: AA | CC49: AA | CD49: AA | CE49: AA | CF49: AA | CG49: AA | CH49: AA | CI49: AA | CJ49: AA | CK49: AA | CL49: AA | CM49: AA | CN49: AA | CO49: NC | CP49: AA | CQ49: AA | CR49: AA | CS49: AA | CT49: AA | CU49: AA | CV49: AA | CW49: AA | CX49: AA | CY49: AA | CZ49: AA | DA49: AA | DB49: AA | DC49: AA | DD49: AA | DE49: AA | DF49: AA | DG49: AA | DH49: AA | DI49: AA | DJ49: AA | DK49: AA | DL49: AA | DM49: AA | DN49: AA | DO49: AA | DP49: AA | DQ49: AA | DR49: AA | DS49: AA | DT49: AA | DU49: AA | DV49: AA | DW49: AA | DX49: AA | DY49: AA | DZ49: AA | EA49: AA | EB49: AA | EC49: AA | ED49: AA | EE49: AA | EF49: AA | EG49: AA | EH49: AA | EI49: AA | EJ49: AA | EK49: AA | EL49: AA | EM49: NC | EN49: 9 | EO49: 117 | EQ49: 0 | ER49: 13 | ES49: 139 | ET49: 130 | EU49: 6 | EV49: 84 | EW49: 9 | EX49: 0
A50: A01 | B50: Bn-A01-p1666732 | C50: 1,214,226 | D50: 1214177 | E50: AA | F50: AA | G50: BB | H50: BB | I50: BB | J50: BB | K50: AA | L50: AA | M50: AA | N50: NC | O50: NC | P50: NC | Q50: NC | R50: NC | S50: NC | T50: NC | U50: AA | V50: AA | W50: AA | X50: AA | Y50: AA | Z50: AA | AA50: AA | AB50: AA | AC50: AA | AD50: AA | AE50: AA | AF50: AA | AG50: AA | AH50: AA | AI50: AA | AJ50: AA | AK50: AA | AL50: AA | AM50: AA | AN50: AA | AO50: AA | AP50: AA | AQ50: AA | AR50: AA | AS50: AA | AT50: AA | AU50: AA | AV50: AA | AW50: AA | AX50: AA | AY50: AA | AZ50: AA | BA50: AA | BB50: AA | BC50: AA | BD50: AA | BE50: AA | BF50: AA | BG50: AA | BH50: AA | BI50: AA | BJ50: AA | BK50: AA | BL50: AA | BM50: AA | BN50: AA | BO50: AA | BP50: AA | BQ50: AA | BR50: AA | BS50: AA | BT50: AA | BU50: AA | BV50: AA | BW50: AA | BX50: AA | BY50: AA | BZ50: AA | CA50: AA | CB50: AA | CC50: AA | CD50: AA | CE50: AA | CF50: AA | CG50: AA | CH50: AA | CI50: AA | CJ50: AA | CK50: AA | CL50: AA | CM50: AA | CN50: AA | CO50: NC | CP50: AA | CQ50: AA | CR50: AA | CS50: AA | CT50: AA | CU50: AA | CV50: AA | CW50: AA | CX50: AA | CY50: AA | CZ50: AA | DA50: AA | DB50: AA | DC50: AA | DD50: AA | DE50: AA | DF50: AA | DG50: AA | DH50: AA | DI50: AA | DJ50: AA | DK50: AA | DL50: AA | DM50: AA | DN50: AA | DO50: AA | DP50: AA | DQ50: AA | DR50: AA | DS50: AA | DT50: AA | DU50: AA | DV50: AA | DW50: AA | DX50: AA | DY50: AA | DZ50: AA | EA50: AA | EB50: AA | EC50: AA | ED50: AA | EE50: AA | EF50: AA | EG50: AA | EH50: AA | EI50: AA | EJ50: AA | EK50: AA | EL50: AA | EM50: NC | EN50: 9 | EO50: 126 | EQ50: 0 | ER50: 4 | ES50: 139 | ET50: 130 | EU50: 6 | EV50: 91 | EW50: 3 | EX50: 0
A51: A01 | B51: Bn-A01-p1678541 | C51: 1,223,347 | D51: 1223298 | E51: BB | F51: BB | G51: AA | H51: AA | I51: AA | J51: AA | K51: BB | L51: BB | M51: BB | N51: NC | O51: NC | P51: NC | Q51: NC | R51: NC | S51: NC | T51: NC | U51: BB | V51: BB | W51: BB | X51: BB | Y51: BB | Z51: BB | AA51: BB | AB51: BB | AC51: BB | AD51: BB | AE51: BB | AF51: BB | AG51: BB | AH51: BB | AI51: BB | AJ51: BB | AK51: BB | AL51: BB | AM51: BB | AN51: BB | AO51: BB | AP51: BB | AQ51: BB | AR51: BB | AS51: BB | AT51: BB | AU51: BB | AV51: BB | AW51: BB | AX51: BB | AY51: BB | AZ51: BB | BA51: BB | BB51: BB | BC51: BB | BD51: BB | BE51: BB | BF51: BB | BG51: BB | BH51: BB | BI51: BB | BJ51: BB | BK51: BB | BL51: BB | BM51: BB | BN51: BB | BO51: BB | BP51: BB | BQ51: BB | BR51: BB | BS51: BB | BT51: BB | BU51: BB | BV51: BB | BW51: BB | BX51: BB | BY51: BB | BZ51: BB | CA51: BB | CB51: BB | CC51: BB | CD51: BB | CE51: BB | CF51: BB | CG51: BB | CH51: BB | CI51: BB | CJ51: BB | CK51: BB | CL51: BB | CM51: BB | CN51: BB | CO51: NC | CP51: BB | CQ51: BB | CR51: BB | CS51: BB | CT51: BB | CU51: BB | CV51: BB | CW51: BB | CX51: BB | CY51: BB | CZ51: BB | DA51: BB | DB51: BB | DC51: BB | DD51: BB | DE51: BB | DF51: BB | DG51: BB | DH51: BB | DI51: BB | DJ51: BB | DK51: BB | DL51: BB | DM51: BB | DN51: BB | DO51: BB | DP51: BB | DQ51: BB | DR51: BB | DS51: BB | DT51: BB | DU51: BB | DV51: BB | DW51: BB | DX51: BB | DY51: BB | DZ51: BB | EA51: BB | EB51: BB | EC51: BB | ED51: BB | EE51: BB | EF51: BB | EG51: BB | EH51: BB | EI51: BB | EJ51: BB | EK51: BB | EL51: BB | EM51: NC | EN51: 9 | EO51: 4 | EQ51: 0 | ER51: 126 | ES51: 139 | ET51: 130 | EU51: 6 | EV51: 3 | EW51: 91 | EX51: 0
A52: A01 | B52: Bn-A01-p1719658 | C52: 1,261,754 | D52: 1261705 | E52: AA | F52: AA | G52: AA | H52: AA | I52: NC | J52: NC | K52: NC | L52: NC | M52: NC | N52: NC | O52: NC | P52: NC | Q52: NC | R52: NC | S52: NC | T52: NC | U52: AA | V52: AA | W52: AA | X52: AA | Y52: AA | Z52: AA | AA52: AA | AB52: AA | AC52: AA | AD52: AA | AE52: AA | AF52: AA | AG52: AA | AH52: AA | AI52: AA | AJ52: AA | AK52: AA | AL52: AA | AM52: AA | AN52: AA | AO52: AA | AP52: AA | AQ52: AA | AR52: AA | AS52: AA | AT52: AA | AU52: AA | AV52: AA | AW52: AA | AX52: AA | AY52: AA | AZ52: AA | BA52: AA | BB52: AA | BC52: AA | BD52: AA | BE52: AA | BF52: AA | BG52: AA | BH52: AA | BI52: AA | BJ52: AA | BK52: AA | BL52: AA | BM52: AA | BN52: AA | BO52: AA | BP52: AA | BQ52: AA | BR52: AA | BS52: AA | BT52: AA | BU52: AA | BV52: AA | BW52: AA | BX52: AA | BY52: AA | BZ52: AA | CA52: AA | CB52: AA | CC52: AA | CD52: AA | CE52: AA | CF52: AA | CG52: AA | CH52: AA | CI52: AA | CJ52: AA | CK52: AA | CL52: AA | CM52: AA | CN52: AA | CO52: AA | CP52: AA | CQ52: AA | CR52: AA | CS52: AA | CT52: AA | CU52: AA | CV52: AA | CW52: AA | CX52: AA | CY52: AA | CZ52: AA | DA52: AA | DB52: AA | DC52: AA | DD52: AA | DE52: AA | DF52: AA | DG52: AA | DH52: AA | DI52: AA | DJ52: AA | DK52: AA | DL52: AA | DM52: AA | DN52: AA | DO52: AA | DP52: AA | DQ52: AA | DR52: AA | DS52: AA | DT52: AA | DU52: AA | DV52: AA | DW52: AA | DX52: AA | DY52: AA | DZ52: AA | EA52: AA | EB52: AA | EC52: AA | ED52: AA | EE52: AA | EF52: AA | EG52: AA | EH52: AA | EI52: AA | EJ52: AA | EK52: AA | EL52: AA | EM52: AA | EN52: 12 | EO52: 127 | EQ52: 0 | ER52: 0 | ES52: 139 | ET52: 127 | EU52: 9 | EV52: 91 | EW52: 0 | EX52: 0
A53: A01 | B53: Bn-A01-p1742846 | C53: 1,289,013 | D53: 1288964 | E53: AA | F53: AA | G53: AA | H53: BB | I53: BB | J53: BB | K53: AB | L53: AA | M53: AA | N53: NC | O53: NC | P53: NC | Q53: NC | R53: NC | S53: NC | T53: NC | U53: AA | V53: AA | W53: AA | X53: AA | Y53: AA | Z53: AA | AA53: AA | AB53: AA | AC53: AA | AD53: AA | AE53: AA | AF53: AA | AG53: AA | AH53: AA | AI53: AA | AJ53: AA | AK53: AA | AL53: AA | AM53: AA | AN53: AA | AO53: AA | AP53: AA | AQ53: AA | AR53: AA | AS53: AA | AT53: AA | AU53: AA | AV53: AA | AW53: AA | AX53: AA | AY53: AA | AZ53: AA | BA53: AA | BB53: AA | BC53: AA | BD53: AA | BE53: AA | BF53: AA | BG53: AA | BH53: AA | BI53: AA | BJ53: AA | BK53: AA | BL53: AA | BM53: AA | BN53: AA | BO53: AA | BP53: AA | BQ53: AA | BR53: AA | BS53: AA | BT53: AA | BU53: AA | BV53: AA | BW53: AA | BX53: AA | BY53: AA | BZ53: AA | CA53: AA | CB53: AA | CC53: AA | CD53: AA | CE53: AA | CF53: AA | CG53: AA | CH53: AA | CI53: AA | CJ53: AA | CK53: AA | CL53: AA | CM53: AA | CN53: AA | CO53: NC | CP53: AA | CQ53: AA | CR53: AA | CS53: AA | CT53: AA | CU53: AA | CV53: AA | CW53: AA | CX53: AA | CY53: AA | CZ53: AA | DA53: AA | DB53: AA | DC53: AA | DD53: BB | DE53: BB | DF53: BB | DG53: AA | DH53: AA | DI53: AA | DJ53: AA | DK53: AA | DL53: AA | DM53: AA | DN53: AA | DO53: AA | DP53: AA | DQ53: AA | DR53: AA | DS53: AA | DT53: AA | DU53: AA | DV53: AA | DW53: AA | DX53: AA | DY53: AA | DZ53: AA | EA53: AA | EB53: AA | EC53: AA | ED53: AA | EE53: AA | EF53: AA | EG53: AA | EH53: AA | EI53: AA | EJ53: AA | EK53: AA | EL53: AA | EM53: NC | EN53: 9 | EO53: 123 | EQ53: 1 | ER53: 6 | ES53: 139 | ET53: 130 | EU53: 6 | EV53: 88 | EW53: 4 | EX53: 1
A54: A01 | B54: Bn-A01-p1770291 | C54: 1,310,115 | D54: 1310164 | E54: AA | F54: AA | G54: AA | H54: BB | I54: BB | J54: BB | K54: AA | L54: AA | M54: AB | N54: AA | O54: NC | P54: NC | Q54: NC | R54: NC | S54: NC | T54: NC | U54: BB | V54: BB | W54: BB | X54: BB | Y54: BB | Z54: BB | AA54: BB | AB54: BB | AC54: BB | AD54: BB | AE54: BB | AF54: BB | AG54: BB | AH54: BB | AI54: BB | AJ54: BB | AK54: BB | AL54: BB | AM54: BB | AN54: BB | AO54: BB | AP54: BB | AQ54: BB | AR54: BB | AS54: AA | AT54: AA | AU54: AA | AV54: AA | AW54: AA | AX54: AA | AY54: BB | AZ54: BB | BA54: BB | BB54: AA | BC54: AA | BD54: AA | BE54: AA | BF54: AA | BG54: AA | BH54: AA | BI54: AA | BJ54: AA | BK54: AA | BL54: AA | BM54: AA | BN54: AA | BO54: AA | BP54: AA | BQ54: AA | BR54: AA | BS54: AA | BT54: BB | BU54: BB | BV54: BB | BW54: BB | BX54: BB | BY54: BB | BZ54: BB | CA54: BB | CB54: BB | CC54: BB | CD54: BB | CE54: BB | CF54: BB | CG54: BB | CH54: BB | CI54: BB | CJ54: BB | CK54: BB | CL54: BB | CM54: BB | CN54: BB | CO54: NC | CP54: BB | CQ54: BB | CR54: BB | CS54: BB | CT54: BB | CU54: BB | CV54: BB | CW54: BB | CX54: BB | CY54: BB | CZ54: BB | DA54: BB | DB54: BB | DC54: BB | DD54: BB | DE54: BB | DF54: BB | DG54: BB | DH54: BB | DI54: BB | DJ54: BB | DK54: BB | DL54: BB | DM54: BB | DN54: BB | DO54: BB | DP54: BB | DQ54: BB | DR54: BB | DS54: BB | DT54: BB | DU54: BB | DV54: BB | DW54: BB | DX54: BB | DY54: BB | DZ54: BB | EA54: BB | EB54: BB | EC54: BB | ED54: BB | EE54: BB | EF54: BB | EG54: BB | EH54: BB | EI54: BB | EJ54: BB | EK54: BB | EL54: BB | EM54: NC | EN54: 8 | EO54: 30 | EQ54: 1 | ER54: 100 | ES54: 139 | ET54: 131 | EU54: 6 | EV54: 22 | EW54: 72 | EX54: 1
A55: A01 | B55: Bn-A01-p1770482 | C55: 1,310,307 | D55: 1310356 | E55: BB | F55: BB | G55: BB | H55: AA | I55: AA | J55: AA | K55: BB | L55: BB | M55: NC | N55: BB | O55: NC | P55: NC | Q55: NC | R55: NC | S55: NC | T55: NC | U55: AA | V55: AA | W55: AA | X55: AA | Y55: AA | Z55: AA | AA55: AA | AB55: AA | AC55: AA | AD55: AA | AE55: AA | AF55: AA | AG55: AA | AH55: AA | AI55: AA | AJ55: AA | AK55: AA | AL55: AA | AM55: AA | AN55: AA | AO55: AA | AP55: AA | AQ55: AA | AR55: AA | AS55: BB | AT55: BB | AU55: BB | AV55: BB | AW55: BB | AX55: BB | AY55: AA | AZ55: AA | BA55: AA | BB55: BB | BC55: BB | BD55: BB | BE55: BB | BF55: BB | BG55: BB | BH55: BB | BI55: BB | BJ55: BB | BK55: BB | BL55: BB | BM55: BB | BN55: BB | BO55: BB | BP55: BB | BQ55: BB | BR55: BB | BS55: BB | BT55: AA | BU55: AA | BV55: AA | BW55: AA | BX55: AA | BY55: AA | BZ55: AA | CA55: AA | CB55: AA | CC55: AA | CD55: AA | CE55: AA | CF55: AA | CG55: AA | CH55: AA | CI55: AA | CJ55: AA | CK55: AA | CL55: AA | CM55: AA | CN55: AA | CO55: NC | CP55: AA | CQ55: AA | CR55: AA | CS55: AA | CT55: AA | CU55: AA | CV55: AA | CW55: AA | CX55: AA | CY55: AA | CZ55: AA | DA55: AA | DB55: AA | DC55: AA | DD55: AA | DE55: AA | DF55: AA | DG55: AA | DH55: AA | DI55: AA | DJ55: AA | DK55: AA | DL55: AA | DM55: AA | DN55: AA | DO55: AA | DP55: AA | DQ55: AA | DR55: AA | DS55: AA | DT55: AA | DU55: AA | DV55: AA | DW55: AA | DX55: AA | DY55: AA | DZ55: AA | EA55: AA | EB55: AA | EC55: AA | ED55: AA | EE55: AA | EF55: AA | EG55: AA | EH55: AA | EI55: AA | EJ55: AA | EK55: AA | EL55: AA | EM55: NC | EN55: 9 | EO55: 100 | EQ55: 0 | ER55: 30 | ES55: 139 | ET55: 130 | EU55: 6 | EV55: 72 | EW55: 22 | EX55: 0
A56: A01 | B56: Bn-A01-p1772621 | C56: 1,310,860 | D56: 1310909 | E56: AA | F56: AA | G56: AA | H56: BB | I56: BB | J56: BB | K56: AA | L56: AA | M56: NC | N56: NC | O56: NC | P56: NC | Q56: NC | R56: NC | S56: NC | T56: NC | U56: BB | V56: BB | W56: BB | X56: BB | Y56: BB | Z56: BB | AA56: BB | AB56: BB | AC56: BB | AD56: BB | AE56: BB | AF56: BB | AG56: BB | AH56: BB | AI56: BB | AJ56: BB | AK56: BB | AL56: BB | AM56: BB | AN56: BB | AO56: BB | AP56: BB | AQ56: BB | AR56: BB | AS56: AA | AT56: AA | AU56: AA | AV56: AA | AW56: AA | AX56: AA | AY56: BB | AZ56: BB | BA56: BB | BB56: AA | BC56: AA | BD56: AA | BE56: AA | BF56: AA | BG56: AA | BH56: AA | BI56: AA | BJ56: AA | BK56: AA | BL56: AA | BM56: AA | BN56: AA | BO56: AA | BP56: AA | BQ56: AA | BR56: AA | BS56: AA | BT56: BB | BU56: BB | BV56: BB | BW56: BB | BX56: BB | BY56: BB | BZ56: BB | CA56: BB | CB56: BB | CC56: BB | CD56: BB | CE56: BB | CF56: BB | CG56: BB | CH56: BB | CI56: BB | CJ56: BB | CK56: BB | CL56: BB | CM56: BB | CN56: BB | CO56: NC | CP56: BB | CQ56: BB | CR56: BB | CS56: BB | CT56: BB | CU56: BB | CV56: BB | CW56: BB | CX56: BB | CY56: BB | CZ56: BB | DA56: BB | DB56: BB | DC56: BB | DD56: BB | DE56: BB | DF56: BB | DG56: BB | DH56: BB | DI56: BB | DJ56: BB | DK56: BB | DL56: BB | DM56: BB | DN56: BB | DO56: BB | DP56: BB | DQ56: BB | DR56: BB | DS56: BB | DT56: BB | DU56: BB | DV56: BB | DW56: BB | DX56: BB | DY56: BB | DZ56: BB | EA56: BB | EB56: BB | EC56: BB | ED56: BB | EE56: BB | EF56: BB | EG56: BB | EH56: BB | EI56: BB | EJ56: BB | EK56: BB | EL56: BB | EM56: NC | EN56: 10 | EO56: 29 | EQ56: 0 | ER56: 100 | ES56: 139 | ET56: 129 | EU56: 7 | EV56: 21 | EW56: 72 | EX56: 0
A57: A01 | B57: Bn-A01-p1773289 | C57: 1,311,671 | D57: 1311623 | E57: AA | F57: AA | G57: AA | H57: BB | I57: BB | J57: BB | K57: AA | L57: AA | M57: AB | N57: AA | O57: NC | P57: NC | Q57: NC | R57: NC | S57: NC | T57: NC | U57: BB | V57: BB | W57: BB | X57: BB | Y57: BB | Z57: BB | AA57: BB | AB57: BB | AC57: BB | AD57: BB | AE57: BB | AF57: BB | AG57: BB | AH57: BB | AI57: BB | AJ57: BB | AK57: BB | AL57: BB | AM57: BB | AN57: BB | AO57: BB | AP57: BB | AQ57: BB | AR57: BB | AS57: AA | AT57: AA | AU57: AA | AV57: AA | AW57: AA | AX57: AA | AY57: BB | AZ57: BB | BA57: BB | BB57: AA | BC57: AA | BD57: AA | BE57: AA | BF57: AA | BG57: AA | BH57: AA | BI57: AA | BJ57: AA | BK57: AA | BL57: AA | BM57: AA | BN57: AA | BO57: AA | BP57: AA | BQ57: AA | BR57: AA | BS57: AA | BT57: BB | BU57: BB | BV57: BB | BW57: BB | BX57: BB | BY57: BB | BZ57: BB | CA57: BB | CB57: BB | CC57: BB | CD57: BB | CE57: BB | CF57: BB | CG57: BB | CH57: BB | CI57: BB | CJ57: BB | CK57: BB | CL57: BB | CM57: BB | CN57: BB | CO57: NC | CP57: BB | CQ57: BB | CR57: BB | CS57: BB | CT57: BB | CU57: BB | CV57: BB | CW57: BB | CX57: BB | CY57: BB | CZ57: BB | DA57: BB | DB57: BB | DC57: BB | DD57: BB | DE57: BB | DF57: BB | DG57: BB | DH57: BB | DI57: BB | DJ57: BB | DK57: BB | DL57: BB | DM57: BB | DN57: BB | DO57: BB | DP57: BB | DQ57: BB | DR57: BB | DS57: BB | DT57: BB | DU57: BB | DV57: BB | DW57: BB | DX57: BB | DY57: BB | DZ57: BB | EA57: BB | EB57: BB | EC57: BB | ED57: BB | EE57: BB | EF57: BB | EG57: BB | EH57: BB | EI57: BB | EJ57: BB | EK57: BB | EL57: BB | EM57: NC | EN57: 8 | EO57: 30 | EQ57: 1 | ER57: 100 | ES57: 139 | ET57: 131 | EU57: 6 | EV57: 22 | EW57: 72 | EX57: 1
A58: A01 | B58: Bn-A01-p1823705 | C58: 1,358,802 | D58: 1358851 | E58: AA | F58: AA | G58: AA | H58: BB | I58: AA | J58: AA | K58: AB | L58: BB | M58: NC | N58: AA | O58: NC | P58: NC | Q58: NC | R58: NC | S58: NC | T58: NC | U58: AA | V58: AA | W58: AA | X58: AA | Y58: AA | Z58: AA | AA58: AA | AB58: AA | AC58: AA | AD58: AA | AE58: AA | AF58: AA | AG58: AA | AH58: AA | AI58: AA | AJ58: AA | AK58: AA | AL58: AA | AM58: AA | AN58: AA | AO58: AA | AP58: BB | AQ58: BB | AR58: BB | AS58: BB | AT58: BB | AU58: BB | AV58: BB | AW58: BB | AX58: BB | AY58: BB | AZ58: BB | BA58: BB | BB58: BB | BC58: BB | BD58: BB | BE58: BB | BF58: BB | BG58: BB | BH58: BB | BI58: BB | BJ58: BB | BK58: BB | BL58: BB | BM58: BB | BN58: BB | BO58: BB | BP58: BB | BQ58: BB | BR58: BB | BS58: BB | BT58: BB | BU58: BB | BV58: BB | BW58: AA | BX58: AA | BY58: AA | BZ58: AA | CA58: AA | CB58: AA | CC58: AA | CD58: AA | CE58: AA | CF58: AA | CG58: AA | CH58: AA | CI58: AA | CJ58: AA | CK58: AA | CL58: AA | CM58: AA | CN58: AA | CO58: NC | CP58: BB | CQ58: AA | CR58: BB | CS58: BB | CT58: BB | CU58: BB | CV58: BB | CW58: BB | CX58: BB | CY58: BB | CZ58: BB | DA58: BB | DB58: BB | DC58: BB | DD58: BB | DE58: BB | DF58: BB | DG58: AA | DH58: AA | DI58: AA | DJ58: AA | DK58: AA | DL58: AA | DM58: AA | DN58: AA | DO58: AA | DP58: AA | DQ58: AA | DR58: AA | DS58: AA | DT58: AA | DU58: AA | DV58: AA | DW58: AA | DX58: AA | DY58: AA | DZ58: AA | EA58: AA | EB58: AA | EC58: AA | ED58: AA | EE58: AA | EF58: AA | EG58: AA | EH58: AA | EI58: AA | EJ58: AA | EK58: BB | EL58: BB | EM58: NC | EN58: 9 | EO58: 76 | EQ58: 1 | ER58: 53 | ES58: 139 | ET58: 130 | EU58: 6 | EV58: 55 | EW58: 38 | EX58: 1
A59: A01 | B59: Bn-A01-p1831507 | C59: 1,366,300 | D59: 1366349 | E59: AA | F59: AA | G59: BB | H59: BB | I59: BB | J59: BB | K59: AB | L59: AA | M59: AA | N59: AA | O59: NC | P59: NC | Q59: NC | R59: NC | S59: NC | T59: NC | U59: AA | V59: AA | W59: AA | X59: AA | Y59: AA | Z59: AA | AA59: AA | AB59: AA | AC59: AA | AD59: AA | AE59: AA | AF59: AA | AG59: AA | AH59: AA | AI59: AA | AJ59: AA | AK59: AA | AL59: AA | AM59: AA | AN59: AA | AO59: AA | AP59: AA | AQ59: AA | AR59: AA | AS59: BB | AT59: BB | AU59: BB | AV59: BB | AW59: BB | AX59: BB | AY59: AA | AZ59: AA | BA59: AA | BB59: BB | BC59: BB | BD59: BB | BE59: BB | BF59: BB | BG59: BB | BH59: BB | BI59: BB | BJ59: BB | BK59: BB | BL59: BB | BM59: BB | BN59: BB | BO59: BB | BP59: BB | BQ59: BB | BR59: BB | BS59: BB | BT59: AA | BU59: AA | BV59: AA | BW59: AA | BX59: AA | BY59: AA | BZ59: AA | CA59: AA | CB59: AA | CC59: AA | CD59: AA | CE59: AA | CF59: AA | CG59: AA | CH59: AA | CI59: AA | CJ59: AA | CK59: AA | CL59: AA | CM59: AA | CN59: AA | CO59: NC | CP59: AA | CQ59: AA | CR59: AA | CS59: AA | CT59: AA | CU59: AA | CV59: AA | CW59: AA | CX59: AA | CY59: AA | CZ59: AA | DA59: AA | DB59: AA | DC59: AA | DD59: AA | DE59: AA | DF59: AA | DG59: AA | DH59: AA | DI59: AA | DJ59: AA | DK59: AA | DL59: AA | DM59: AA | DN59: AA | DO59: AA | DP59: AA | DQ59: AA | DR59: AA | DS59: AA | DT59: AA | DU59: AA | DV59: AA | DW59: AA | DX59: AA | DY59: AA | DZ59: AA | EA59: AA | EB59: AA | EC59: AA | ED59: AA | EE59: AA | EF59: AA | EG59: AA | EH59: AA | EI59: AA | EJ59: AA | EK59: AA | EL59: AA | EM59: NC | EN59: 8 | EO59: 102 | EQ59: 1 | ER59: 28 | ES59: 139 | ET59: 131 | EU59: 6 | EV59: 73 | EW59: 20 | EX59: 1
A60: A01 | B60: Bn-A01-p1855903 | C60: 1,393,937 | D60: 1393971 | E60: AA | F60: AA | G60: BB | H60: BB | I60: BB | J60: BB | K60: AB | L60: BB | M60: BB | N60: BB | O60: NC | P60: NC | Q60: NC | R60: NC | S60: NC | T60: NC | U60: BB | V60: BB | W60: BB | X60: BB | Y60: BB | Z60: BB | AA60: BB | AB60: BB | AC60: BB | AD60: BB | AE60: BB | AF60: BB | AG60: BB | AH60: BB | AI60: BB | AJ60: BB | AK60: BB | AL60: BB | AM60: BB | AN60: BB | AO60: BB | AP60: AA | AQ60: AA | AR60: AA | AS60: AA | AT60: AA | AU60: AA | AV60: AA | AW60: AA | AX60: AA | AY60: AA | AZ60: AA | BA60: AA | BB60: AA | BC60: AA | BD60: AA | BE60: BB | BF60: BB | BG60: BB | BH60: BB | BI60: BB | BJ60: BB | BK60: BB | BL60: BB | BM60: BB | BN60: BB | BO60: BB | BP60: BB | BQ60: BB | BR60: BB | BS60: BB | BT60: AA | BU60: AA | BV60: AA | BW60: BB | BX60: BB | BY60: BB | BZ60: BB | CA60: BB | CB60: BB | CC60: BB | CD60: BB | CE60: BB | CF60: BB | CG60: BB | CH60: BB | CI60: BB | CJ60: BB | CK60: BB | CL60: BB | CM60: BB | CN60: BB | CO60: NC | CP60: AA | CQ60: BB | CR60: AA | CS60: AA | CT60: AA | CU60: AA | CV60: AA | CW60: AA | CX60: AA | CY60: AA | CZ60: AA | DA60: AA | DB60: AA | DC60: AA | DD60: BB | DE60: BB | DF60: BB | DG60: BB | DH60: BB | DI60: BB | DJ60: BB | DK60: BB | DL60: BB | DM60: BB | DN60: BB | DO60: BB | DP60: BB | DQ60: BB | DR60: BB | DS60: BB | DT60: BB | DU60: BB | DV60: BB | DW60: BB | DX60: BB | DY60: BB | DZ60: BB | EA60: BB | EB60: BB | EC60: BB | ED60: BB | EE60: BB | EF60: BB | EG60: BB | EH60: BB | EI60: BB | EJ60: BB | EK60: AA | EL60: AA | EM60: NC | EN60: 8 | EO60: 35 | EQ60: 1 | ER60: 95 | ES60: 139 | ET60: 131 | EU60: 6 | EV60: 25 | EW60: 68 | EX60: 1
A61: A01 | B61: Bn-A01-p1879401 | C61: 1,413,309 | D61: 1413358 | E61: AA | F61: AA | G61: AA | H61: AA | I61: AA | J61: AA | K61: AA | L61: AA | M61: BB | N61: BB | O61: NC | P61: NC | Q61: NC | R61: NC | S61: NC | T61: NC | U61: BB | V61: BB | W61: BB | X61: BB | Y61: BB | Z61: BB | AA61: BB | AB61: BB | AC61: BB | AD61: BB | AE61: BB | AF61: BB | AG61: BB | AH61: BB | AI61: BB | AJ61: BB | AK61: BB | AL61: BB | AM61: BB | AN61: BB | AO61: BB | AP61: AA | AQ61: AA | AR61: AA | AS61: AA | AT61: AA | AU61: AA | AV61: AA | AW61: AA | AX61: AA | AY61: AA | AZ61: AA | BA61: AA | BB61: AA | BC61: AA | BD61: AA | BE61: AA | BF61: AA | BG61: AA | BH61: AA | BI61: AA | BJ61: AA | BK61: AA | BL61: AA | BM61: AA | BN61: AA | BO61: AA | BP61: AA | BQ61: AA | BR61: AA | BS61: AA | BT61: AA | BU61: AA | BV61: AA | BW61: BB | BX61: BB | BY61: BB | BZ61: BB | CA61: BB | CB61: BB | CC61: BB | CD61: BB | CE61: BB | CF61: BB | CG61: BB | CH61: BB | CI61: BB | CJ61: BB | CK61: BB | CL61: BB | CM61: BB | CN61: BB | CO61: NC | CP61: AA | CQ61: BB | CR61: AA | CS61: AA | CT61: AA | CU61: AA | CV61: AA | CW61: AA | CX61: AA | CY61: AA | CZ61: AA | DA61: AA | DB61: AA | DC61: AA | DD61: AA | DE61: AA | DF61: AA | DG61: BB | DH61: BB | DI61: BB | DJ61: BB | DK61: BB | DL61: BB | DM61: BB | DN61: BB | DO61: BB | DP61: BB | DQ61: BB | DR61: BB | DS61: BB | DT61: BB | DU61: BB | DV61: BB | DW61: BB | DX61: BB | DY61: BB | DZ61: BB | EA61: BB | EB61: BB | EC61: BB | ED61: BB | EE61: BB | EF61: BB | EG61: BB | EH61: BB | EI61: BB | EJ61: BB | EK61: AA | EL61: AA | EM61: NC | EN61: 8 | EO61: 59 | EQ61: 0 | ER61: 72 | ES61: 139 | ET61: 131 | EU61: 6 | EV61: 42 | EW61: 52 | EX61: 0
A62: A01 | B62: Bn-A01-p1917414 | C62: 1,441,878 | D62: 1441829 | E62: AA | F62: AA | G62: AA | H62: AA | I62: AA | J62: AA | K62: AA | L62: AA | M62: AA | N62: AA | O62: NC | P62: NC | Q62: NC | R62: NC | S62: NC | T62: NC | U62: AA | V62: AA | W62: AA | X62: AA | Y62: AA | Z62: AA | AA62: AA | AB62: AA | AC62: AA | AD62: AA | AE62: AA | AF62: AA | AG62: AA | AH62: AA | AI62: AA | AJ62: AA | AK62: AA | AL62: AA | AM62: AA | AN62: AA | AO62: AA | AP62: AA | AQ62: AA | AR62: AA | AS62: AA | AT62: AA | AU62: AA | AV62: AA | AW62: AA | AX62: AA | AY62: AA | AZ62: AA | BA62: AA | BB62: AA | BC62: AA | BD62: AA | BE62: AA | BF62: AA | BG62: AA | BH62: AA | BI62: AA | BJ62: AA | BK62: AA | BL62: AA | BM62: AA | BN62: AA | BO62: AA | BP62: AA | BQ62: AA | BR62: AA | BS62: AA | BT62: AA | BU62: AA | BV62: AA | BW62: AA | BX62: AA | BY62: AA | BZ62: AA | CA62: AA | CB62: AA | CC62: AA | CD62: AA | CE62: AA | CF62: AA | CG62: AA | CH62: AA | CI62: AA | CJ62: AA | CK62: AA | CL62: AA | CM62: AA | CN62: AA | CO62: AA | CP62: AA | CQ62: AA | CR62: AA | CS62: AA | CT62: AA | CU62: AA | CV62: AA | CW62: AA | CX62: AA | CY62: AA | CZ62: AA | DA62: AA | DB62: AA | DC62: AA | DD62: AA | DE62: AA | DF62: AA | DG62: AA | DH62: AA | DI62: AA | DJ62: AA | DK62: AA | DL62: AA | DM62: AA | DN62: AA | DO62: AA | DP62: AA | DQ62: AA | DR62: AA | DS62: AA | DT62: AA | DU62: AA | DV62: AA | DW62: AA | DX62: AA | DY62: AA | DZ62: AA | EA62: AA | EB62: AA | EC62: AA | ED62: AA | EE62: AA | EF62: AA | EG62: AA | EH62: AA | EI62: AA | EJ62: AA | EK62: AA | EL62: AA | EM62: AA | EN62: 6 | EO62: 133 | EQ62: 0 | ER62: 0 | ES62: 139 | ET62: 133 | EU62: 4 | EV62: 96 | EW62: 0 | EX62: 0
A63: A01 | B63: Bn-A01-p1929982 | C63: 1,450,378 | D63: 1450427 | E63: AA | F63: AA | G63: AA | H63: AA | I63: AA | J63: AA | K63: AB | L63: AA | M63: AA | N63: NC | O63: NC | P63: NC | Q63: NC | R63: NC | S63: NC | T63: NC | U63: NC | V63: AA | W63: AA | X63: NC | Y63: NC | Z63: NC | AA63: NC | AB63: NC | AC63: NC | AD63: NC | AE63: NC | AF63: NC | AG63: NC | AH63: NC | AI63: AA | AJ63: AA | AK63: AA | AL63: NC | AM63: AA | AN63: AA | AO63: NC | AP63: AA | AQ63: AA | AR63: AA | AS63: AA | AT63: AA | AU63: AA | AV63: AA | AW63: AA | AX63: AA | AY63: AA | AZ63: AA | BA63: AA | BB63: AA | BC63: AA | BD63: AA | BE63: AA | BF63: AA | BG63: AA | BH63: AA | BI63: AA | BJ63: AA | BK63: AA | BL63: AA | BM63: AA | BN63: AA | BO63: AA | BP63: AA | BQ63: AA | BR63: AA | BS63: AA | BT63: AA | BU63: AA | BV63: AA | BW63: AA | BX63: AA | BY63: AA | BZ63: AA | CA63: AA | CB63: AA | CC63: AA | CD63: AA | CE63: AA | CF63: AA | CG63: AA | CH63: AA | CI63: AA | CJ63: AA | CK63: AA | CL63: AA | CM63: AA | CN63: AA | CO63: AA | CP63: AA | CQ63: AA | CR63: AA | CS63: AA | CT63: AA | CU63: AA | CV63: AA | CW63: AA | CX63: AA | CY63: AA | CZ63: AA | DA63: AA | DB63: AA | DC63: AA | DD63: AA | DE63: AA | DF63: AA | DG63: AA | DH63: AA | DI63: AA | DJ63: AA | DK63: AA | DL63: AA | DM63: AA | DN63: AA | DO63: AA | DP63: AA | DQ63: AA | DR63: AA | DS63: AA | DT63: AA | DU63: AA | DV63: AA | DW63: AA | DX63: AA | DY63: AA | DZ63: AA | EA63: AA | EB63: AA | EC63: AA | ED63: AA | EE63: AA | EF63: AA | EG63: AA | EH63: AA | EI63: AA | EJ63: AA | EK63: AA | EL63: AA | EM63: NC | EN63: 22 | EO63: 116 | EQ63: 1 | ER63: 0 | ES63: 139 | ET63: 117 | EU63: 16 | EV63: 83 | EW63: 0 | EX63: 1
A64: A01 | B64: Bn-A01-p2046061 | C64: 1,542,854 | D64: 1542903 | E64: AA | F64: AA | G64: AA | H64: AA | I64: NC | J64: NC | K64: NC | L64: NC | M64: NC | N64: NC | O64: NC | P64: NC | Q64: NC | R64: NC | S64: NC | T64: NC | U64: AA | V64: AA | W64: AA | X64: AA | Y64: AA | Z64: AA | AA64: AA | AB64: AA | AC64: AA | AD64: AA | AE64: AA | AF64: AA | AG64: AA | AH64: AA | AI64: AA | AJ64: AA | AK64: AA | AL64: AA | AM64: AA | AN64: AA | AO64: AA | AP64: AA | AQ64: AA | AR64: AA | AS64: AA | AT64: AA | AU64: AA | AV64: AA | AW64: AA | AX64: AA | AY64: AA | AZ64: AA | BA64: AA | BB64: AA | BC64: AA | BD64: AA | BE64: AA | BF64: AA | BG64: AA | BH64: AA | BI64: AA | BJ64: AA | BK64: AA | BL64: AA | BM64: AA | BN64: AA | BO64: AA | BP64: AA | BQ64: AA | BR64: AA | BS64: AA | BT64: AA | BU64: AA | BV64: AA | BW64: AA | BX64: AA | BY64: AA | BZ64: AA | CA64: AA | CB64: AA | CC64: AA | CD64: AA | CE64: AA | CF64: AA | CG64: AA | CH64: AA | CI64: AA | CJ64: AA | CK64: AA | CL64: AA | CM64: AA | CN64: AA | CO64: AA | CP64: AA | CQ64: AA | CR64: AA | CS64: AA | CT64: AA | CU64: AA | CV64: AA | CW64: AA | CX64: AA | CY64: AA | CZ64: AA | DA64: AA | DB64: AA | DC64: AA | DD64: AA | DE64: AA | DF64: AA | DG64: AA | DH64: AA | DI64: AA | DJ64: AA | DK64: AA | DL64: AA | DM64: AA | DN64: AA | DO64: AA | DP64: AA | DQ64: AA | DR64: AA | DS64: AA | DT64: AA | DU64: AA | DV64: AA | DW64: AA | DX64: AA | DY64: AA | DZ64: AA | EA64: AA | EB64: AA | EC64: AA | ED64: AA | EE64: AA | EF64: AA | EG64: AA | EH64: AA | EI64: AA | EJ64: AA | EK64: AA | EL64: AA | EM64: AA | EN64: 12 | EO64: 127 | EQ64: 0 | ER64: 0 | ES64: 139 | ET64: 127 | EU64: 9 | EV64: 91 | EW64: 0 | EX64: 0
A65: A01 | B65: Bn-A01-p2069218 | C65: 1,561,368 | D65: 1561417 | E65: BB | F65: BB | G65: AA | H65: BB | I65: AA | J65: AA | K65: AA | L65: BB | M65: NC | N65: NC | O65: NC | P65: NC | Q65: NC | R65: NC | S65: NC | T65: NC | U65: AA | V65: AA | W65: AA | X65: AA | Y65: AA | Z65: AA | AA65: AA | AB65: AA | AC65: AA | AD65: AA | AE65: AA | AF65: AA | AG65: AA | AH65: AA | AI65: AA | AJ65: AA | AK65: AA | AL65: AA | AM65: AA | AN65: AA | AO65: AA | AP65: BB | AQ65: BB | AR65: BB | AS65: AA | AT65: AA | AU65: AA | AV65: AA | AW65: AA | AX65: AA | AY65: BB | AZ65: BB | BA65: BB | BB65: BB | BC65: BB | BD65: BB | BE65: AA | BF65: AA | BG65: AA | BH65: AA | BI65: AA | BJ65: AA | BK65: AA | BL65: AA | BM65: AA | BN65: AA | BO65: AA | BP65: AA | BQ65: AA | BR65: AA | BS65: AA | BT65: BB | BU65: BB | BV65: BB | BW65: AA | BX65: AA | BY65: AA | BZ65: AA | CA65: AA | CB65: AA | CC65: AA | CD65: AA | CE65: AA | CF65: AA | CG65: AA | CH65: AA | CI65: AA | CJ65: AA | CK65: AA | CL65: AA | CM65: AA | CN65: AA | CO65: BB | CP65: BB | CQ65: AA | CR65: BB | CS65: BB | CT65: BB | CU65: BB | CV65: BB | CW65: BB | CX65: BB | CY65: BB | CZ65: BB | DA65: BB | DB65: BB | DC65: BB | DD65: AA | DE65: AA | DF65: AA | DG65: AA | DH65: AA | DI65: AA | DJ65: AA | DK65: AA | DL65: AA | DM65: AA | DN65: AA | DO65: AA | DP65: AA | DQ65: AA | DR65: AA | DS65: AA | DT65: NC | DU65: AA | DV65: AA | DW65: AA | DX65: AA | DY65: AA | DZ65: AA | EA65: AA | EB65: AA | EC65: AA | ED65: AA | EE65: AA | EF65: AA | EG65: AA | EH65: AA | EI65: AA | EJ65: AA | EK65: BB | EL65: NC | EM65: NC | EN65: 11 | EO65: 97 | EQ65: 0 | ER65: 31 | ES65: 139 | ET65: 128 | EU65: 8 | EV65: 70 | EW65: 22 | EX65: 0
A66: A01 | B66: Bn-A01-p2069488 | C66: 1,561,638 | D66: 1561687 | E66: AA | F66: AA | G66: AA | H66: BB | I66: AA | J66: AA | K66: AA | L66: BB | M66: BB | N66: NC | O66: NC | P66: NC | Q66: NC | R66: NC | S66: NC | T66: NC | U66: AA | V66: AA | W66: AA | X66: AA | Y66: AA | Z66: AA | AA66: AA | AB66: AA | AC66: AA | AD66: AA | AE66: AA | AF66: AA | AG66: AA | AH66: AA | AI66: AA | AJ66: AA | AK66: AA | AL66: AA | AM66: AA | AN66: AA | AO66: AA | AP66: BB | AQ66: BB | AR66: BB | AS66: BB | AT66: BB | AU66: BB | AV66: BB | AW66: BB | AX66: BB | AY66: BB | AZ66: BB | BA66: BB | BB66: BB | BC66: BB | BD66: BB | BE66: AA | BF66: AA | BG66: AA | BH66: AA | BI66: AA | BJ66: AA | BK66: AA | BL66: AA | BM66: AA | BN66: AA | BO66: AA | BP66: AA | BQ66: AA | BR66: AA | BS66: AA | BT66: BB | BU66: BB | BV66: BB | BW66: AA | BX66: AA | BY66: AA | BZ66: AA | CA66: AA | CB66: AA | CC66: AA | CD66: AA | CE66: AA | CF66: AA | CG66: AA | CH66: AA | CI66: AA | CJ66: AA | CK66: AA | CL66: AA | CM66: AA | CN66: AA | CO66: BB | CP66: BB | CQ66: AA | CR66: BB | CS66: BB | CT66: BB | CU66: BB | CV66: BB | CW66: BB | CX66: BB | CY66: BB | CZ66: BB | DA66: BB | DB66: BB | DC66: BB | DD66: AA | DE66: AA | DF66: AA | DG66: AA | DH66: AA | DI66: AA | DJ66: AA | DK66: AA | DL66: AA | DM66: AA | DN66: AA | DO66: AA | DP66: AA | DQ66: AA | DR66: AA | DS66: AA | DT66: NC | DU66: AA | DV66: AA | DW66: AA | DX66: AA | DY66: AA | DZ66: AA | EA66: AA | EB66: AA | EC66: AA | ED66: AA | EE66: AA | EF66: AA | EG66: AA | EH66: AA | EI66: AA | EJ66: AA | EK66: BB | EL66: NC | EM66: NC | EN66: 10 | EO66: 93 | EQ66: 0 | ER66: 36 | ES66: 139 | ET66: 129 | EU66: 7 | EV66: 67 | EW66: 26 | EX66: 0
A67: A01 | B67: Bn-A01-p2091322 | C67: 1,582,459 | D67: 1582508 | E67: AA | F67: AA | G67: BB | H67: BB | I67: AA | J67: AA | K67: AA | L67: AA | M67: AA | N67: NC | O67: NC | P67: NC | Q67: NC | R67: NC | S67: NC | T67: NC | U67: AA | V67: AA | W67: AA | X67: AA | Y67: AA | Z67: AA | AA67: AA | AB67: AA | AC67: AA | AD67: AA | AE67: AA | AF67: AA | AG67: AA | AH67: AA | AI67: AA | AJ67: AA | AK67: AA | AL67: AA | AM67: AA | AN67: AA | AO67: AA | AP67: BB | AQ67: BB | AR67: BB | AS67: AA | AT67: AA | AU67: AA | AV67: AA | AW67: AA | AX67: AA | AY67: BB | AZ67: BB | BA67: BB | BB67: BB | BC67: BB | BD67: BB | BE67: AA | BF67: AA | BG67: AA | BH67: AA | BI67: AA | BJ67: AA | BK67: AA | BL67: AA | BM67: AA | BN67: AA | BO67: AA | BP67: AA | BQ67: AA | BR67: AA | BS67: AA | BT67: BB | BU67: BB | BV67: BB | BW67: AA | BX67: AA | BY67: AA | BZ67: AA | CA67: AA | CB67: AA | CC67: AA | CD67: AA | CE67: AA | CF67: AA | CG67: AA | CH67: AA | CI67: AA | CJ67: AA | CK67: AA | CL67: AA | CM67: AA | CN67: AA | CO67: BB | CP67: BB | CQ67: AA | CR67: BB | CS67: BB | CT67: BB | CU67: BB | CV67: BB | CW67: BB | CX67: BB | CY67: BB | CZ67: BB | DA67: BB | DB67: BB | DC67: BB | DD67: BB | DE67: BB | DF67: BB | DG67: AA | DH67: AA | DI67: AA | DJ67: AA | DK67: AA | DL67: AA | DM67: AA | DN67: AA | DO67: AA | DP67: AA | DQ67: AA | DR67: AA | DS67: AA | DT67: NC | DU67: AA | DV67: AA | DW67: AA | DX67: AA | DY67: AA | DZ67: AA | EA67: AA | EB67: AA | EC67: AA | ED67: AA | EE67: AA | EF67: AA | EG67: AA | EH67: AA | EI67: AA | EJ67: AA | EK67: BB | EL67: NC | EM67: NC | EN67: =COUNTIF(E67:EM67,"NC") -> 10 | EO67: =COUNTIF(E67:EM67,"AA") -> 97 | EQ67: =COUNTIF(E67:EM67,"AB") -> 0 | ER67: =COUNTIF(E67:EM67,"BB") -> 32 | ES67: =SUM(EN67:ER67) -> 139 | ET67: =SUM(EO67:ER67) -> 129 | EU67: =EN67/ES67*100 -> 7 | EV67: =EO67/ES67*100 -> 70 | EW67: =ER67/ES67*100 -> 23 | EX67: =EQ67/ES67*100 -> 0
A68: A01 | B68: Bn-A01-p2094793 | C68: 1,586,483 | D68: 1586532 | E68: AA | F68: AA | G68: AA | H68: AA | I68: BB | J68: BB | K68: AA | L68: AA | M68: AA | N68: AA | O68: NC | P68: NC | Q68: NC | R68: NC | S68: NC | T68: NC | U68: AA | V68: AA | W68: AA | X68: AA | Y68: AA | Z68: AA | AA68: AA | AB68: AA | AC68: AA | AD68: AA | AE68: AA | AF68: AA | AG68: AA | AH68: AA | AI68: AA | AJ68: AA | AK68: AA | AL68: AA | AM68: AA | AN68: AA | AO68: AA | AP68: BB | AQ68: BB | AR68: BB | AS68: AA | AT68: AA | AU68: AA | AV68: AA | AW68: AA | AX68: AA | AY68: BB | AZ68: BB | BA68: BB | BB68: BB | BC68: BB | BD68: BB | BE68: AA | BF68: AA | BG68: AA | BH68: AA | BI68: AA | BJ68: AA | BK68: AA | BL68: AA | BM68: AA | BN68: AA | BO68: AA | BP68: AA | BQ68: AA | BR68: AA | BS68: AA | BT68: BB | BU68: BB | BV68: BB | BW68: AA | BX68: AA | BY68: AA | BZ68: AA | CA68: AA | CB68: AA | CC68: AA | CD68: AA | CE68: AA | CF68: AA | CG68: AA | CH68: AA | CI68: AA | CJ68: AA | CK68: AA | CL68: AA | CM68: AA | CN68: AA | CO68: BB | CP68: BB | CQ68: AA | CR68: BB | CS68: BB | CT68: BB | CU68: BB | CV68: BB | CW68: BB | CX68: BB | CY68: BB | CZ68: BB | DA68: BB | DB68: BB | DC68: BB | DD68: AA | DE68: AA | DF68: AA | DG68: AA | DH68: AA | DI68: AA | DJ68: AA | DK68: AA | DL68: AA | DM68: AA | DN68: AA | DO68: AA | DP68: AA | DQ68: AA | DR68: AA | DS68: AA | DT68: NC | DU68: AA | DV68: AA | DW68: AA | DX68: AA | DY68: AA | DZ68: AA | EA68: AA | EB68: AA | EC68: AA | ED68: AA | EE68: AA | EF68: AA | EG68: AA | EH68: AA | EI68: AA | EJ68: AA | EK68: BB | EL68: NC | EM68: NC | EN68: 9 | EO68: 101 | EQ68: 0 | ER68: 29 | ES68: 139 | ET68: 130 | EU68: 6 | EV68: 73 | EW68: 21 | EX68: 0
A69: A01 | B69: Bn-A01-p2114552 | C69: 1,602,441 | D69: 1602392 | E69: BB | F69: BB | G69: BB | H69: AA | I69: BB | J69: BB | K69: NC | L69: BB | M69: BB | N69: BB | O69: NC | P69: NC | Q69: NC | R69: NC | S69: NC | T69: NC | U69: BB | V69: BB | W69: BB | X69: BB | Y69: BB | Z69: BB | AA69: BB | AB69: BB | AC69: BB | AD69: BB | AE69: BB | AF69: BB | AG69: BB | AH69: BB | AI69: BB | AJ69: BB | AK69: BB | AL69: BB | AM69: BB | AN69: BB | AO69: BB | AP69: AA | AQ69: AA | AR69: AA | AS69: BB | AT69: BB | AU69: BB | AV69: BB | AW69: BB | AX69: BB | AY69: AA | AZ69: AA | BA69: AA | BB69: AA | BC69: AA | BD69: AA | BE69: BB | BF69: BB | BG69: BB | BH69: BB | BI69: BB | BJ69: BB | BK69: BB | BL69: BB | BM69: BB | BN69: BB | BO69: BB | BP69: BB | BQ69: BB | BR69: BB | BS69: BB | BT69: AA | BU69: AA | BV69: AA | BW69: BB | BX69: BB | BY69: BB | BZ69: BB | CA69: BB | CB69: BB | CC69: BB | CD69: BB | CE69: BB | CF69: BB | CG69: BB | CH69: BB | CI69: BB | CJ69: BB | CK69: BB | CL69: BB | CM69: BB | CN69: BB | CO69: AA | CP69: AA | CQ69: BB | CR69: AA | CS69: AA | CT69: AA | CU69: AA | CV69: AA | CW69: AA | CX69: AA | CY69: AA | CZ69: AA | DA69: AA | DB69: AA | DC69: AA | DD69: BB | DE69: BB | DF69: BB | DG69: BB | DH69: BB | DI69: BB | DJ69: BB | DK69: BB | DL69: BB | DM69: BB | DN69: BB | DO69: BB | DP69: BB | DQ69: BB | DR69: BB | DS69: BB | DT69: NC | DU69: BB | DV69: BB | DW69: BB | DX69: BB | DY69: BB | DZ69: BB | EA69: BB | EB69: BB | EC69: BB | ED69: BB | EE69: BB | EF69: BB | EG69: BB | EH69: BB | EI69: BB | EJ69: BB | EK69: AA | EL69: NC | EM69: NC | EN69: 10 | EO69: 28 | EQ69: 0 | ER69: 101 | ES69: 139 | ET69: 129 | EU69: 7 | EV69: 20 | EW69: 73 | EX69: 0
A70: A01 | B70: Bn-A01-p2187099 | C70: 1,672,607 | D70: 1672558 | E70: AA | F70: AA | G70: BB | H70: BB | I70: BB | J70: BB | K70: BB | L70: BB | M70: BB | N70: BB | O70: NC | P70: NC | Q70: NC | R70: NC | S70: NC | T70: NC | U70: BB | V70: BB | W70: BB | X70: BB | Y70: BB | Z70: BB | AA70: BB | AB70: BB | AC70: BB | AD70: BB | AE70: BB | AF70: BB | AG70: BB | AH70: BB | AI70: BB | AJ70: BB | AK70: BB | AL70: BB | AM70: BB | AN70: BB | AO70: BB | AP70: BB | AQ70: BB | AR70: BB | AS70: BB | AT70: BB | AU70: BB | AV70: BB | AW70: BB | AX70: BB | AY70: BB | AZ70: BB | BA70: BB | BB70: BB | BC70: BB | BD70: BB | BE70: AA | BF70: AA | BG70: AA | BH70: AA | BI70: AA | BJ70: AA | BK70: AA | BL70: AA | BM70: AA | BN70: AA | BO70: AA | BP70: AA | BQ70: AA | BR70: AA | BS70: AA | BT70: BB | BU70: BB | BV70: BB | BW70: BB | BX70: BB | BY70: BB | BZ70: BB | CA70: BB | CB70: BB | CC70: BB | CD70: BB | CE70: BB | CF70: BB | CG70: BB | CH70: BB | CI70: BB | CJ70: BB | CK70: BB | CL70: BB | CM70: BB | CN70: BB | CO70: BB | CP70: BB | CQ70: BB | CR70: BB | CS70: BB | CT70: BB | CU70: BB | CV70: BB | CW70: BB | CX70: BB | CY70: BB | CZ70: BB | DA70: BB | DB70: BB | DC70: BB | DD70: BB | DE70: BB | DF70: BB | DG70: BB | DH70: BB | DI70: BB | DJ70: BB | DK70: BB | DL70: BB | DM70: BB | DN70: BB | DO70: BB | DP70: BB | DQ70: BB | DR70: BB | DS70: BB | DT70: NC | DU70: BB | DV70: BB | DW70: BB | DX70: BB | DY70: BB | DZ70: BB | EA70: BB | EB70: BB | EC70: BB | ED70: BB | EE70: BB | EF70: BB | EG70: BB | EH70: BB | EI70: BB | EJ70: BB | EK70: BB | EL70: NC | EM70: NC | EN70: 9 | EO70: 17 | EQ70: 0 | ER70: 113 | ES70: 139 | ET70: 130 | EU70: 6 | EV70: 12 | EW70: 81 | EX70: 0
A71: A01 | B71: Bn-A01-p2197976 | C71: 1,680,578 | D71: 1680627 | E71: BB | F71: BB | G71: BB | H71: AA | I71: BB | J71: BB | K71: BB | L71: AA | M71: AA | N71: AA | O71: NC | P71: NC | Q71: NC | R71: NC | S71: NC | T71: NC | U71: BB | V71: BB | W71: BB | X71: BB | Y71: BB | Z71: BB | AA71: BB | AB71: BB | AC71: BB | AD71: BB | AE71: BB | AF71: BB | AG71: BB | AH71: BB | AI71: BB | AJ71: BB | AK71: BB | AL71: BB | AM71: BB | AN71: BB | AO71: BB | AP71: BB | AQ71: BB | AR71: BB | AS71: BB | AT71: BB | AU71: BB | AV71: BB | AW71: BB | AX71: BB | AY71: BB | AZ71: BB | BA71: BB | BB71: BB | BC71: BB | BD71: BB | BE71: BB | BF71: BB | BG71: BB | BH71: BB | BI71: BB | BJ71: BB | BK71: BB | BL71: BB | BM71: BB | BN71: BB | BO71: BB | BP71: BB | BQ71: BB | BR71: BB | BS71: BB | BT71: BB | BU71: BB | BV71: BB | BW71: BB | BX71: BB | BY71: BB | BZ71: BB | CA71: BB | CB71: BB | CC71: BB | CD71: BB | CE71: BB | CF71: BB | CG71: BB | CH71: BB | CI71: BB | CJ71: BB | CK71: BB | CL71: BB | CM71: BB | CN71: BB | CO71: BB | CP71: BB | CQ71: BB | CR71: BB | CS71: BB | CT71: BB | CU71: BB | CV71: BB | CW71: BB | CX71: BB | CY71: BB | CZ71: BB | DA71: BB | DB71: BB | DC71: BB | DD71: BB | DE71: BB | DF71: BB | DG71: BB | DH71: BB | DI71: BB | DJ71: BB | DK71: BB | DL71: BB | DM71: BB | DN71: BB | DO71: BB | DP71: BB | DQ71: BB | DR71: BB | DS71: BB | DT71: NC | DU71: BB | DV71: BB | DW71: BB | DX71: BB | DY71: BB | DZ71: BB | EA71: BB | EB71: BB | EC71: BB | ED71: BB | EE71: BB | EF71: BB | EG71: BB | EH71: BB | EI71: BB | EJ71: BB | EK71: BB | EL71: NC | EM71: NC | EN71: 9 | EO71: 4 | EQ71: 0 | ER71: 126 | ES71: 139 | ET71: 130 | EU71: 6 | EV71: 3 | EW71: 91 | EX71: 0
A72: A01 | B72: Bn-A01-p2246317 | C72: 1,730,452 | D72: 1730403 | E72: AA | F72: AA | G72: AA | H72: BB | I72: AA | J72: AA | K72: AA | L72: AA | M72: AA | N72: AA | O72: NC | P72: NC | Q72: NC | R72: NC | S72: NC | T72: NC | U72: AA | V72: AA | W72: AA | X72: AA | Y72: AA | Z72: AA | AA72: AA | AB72: AA | AC72: AA | AD72: AA | AE72: AA | AF72: AA | AG72: AA | AH72: AA | AI72: AA | AJ72: AA | AK72: AA | AL72: AA | AM72: AA | AN72: AA | AO72: AA | AP72: AA | AQ72: AA | AR72: AA | AS72: AA | AT72: AA | AU72: AA | AV72: AA | AW72: AA | AX72: AA | AY72: AA | AZ72: AA | BA72: AA | BB72: AA | BC72: AA | BD72: AA | BE72: AA | BF72: AA | BG72: AA | BH72: AA | BI72: AA | BJ72: AA | BK72: AA | BL72: AA | BM72: AA | BN72: AA | BO72: AA | BP72: AA | BQ72: AA | BR72: AA | BS72: AA | BT72: AA | BU72: AA | BV72: AA | BW72: AA | BX72: AA | BY72: AA | BZ72: AA | CA72: AA | CB72: AA | CC72: AA | CD72: AA | CE72: AA | CF72: AA | CG72: AA | CH72: AA | CI72: AA | CJ72: AA | CK72: AA | CL72: AA | CM72: AA | CN72: AA | CO72: AA | CP72: AA | CQ72: AA | CR72: AA | CS72: AA | CT72: AA | CU72: AA | CV72: AA | CW72: AA | CX72: AA | CY72: AA | CZ72: AA | DA72: AA | DB72: AA | DC72: AA | DD72: AA | DE72: AA | DF72: AA | DG72: AA | DH72: AA | DI72: AA | DJ72: AA | DK72: AA | DL72: AA | DM72: AA | DN72: AA | DO72: AA | DP72: AA | DQ72: AA | DR72: AA | DS72: AA | DT72: NC | DU72: AA | DV72: AA | DW72: AA | DX72: AA | DY72: AA | DZ72: AA | EA72: AA | EB72: AA | EC72: AA | ED72: AA | EE72: AA | EF72: AA | EG72: AA | EH72: AA | EI72: AA | EJ72: AA | EK72: AA | EL72: NC | EM72: NC | EN72: 9 | EO72: 129 | EQ72: 0 | ER72: 1 | ES72: 139 | ET72: 130 | EU72: 6 | EV72: 93 | EW72: 1 | EX72: 0
A73: A01 | B73: Bn-A01-p2254072 | C73: 1,737,878 | D73: 1737829 | E73: AA | F73: AA | G73: BB | H73: BB | I73: BB | J73: BB | K73: BB | L73: BB | M73: BB | N73: NC | O73: NC | P73: NC | Q73: NC | R73: NC | S73: NC | T73: NC | U73: BB | V73: BB | W73: BB | X73: BB | Y73: BB | Z73: BB | AA73: BB | AB73: BB | AC73: BB | AD73: BB | AE73: BB | AF73: BB | AG73: BB | AH73: BB | AI73: BB | AJ73: BB | AK73: BB | AL73: BB | AM73: BB | AN73: BB | AO73: BB | AP73: AA | AQ73: AA | AR73: AA | AS73: AA | AT73: AA | AU73: AA | AV73: AA | AW73: AA | AX73: AA | AY73: AA | AZ73: AA | BA73: AA | BB73: AA | BC73: AA | BD73: AA | BE73: AA | BF73: AA | BG73: AA | BH73: AA | BI73: AA | BJ73: AA | BK73: AA | BL73: AA | BM73: AA | BN73: AA | BO73: AA | BP73: AA | BQ73: AA | BR73: AA | BS73: AA | BT73: AA | BU73: AA | BV73: AA | BW73: BB | BX73: BB | BY73: BB | BZ73: BB | CA73: BB | CB73: BB | CC73: BB | CD73: BB | CE73: BB | CF73: BB | CG73: BB | CH73: BB | CI73: BB | CJ73: BB | CK73: BB | CL73: BB | CM73: BB | CN73: BB | CO73: AA | CP73: AA | CQ73: BB | CR73: AA | CS73: AA | CT73: AA | CU73: AA | CV73: AA | CW73: AA | CX73: AA | CY73: AA | CZ73: AA | DA73: AA | DB73: AA | DC73: AA | DD73: BB | DE73: BB | DF73: BB | DG73: BB | DH73: BB | DI73: BB | DJ73: BB | DK73: BB | DL73: BB | DM73: BB | DN73: BB | DO73: BB | DP73: BB | DQ73: BB | DR73: BB | DS73: BB | DT73: NC | DU73: BB | DV73: BB | DW73: BB | DX73: BB | DY73: BB | DZ73: BB | EA73: BB | EB73: BB | EC73: BB | ED73: BB | EE73: BB | EF73: BB | EG73: BB | EH73: BB | EI73: BB | EJ73: BB | EK73: AA | EL73: NC | EM73: NC | EN73: 10 | EO73: 50 | EQ73: 0 | ER73: 79 | ES73: 139 | ET73: 129 | EU73: 7 | EV73: 36 | EW73: 57 | EX73: 0
A74: A01 | B74: Bn-A01-p2254235 | C74: 1,738,041 | D74: 1737992 | E74: BB | F74: BB | G74: AA | H74: AA | I74: AA | J74: AA | K74: AA | L74: AA | M74: AA | N74: NC | O74: NC | P74: NC | Q74: NC | R74: NC | S74: NC | T74: NC | U74: AA | V74: AA | W74: AA | X74: AA | Y74: AA | Z74: AA | AA74: AA | AB74: AA | AC74: AA | AD74: AA | AE74: AA | AF74: AA | AG74: AA | AH74: AA | AI74: AA | AJ74: AA | AK74: AA | AL74: AA | AM74: AA | AN74: AA | AO74: AA | AP74: BB | AQ74: BB | AR74: BB | AS74: BB | AT74: BB | AU74: BB | AV74: BB | AW74: BB | AX74: BB | AY74: BB | AZ74: BB | BA74: BB | BB74: BB | BC74: BB | BD74: BB | BE74: BB | BF74: BB | BG74: BB | BH74: BB | BI74: BB | BJ74: BB | BK74: BB | BL74: BB | BM74: BB | BN74: BB | BO74: BB | BP74: BB | BQ74: BB | BR74: BB | BS74: BB | BT74: BB | BU74: BB | BV74: BB | BW74: AA | BX74: AA | BY74: AA | BZ74: AA | CA74: AA | CB74: AA | CC74: AA | CD74: AA | CE74: AA | CF74: AA | CG74: AA | CH74: AA | CI74: AA | CJ74: AA | CK74: AA | CL74: AA | CM74: AA | CN74: AA | CO74: BB | CP74: BB | CQ74: AA | CR74: BB | CS74: BB | CT74: BB | CU74: BB | CV74: BB | CW74: BB | CX74: BB | CY74: BB | CZ74: BB | DA74: BB | DB74: BB | DC74: BB | DD74: AA | DE74: AA | DF74: AA | DG74: AA | DH74: AA | DI74: AA | DJ74: AA | DK74: AA | DL74: AA | DM74: AA | DN74: AA | DO74: AA | DP74: AA | DQ74: AA | DR74: AA | DS74: AA | DT74: NC | DU74: AA | DV74: AA | DW74: AA | DX74: AA | DY74: AA | DZ74: AA | EA74: AA | EB74: AA | EC74: AA | ED74: AA | EE74: AA | EF74: AA | EG74: AA | EH74: AA | EI74: AA | EJ74: AA | EK74: BB | EL74: NC | EM74: NC | EN74: 10 | EO74: 79 | EQ74: 0 | ER74: 50 | ES74: 139 | ET74: 129 | EU74: 7 | EV74: 57 | EW74: 36 | EX74: 0
A75: A01 | B75: Bn-A01-p2261903 | C75: 1,745,725 | D75: 1745676 | E75: BB | F75: BB | G75: BB | H75: AA | I75: BB | J75: BB | K75: BB | L75: AA | M75: AA | N75: AA | O75: NC | P75: NC | Q75: NC | R75: NC | S75: NC | T75: NC | U75: BB | V75: BB | W75: BB | X75: BB | Y75: BB | Z75: BB | AA75: BB | AB75: BB | AC75: BB | AD75: BB | AE75: BB | AF75: BB | AG75: BB | AH75: BB | AI75: BB | AJ75: BB | AK75: BB | AL75: BB | AM75: BB | AN75: BB | AO75: BB | AP75: AA | AQ75: AA | AR75: AA | AS75: BB | AT75: BB | AU75: BB | AV75: BB | AW75: BB | AX75: BB | AY75: AA | AZ75: AA | BA75: AA | BB75: BB | BC75: BB | BD75: BB | BE75: BB | BF75: BB | BG75: BB | BH75: BB | BI75: BB | BJ75: BB | BK75: BB | BL75: BB | BM75: BB | BN75: BB | BO75: BB | BP75: BB | BQ75: BB | BR75: BB | BS75: BB | BT75: BB | BU75: BB | BV75: BB | BW75: BB | BX75: BB | BY75: BB | BZ75: BB | CA75: BB | CB75: BB | CC75: BB | CD75: BB | CE75: BB | CF75: BB | CG75: BB | CH75: BB | CI75: BB | CJ75: BB | CK75: BB | CL75: BB | CM75: BB | CN75: BB | CO75: BB | CP75: BB | CQ75: BB | CR75: BB | CS75: BB | CT75: BB | CU75: BB | CV75: BB | CW75: BB | CX75: BB | CY75: BB | CZ75: BB | DA75: BB | DB75: BB | DC75: BB | DD75: BB | DE75: BB | DF75: BB | DG75: BB | DH75: BB | DI75: BB | DJ75: BB | DK75: BB | DL75: BB | DM75: BB | DN75: BB | DO75: BB | DP75: BB | DQ75: BB | DR75: BB | DS75: BB | DT75: NC | DU75: BB | DV75: BB | DW75: BB | DX75: BB | DY75: BB | DZ75: BB | EA75: BB | EB75: BB | EC75: BB | ED75: BB | EE75: BB | EF75: BB | EG75: BB | EH75: BB | EI75: BB | EJ75: BB | EK75: AA | EL75: NC | EM75: NC | EN75: 9 | EO75: 11 | EQ75: 0 | ER75: 119 | ES75: 139 | ET75: 130 | EU75: 6 | EV75: 8 | EW75: 86 | EX75: 0
A76: A01 | B76: Bn-A01-p2291940 | C76: 1,768,709 | D76: 1768660 | E76: AA | F76: AA | G76: AA | H76: BB | I76: AA | J76: AA | K76: AA | L76: BB | M76: BB | N76: AA | O76: NC | P76: NC | Q76: NC | R76: NC | S76: NC | T76: NC | U76: AA | V76: AA | W76: AA | X76: AA | Y76: AA | Z76: AA | AA76: AA | AB76: AA | AC76: AA | AD76: AA | AE76: AA | AF76: AA | AG76: AA | AH76: AA | AI76: AA | AJ76: AA | AK76: AA | AL76: AA | AM76: AA | AN76: AA | AO76: AA | AP76: BB | AQ76: BB | AR76: BB | AS76: AA | AT76: AA | AU76: AA | AV76: AA | AW76: AA | AX76: AA | AY76: BB | AZ76: BB | BA76: BB | BB76: BB | BC76: BB | BD76: BB | BE76: AA | BF76: AA | BG76: AA | BH76: AA | BI76: AA | BJ76: AA | BK76: AA | BL76: AA | BM76: AA | BN76: AA | BO76: AA | BP76: AA | BQ76: AA | BR76: AA | BS76: AA | BT76: BB | BU76: BB | BV76: BB | BW76: AA | BX76: AA | BY76: AA | BZ76: AA | CA76: AA | CB76: AA | CC76: AA | CD76: AA | CE76: AA | CF76: AA | CG76: AA | CH76: AA | CI76: AA | CJ76: AA | CK76: AA | CL76: AA | CM76: AA | CN76: AA | CO76: BB | CP76: BB | CQ76: AA | CR76: BB | CS76: BB | CT76: BB | CU76: BB | CV76: BB | CW76: BB | CX76: BB | CY76: BB | CZ76: BB | DA76: BB | DB76: BB | DC76: BB | DD76: AA | DE76: AA | DF76: AA | DG76: AA | DH76: AA | DI76: AA | DJ76: AA | DK76: AA | DL76: AA | DM76: AA | DN76: AA | DO76: AA | DP76: AA | DQ76: AA | DR76: AA | DS76: AA | DT76: NC | DU76: AA | DV76: AA | DW76: AA | DX76: AA | DY76: AA | DZ76: AA | EA76: AA | EB76: AA | EC76: AA | ED76: AA | EE76: AA | EF76: AA | EG76: AA | EH76: AA | EI76: AA | EJ76: AA | EK76: BB | EL76: NC | EM76: NC | EN76: 9 | EO76: 100 | EQ76: 0 | ER76: 30 | ES76: 139 | ET76: 130 | EU76: 6 | EV76: 72 | EW76: 22 | EX76: 0
A77: A01 | B77: Bn-A01-p2303308 | C77: 1,775,798 | D77: 1775847 | E77: AA | F77: AA | G77: BB | H77: BB | I77: BB | J77: BB | K77: BB | L77: BB | M77: BB | N77: NC | O77: NC | P77: NC | Q77: NC | R77: NC | S77: NC | T77: NC | U77: BB | V77: BB | W77: BB | X77: BB | Y77: BB | Z77: BB | AA77: BB | AB77: BB | AC77: BB | AD77: BB | AE77: BB | AF77: BB | AG77: BB | AH77: BB | AI77: BB | AJ77: BB | AK77: BB | AL77: BB | AM77: BB | AN77: BB | AO77: BB | AP77: BB | AQ77: BB | AR77: BB | AS77: AA | AT77: AA | AU77: AA | AV77: AA | AW77: AA | AX77: AA | AY77: BB | AZ77: BB | BA77: BB | BB77: BB | BC77: BB | BD77: BB | BE77: AA | BF77: AA | BG77: AA | BH77: AA | BI77: AA | BJ77: AA | BK77: AA | BL77: AA | BM77: AA | BN77: AA | BO77: AA | BP77: AA | BQ77: AA | BR77: AA | BS77: AA | BT77: BB | BU77: BB | BV77: BB | BW77: BB | BX77: BB | BY77: BB | BZ77: BB | CA77: BB | CB77: BB | CC77: BB | CD77: BB | CE77: BB | CF77: BB | CG77: BB | CH77: BB | CI77: BB | CJ77: BB | CK77: BB | CL77: BB | CM77: BB | CN77: BB | CO77: BB | CP77: BB | CQ77: BB | CR77: BB | CS77: BB | CT77: BB | CU77: BB | CV77: BB | CW77: BB | CX77: BB | CY77: BB | CZ77: BB | DA77: BB | DB77: BB | DC77: BB | DD77: BB | DE77: BB | DF77: BB | DG77: BB | DH77: BB | DI77: BB | DJ77: BB | DK77: BB | DL77: BB | DM77: BB | DN77: BB | DO77: BB | DP77: BB | DQ77: BB | DR77: BB | DS77: BB | DT77: NC | DU77: BB | DV77: BB | DW77: BB | DX77: BB | DY77: BB | DZ77: BB | EA77: BB | EB77: BB | EC77: BB | ED77: BB | EE77: BB | EF77: BB | EG77: BB | EH77: BB | EI77: BB | EJ77: BB | EK77: BB | EL77: NC | EM77: NC | EN77: 10 | EO77: 23 | EQ77: 0 | ER77: 106 | ES77: 139 | ET77: 129 | EU77: 7 | EV77: 17 | EW77: 76 | EX77: 0
A78: A01 | B78: Bn-A01-p2318972 | C78: 1,792,893 | D78: 1792942 | E78: AA | F78: AA | G78: AA | H78: BB | I78: BB | J78: BB | K78: BB | L78: BB | M78: BB | N78: BB | O78: NC | P78: NC | Q78: NC | R78: BB | S78: NC | T78: BB | U78: NC | V78: AA | W78: AA | X78: AA | Y78: AA | Z78: AA | AA78: AA | AB78: AA | AC78: AA | AD78: AA | AE78: AA | AF78: AA | AG78: AA | AH78: AA | AI78: AA | AJ78: AA | AK78: AA | AL78: AA | AM78: AA | AN78: AA | AO78: AA | AP78: AA | AQ78: NC | AR78: AA | AS78: BB | AT78: BB | AU78: BB | AV78: BB | AW78: BB | AX78: BB | AY78: AA | AZ78: AA | BA78: AA | BB78: AA | BC78: AA | BD78: AA | BE78: BB | BF78: BB | BG78: BB | BH78: BB | BI78: BB | BJ78: BB | BK78: BB | BL78: BB | BM78: BB | BN78: BB | BO78: BB | BP78: BB | BQ78: BB | BR78: BB | BS78: BB | BT78: AA | BU78: AA | BV78: AA | BW78: AA | BX78: AA | BY78: AA | BZ78: AA | CA78: AA | CB78: AA | CC78: AA | CD78: AA | CE78: NC | CF78: AA | CG78: AA | CH78: AA | CI78: AA | CJ78: AA | CK78: AA | CL78: AA | CM78: AA | CN78: AA | CO78: AA | CP78: AA | CQ78: AA | CR78: AA | CS78: AA | CT78: AA | CU78: AA | CV78: AA | CW78: AA | CX78: AA | CY78: AA | CZ78: AA | DA78: AA | DB78: AA | DC78: AA | DD78: BB | DE78: BB | DF78: BB | DG78: AA | DH78: AA | DI78: AA | DJ78: AA | DK78: NC | DL78: AA | DM78: AA | DN78: AA | DO78: AA | DP78: AA | DQ78: AA | DR78: AA | DS78: AA | DT78: NC | DU78: AA | DV78: AA | DW78: AA | DX78: AA | DY78: AA | DZ78: AA | EA78: AA | EB78: AA | EC78: AA | ED78: AA | EE78: AA | EF78: AA | EG78: AA | EH78: AA | EI78: AA | EJ78: AA | EK78: AA | EL78: NC | EM78: NC | EN78: 11 | EO78: 95 | EQ78: 0 | ER78: 33 | ES78: 139 | ET78: 128 | EU78: 8 | EV78: 68 | EW78: 24 | EX78: 0
A79: A01 | B79: Bn-A01-p2340048 | C79: 1,819,122 | D79: 1819073 | E79: AA | F79: AA | G79: BB | H79: AA | I79: BB | J79: BB | K79: BB | L79: BB | M79: BB | N79: NC | O79: NC | P79: NC | Q79: NC | R79: NC | S79: NC | T79: NC | U79: BB | V79: BB | W79: BB | X79: BB | Y79: BB | Z79: BB | AA79: BB | AB79: BB | AC79: BB | AD79: BB | AE79: BB | AF79: BB | AG79: BB | AH79: BB | AI79: BB | AJ79: BB | AK79: BB | AL79: BB | AM79: BB | AN79: BB | AO79: BB | AP79: AA | AQ79: AA | AR79: AA | AS79: AA | AT79: AA | AU79: AA | AV79: AA | AW79: AA | AX79: AA | AY79: AA | AZ79: AA | BA79: AA | BB79: AA | BC79: AA | BD79: AA | BE79: AA | BF79: AA | BG79: AA | BH79: AA | BI79: AA | BJ79: AA | BK79: AA | BL79: AA | BM79: AA | BN79: AA | BO79: AA | BP79: AA | BQ79: AA | BR79: AA | BS79: AA | BT79: AA | BU79: AA | BV79: AA | BW79: BB | BX79: BB | BY79: BB | BZ79: BB | CA79: BB | CB79: BB | CC79: BB | CD79: BB | CE79: BB | CF79: BB | CG79: BB | CH79: BB | CI79: BB | CJ79: BB | CK79: BB | CL79: BB | CM79: BB | CN79: BB | CO79: AA | CP79: AA | CQ79: BB | CR79: AA | CS79: AA | CT79: AA | CU79: AA | CV79: AA | CW79: AA | CX79: AA | CY79: AA | CZ79: AA | DA79: AA | DB79: AA | DC79: AA | DD79: BB | DE79: BB | DF79: BB | DG79: BB | DH79: BB | DI79: BB | DJ79: BB | DK79: BB | DL79: BB | DM79: BB | DN79: BB | DO79: BB | DP79: BB | DQ79: BB | DR79: BB | DS79: BB | DT79: NC | DU79: BB | DV79: BB | DW79: BB | DX79: BB | DY79: BB | DZ79: BB | EA79: BB | EB79: BB | EC79: BB | ED79: BB | EE79: BB | EF79: BB | EG79: BB | EH79: BB | EI79: BB | EJ79: BB | EK79: AA | EL79: NC | EM79: NC | EN79: 10 | EO79: 51 | EQ79: 0 | ER79: 78 | ES79: 139 | ET79: 129 | EU79: 7 | EV79: 37 | EW79: 56 | EX79: 0
A80: A01 | B80: Bn-A01-p2340359 | C80: 1,827,068 | D80: 1827117 | E80: AA | F80: AA | G80: BB | H80: AA | I80: BB | J80: BB | K80: BB | L80: BB | M80: BB | N80: BB | O80: NC | P80: NC | Q80: NC | R80: NC | S80: NC | T80: NC | U80: BB | V80: BB | W80: BB | X80: BB | Y80: BB | Z80: BB | AA80: BB | AB80: BB | AC80: BB | AD80: BB | AE80: BB | AF80: BB | AG80: BB | AH80: BB | AI80: BB | AJ80: BB | AK80: BB | AL80: BB | AM80: BB | AN80: BB | AO80: BB | AP80: AA | AQ80: AA | AR80: AA | AS80: AA | AT80: AA | AU80: AA | AV80: AA | AW80: AA | AX80: AA | AY80: AA | AZ80: AA | BA80: AA | BB80: AA | BC80: AA | BD80: AA | BE80: AA | BF80: AA | BG80: AA | BH80: AA | BI80: AA | BJ80: AA | BK80: AA | BL80: AA | BM80: AA | BN80: AA | BO80: AA | BP80: AA | BQ80: AA | BR80: AA | BS80: AA | BT80: AA | BU80: AA | BV80: AA | BW80: BB | BX80: BB | BY80: BB | BZ80: BB | CA80: BB | CB80: BB | CC80: BB | CD80: BB | CE80: BB | CF80: BB | CG80: BB | CH80: BB | CI80: BB | CJ80: BB | CK80: BB | CL80: BB | CM80: BB | CN80: BB | CO80: AA | CP80: AA | CQ80: BB | CR80: AA | CS80: AA | CT80: AA | CU80: AA | CV80: AA | CW80: AA | CX80: AA | CY80: AA | CZ80: AA | DA80: AA | DB80: AA | DC80: AA | DD80: BB | DE80: BB | DF80: BB | DG80: BB | DH80: BB | DI80: BB | DJ80: BB | DK80: BB | DL80: BB | DM80: BB | DN80: BB | DO80: BB | DP80: BB | DQ80: BB | DR80: BB | DS80: BB | DT80: NC | DU80: BB | DV80: BB | DW80: BB | DX80: BB | DY80: BB | DZ80: BB | EA80: BB | EB80: BB | EC80: BB | ED80: BB | EE80: BB | EF80: BB | EG80: BB | EH80: BB | EI80: BB | EJ80: BB | EK80: AA | EL80: NC | EM80: NC | EN80: 9 | EO80: 51 | EQ80: 0 | ER80: 79 | ES80: 139 | ET80: 130 | EU80: 6 | EV80: 37 | EW80: 57 | EX80: 0
A81: A01 | B81: Bn-A01-p2341408 | C81: 1,827,937 | D81: 1827888 | E81: BB | F81: BB | G81: AA | H81: AA | I81: AA | J81: AA | K81: AA | L81: AA | M81: AA | N81: NC | O81: NC | P81: NC | Q81: NC | R81: NC | S81: NC | T81: NC | U81: AA | V81: AA | W81: AA | X81: AA | Y81: AA | Z81: AA | AA81: AA | AB81: AA | AC81: AA | AD81: AA | AE81: AA | AF81: AA | AG81: AA | AH81: AA | AI81: AA | AJ81: AA | AK81: AA | AL81: AA | AM81: AA | AN81: AA | AO81: AA | AP81: BB | AQ81: BB | AR81: BB | AS81: BB | AT81: BB | AU81: BB | AV81: BB | AW81: BB | AX81: BB | AY81: BB | AZ81: BB | BA81: BB | BB81: BB | BC81: BB | BD81: BB | BE81: BB | BF81: BB | BG81: BB | BH81: BB | BI81: BB | BJ81: BB | BK81: BB | BL81: BB | BM81: BB | BN81: BB | BO81: BB | BP81: BB | BQ81: BB | BR81: BB | BS81: BB | BT81: BB | BU81: BB | BV81: BB | BW81: AA | BX81: AA | BY81: AA | BZ81: AA | CA81: AA | CB81: AA | CC81: AA | CD81: AA | CE81: AA | CF81: AA | CG81: AA | CH81: AA | CI81: AA | CJ81: AA | CK81: AA | CL81: AA | CM81: AA | CN81: AA | CO81: BB | CP81: BB | CQ81: AA | CR81: BB | CS81: BB | CT81: BB | CU81: BB | CV81: BB | CW81: BB | CX81: BB | CY81: BB | CZ81: BB | DA81: BB | DB81: BB | DC81: BB | DD81: AA | DE81: AA | DF81: AA | DG81: AA | DH81: AA | DI81: AA | DJ81: AA | DK81: AA | DL81: AA | DM81: AA | DN81: AA | DO81: AA | DP81: AA | DQ81: AA | DR81: AA | DS81: AA | DT81: NC | DU81: AA | DV81: AA | DW81: AA | DX81: AA | DY81: AA | DZ81: AA | EA81: AA | EB81: AA | EC81: AA | ED81: AA | EE81: AA | EF81: AA | EG81: AA | EH81: AA | EI81: AA | EJ81: AA | EK81: BB | EL81: NC | EM81: NC | EN81: 10 | EO81: 79 | EQ81: 0 | ER81: 50 | ES81: 139 | ET81: 129 | EU81: 7 | EV81: 57 | EW81: 36 | EX81: 0
A82: A01 | B82: Bn-A01-p2445468 | C82: 1,936,287 | D82: 1936238 | E82: BB | F82: BB | G82: AA | H82: BB | I82: BB | J82: BB | K82: BB | L82: AA | M82: BB | N82: BB | O82: NC | P82: NC | Q82: NC | R82: NC | S82: NC | T82: NC | U82: AA | V82: AA | W82: AA | X82: AA | Y82: AA | Z82: AA | AA82: AA | AB82: AA | AC82: AA | AD82: AA | AE82: AA | AF82: AA | AG82: AA | AH82: AA | AI82: AA | AJ82: AA | AK82: AA | AL82: AA | AM82: AA | AN82: AA | AO82: AA | AP82: BB | AQ82: BB | AR82: BB | AS82: BB | AT82: BB | AU82: BB | AV82: BB | AW82: BB | AX82: BB | AY82: BB | AZ82: BB | BA82: BB | BB82: BB | BC82: BB | BD82: BB | BE82: BB | BF82: BB | BG82: BB | BH82: BB | BI82: BB | BJ82: BB | BK82: BB | BL82: BB | BM82: BB | BN82: BB | BO82: BB | BP82: BB | BQ82: BB | BR82: BB | BS82: BB | BT82: BB | BU82: BB | BV82: BB | BW82: AA | BX82: AA | BY82: AA | BZ82: AA | CA82: AA | CB82: AA | CC82: AA | CD82: AA | CE82: AA | CF82: AA | CG82: AA | CH82: AA | CI82: AA | CJ82: AA | CK82: AA | CL82: AA | CM82: AA | CN82: AA | CO82: BB | CP82: BB | CQ82: AA | CR82: BB | CS82: BB | CT82: BB | CU82: BB | CV82: BB | CW82: BB | CX82: BB | CY82: BB | CZ82: BB | DA82: BB | DB82: BB | DC82: BB | DD82: BB | DE82: BB | DF82: BB | DG82: AA | DH82: AA | DI82: AA | DJ82: AA | DK82: AA | DL82: AA | DM82: AA | DN82: AA | DO82: AA | DP82: AA | DQ82: AA | DR82: AA | DS82: AA | DT82: NC | DU82: AA | DV82: AA | DW82: AA | DX82: AA | DY82: AA | DZ82: NC | EA82: AA | EB82: AA | EC82: AA | ED82: AA | EE82: AA | EF82: AA | EG82: AA | EH82: AA | EI82: AA | EJ82: AA | EK82: BB | EL82: NC | EM82: NC | EN82: 10 | EO82: 70 | EQ82: 0 | ER82: 59 | ES82: 139 | ET82: 129 | EU82: 7 | EV82: 50 | EW82: 42 | EX82: 0
A83: A01 | B83: Bn-A01-p2445602 | C83: 1,936,421 | D83: 1936372 | E83: BB | F83: BB | G83: BB | H83: AA | I83: BB | J83: BB | K83: BB | L83: BB | M83: AA | N83: NC | O83: NC | P83: NC | Q83: NC | R83: NC | S83: NC | T83: NC | U83: BB | V83: BB | W83: BB | X83: BB | Y83: BB | Z83: BB | AA83: BB | AB83: BB | AC83: BB | AD83: BB | AE83: BB | AF83: BB | AG83: BB | AH83: BB | AI83: BB | AJ83: BB | AK83: BB | AL83: BB | AM83: BB | AN83: BB | AO83: BB | AP83: BB | AQ83: BB | AR83: BB | AS83: BB | AT83: BB | AU83: BB | AV83: BB | AW83: BB | AX83: BB | AY83: BB | AZ83: BB | BA83: BB | BB83: BB | BC83: BB | BD83: BB | BE83: BB | BF83: BB | BG83: BB | BH83: BB | BI83: BB | BJ83: BB | BK83: BB | BL83: BB | BM83: BB | BN83: BB | BO83: BB | BP83: BB | BQ83: BB | BR83: BB | BS83: BB | BT83: BB | BU83: BB | BV83: BB | BW83: BB | BX83: BB | BY83: BB | BZ83: BB | CA83: BB | CB83: BB | CC83: BB | CD83: BB | CE83: BB | CF83: BB | CG83: BB | CH83: BB | CI83: BB | CJ83: BB | CK83: BB | CL83: BB | CM83: BB | CN83: BB | CO83: BB | CP83: BB | CQ83: BB | CR83: BB | CS83: BB | CT83: BB | CU83: BB | CV83: BB | CW83: BB | CX83: BB | CY83: BB | CZ83: BB | DA83: BB | DB83: BB | DC83: BB | DD83: BB | DE83: BB | DF83: BB | DG83: BB | DH83: BB | DI83: BB | DJ83: BB | DK83: BB | DL83: BB | DM83: BB | DN83: BB | DO83: BB | DP83: BB | DQ83: BB | DR83: BB | DS83: BB | DT83: NC | DU83: BB | DV83: BB | DW83: BB | DX83: BB | DY83: BB | DZ83: NC | EA83: BB | EB83: BB | EC83: BB | ED83: BB | EE83: BB | EF83: BB | EG83: BB | EH83: BB | EI83: BB | EJ83: BB | EK83: BB | EL83: NC | EM83: NC | EN83: 11 | EO83: 2 | EQ83: 0 | ER83: 126 | ES83: 139 | ET83: 128 | EU83: 8 | EV83: 1 | EW83: 91 | EX83: 0
A84: A01 | B84: Bn-A01-p2448162 | C84: 1,938,950 | D84: 1938900 | E84: BB | F84: BB | G84: AA | H84: AA | I84: AA | J84: AA | K84: AA | L84: AA | M84: AA | N84: AA | O84: NC | P84: NC | Q84: NC | R84: NC | S84: NC | T84: NC | U84: AA | V84: AA | W84: AA | X84: AA | Y84: AA | Z84: AA | AA84: AA | AB84: AA | AC84: AA | AD84: AA | AE84: AA | AF84: AA | AG84: AA | AH84: AA | AI84: AA | AJ84: AA | AK84: AA | AL84: AA | AM84: AA | AN84: AA | AO84: AA | AP84: AA | AQ84: AA | AR84: AA | AS84: AA | AT84: AA | AU84: AA | AV84: AA | AW84: AA | AX84: AA | AY84: AA | AZ84: AA | BA84: AA | BB84: AA | BC84: AA | BD84: AA | BE84: AA | BF84: AA | BG84: AA | BH84: AA | BI84: AA | BJ84: AA | BK84: AA | BL84: AA | BM84: AA | BN84: AA | BO84: AA | BP84: AA | BQ84: AA | BR84: AA | BS84: AA | BT84: AA | BU84: AA | BV84: AA | BW84: AA | BX84: AA | BY84: AA | BZ84: AA | CA84: AA | CB84: AA | CC84: AA | CD84: AA | CE84: AA | CF84: AA | CG84: AA | CH84: AA | CI84: AA | CJ84: AA | CK84: AA | CL84: AA | CM84: AA | CN84: AA | CO84: AA | CP84: AA | CQ84: AA | CR84: AA | CS84: AA | CT84: AA | CU84: AA | CV84: AA | CW84: AA | CX84: AA | CY84: AA | CZ84: AA | DA84: AA | DB84: AA | DC84: AA | DD84: AA | DE84: AA | DF84: AA | DG84: AA | DH84: AA | DI84: AA | DJ84: AA | DK84: AA | DL84: AA | DM84: AA | DN84: AA | DO84: AA | DP84: AA | DQ84: AA | DR84: AA | DS84: AA | DT84: NC | DU84: AA | DV84: AA | DW84: AA | DX84: AA | DY84: AA | DZ84: NC | EA84: AA | EB84: AA | EC84: AA | ED84: AA | EE84: AA | EF84: AA | EG84: AA | EH84: AA | EI84: AA | EJ84: AA | EK84: AA | EL84: NC | EM84: NC | EN84: 10 | EO84: 127 | EQ84: 0 | ER84: 2 | ES84: 139 | ET84: 129 | EU84: 7 | EV84: 91 | EW84: 1 | EX84: 0
A85: A01 | B85: Bn-A01-p2453633 | C85: 1,939,336 | D85: 1939385 | E85: BB | F85: BB | G85: AA | H85: BB | I85: BB | J85: BB | K85: BB | L85: BB | M85: BB | N85: BB | O85: NC | P85: NC | Q85: NC | R85: NC | S85: NC | T85: NC | U85: BB | V85: BB | W85: BB | X85: BB | Y85: BB | Z85: BB | AA85: BB | AB85: BB | AC85: BB | AD85: BB | AE85: BB | AF85: BB | AG85: BB | AH85: BB | AI85: BB | AJ85: BB | AK85: BB | AL85: BB | AM85: BB | AN85: BB | AO85: BB | AP85: BB | AQ85: BB | AR85: BB | AS85: BB | AT85: BB | AU85: BB | AV85: BB | AW85: BB | AX85: BB | AY85: BB | AZ85: BB | BA85: BB | BB85: BB | BC85: BB | BD85: BB | BE85: BB | BF85: BB | BG85: BB | BH85: BB | BI85: BB | BJ85: BB | BK85: BB | BL85: BB | BM85: BB | BN85: BB | BO85: BB | BP85: BB | BQ85: BB | BR85: BB | BS85: BB | BT85: BB | BU85: BB | BV85: BB | BW85: BB | BX85: BB | BY85: BB | BZ85: BB | CA85: BB | CB85: BB | CC85: BB | CD85: BB | CE85: BB | CF85: BB | CG85: BB | CH85: BB | CI85: BB | CJ85: BB | CK85: BB | CL85: BB | CM85: BB | CN85: BB | CO85: BB | CP85: BB | CQ85: BB | CR85: BB | CS85: BB | CT85: BB | CU85: BB | CV85: BB | CW85: BB | CX85: BB | CY85: BB | CZ85: BB | DA85: BB | DB85: BB | DC85: BB | DD85: BB | DE85: BB | DF85: BB | DG85: BB | DH85: BB | DI85: BB | DJ85: BB | DK85: BB | DL85: BB | DM85: BB | DN85: BB | DO85: BB | DP85: BB | DQ85: BB | DR85: BB | DS85: BB | DT85: NC | DU85: BB | DV85: BB | DW85: BB | DX85: BB | DY85: BB | DZ85: NC | EA85: BB | EB85: BB | EC85: BB | ED85: BB | EE85: BB | EF85: BB | EG85: BB | EH85: BB | EI85: BB | EJ85: BB | EK85: BB | EL85: NC | EM85: NC | EN85: 10 | EO85: 1 | EQ85: 0 | ER85: 128 | ES85: 139 | ET85: 129 | EU85: 7 | EV85: 1 | EW85: 92 | EX85: 0
A86: A01 | B86: Bn-A01-p2455219 | C86: 1,940,922 | D86: 1940971 | E86: AA | F86: AA | G86: AA | H86: AA | I86: NC | J86: NC | K86: NC | L86: NC | M86: NC | N86: NC | O86: NC | P86: NC | Q86: NC | R86: NC | S86: NC | T86: NC | U86: AA | V86: AA | W86: AA | X86: AA | Y86: AA | Z86: AA | AA86: AA | AB86: AA | AC86: AA | AD86: AA | AE86: AA | AF86: AA | AG86: AA | AH86: AA | AI86: AA | AJ86: AA | AK86: AA | AL86: AA | AM86: AA | AN86: AA | AO86: AA | AP86: AA | AQ86: AA | AR86: AA | AS86: AA | AT86: AA | AU86: AA | AV86: AA | AW86: AA | AX86: AA | AY86: AA | AZ86: AA | BA86: AA | BB86: AA | BC86: AA | BD86: AA | BE86: AA | BF86: AA | BG86: AA | BH86: AA | BI86: AA | BJ86: AA | BK86: AA | BL86: AA | BM86: AA | BN86: AA | BO86: AA | BP86: AA | BQ86: AA | BR86: AA | BS86: AA | BT86: AA | BU86: AA | BV86: AA | BW86: AA | BX86: AA | BY86: AA | BZ86: AA | CA86: AA | CB86: AA | CC86: AA | CD86: AA | CE86: AA | CF86: AA | CG86: AA | CH86: AA | CI86: AA | CJ86: AA | CK86: AA | CL86: AA | CM86: AA | CN86: AA | CO86: AA | CP86: AA | CQ86: AA | CR86: AA | CS86: AA | CT86: AA | CU86: AA | CV86: AA | CW86: AA | CX86: AA | CY86: AA | CZ86: AA | DA86: AA | DB86: AA | DC86: AA | DD86: AA | DE86: AA | DF86: AA | DG86: AA | DH86: AA | DI86: AA | DJ86: AA | DK86: AA | DL86: AA | DM86: AA | DN86: AA | DO86: AA | DP86: AA | DQ86: AA | DR86: AA | DS86: AA | DT86: NC | DU86: AA | DV86: AA | DW86: AA | DX86: AA | DY86: AA | DZ86: AA | EA86: AA | EB86: AA | EC86: AA | ED86: AA | EE86: AA | EF86: AA | EG86: AA | EH86: AA | EI86: AA | EJ86: AA | EK86: AA | EL86: AA | EM86: NC | EN86: 14 | EO86: 125 | EQ86: 0 | ER86: 0 | ES86: 139 | ET86: 125 | EU86: 10 | EV86: 90 | EW86: 0 | EX86: 0
A87: A01 | B87: Bn-A01-p2478054 | C87: 1,965,834 | D87: 1965883 | E87: AA | F87: AA | G87: BB | H87: AA | I87: BB | J87: BB | K87: AB | L87: AA | M87: BB | N87: NC | O87: NC | P87: NC | Q87: NC | R87: NC | S87: NC | T87: NC | U87: AA | V87: AA | W87: AA | X87: AA | Y87: AA | Z87: AA | AA87: AA | AB87: AA | AC87: AA | AD87: AA | AE87: AA | AF87: AA | AG87: AA | AH87: AA | AI87: AA | AJ87: AA | AK87: AA | AL87: AA | AM87: AA | AN87: AA | AO87: AA | AP87: BB | AQ87: BB | AR87: BB | AS87: BB | AT87: BB | AU87: BB | AV87: BB | AW87: BB | AX87: BB | AY87: BB | AZ87: BB | BA87: BB | BB87: BB | BC87: BB | BD87: BB | BE87: BB | BF87: BB | BG87: BB | BH87: BB | BI87: BB | BJ87: BB | BK87: BB | BL87: BB | BM87: BB | BN87: BB | BO87: BB | BP87: BB | BQ87: BB | BR87: BB | BS87: BB | BT87: BB | BU87: BB | BV87: BB | BW87: AA | BX87: AA | BY87: AA | BZ87: AA | CA87: AA | CB87: AA | CC87: AA | CD87: AA | CE87: AA | CF87: AA | CG87: AA | CH87: AA | CI87: AA | CJ87: AA | CK87: AA | CL87: AA | CM87: AA | CN87: AA | CO87: BB | CP87: BB | CQ87: AA | CR87: BB | CS87: BB | CT87: BB | CU87: BB | CV87: BB | CW87: BB | CX87: BB | CY87: BB | CZ87: BB | DA87: BB | DB87: BB | DC87: BB | DD87: BB | DE87: BB | DF87: BB | DG87: AA | DH87: AA | DI87: AA | DJ87: AA | DK87: AA | DL87: AA | DM87: AA | DN87: AA | DO87: AA | DP87: AA | DQ87: AA | DR87: AA | DS87: AA | DT87: NC | DU87: AA | DV87: AA | DW87: AA | DX87: AA | DY87: AA | DZ87: NC | EA87: AA | EB87: AA | EC87: AA | ED87: AA | EE87: AA | EF87: AA | EG87: AA | EH87: AA | EI87: AA | EJ87: AA | EK87: BB | EL87: NC | EM87: NC | EN87: 11 | EO87: 72 | EQ87: 1 | ER87: 55 | ES87: 139 | ET87: 128 | EU87: 8 | EV87: 52 | EW87: 40 | EX87: 1
A88: A01 | B88: Bn-A01-p2478055 | C88: 1,965,935 | D88: 1965886 | E88: AA | F88: AA | G88: AA | H88: AA | I88: AA | J88: AA | K88: AA | L88: AA | M88: AA | N88: NC | O88: NC | P88: NC | Q88: NC | R88: NC | S88: NC | T88: NC | U88: AA | V88: AA | W88: AA | X88: AA | Y88: AA | Z88: AA | AA88: AA | AB88: AA | AC88: AA | AD88: AA | AE88: AA | AF88: AA | AG88: AA | AH88: AA | AI88: AA | AJ88: AA | AK88: AA | AL88: AA | AM88: AA | AN88: AA | AO88: AA | AP88: AA | AQ88: AA | AR88: AA | AS88: AA | AT88: AA | AU88: AA | AV88: AA | AW88: AA | AX88: AA | AY88: AA | AZ88: AA | BA88: AA | BB88: AA | BC88: AA | BD88: AA | BE88: AA | BF88: AA | BG88: AA | BH88: AA | BI88: AA | BJ88: AA | BK88: AA | BL88: AA | BM88: AA | BN88: AA | BO88: AA | BP88: AA | BQ88: AA | BR88: AA | BS88: AA | BT88: AA | BU88: AA | BV88: AA | BW88: AA | BX88: AA | BY88: AA | BZ88: AA | CA88: AA | CB88: AA | CC88: AA | CD88: AA | CE88: AA | CF88: AA | CG88: AA | CH88: AA | CI88: AA | CJ88: AA | CK88: AA | CL88: AA | CM88: AA | CN88: AA | CO88: AA | CP88: AA | CQ88: AA | CR88: AA | CS88: AA | CT88: AA | CU88: AA | CV88: AA | CW88: AA | CX88: AA | CY88: AA | CZ88: AA | DA88: AA | DB88: AA | DC88: AA | DD88: AA | DE88: AA | DF88: AA | DG88: AA | DH88: AA | DI88: AA | DJ88: AA | DK88: AA | DL88: AA | DM88: AA | DN88: AA | DO88: AA | DP88: AA | DQ88: AA | DR88: AA | DS88: AA | DT88: NC | DU88: AA | DV88: AA | DW88: AA | DX88: AA | DY88: AA | DZ88: NC | EA88: AA | EB88: AA | EC88: AA | ED88: AA | EE88: AA | EF88: AA | EG88: AA | EH88: AA | EI88: AA | EJ88: AA | EK88: AA | EL88: NC | EM88: NC | EN88: 11 | EO88: 128 | EQ88: 0 | ER88: 0 | ES88: 139 | ET88: 128 | EU88: 8 | EV88: 92 | EW88: 0 | EX88: 0
A89: A01 | B89: Bn-A01-p2501423 | C89: 1,989,574 | D89: 1989525 | E89: BB | F89: BB | G89: AA | H89: AA | I89: AA | J89: AA | K89: AA | L89: AA | M89: AA | N89: AA | O89: NC | P89: NC | Q89: NC | R89: NC | S89: NC | T89: NC | U89: AA | V89: AA | W89: AA | X89: AA | Y89: AA | Z89: AA | AA89: AA | AB89: AA | AC89: AA | AD89: AA | AE89: AA | AF89: AA | AG89: AA | AH89: AA | AI89: AA | AJ89: AA | AK89: AA | AL89: AA | AM89: AA | AN89: AA | AO89: AA | AP89: AA | AQ89: AA | AR89: AA | AS89: NC | AT89: NC | AU89: NC | AV89: NC | AW89: NC | AX89: NC | AY89: AA | AZ89: AA | BA89: AA | BB89: NC | BC89: NC | BD89: NC | BE89: NC | BF89: NC | BG89: NC | BH89: NC | BI89: NC | BJ89: NC | BK89: NC | BL89: NC | BM89: NC | BN89: NC | BO89: NC | BP89: NC | BQ89: NC | BR89: NC | BS89: NC | BT89: NC | BU89: NC | BV89: NC | BW89: AA | BX89: AA | BY89: AA | BZ89: AA | CA89: AA | CB89: AA | CC89: AA | CD89: AA | CE89: AA | CF89: AA | CG89: AA | CH89: AA | CI89: AA | CJ89: AA | CK89: AA | CL89: AA | CM89: AA | CN89: AA | CO89: NC | CP89: NC | CQ89: AA | CR89: NC | CS89: NC | CT89: NC | CU89: NC | CV89: NC | CW89: NC | CX89: NC | CY89: NC | CZ89: NC | DA89: NC | DB89: NC | DC89: NC | DD89: AA | DE89: AA | DF89: AA | DG89: AA | DH89: AA | DI89: AA | DJ89: AA | DK89: AA | DL89: AA | DM89: AA | DN89: AA | DO89: AA | DP89: AA | DQ89: AA | DR89: AA | DS89: AA | DT89: NC | DU89: AA | DV89: AA | DW89: AA | DX89: AA | DY89: AA | DZ89: NC | EA89: AA | EB89: AA | EC89: AA | ED89: AA | EE89: AA | EF89: AA | EG89: AA | EH89: AA | EI89: AA | EJ89: AA | EK89: AA | EL89: NC | EM89: NC | EN89: 51 | EO89: 86 | EQ89: 0 | ER89: 2 | ES89: 139 | ET89: 88 | EU89: 37 | EV89: 62 | EW89: 1 | EX89: 0
A90: A01 | B90: Bn-A01-p2509163 | C90: 1,998,592 | D90: 1998641 | E90: BB | F90: BB | G90: AA | H90: BB | I90: BB | J90: BB | K90: BB | L90: AA | M90: BB | N90: BB | O90: BB | P90: NC | Q90: NC | R90: NC | S90: NC | T90: NC | U90: BB | V90: BB | W90: BB | X90: BB | Y90: BB | Z90: BB | AA90: BB | AB90: BB | AC90: BB | AD90: BB | AE90: BB | AF90: BB | AG90: BB | AH90: BB | AI90: BB | AJ90: BB | AK90: BB | AL90: BB | AM90: BB | AN90: BB | AO90: BB | AP90: BB | AQ90: BB | AR90: BB | AS90: BB | AT90: BB | AU90: BB | AV90: BB | AW90: BB | AX90: BB | AY90: BB | AZ90: BB | BA90: BB | BB90: BB | BC90: BB | BD90: BB | BE90: BB | BF90: BB | BG90: BB | BH90: BB | BI90: BB | BJ90: BB | BK90: BB | BL90: BB | BM90: BB | BN90: BB | BO90: BB | BP90: BB | BQ90: BB | BR90: BB | BS90: BB | BT90: BB | BU90: BB | BV90: BB | BW90: BB | BX90: BB | BY90: BB | BZ90: BB | CA90: BB | CB90: BB | CC90: BB | CD90: BB | CE90: BB | CF90: BB | CG90: BB | CH90: BB | CI90: BB | CJ90: BB | CK90: BB | CL90: BB | CM90: BB | CN90: BB | CO90: BB | CP90: BB | CQ90: BB | CR90: BB | CS90: BB | CT90: BB | CU90: BB | CV90: BB | CW90: BB | CX90: BB | CY90: BB | CZ90: BB | DA90: BB | DB90: BB | DC90: BB | DD90: BB | DE90: BB | DF90: BB | DG90: BB | DH90: BB | DI90: BB | DJ90: BB | DK90: BB | DL90: BB | DM90: BB | DN90: BB | DO90: BB | DP90: BB | DQ90: BB | DR90: BB | DS90: BB | DT90: NC | DU90: BB | DV90: BB | DW90: BB | DX90: BB | DY90: BB | DZ90: NC | EA90: BB | EB90: BB | EC90: BB | ED90: BB | EE90: BB | EF90: BB | EG90: BB | EH90: BB | EI90: BB | EJ90: BB | EK90: BB | EL90: NC | EM90: NC | EN90: 9 | EO90: 2 | EQ90: 0 | ER90: 128 | ES90: 139 | ET90: 130 | EU90: 6 | EV90: 1 | EW90: 92 | EX90: 0
A91: A01 | B91: Bn-A01-p2553345 | C91: 2,054,610 | D91: 2054561 | E91: BB | F91: BB | G91: BB | H91: BB | I91: BB | J91: BB | K91: BB | L91: BB | M91: BB | N91: BB | O91: NC | P91: NC | Q91: NC | R91: NC | S91: NC | T91: NC | U91: BB | V91: BB | W91: BB | X91: BB | Y91: BB | Z91: BB | AA91: BB | AB91: BB | AC91: BB | AD91: BB | AE91: BB | AF91: BB | AG91: BB | AH91: BB | AI91: BB | AJ91: BB | AK91: BB | AL91: BB | AM91: BB | AN91: BB | AO91: BB | AP91: BB | AQ91: BB | AR91: BB | AS91: BB | AT91: BB | AU91: BB | AV91: BB | AW91: BB | AX91: BB | AY91: BB | AZ91: BB | BA91: BB | BB91: BB | BC91: BB | BD91: BB | BE91: BB | BF91: BB | BG91: BB | BH91: BB | BI91: BB | BJ91: BB | BK91: BB | BL91: BB | BM91: BB | BN91: BB | BO91: BB | BP91: BB | BQ91: BB | BR91: BB | BS91: BB | BT91: BB | BU91: BB | BV91: BB | BW91: BB | BX91: BB | BY91: BB | BZ91: BB | CA91: BB | CB91: BB | CC91: BB | CD91: BB | CE91: BB | CF91: BB | CG91: BB | CH91: BB | CI91: BB | CJ91: BB | CK91: BB | CL91: BB | CM91: BB | CN91: BB | CO91: BB | CP91: BB | CQ91: BB | CR91: BB | CS91: BB | CT91: BB | CU91: BB | CV91: BB | CW91: BB | CX91: BB | CY91: BB | CZ91: BB | DA91: BB | DB91: BB | DC91: BB | DD91: BB | DE91: BB | DF91: BB | DG91: BB | DH91: BB | DI91: BB | DJ91: BB | DK91: BB | DL91: BB | DM91: BB | DN91: BB | DO91: BB | DP91: BB | DQ91: BB | DR91: BB | DS91: BB | DT91: NC | DU91: BB | DV91: BB | DW91: BB | DX91: BB | DY91: BB | DZ91: NC | EA91: BB | EB91: BB | EC91: BB | ED91: BB | EE91: BB | EF91: BB | EG91: BB | EH91: BB | EI91: BB | EJ91: BB | EK91: BB | EL91: NC | EM91: NC | EN91: 10 | EO91: 0 | EQ91: 0 | ER91: 129 | ES91: 139 | ET91: 129 | EU91: 7 | EV91: 0 | EW91: 93 | EX91: 0
A92: A01 | B92: Bn-A01-p2569303 | C92: 2,070,643 | D92: 2070594 | E92: BB | F92: BB | G92: AA | H92: BB | I92: AA | J92: AA | K92: BB | L92: BB | M92: NC | N92: NC | O92: NC | P92: NC | Q92: NC | R92: NC | S92: NC | T92: NC | U92: BB | V92: BB | W92: BB | X92: BB | Y92: BB | Z92: BB | AA92: BB | AB92: BB | AC92: BB | AD92: BB | AE92: BB | AF92: BB | AG92: BB | AH92: BB | AI92: BB | AJ92: BB | AK92: BB | AL92: BB | AM92: BB | AN92: BB | AO92: BB | AP92: AA | AQ92: AA | AR92: AA | AS92: BB | AT92: BB | AU92: BB | AV92: BB | AW92: BB | AX92: BB | AY92: AA | AZ92: AA | BA92: AA | BB92: BB | BC92: BB | BD92: BB | BE92: AA | BF92: AA | BG92: AA | BH92: AA | BI92: AA | BJ92: AA | BK92: AA | BL92: AA | BM92: AA | BN92: AA | BO92: AA | BP92: AA | BQ92: AA | BR92: AA | BS92: AA | BT92: BB | BU92: BB | BV92: BB | BW92: BB | BX92: BB | BY92: BB | BZ92: BB | CA92: BB | CB92: BB | CC92: BB | CD92: BB | CE92: BB | CF92: BB | CG92: BB | CH92: BB | CI92: BB | CJ92: BB | CK92: BB | CL92: BB | CM92: BB | CN92: BB | CO92: BB | CP92: BB | CQ92: BB | CR92: BB | CS92: BB | CT92: BB | CU92: BB | CV92: BB | CW92: BB | CX92: BB | CY92: BB | CZ92: BB | DA92: BB | DB92: BB | DC92: BB | DD92: AA | DE92: AA | DF92: AA | DG92: BB | DH92: BB | DI92: BB | DJ92: BB | DK92: BB | DL92: BB | DM92: BB | DN92: BB | DO92: BB | DP92: BB | DQ92: BB | DR92: BB | DS92: BB | DT92: NC | DU92: BB | DV92: BB | DW92: BB | DX92: BB | DY92: BB | DZ92: NC | EA92: BB | EB92: BB | EC92: BB | ED92: BB | EE92: BB | EF92: BB | EG92: BB | EH92: BB | EI92: BB | EJ92: BB | EK92: AA | EL92: NC | EM92: NC | EN92: 12 | EO92: 28 | EQ92: 0 | ER92: 99 | ES92: 139 | ET92: 127 | EU92: 9 | EV92: 20 | EW92: 71 | EX92: 0
A93: A01 | B93: Bn-A01-p2575497 | C93: 2,076,970 | D93: 2077022 | E93: BB | F93: BB | G93: BB | H93: AA | I93: BB | J93: BB | K93: BB | L93: BB | M93: BB | N93: NC | O93: NC | P93: NC | Q93: NC | R93: NC | S93: NC | T93: NC | U93: BB | V93: BB | W93: BB | X93: BB | Y93: BB | Z93: BB | AA93: BB | AB93: BB | AC93: BB | AD93: BB | AE93: BB | AF93: BB | AG93: BB | AH93: BB | AI93: BB | AJ93: BB | AK93: BB | AL93: BB | AM93: NC | AN93: NC | AO93: BB | AP93: BB | AQ93: BB | AR93: BB | AS93: BB | AT93: BB | AU93: BB | AV93: BB | AW93: BB | AX93: BB | AY93: BB | AZ93: BB | BA93: BB | BB93: BB | BC93: BB | BD93: BB | BE93: BB | BF93: BB | BG93: BB | BH93: BB | BI93: BB | BJ93: BB | BK93: BB | BL93: BB | BM93: BB | BN93: BB | BO93: BB | BP93: BB | BQ93: BB | BR93: BB | BS93: BB | BT93: BB | BU93: BB | BV93: BB | BW93: BB | BX93: BB | BY93: BB | BZ93: BB | CA93: BB | CB93: BB | CC93: BB | CD93: BB | CE93: BB | CF93: BB | CG93: BB | CH93: BB | CI93: BB | CJ93: BB | CK93: BB | CL93: BB | CM93: BB | CN93: BB | CO93: BB | CP93: BB | CQ93: BB | CR93: BB | CS93: BB | CT93: BB | CU93: BB | CV93: BB | CW93: BB | CX93: BB | CY93: BB | CZ93: BB | DA93: BB | DB93: BB | DC93: BB | DD93: BB | DE93: BB | DF93: BB | DG93: BB | DH93: BB | DI93: BB | DJ93: BB | DK93: BB | DL93: BB | DM93: BB | DN93: BB | DO93: BB | DP93: BB | DQ93: BB | DR93: BB | DS93: BB | DT93: NC | DU93: BB | DV93: BB | DW93: BB | DX93: BB | DY93: BB | DZ93: NC | EA93: BB | EB93: BB | EC93: BB | ED93: BB | EE93: BB | EF93: BB | EG93: BB | EH93: BB | EI93: BB | EJ93: BB | EK93: BB | EL93: NC | EM93: NC | EN93: 13 | EO93: 1 | EQ93: 0 | ER93: 125 | ES93: 139 | ET93: 126 | EU93: 9 | EV93: 1 | EW93: 90 | EX93: 0
A94: A01 | B94: Bn-A01-p2626270 | C94: 2,132,714 | D94: 2132763 | E94: AA | F94: AA | G94: BB | H94: AA | I94: BB | J94: BB | K94: AA | L94: AA | M94: AA | N94: AA | O94: NC | P94: NC | Q94: NC | R94: NC | S94: NC | T94: NC | U94: AA | V94: AA | W94: AA | X94: AA | Y94: AA | Z94: AA | AA94: AA | AB94: AA | AC94: AA | AD94: AA | AE94: AA | AF94: AA | AG94: AA | AH94: AA | AI94: AA | AJ94: AA | AK94: AA | AL94: AA | AM94: AA | AN94: AA | AO94: AA | AP94: AA | AQ94: AA | AR94: AA | AS94: AA | AT94: AA | AU94: AA | AV94: AA | AW94: AA | AX94: AA | AY94: AA | AZ94: AA | BA94: AA | BB94: AA | BC94: AA | BD94: AA | BE94: AA | BF94: AA | BG94: AA | BH94: AA | BI94: AA | BJ94: AA | BK94: AA | BL94: AA | BM94: AA | BN94: AA | BO94: AA | BP94: AA | BQ94: AA | BR94: AA | BS94: AA | BT94: AA | BU94: AA | BV94: AA | BW94: AA | BX94: AA | BY94: AA | BZ94: AA | CA94: AA | CB94: AA | CC94: AA | CD94: AA | CE94: AA | CF94: AA | CG94: AA | CH94: AA | CI94: AA | CJ94: AA | CK94: AA | CL94: AA | CM94: AA | CN94: AA | CO94: AA | CP94: AA | CQ94: AA | CR94: AA | CS94: AA | CT94: AA | CU94: AA | CV94: AA | CW94: AA | CX94: AA | CY94: AA | CZ94: AA | DA94: AA | DB94: AA | DC94: AA | DD94: AA | DE94: AA | DF94: AA | DG94: AA | DH94: AA | DI94: AA | DJ94: AA | DK94: AA | DL94: AA | DM94: AA | DN94: AA | DO94: AA | DP94: AA | DQ94: AA | DR94: AA | DS94: AA | DT94: NC | DU94: AA | DV94: AA | DW94: AA | DX94: AA | DY94: AA | DZ94: NC | EA94: AA | EB94: AA | EC94: AA | ED94: AA | EE94: AA | EF94: AA | EG94: AA | EH94: AA | EI94: AA | EJ94: AA | EK94: AA | EL94: NC | EM94: NC | EN94: 10 | EO94: 126 | EQ94: 0 | ER94: 3 | ES94: 139 | ET94: 129 | EU94: 7 | EV94: 91 | EW94: 2 | EX94: 0
A95: A01 | B95: Bn-A01-p2713583 | C95: 2,220,561 | D95: 2220610 | E95: BB | F95: BB | G95: BB | H95: NC | I95: BB | J95: BB | K95: AB | L95: AA | M95: AA | N95: AA | O95: NC | P95: NC | Q95: NC | R95: NC | S95: NC | T95: NC | U95: BB | V95: BB | W95: BB | X95: BB | Y95: BB | Z95: BB | AA95: BB | AB95: BB | AC95: BB | AD95: BB | AE95: BB | AF95: BB | AG95: BB | AH95: BB | AI95: BB | AJ95: BB | AK95: BB | AL95: BB | AM95: BB | AN95: BB | AO95: BB | AP95: AA | AQ95: AA | AR95: AA | AS95: BB | AT95: BB | AU95: BB | AV95: BB | AW95: BB | AX95: BB | AY95: AA | AZ95: AA | BA95: AA | BB95: BB | BC95: BB | BD95: BB | BE95: BB | BF95: BB | BG95: BB | BH95: BB | BI95: BB | BJ95: BB | BK95: BB | BL95: BB | BM95: BB | BN95: BB | BO95: BB | BP95: BB | BQ95: BB | BR95: BB | BS95: BB | BT95: BB | BU95: BB | BV95: BB | BW95: BB | BX95: BB | BY95: BB | BZ95: BB | CA95: BB | CB95: BB | CC95: BB | CD95: BB | CE95: BB | CF95: BB | CG95: BB | CH95: BB | CI95: BB | CJ95: BB | CK95: BB | CL95: BB | CM95: BB | CN95: BB | CO95: BB | CP95: BB | CQ95: BB | CR95: BB | CS95: BB | CT95: BB | CU95: BB | CV95: BB | CW95: BB | CX95: BB | CY95: BB | CZ95: BB | DA95: BB | DB95: BB | DC95: BB | DD95: BB | DE95: BB | DF95: BB | DG95: BB | DH95: BB | DI95: BB | DJ95: BB | DK95: BB | DL95: BB | DM95: BB | DN95: BB | DO95: BB | DP95: BB | DQ95: BB | DR95: BB | DS95: BB | DT95: NC | DU95: BB | DV95: BB | DW95: BB | DX95: BB | DY95: BB | DZ95: NC | EA95: BB | EB95: BB | EC95: BB | ED95: BB | EE95: BB | EF95: BB | EG95: BB | EH95: BB | EI95: BB | EJ95: BB | EK95: AA | EL95: NC | EM95: NC | EN95: 11 | EO95: 10 | EQ95: 1 | ER95: 117 | ES95: 139 | ET95: 128 | EU95: 8 | EV95: 7 | EW95: 84 | EX95: 1
A96: A01 | B96: Bn-A01-p2713528 | C96: 2,220,606 | D96: 2220557 | E96: AA | F96: AA | G96: BB | H96: NC | I96: BB | J96: BB | K96: BB | L96: BB | M96: BB | N96: BB | O96: NC | P96: NC | Q96: NC | R96: NC | S96: NC | T96: NC | U96: BB | V96: BB | W96: BB | X96: BB | Y96: BB | Z96: BB | AA96: BB | AB96: BB | AC96: BB | AD96: BB | AE96: BB | AF96: BB | AG96: BB | AH96: BB | AI96: BB | AJ96: BB | AK96: BB | AL96: BB | AM96: BB | AN96: BB | AO96: BB | AP96: BB | AQ96: BB | AR96: BB | AS96: AA | AT96: AA | AU96: AA | AV96: AA | AW96: AA | AX96: AA | AY96: BB | AZ96: BB | BA96: BB | BB96: AA | BC96: AA | BD96: AA | BE96: AA | BF96: AA | BG96: AA | BH96: AA | BI96: AA | BJ96: AA | BK96: AA | BL96: AA | BM96: AA | BN96: AA | BO96: AA | BP96: AA | BQ96: AA | BR96: AA | BS96: AA | BT96: AA | BU96: AA | BV96: AA | BW96: BB | BX96: BB | BY96: BB | BZ96: BB | CA96: BB | CB96: BB | CC96: BB | CD96: BB | CE96: BB | CF96: BB | CG96: BB | CH96: BB | CI96: BB | CJ96: BB | CK96: BB | CL96: BB | CM96: BB | CN96: BB | CO96: AA | CP96: AA | CQ96: BB | CR96: AA | CS96: AA | CT96: AA | CU96: AA | CV96: AA | CW96: AA | CX96: AA | CY96: AA | CZ96: AA | DA96: AA | DB96: AA | DC96: AA | DD96: BB | DE96: BB | DF96: BB | DG96: BB | DH96: BB | DI96: BB | DJ96: BB | DK96: BB | DL96: BB | DM96: BB | DN96: BB | DO96: BB | DP96: BB | DQ96: BB | DR96: BB | DS96: BB | DT96: NC | DU96: BB | DV96: BB | DW96: BB | DX96: BB | DY96: BB | DZ96: NC | EA96: BB | EB96: BB | EC96: BB | ED96: BB | EE96: BB | EF96: BB | EG96: BB | EH96: BB | EI96: BB | EJ96: BB | EK96: BB | EL96: NC | EM96: NC | EN96: 11 | EO96: 43 | EQ96: 0 | ER96: 85 | ES96: 139 | ET96: 128 | EU96: 8 | EV96: 31 | EW96: 61 | EX96: 0
A97: A01 | B97: Bn-A01-p2718126 | C97: 2,225,655 | D97: 2225704 | E97: BB | F97: BB | G97: AA | H97: NC | I97: AA | J97: AA | K97: AA | L97: BB | M97: BB | N97: BB | O97: NC | P97: NC | Q97: NC | R97: NC | S97: NC | T97: NC | U97: AA | V97: AA | W97: AA | X97: AA | Y97: AA | Z97: AA | AA97: AA | AB97: AA | AC97: AA | AD97: AA | AE97: AA | AF97: AA | AG97: AA | AH97: AA | AI97: AA | AJ97: AA | AK97: AA | AL97: AA | AM97: AA | AN97: AA | AO97: AA | AP97: BB | AQ97: BB | AR97: BB | AS97: AA | AT97: AA | AU97: AA | AV97: AA | AW97: AA | AX97: AA | AY97: BB | AZ97: BB | BA97: BB | BB97: AA | BC97: AA | BD97: AA | BE97: AA | BF97: AA | BG97: AA | BH97: AA | BI97: AA | BJ97: AA | BK97: AA | BL97: AA | BM97: AA | BN97: AA | BO97: AA | BP97: AA | BQ97: AA | BR97: AA | BS97: AA | BT97: AA | BU97: AA | BV97: AA | BW97: AA | BX97: AA | BY97: AA | BZ97: AA | CA97: AA | CB97: AA | CC97: AA | CD97: AA | CE97: AA | CF97: AA | CG97: AA | CH97: AA | CI97: AA | CJ97: AA | CK97: AA | CL97: AA | CM97: AA | CN97: AA | CO97: NC | CP97: NC | CQ97: AA | CR97: NC | CS97: NC | CT97: NC | CU97: NC | CV97: NC | CW97: NC | CX97: NC | CY97: NC | CZ97: NC | DA97: NC | DB97: NC | DC97: NC | DD97: AA | DE97: AA | DF97: AA | DG97: AA | DH97: AA | DI97: AA | DJ97: AA | DK97: AA | DL97: AA | DM97: AA | DN97: AA | DO97: AA | DP97: AA | DQ97: AA | DR97: AA | DS97: AA | DT97: NC | DU97: AA | DV97: AA | DW97: AA | DX97: AA | DY97: AA | DZ97: NC | EA97: AA | EB97: AA | EC97: AA | ED97: AA | EE97: AA | EF97: AA | EG97: AA | EH97: AA | EI97: AA | EJ97: AA | EK97: BB | EL97: NC | EM97: NC | EN97: 25 | EO97: 102 | EQ97: 0 | ER97: 12 | ES97: 139 | ET97: 114 | EU97: 18 | EV97: 73 | EW97: 9 | EX97: 0
A98: A01 | B98: Bn-A01-p2841043 | C98: 2,350,116 | D98: 2350067 | E98: BB | F98: BB | G98: BB | H98: NC | I98: BB | J98: BB | K98: BB | L98: BB | M98: BB | N98: BB | O98: NC | P98: NC | Q98: NC | R98: NC | S98: NC | T98: NC | U98: BB | V98: BB | W98: BB | X98: BB | Y98: BB | Z98: BB | AA98: BB | AB98: BB | AC98: BB | AD98: BB | AE98: BB | AF98: BB | AG98: BB | AH98: BB | AI98: BB | AJ98: BB | AK98: BB | AL98: BB | AM98: BB | AN98: BB | AO98: BB | AP98: BB | AQ98: BB | AR98: BB | AS98: BB | AT98: BB | AU98: BB | AV98: BB | AW98: BB | AX98: BB | AY98: BB | AZ98: BB | BA98: BB | BB98: BB | BC98: BB | BD98: BB | BE98: BB | BF98: BB | BG98: BB | BH98: BB | BI98: BB | BJ98: BB | BK98: BB | BL98: BB | BM98: BB | BN98: BB | BO98: BB | BP98: BB | BQ98: BB | BR98: BB | BS98: BB | BT98: BB | BU98: BB | BV98: BB | BW98: BB | BX98: BB | BY98: BB | BZ98: BB | CA98: BB | CB98: BB | CC98: BB | CD98: BB | CE98: BB | CF98: BB | CG98: BB | CH98: BB | CI98: BB | CJ98: BB | CK98: BB | CL98: BB | CM98: BB | CN98: BB | CO98: BB | CP98: BB | CQ98: BB | CR98: BB | CS98: BB | CT98: BB | CU98: BB | CV98: BB | CW98: BB | CX98: BB | CY98: BB | CZ98: BB | DA98: BB | DB98: BB | DC98: BB | DD98: BB | DE98: BB | DF98: BB | DG98: BB | DH98: BB | DI98: BB | DJ98: BB | DK98: BB | DL98: BB | DM98: BB | DN98: BB | DO98: BB | DP98: BB | DQ98: BB | DR98: BB | DS98: BB | DT98: BB | DU98: BB | DV98: BB | DW98: BB | DX98: BB | DY98: BB | DZ98: NC | EA98: BB | EB98: BB | EC98: BB | ED98: BB | EE98: BB | EF98: BB | EG98: BB | EH98: BB | EI98: BB | EJ98: BB | EK98: BB | EL98: BB | EM98: BB | EN98: 8 | EO98: 0 | EQ98: 0 | ER98: 131 | ES98: 139 | ET98: 131 | EU98: 6 | EV98: 0 | EW98: 94 | EX98: 0
A99: A01 | B99: Bn-A01-p2864193 | C99: 2,366,868 | D99: 2366819 | E99: BB | F99: BB | G99: BB | H99: NC | I99: BB | J99: BB | K99: BB | L99: BB | M99: BB | N99: BB | O99: NC | P99: NC | Q99: NC | R99: NC | S99: NC | T99: NC | U99: BB | V99: BB | W99: BB | X99: BB | Y99: BB | Z99: BB | AA99: BB | AB99: BB | AC99: BB | AD99: BB | AE99: BB | AF99: BB | AG99: BB | AH99: BB | AI99: BB | AJ99: BB | AK99: BB | AL99: BB | AM99: BB | AN99: BB | AO99: BB | AP99: BB | AQ99: BB | AR99: BB | AS99: BB | AT99: BB | AU99: BB | AV99: BB | AW99: BB | AX99: BB | AY99: BB | AZ99: BB | BA99: BB | BB99: BB | BC99: BB | BD99: BB | BE99: BB | BF99: BB | BG99: BB | BH99: BB | BI99: BB | BJ99: BB | BK99: BB | BL99: BB | BM99: BB | BN99: BB | BO99: BB | BP99: BB | BQ99: BB | BR99: BB | BS99: BB | BT99: BB | BU99: BB | BV99: BB | BW99: BB | BX99: BB | BY99: BB | BZ99: BB | CA99: BB | CB99: BB | CC99: BB | CD99: BB | CE99: BB | CF99: BB | CG99: BB | CH99: BB | CI99: BB | CJ99: BB | CK99: BB | CL99: BB | CM99: BB | CN99: BB | CO99: BB | CP99: BB | CQ99: BB | CR99: BB | CS99: BB | CT99: BB | CU99: BB | CV99: BB | CW99: BB | CX99: BB | CY99: BB | CZ99: BB | DA99: BB | DB99: BB | DC99: BB | DD99: BB | DE99: BB | DF99: BB | DG99: BB | DH99: BB | DI99: BB | DJ99: BB | DK99: BB | DL99: BB | DM99: BB | DN99: BB | DO99: BB | DP99: BB | DQ99: BB | DR99: BB | DS99: BB | DT99: BB | DU99: BB | DV99: BB | DW99: BB | DX99: BB | DY99: BB | DZ99: NC | EA99: BB | EB99: BB | EC99: BB | ED99: BB | EE99: BB | EF99: BB | EG99: BB | EH99: BB | EI99: BB | EJ99: BB | EK99: BB | EL99: BB | EM99: BB | EN99: 8 | EO99: 0 | EQ99: 0 | ER99: 131 | ES99: 139 | ET99: 131 | EU99: 6 | EV99: 0 | EW99: 94 | EX99: 0
A100: A01 | B100: Bn-A01-p2867284 | C100: 2,369,957 | D100: 2369908 | E100: BB | F100: BB | G100: AA | H100: NC | I100: AA | J100: AA | K100: AB | L100: AA | M100: AA | N100: NC | O100: NC | P100: NC | Q100: NC | R100: NC | S100: NC | T100: NC | U100: AA | V100: AA | W100: AA | X100: AA | Y100: AA | Z100: AA | AA100: AA | AB100: AA | AC100: AA | AD100: AA | AE100: AA | AF100: AA | AG100: AA | AH100: AA | AI100: AA | AJ100: AA | AK100: AA | AL100: AA | AM100: AA | AN100: AA | AO100: AA | AP100: BB | AQ100: BB | AR100: BB | AS100: BB | AT100: BB | AU100: BB | AV100: BB | AW100: BB | AX100: BB | AY100: BB | AZ100: BB | BA100: BB | BB100: BB | BC100: BB | BD100: BB | BE100: BB | BF100: BB | BG100: BB | BH100: BB | BI100: BB | BJ100: BB | BK100: BB | BL100: BB | BM100: BB | BN100: BB | BO100: BB | BP100: BB | BQ100: BB | BR100: BB | BS100: BB | BT100: BB | BU100: BB | BV100: BB | BW100: AA | BX100: AA | BY100: AA | BZ100: AA | CA100: AA | CB100: AA | CC100: AA | CD100: AA | CE100: AA | CF100: AA | CG100: AA | CH100: AA | CI100: AA | CJ100: AA | CK100: AA | CL100: AA | CM100: AA | CN100: AA | CO100: BB | CP100: BB | CQ100: AA | CR100: BB | CS100: BB | CT100: BB | CU100: BB | CV100: BB | CW100: BB | CX100: BB | CY100: BB | CZ100: BB | DA100: BB | DB100: BB | DC100: BB | DD100: AA | DE100: AA | DF100: AA | DG100: AA | DH100: AA | DI100: AA | DJ100: AA | DK100: AA | DL100: AA | DM100: AA | DN100: AA | DO100: AA | DP100: AA | DQ100: AA | DR100: AA | DS100: AA | DT100: AA | DU100: AA | DV100: AA | DW100: AA | DX100: AA | DY100: AA | DZ100: NC | EA100: AA | EB100: AA | EC100: AA | ED100: AA | EE100: AA | EF100: AA | EG100: AA | EH100: AA | EI100: AA | EJ100: AA | EK100: BB | EL100: BB | EM100: BB | EN100: 9 | EO100: 77 | EQ100: 1 | ER100: 52 | ES100: 139 | ET100: 130 | EU100: 6 | EV100: 55 | EW100: 37 | EX100: 1
A101: A01 | B101: Bn-A01-p2874393 | C101: 2,376,711 | D101: 2376662 | E101: BB | F101: BB | G101: AA | H101: NC | I101: BB | J101: BB | K101: BB | L101: BB | M101: BB | N101: BB | O101: NC | P101: NC | Q101: NC | R101: NC | S101: NC | T101: NC | U101: BB | V101: BB | W101: BB | X101: BB | Y101: BB | Z101: BB | AA101: BB | AB101: BB | AC101: BB | AD101: BB | AE101: BB | AF101: BB | AG101: BB | AH101: BB | AI101: BB | AJ101: BB | AK101: BB | AL101: BB | AM101: BB | AN101: BB | AO101: BB | AP101: AA | AQ101: AA | AR101: AA | AS101: AA | AT101: AA | AU101: AA | AV101: AA | AW101: AA | AX101: AA | AY101: AA | AZ101: AA | BA101: AA | BB101: NC | BC101: NC | BD101: NC | BE101: AA | BF101: AA | BG101: AA | BH101: AA | BI101: AA | BJ101: AA | BK101: AA | BL101: AA | BM101: AA | BN101: AA | BO101: AA | BP101: AA | BQ101: AA | BR101: AA | BS101: AA | BT101: NC | BU101: NC | BV101: NC | BW101: BB | BX101: BB | BY101: BB | BZ101: BB | CA101: BB | CB101: BB | CC101: BB | CD101: BB | CE101: BB | CF101: BB | CG101: BB | CH101: BB | CI101: BB | CJ101: BB | CK101: BB | CL101: BB | CM101: BB | CN101: BB | CO101: NC | CP101: NC | CQ101: BB | CR101: NC | CS101: NC | CT101: NC | CU101: NC | CV101: NC | CW101: NC | CX101: NC | CY101: NC | CZ101: NC | DA101: NC | DB101: NC | DC101: NC | DD101: BB | DE101: BB | DF101: BB | DG101: BB | DH101: BB | DI101: BB | DJ101: BB | DK101: BB | DL101: BB | DM101: BB | DN101: BB | DO101: BB | DP101: BB | DQ101: BB | DR101: BB | DS101: BB | DT101: BB | DU101: BB | DV101: BB | DW101: BB | DX101: BB | DY101: BB | DZ101: NC | EA101: BB | EB101: BB | EC101: BB | ED101: BB | EE101: BB | EF101: BB | EG101: BB | EH101: BB | EI101: BB | EJ101: BB | EK101: AA | EL101: AA | EM101: AA | EN101: 28 | EO101: 31 | EQ101: 0 | ER101: 80 | ES101: 139 | ET101: 111 | EU101: 20 | EV101: 22 | EW101: 58 | EX101: 0
A102: A01 | B102: Bn-A01-p2882270 | C102: 2,386,111 | D102: 2386160 | E102: AA | F102: AA | G102: AA | H102: NC | I102: AA | J102: AA | K102: AA | L102: AA | M102: AA | N102: AA | O102: NC | P102: NC | Q102: NC | R102: NC | S102: NC | T102: NC | U102: AA | V102: AA | W102: AA | X102: AA | Y102: AA | Z102: AA | AA102: AA | AB102: AA | AC102: AA | AD102: AA | AE102: AA | AF102: AA | AG102: AA | AH102: AA | AI102: AA | AJ102: AA | AK102: AA | AL102: AA | AM102: AA | AN102: AA | AO102: AA | AP102: BB | AQ102: BB | AR102: BB | AS102: AA | AT102: AA | AU102: AA | AV102: AA | AW102: AA | AX102: AA | AY102: BB | AZ102: BB | BA102: BB | BB102: BB | BC102: BB | BD102: BB | BE102: AA | BF102: AA | BG102: AA | BH102: AA | BI102: AA | BJ102: AA | BK102: AA | BL102: AA | BM102: AA | BN102: AA | BO102: AA | BP102: AA | BQ102: AA | BR102: AA | BS102: AA | BT102: BB | BU102: BB | BV102: BB | BW102: AA | BX102: AA | BY102: AA | BZ102: AA | CA102: AA | CB102: AA | CC102: AA | CD102: AA | CE102: AA | CF102: AA | CG102: AA | CH102: AA | CI102: AA | CJ102: AA | CK102: AA | CL102: AA | CM102: AA | CN102: AA | CO102: BB | CP102: BB | CQ102: AA | CR102: BB | CS102: BB | CT102: BB | CU102: BB | CV102: BB | CW102: BB | CX102: BB | CY102: BB | CZ102: BB | DA102: BB | DB102: BB | DC102: BB | DD102: AA | DE102: AA | DF102: AA | DG102: AA | DH102: AA | DI102: AA | DJ102: AA | DK102: AA | DL102: AA | DM102: AA | DN102: AA | DO102: AA | DP102: AA | DQ102: AA | DR102: AA | DS102: AA | DT102: AA | DU102: AA | DV102: AA | DW102: AA | DX102: AA | DY102: AA | DZ102: NC | EA102: AA | EB102: AA | EC102: AA | ED102: AA | EE102: AA | EF102: AA | EG102: AA | EH102: AA | EI102: AA | EJ102: AA | EK102: BB | EL102: BB | EM102: BB | EN102: 8 | EO102: 102 | EQ102: 0 | ER102: 29 | ES102: 139 | ET102: 131 | EU102: 6 | EV102: 73 | EW102: 21 | EX102: 0
A103: A01 | B103: Bn-A01-p2884934 | C103: 2,388,770 | D103: 2388819 | E103: BB | F103: BB | G103: BB | H103: NC | I103: BB | J103: BB | K103: BB | L103: NC | M103: BB | N103: NC | O103: NC | P103: NC | Q103: NC | R103: NC | S103: NC | T103: NC | U103: BB | V103: BB | W103: BB | X103: BB | Y103: BB | Z103: BB | AA103: BB | AB103: BB | AC103: BB | AD103: BB | AE103: BB | AF103: BB | AG103: BB | AH103: BB | AI103: BB | AJ103: BB | AK103: BB | AL103: BB | AM103: BB | AN103: BB | AO103: BB | AP103: BB | AQ103: BB | AR103: BB | AS103: AA | AT103: AA | AU103: AA | AV103: AA | AW103: AA | AX103: AA | AY103: BB | AZ103: BB | BA103: BB | BB103: NC | BC103: NC | BD103: NC | BE103: AA | BF103: AA | BG103: AA | BH103: AA | BI103: AA | BJ103: AA | BK103: AA | BL103: AA | BM103: AA | BN103: AA | BO103: AA | BP103: AA | BQ103: AA | BR103: AA | BS103: AA | BT103: NC | BU103: NC | BV103: NC | BW103: BB | BX103: BB | BY103: BB | BZ103: BB | CA103: BB | CB103: BB | CC103: BB | CD103: BB | CE103: BB | CF103: BB | CG103: BB | CH103: BB | CI103: BB | CJ103: BB | CK103: BB | CL103: BB | CM103: BB | CN103: BB | CO103: NC | CP103: NC | CQ103: BB | CR103: NC | CS103: NC | CT103: NC | CU103: NC | CV103: NC | CW103: NC | CX103: NC | CY103: NC | CZ103: NC | DA103: NC | DB103: NC | DC103: NC | DD103: BB | DE103: BB | DF103: BB | DG103: BB | DH103: BB | DI103: BB | DJ103: BB | DK103: BB | DL103: BB | DM103: BB | DN103: BB | DO103: BB | DP103: BB | DQ103: BB | DR103: BB | DS103: BB | DT103: BB | DU103: BB | DV103: BB | DW103: BB | DX103: BB | DY103: BB | DZ103: NC | EA103: BB | EB103: BB | EC103: BB | ED103: BB | EE103: BB | EF103: BB | EG103: BB | EH103: BB | EI103: BB | EJ103: BB | EK103: BB | EL103: BB | EM103: BB | EN103: 30 | EO103: 21 | EQ103: 0 | ER103: 88 | ES103: 139 | ET103: 109 | EU103: 22 | EV103: 15 | EW103: 63 | EX103: 0
A104: A01 | B104: Bn-A01-p2891863 | C104: 2,395,699 | D104: 2395748 | E104: BB | F104: BB | G104: BB | H104: NC | I104: BB | J104: BB | K104: AB | L104: AA | M104: AA | N104: NC | O104: NC | P104: NC | Q104: NC | R104: NC | S104: NC | T104: NC | U104: AA | V104: AA | W104: AA | X104: AA | Y104: AA | Z104: AA | AA104: AA | AB104: AA | AC104: AA | AD104: AA | AE104: AA | AF104: AA | AG104: AA | AH104: AA | AI104: AA | AJ104: AA | AK104: AA | AL104: AA | AM104: AA | AN104: AA | AO104: AA | AP104: BB | AQ104: BB | AR104: BB | AS104: AA | AT104: AA | AU104: AA | AV104: AA | AW104: AA | AX104: AA | AY104: BB | AZ104: BB | BA104: BB | BB104: AA | BC104: AA | BD104: AA | BE104: AA | BF104: AA | BG104: AA | BH104: AA | BI104: AA | BJ104: AA | BK104: AA | BL104: AA | BM104: AA | BN104: AA | BO104: AA | BP104: AA | BQ104: AA | BR104: AA | BS104: AA | BT104: AA | BU104: AA | BV104: AA | BW104: AA | BX104: AA | BY104: AA | BZ104: AA | CA104: AA | CB104: AA | CC104: AA | CD104: AA | CE104: AA | CF104: AA | CG104: AA | CH104: AA | CI104: AA | CJ104: AA | CK104: AA | CL104: AA | CM104: AA | CN104: AA | CO104: AA | CP104: AA | CQ104: AA | CR104: AA | CS104: AA | CT104: AA | CU104: AA | CV104: AA | CW104: AA | CX104: AA | CY104: AA | CZ104: AA | DA104: AA | DB104: AA | DC104: AA | DD104: AA | DE104: AA | DF104: AA | DG104: AA | DH104: AA | DI104: AA | DJ104: AA | DK104: AA | DL104: AA | DM104: AA | DN104: AA | DO104: AA | DP104: AA | DQ104: AA | DR104: AA | DS104: AA | DT104: AA | DU104: AA | DV104: AA | DW104: AA | DX104: AA | DY104: AA | DZ104: NC | EA104: AA | EB104: AA | EC104: AA | ED104: AA | EE104: AA | EF104: AA | EG104: AA | EH104: AA | EI104: AA | EJ104: AA | EK104: BB | EL104: BB | EM104: BB | EN104: 9 | EO104: 115 | EQ104: 1 | ER104: 14 | ES104: 139 | ET104: 130 | EU104: 6 | EV104: 83 | EW104: 10 | EX104: 1
A105: A01 | B105: Bn-A01-p2957869 | C105: 2,419,550 | D105: 2419501 | E105: BB | F105: BB | G105: AA | H105: NC | I105: BB | J105: BB | K105: AB | L105: BB | M105: AA | N105: NC | O105: NC | P105: NC | Q105: NC | R105: NC | S105: NC | T105: NC | U105: BB | V105: BB | W105: BB | X105: BB | Y105: BB | Z105: BB | AA105: BB | AB105: BB | AC105: BB | AD105: BB | AE105: BB | AF105: BB | AG105: BB | AH105: BB | AI105: BB | AJ105: BB | AK105: BB | AL105: BB | AM105: BB | AN105: BB | AO105: BB | AP105: AA | AQ105: AA | AR105: AA | AS105: BB | AT105: BB | AU105: BB | AV105: BB | AW105: BB | AX105: BB | AY105: AA | AZ105: AA | BA105: AA | BB105: BB | BC105: BB | BD105: BB | BE105: BB | BF105: BB | BG105: BB | BH105: BB | BI105: BB | BJ105: BB | BK105: BB | BL105: BB | BM105: BB | BN105: BB | BO105: BB | BP105: BB | BQ105: BB | BR105: BB | BS105: BB | BT105: BB | BU105: BB | BV105: BB | BW105: BB | BX105: BB | BY105: BB | BZ105: BB | CA105: BB | CB105: BB | CC105: BB | CD105: BB | CE105: BB | CF105: BB | CG105: BB | CH105: BB | CI105: BB | CJ105: BB | CK105: BB | CL105: BB | CM105: BB | CN105: BB | CO105: AA | CP105: AA | CQ105: BB | CR105: AA | CS105: AA | CT105: AA | CU105: AA | CV105: AA | CW105: AA | CX105: AA | CY105: AA | CZ105: AA | DA105: AA | DB105: AA | DC105: AA | DD105: AA | DE105: AA | DF105: AA | DG105: BB | DH105: BB | DI105: BB | DJ105: BB | DK105: BB | DL105: BB | DM105: BB | DN105: BB | DO105: BB | DP105: BB | DQ105: BB | DR105: BB | DS105: BB | DT105: BB | DU105: BB | DV105: BB | DW105: BB | DX105: BB | DY105: NC | DZ105: NC | EA105: NC | EB105: BB | EC105: BB | ED105: BB | EE105: BB | EF105: BB | EG105: BB | EH105: BB | EI105: BB | EJ105: BB | EK105: AA | EL105: AA | EM105: AA | EN105: 11 | EO105: 28 | EQ105: 1 | ER105: 99 | ES105: 139 | ET105: 128 | EU105: 8 | EV105: 20 | EW105: 71 | EX105: 1
A106: A01 | B106: Bn-A01-p2910608 | C106: 2,461,482 | D106: 2461531 | E106: AA | F106: AA | G106: AA | H106: NC | I106: BB | J106: BB | K106: AB | L106: AA | M106: AA | N106: AA | O106: NC | P106: NC | Q106: NC | R106: NC | S106: NC | T106: NC | U106: AA | V106: AA | W106: AA | X106: AA | Y106: AA | Z106: AA | AA106: AA | AB106: AA | AC106: AA | AD106: AA | AE106: AA | AF106: AA | AG106: AA | AH106: AA | AI106: AA | AJ106: AA | AK106: AA | AL106: AA | AM106: AA | AN106: AA | AO106: AA | AP106: AA | AQ106: AA | AR106: AA | AS106: BB | AT106: BB | AU106: BB | AV106: BB | AW106: BB | AX106: BB | AY106: AA | AZ106: AA | BA106: AA | BB106: BB | BC106: BB | BD106: BB | BE106: BB | BF106: BB | BG106: BB | BH106: BB | BI106: BB | BJ106: BB | BK106: BB | BL106: BB | BM106: BB | BN106: BB | BO106: BB | BP106: BB | BQ106: BB | BR106: BB | BS106: BB | BT106: AA | BU106: AA | BV106: AA | BW106: AA | BX106: AA | BY106: AA | BZ106: AA | CA106: AA | CB106: AA | CC106: AA | CD106: AA | CE106: AA | CF106: AA | CG106: AA | CH106: AA | CI106: AA | CJ106: AA | CK106: AA | CL106: AA | CM106: AA | CN106: AA | CO106: AA | CP106: AA | CQ106: AA | CR106: AA | CS106: AA | CT106: AA | CU106: AA | CV106: AA | CW106: AA | CX106: AA | CY106: AA | CZ106: AA | DA106: AA | DB106: AA | DC106: AA | DD106: BB | DE106: BB | DF106: BB | DG106: AA | DH106: AA | DI106: AA | DJ106: AA | DK106: AA | DL106: AA | DM106: AA | DN106: AA | DO106: AA | DP106: AA | DQ106: AA | DR106: AA | DS106: AA | DT106: AA | DU106: AA | DV106: AA | DW106: AA | DX106: AA | DY106: AA | DZ106: NC | EA106: AA | EB106: AA | EC106: AA | ED106: AA | EE106: AA | EF106: AA | EG106: AA | EH106: AA | EI106: AA | EJ106: AA | EK106: AA | EL106: AA | EM106: AA | EN106: 8 | EO106: 101 | EQ106: 1 | ER106: 29 | ES106: 139 | ET106: 131 | EU106: 6 | EV106: 73 | EW106: 21 | EX106: 1
A107: A01 | B107: Bn-A01-p1990755 | C107: 2,599,546 | D107: 2599497 | E107: AA | F107: AA | G107: BB | H107: BB | I107: AA | J107: AA | K107: AA | L107: NC | M107: NC | N107: NC | O107: NC | P107: NC | Q107: NC | R107: NC | S107: NC | T107: NC | U107: NC | V107: NC | W107: NC | X107: NC | Y107: NC | Z107: NC | AA107: NC | AB107: NC | AC107: NC | AD107: NC | AE107: NC | AF107: NC | AG107: NC | AH107: NC | AI107: NC | AJ107: NC | AK107: NC | AL107: NC | AM107: NC | AN107: NC | AO107: NC | AP107: BB | AQ107: BB | AR107: BB | AS107: AA | AT107: AA | AU107: AA | AV107: AA | AW107: AA | AX107: AA | AY107: BB | AZ107: BB | BA107: BB | BB107: BB | BC107: BB | BD107: BB | BE107: BB | BF107: BB | BG107: BB | BH107: BB | BI107: BB | BJ107: BB | BK107: BB | BL107: BB | BM107: BB | BN107: BB | BO107: BB | BP107: BB | BQ107: BB | BR107: BB | BS107: BB | BT107: BB | BU107: BB | BV107: BB | BW107: NC | BX107: NC | BY107: NC | BZ107: NC | CA107: NC | CB107: NC | CC107: NC | CD107: NC | CE107: NC | CF107: NC | CG107: NC | CH107: NC | CI107: NC | CJ107: NC | CK107: NC | CL107: NC | CM107: NC | CN107: NC | CO107: BB | CP107: BB | CQ107: NC | CR107: BB | CS107: BB | CT107: BB | CU107: BB | CV107: BB | CW107: BB | CX107: BB | CY107: BB | CZ107: BB | DA107: BB | DB107: BB | DC107: BB | DD107: AA | DE107: AA | DF107: AA | DG107: NC | DH107: NC | DI107: NC | DJ107: NC | DK107: NC | DL107: NC | DM107: NC | DN107: NC | DO107: NC | DP107: NC | DQ107: NC | DR107: NC | DS107: NC | DT107: NC | DU107: NC | DV107: NC | DW107: NC | DX107: NC | DY107: NC | DZ107: NC | EA107: NC | EB107: NC | EC107: NC | ED107: NC | EE107: NC | EF107: NC | EG107: NC | EH107: NC | EI107: NC | EJ107: NC | EK107: BB | EL107: NC | EM107: NC | EN107: 81 | EO107: 14 | EQ107: 0 | ER107: 44 | ES107: 139 | ET107: 58 | EU107: 58 | EV107: 10 | EW107: 32 | EX107: 0
A108: A01 | B108: Bn-A01-p1556145 | C108: 2,657,731 | D108: 2657682 | E108: BB | F108: BB | G108: BB | H108: AA | I108: BB | J108: BB | K108: BB | L108: BB | M108: BB | N108: BB | O108: NC | P108: NC | Q108: NC | R108: NC | S108: NC | T108: NC | U108: BB | V108: BB | W108: BB | X108: BB | Y108: BB | Z108: BB | AA108: BB | AB108: BB | AC108: BB | AD108: BB | AE108: BB | AF108: BB | AG108: BB | AH108: BB | AI108: BB | AJ108: BB | AK108: BB | AL108: BB | AM108: BB | AN108: BB | AO108: BB | AP108: AA | AQ108: AA | AR108: AA | AS108: BB | AT108: BB | AU108: BB | AV108: BB | AW108: BB | AX108: BB | AY108: AA | AZ108: AA | BA108: AA | BB108: BB | BC108: BB | BD108: BB | BE108: AA | BF108: AA | BG108: AA | BH108: AA | BI108: AA | BJ108: AA | BK108: AA | BL108: AA | BM108: AA | BN108: AA | BO108: AA | BP108: AA | BQ108: AA | BR108: AA | BS108: AA | BT108: AA | BU108: AA | BV108: AA | BW108: BB | BX108: BB | BY108: BB | BZ108: BB | CA108: BB | CB108: BB | CC108: BB | CD108: BB | CE108: BB | CF108: BB | CG108: BB | CH108: BB | CI108: BB | CJ108: BB | CK108: BB | CL108: BB | CM108: BB | CN108: BB | CO108: NC | CP108: AA | CQ108: BB | CR108: AA | CS108: AA | CT108: AA | CU108: AA | CV108: AA | CW108: AA | CX108: AA | CY108: AA | CZ108: AA | DA108: AA | DB108: AA | DC108: AA | DD108: BB | DE108: BB | DF108: BB | DG108: BB | DH108: BB | DI108: BB | DJ108: BB | DK108: BB | DL108: BB | DM108: BB | DN108: BB | DO108: BB | DP108: BB | DQ108: BB | DR108: BB | DS108: BB | DT108: BB | DU108: BB | DV108: BB | DW108: BB | DX108: BB | DY108: BB | DZ108: BB | EA108: BB | EB108: BB | EC108: BB | ED108: BB | EE108: BB | EF108: BB | EG108: BB | EH108: BB | EI108: BB | EJ108: BB | EK108: AA | EL108: AA | EM108: NC | EN108: 8 | EO108: 40 | EQ108: 0 | ER108: 91 | ES108: 139 | ET108: 131 | EU108: 6 | EV108: 29 | EW108: 65 | EX108: 0
A109: A01 | B109: Bn-A01-p1570761 | C109: 2,677,089 | D109: 2677040 | E109: AA | F109: AA | G109: AA | H109: BB | I109: BB | J109: BB | K109: AA | L109: AA | M109: AA | N109: NC | O109: NC | P109: NC | Q109: NC | R109: NC | S109: NC | T109: NC | U109: AA | V109: AA | W109: AA | X109: AA | Y109: AA | Z109: AA | AA109: AA | AB109: AA | AC109: AA | AD109: AA | AE109: AA | AF109: AA | AG109: AA | AH109: AA | AI109: AA | AJ109: AA | AK109: AA | AL109: AA | AM109: AA | AN109: AA | AO109: AA | AP109: BB | AQ109: NC | AR109: BB | AS109: BB | AT109: BB | AU109: BB | AV109: BB | AW109: BB | AX109: BB | AY109: BB | AZ109: BB | BA109: BB | BB109: BB | BC109: BB | BD109: BB | BE109: AA | BF109: AA | BG109: AA | BH109: AA | BI109: AA | BJ109: AA | BK109: AA | BL109: AA | BM109: AA | BN109: AA | BO109: AA | BP109: AA | BQ109: AA | BR109: AA | BS109: AA | BT109: BB | BU109: BB | BV109: BB | BW109: AA | BX109: AA | BY109: AA | BZ109: AA | CA109: AA | CB109: AA | CC109: AA | CD109: AA | CE109: AA | CF109: AA | CG109: AA | CH109: AA | CI109: AA | CJ109: AA | CK109: AA | CL109: AA | CM109: AA | CN109: AA | CO109: AA | CP109: BB | CQ109: AA | CR109: BB | CS109: BB | CT109: BB | CU109: BB | CV109: BB | CW109: BB | CX109: BB | CY109: BB | CZ109: BB | DA109: BB | DB109: BB | DC109: BB | DD109: AA | DE109: AA | DF109: AA | DG109: AA | DH109: AA | DI109: AA | DJ109: AA | DK109: AA | DL109: AA | DM109: AA | DN109: AA | DO109: AA | DP109: AA | DQ109: AA | DR109: AA | DS109: AA | DT109: AA | DU109: AA | DV109: AA | DW109: AA | DX109: AA | DY109: AA | DZ109: AA | EA109: AA | EB109: AA | EC109: AA | ED109: AA | EE109: AA | EF109: AA | EG109: AA | EH109: AA | EI109: AA | EJ109: AA | EK109: BB | EL109: BB | EM109: NC | EN109: 9 | EO109: 95 | EQ109: 0 | ER109: 35 | ES109: 139 | ET109: 130 | EU109: 6 | EV109: 68 | EW109: 25 | EX109: 0
A110: A01 | B110: Bn-A01-p100441 | C110: 2,746,566 | D110: 2746517 | E110: AA | F110: AA | G110: BB | H110: NC | I110: BB | J110: BB | K110: AB | L110: BB | M110: AA | N110: AA | O110: NC | P110: NC | Q110: NC | R110: NC | S110: NC | T110: NC | U110: BB | V110: BB | W110: BB | X110: BB | Y110: BB | Z110: BB | AA110: BB | AB110: BB | AC110: BB | AD110: BB | AE110: BB | AF110: BB | AG110: BB | AH110: BB | AI110: BB | AJ110: BB | AK110: BB | AL110: BB | AM110: BB | AN110: BB | AO110: BB | AP110: BB | AQ110: BB | AR110: BB | AS110: BB | AT110: BB | AU110: BB | AV110: BB | AW110: BB | AX110: BB | AY110: BB | AZ110: BB | BA110: BB | BB110: BB | BC110: BB | BD110: BB | BE110: BB | BF110: BB | BG110: BB | BH110: BB | BI110: BB | BJ110: BB | BK110: BB | BL110: BB | BM110: BB | BN110: BB | BO110: BB | BP110: BB | BQ110: BB | BR110: BB | BS110: BB | BT110: BB | BU110: BB | BV110: BB | BW110: BB | BX110: BB | BY110: BB | BZ110: BB | CA110: BB | CB110: BB | CC110: BB | CD110: BB | CE110: BB | CF110: BB | CG110: BB | CH110: BB | CI110: BB | CJ110: BB | CK110: BB | CL110: BB | CM110: BB | CN110: BB | CO110: NC | CP110: BB | CQ110: BB | CR110: BB | CS110: BB | CT110: BB | CU110: BB | CV110: BB | CW110: BB | CX110: BB | CY110: BB | CZ110: BB | DA110: BB | DB110: BB | DC110: BB | DD110: AA | DE110: AA | DF110: AA | DG110: BB | DH110: BB | DI110: BB | DJ110: BB | DK110: BB | DL110: BB | DM110: BB | DN110: BB | DO110: BB | DP110: BB | DQ110: BB | DR110: BB | DS110: BB | DT110: BB | DU110: BB | DV110: BB | DW110: BB | DX110: BB | DY110: BB | DZ110: BB | EA110: BB | EB110: BB | EC110: BB | ED110: BB | EE110: BB | EF110: BB | EG110: BB | EH110: BB | EI110: BB | EJ110: BB | EK110: BB | EL110: BB | EM110: NC | EN110: 9 | EO110: 7 | EQ110: 1 | ER110: 122 | ES110: 139 | ET110: 130 | EU110: 6 | EV110: 5 | EW110: 88 | EX110: 1
A111: A01 | B111: Bn-A01-p100693 | C111: 2,746,717 | D111: 2746766 | E111: AA | F111: AA | G111: BB | H111: NC | I111: BB | J111: BB | K111: AB | L111: BB | M111: AA | N111: NC | O111: NC | P111: NC | Q111: NC | R111: NC | S111: NC | T111: NC | U111: BB | V111: BB | W111: BB | X111: BB | Y111: BB | Z111: BB | AA111: BB | AB111: BB | AC111: BB | AD111: BB | AE111: BB | AF111: BB | AG111: BB | AH111: BB | AI111: BB | AJ111: BB | AK111: BB | AL111: BB | AM111: BB | AN111: BB | AO111: BB | AP111: BB | AQ111: BB | AR111: BB | AS111: BB | AT111: BB | AU111: BB | AV111: BB | AW111: BB | AX111: BB | AY111: BB | AZ111: BB | BA111: BB | BB111: BB | BC111: BB | BD111: BB | BE111: BB | BF111: BB | BG111: BB | BH111: BB | BI111: BB | BJ111: BB | BK111: BB | BL111: BB | BM111: BB | BN111: BB | BO111: BB | BP111: BB | BQ111: BB | BR111: BB | BS111: BB | BT111: BB | BU111: BB | BV111: BB | BW111: BB | BX111: BB | BY111: BB | BZ111: BB | CA111: BB | CB111: BB | CC111: BB | CD111: BB | CE111: BB | CF111: BB | CG111: BB | CH111: BB | CI111: BB | CJ111: BB | CK111: BB | CL111: BB | CM111: BB | CN111: BB | CO111: NC | CP111: BB | CQ111: BB | CR111: BB | CS111: BB | CT111: BB | CU111: BB | CV111: BB | CW111: BB | CX111: BB | CY111: BB | CZ111: BB | DA111: BB | DB111: BB | DC111: BB | DD111: AA | DE111: AA | DF111: AA | DG111: BB | DH111: BB | DI111: BB | DJ111: BB | DK111: BB | DL111: BB | DM111: BB | DN111: BB | DO111: BB | DP111: BB | DQ111: BB | DR111: BB | DS111: BB | DT111: BB | DU111: BB | DV111: BB | DW111: BB | DX111: BB | DY111: BB | DZ111: BB | EA111: BB | EB111: BB | EC111: BB | ED111: BB | EE111: BB | EF111: BB | EG111: BB | EH111: BB | EI111: BB | EJ111: BB | EK111: BB | EL111: BB | EM111: NC | EN111: 10 | EO111: 6 | EQ111: 1 | ER111: 122 | ES111: 139 | ET111: 129 | EU111: 7 | EV111: 4 | EW111: 88 | EX111: 1
A112: A01 | B112: Bn-A01-p101094 | C112: 2,747,121 | D112: 2747170 | E112: BB | F112: BB | G112: AA | H112: NC | I112: AA | J112: AA | K112: AB | L112: AA | M112: BB | N112: BB | O112: NC | P112: NC | Q112: NC | R112: NC | S112: NC | T112: NC | U112: AA | V112: AA | W112: AA | X112: AA | Y112: AA | Z112: AA | AA112: AA | AB112: AA | AC112: AA | AD112: AA | AE112: AA | AF112: AA | AG112: AA | AH112: AA | AI112: AA | AJ112: AA | AK112: AA | AL112: AA | AM112: AA | AN112: AA | AO112: AA | AP112: AA | AQ112: AA | AR112: AA | AS112: AA | AT112: AA | AU112: AA | AV112: AA | AW112: AA | AX112: AA | AY112: AA | AZ112: AA | BA112: AA | BB112: BB | BC112: BB | BD112: BB | BE112: BB | BF112: BB | BG112: BB | BH112: BB | BI112: BB | BJ112: BB | BK112: BB | BL112: BB | BM112: BB | BN112: BB | BO112: BB | BP112: BB | BQ112: BB | BR112: BB | BS112: BB | BT112: BB | BU112: BB | BV112: BB | BW112: AA | BX112: AA | BY112: AA | BZ112: AA | CA112: AA | CB112: AA | CC112: AA | CD112: AA | CE112: AA | CF112: AA | CG112: AA | CH112: AA | CI112: AA | CJ112: AA | CK112: AA | CL112: AA | CM112: AA | CN112: AA | CO112: NC | CP112: AA | CQ112: AA | CR112: AA | CS112: AA | CT112: AA | CU112: AA | CV112: AA | CW112: AA | CX112: AA | CY112: AA | CZ112: AA | DA112: AA | DB112: AA | DC112: AA | DD112: BB | DE112: BB | DF112: BB | DG112: AA | DH112: AA | DI112: AA | DJ112: AA | DK112: AA | DL112: AA | DM112: AA | DN112: AA | DO112: AA | DP112: AA | DQ112: AA | DR112: AA | DS112: AA | DT112: AA | DU112: AA | DV112: AA | DW112: AA | DX112: AA | DY112: AA | DZ112: AA | EA112: AA | EB112: AA | EC112: AA | ED112: AA | EE112: AA | EF112: AA | EG112: AA | EH112: AA | EI112: AA | EJ112: AA | EK112: AA | EL112: AA | EM112: NC | EN112: 9 | EO112: 101 | EQ112: 1 | ER112: 28 | ES112: 139 | ET112: 130 | EU112: 6 | EV112: 73 | EW112: 20 | EX112: 1
A113: A01 | B113: Bn-A01-p101021 | C113: 2,747,148 | D113: 2747099 | E113: AA | F113: AA | G113: BB | H113: NC | I113: AA | J113: AA | K113: AA | L113: AA | M113: AA | N113: NC | O113: NC | P113: NC | Q113: NC | R113: NC | S113: NC | T113: NC | U113: BB | V113: BB | W113: BB | X113: BB | Y113: BB | Z113: BB | AA113: BB | AB113: BB | AC113: BB | AD113: BB | AE113: BB | AF113: BB | AG113: BB | AH113: BB | AI113: BB | AJ113: BB | AK113: BB | AL113: BB | AM113: BB | AN113: BB | AO113: BB | AP113: AA | AQ113: AA | AR113: AA | AS113: AA | AT113: AA | AU113: AA | AV113: AA | AW113: AA | AX113: AA | AY113: AA | AZ113: AA | BA113: AA | BB113: AA | BC113: AA | BD113: AA | BE113: AA | BF113: AA | BG113: AA | BH113: AA | BI113: AA | BJ113: AA | BK113: AA | BL113: AA | BM113: AA | BN113: AA | BO113: AA | BP113: AA | BQ113: AA | BR113: AA | BS113: AA | BT113: AA | BU113: AA | BV113: AA | BW113: BB | BX113: BB | BY113: BB | BZ113: BB | CA113: BB | CB113: BB | CC113: BB | CD113: BB | CE113: BB | CF113: BB | CG113: BB | CH113: BB | CI113: BB | CJ113: BB | CK113: BB | CL113: BB | CM113: BB | CN113: BB | CO113: NC | CP113: AA | CQ113: BB | CR113: AA | CS113: AA | CT113: AA | CU113: AA | CV113: AA | CW113: AA | CX113: AA | CY113: AA | CZ113: AA | DA113: AA | DB113: AA | DC113: AA | DD113: AA | DE113: AA | DF113: AA | DG113: BB | DH113: BB | DI113: BB | DJ113: BB | DK113: BB | DL113: BB | DM113: BB | DN113: BB | DO113: BB | DP113: BB | DQ113: BB | DR113: BB | DS113: BB | DT113: BB | DU113: BB | DV113: BB | DW113: BB | DX113: BB | DY113: BB | DZ113: BB | EA113: BB | EB113: BB | EC113: BB | ED113: BB | EE113: BB | EF113: BB | EG113: BB | EH113: BB | EI113: BB | EJ113: BB | EK113: AA | EL113: AA | EM113: NC | EN113: 10 | EO113: 58 | EQ113: 0 | ER113: 71 | ES113: 139 | ET113: 129 | EU113: 7 | EV113: 42 | EW113: 51 | EX113: 0
A114: A01 | B114: Bn-A01-p101451 | C114: 2,747,478 | D114: 2747527 | E114: BB | F114: BB | G114: AA | H114: NC | I114: AA | J114: AA | K114: AB | L114: NC | M114: BB | N114: NC | O114: NC | P114: NC | Q114: NC | R114: NC | S114: NC | T114: NC | U114: AA | V114: AA | W114: AA | X114: AA | Y114: AA | Z114: AA | AA114: AA | AB114: AA | AC114: AA | AD114: AA | AE114: AA | AF114: AA | AG114: AA | AH114: AA | AI114: AA | AJ114: AA | AK114: AA | AL114: AA | AM114: AA | AN114: AA | AO114: AA | AP114: AA | AQ114: AA | AR114: AA | AS114: AA | AT114: AA | AU114: AA | AV114: AA | AW114: AA | AX114: AA | AY114: AA | AZ114: AA | BA114: AA | BB114: BB | BC114: BB | BD114: BB | BE114: BB | BF114: BB | BG114: BB | BH114: BB | BI114: BB | BJ114: BB | BK114: BB | BL114: BB | BM114: BB | BN114: BB | BO114: BB | BP114: BB | BQ114: BB | BR114: BB | BS114: BB | BT114: BB | BU114: BB | BV114: BB | BW114: AA | BX114: AA | BY114: AA | BZ114: AA | CA114: AA | CB114: AA | CC114: AA | CD114: AA | CE114: AA | CF114: AA | CG114: AA | CH114: AA | CI114: AA | CJ114: AA | CK114: AA | CL114: AA | CM114: AA | CN114: AA | CO114: NC | CP114: AA | CQ114: AA | CR114: AA | CS114: AA | CT114: AA | CU114: AA | CV114: AA | CW114: AA | CX114: AA | CY114: AA | CZ114: NC | DA114: AA | DB114: AA | DC114: AA | DD114: BB | DE114: BB | DF114: BB | DG114: AA | DH114: AA | DI114: AA | DJ114: AA | DK114: AA | DL114: AA | DM114: AA | DN114: AA | DO114: AA | DP114: AA | DQ114: AA | DR114: AA | DS114: AA | DT114: AA | DU114: AA | DV114: AA | DW114: AA | DX114: AA | DY114: AA | DZ114: AA | EA114: AA | EB114: AA | EC114: AA | ED114: AA | EE114: AA | EF114: AA | EG114: AA | EH114: AA | EI114: AA | EJ114: AA | EK114: AA | EL114: AA | EM114: NC | EN114: 12 | EO114: 99 | EQ114: 1 | ER114: 27 | ES114: 139 | ET114: 127 | EU114: 9 | EV114: 71 | EW114: 19 | EX114: 1
A115: A01 | B115: Bn-A01-p101879 | C115: 2,747,908 | D115: 2747957 | E115: AA | F115: AA | G115: BB | H115: NC | I115: BB | J115: BB | K115: AB | L115: BB | M115: AA | N115: NC | O115: NC | P115: NC | Q115: NC | R115: NC | S115: NC | T115: NC | U115: BB | V115: BB | W115: BB | X115: BB | Y115: BB | Z115: BB | AA115: BB | AB115: BB | AC115: BB | AD115: BB | AE115: BB | AF115: BB | AG115: BB | AH115: BB | AI115: BB | AJ115: BB | AK115: BB | AL115: BB | AM115: BB | AN115: BB | AO115: BB | AP115: BB | AQ115: BB | AR115: BB | AS115: BB | AT115: BB | AU115: BB | AV115: BB | AW115: BB | AX115: BB | AY115: BB | AZ115: BB | BA115: BB | BB115: BB | BC115: BB | BD115: BB | BE115: BB | BF115: BB | BG115: BB | BH115: BB | BI115: BB | BJ115: BB | BK115: BB | BL115: BB | BM115: BB | BN115: BB | BO115: BB | BP115: BB | BQ115: BB | BR115: BB | BS115: BB | BT115: BB | BU115: BB | BV115: BB | BW115: BB | BX115: BB | BY115: BB | BZ115: BB | CA115: BB | CB115: BB | CC115: BB | CD115: BB | CE115: BB | CF115: BB | CG115: BB | CH115: BB | CI115: BB | CJ115: BB | CK115: BB | CL115: BB | CM115: BB | CN115: BB | CO115: NC | CP115: BB | CQ115: BB | CR115: BB | CS115: BB | CT115: BB | CU115: BB | CV115: BB | CW115: BB | CX115: BB | CY115: BB | CZ115: BB | DA115: BB | DB115: BB | DC115: BB | DD115: AA | DE115: AA | DF115: AA | DG115: BB | DH115: BB | DI115: BB | DJ115: BB | DK115: BB | DL115: BB | DM115: BB | DN115: BB | DO115: BB | DP115: BB | DQ115: BB | DR115: BB | DS115: BB | DT115: BB | DU115: BB | DV115: BB | DW115: BB | DX115: BB | DY115: BB | DZ115: BB | EA115: BB | EB115: BB | EC115: BB | ED115: BB | EE115: BB | EF115: BB | EG115: BB | EH115: BB | EI115: BB | EJ115: BB | EK115: NC | EL115: BB | EM115: NC | EN115: 11 | EO115: 6 | EQ115: 1 | ER115: 121 | ES115: 139 | ET115: 128 | EU115: 8 | EV115: 4 | EW115: 87 | EX115: 1
A116: A01 | B116: Bn-A01-p102158 | C116: 2,748,187 | D116: 2748227 | E116: AA | F116: AA | G116: BB | H116: NC | I116: NC | J116: NC | K116: AB | L116: NC | M116: AA | N116: NC | O116: NC | P116: NC | Q116: NC | R116: NC | S116: NC | T116: NC | U116: BB | V116: BB | W116: BB | X116: BB | Y116: BB | Z116: BB | AA116: BB | AB116: BB | AC116: BB | AD116: BB | AE116: BB | AF116: BB | AG116: BB | AH116: BB | AI116: BB | AJ116: BB | AK116: BB | AL116: BB | AM116: BB | AN116: BB | AO116: BB | AP116: BB | AQ116: BB | AR116: BB | AS116: BB | AT116: BB | AU116: BB | AV116: BB | AW116: BB | AX116: BB | AY116: BB | AZ116: BB | BA116: BB | BB116: BB | BC116: BB | BD116: BB | BE116: BB | BF116: BB | BG116: BB | BH116: BB | BI116: BB | BJ116: BB | BK116: BB | BL116: BB | BM116: BB | BN116: BB | BO116: BB | BP116: BB | BQ116: BB | BR116: BB | BS116: BB | BT116: BB | BU116: BB | BV116: BB | BW116: BB | BX116: BB | BY116: BB | BZ116: BB | CA116: BB | CB116: BB | CC116: BB | CD116: BB | CE116: BB | CF116: BB | CG116: BB | CH116: BB | CI116: BB | CJ116: BB | CK116: BB | CL116: BB | CM116: BB | CN116: BB | CO116: NC | CP116: BB | CQ116: BB | CR116: BB | CS116: BB | CT116: BB | CU116: BB | CV116: BB | CW116: BB | CX116: BB | CY116: BB | CZ116: BB | DA116: BB | DB116: BB | DC116: BB | DD116: AA | DE116: AA | DF116: AA | DG116: BB | DH116: BB | DI116: BB | DJ116: BB | DK116: BB | DL116: BB | DM116: BB | DN116: BB | DO116: BB | DP116: BB | DQ116: BB | DR116: BB | DS116: BB | DT116: BB | DU116: BB | DV116: BB | DW116: BB | DX116: BB | DY116: BB | DZ116: BB | EA116: BB | EB116: BB | EC116: BB | ED116: BB | EE116: BB | EF116: BB | EG116: BB | EH116: BB | EI116: BB | EJ116: BB | EK116: BB | EL116: BB | EM116: NC | EN116: 13 | EO116: 6 | EQ116: 1 | ER116: 119 | ES116: 139 | ET116: 126 | EU116: 9 | EV116: 4 | EW116: 86 | EX116: 1
A117: A01 | B117: Bn-A01-p102249 | C117: 2,748,378 | D117: 2748337 | E117: BB | F117: BB | G117: AA | H117: NC | I117: AA | J117: AA | K117: AB | L117: AA | M117: BB | N117: NC | O117: NC | P117: NC | Q117: NC | R117: NC | S117: NC | T117: NC | U117: AA | V117: AA | W117: AA | X117: AA | Y117: AA | Z117: AA | AA117: AA | AB117: AA | AC117: AA | AD117: AA | AE117: AA | AF117: AA | AG117: AA | AH117: AA | AI117: AA | AJ117: AA | AK117: AA | AL117: AA | AM117: AA | AN117: AA | AO117: AA | AP117: AA | AQ117: AA | AR117: AA | AS117: AA | AT117: AA | AU117: AA | AV117: AA | AW117: AA | AX117: AA | AY117: AA | AZ117: AA | BA117: AA | BB117: AA | BC117: AA | BD117: AA | BE117: AA | BF117: AA | BG117: AA | BH117: AA | BI117: AA | BJ117: AA | BK117: AA | BL117: AA | BM117: AA | BN117: AA | BO117: AA | BP117: AA | BQ117: AA | BR117: AA | BS117: AA | BT117: AA | BU117: AA | BV117: AA | BW117: AA | BX117: AA | BY117: AA | BZ117: AA | CA117: AA | CB117: AA | CC117: AA | CD117: AA | CE117: AA | CF117: AA | CG117: AA | CH117: AA | CI117: AA | CJ117: AA | CK117: AA | CL117: AA | CM117: AA | CN117: AA | CO117: NC | CP117: AA | CQ117: AA | CR117: AA | CS117: AA | CT117: AA | CU117: AA | CV117: AA | CW117: AA | CX117: AA | CY117: AA | CZ117: AA | DA117: AA | DB117: AA | DC117: AA | DD117: BB | DE117: BB | DF117: BB | DG117: AA | DH117: AA | DI117: AA | DJ117: AA | DK117: AA | DL117: AA | DM117: AA | DN117: AA | DO117: AA | DP117: AA | DQ117: AA | DR117: AA | DS117: AA | DT117: AA | DU117: AA | DV117: AA | DW117: AA | DX117: AA | DY117: AA | DZ117: AA | EA117: AA | EB117: AA | EC117: AA | ED117: AA | EE117: AA | EF117: AA | EG117: AA | EH117: AA | EI117: AA | EJ117: AA | EK117: AA | EL117: AA | EM117: NC | EN117: 10 | EO117: 122 | EQ117: 1 | ER117: 6 | ES117: 139 | ET117: 129 | EU117: 7 | EV117: 88 | EW117: 4 | EX117: 1
A118: A01 | B118: Bn-A01-p108225 | C118: 2,767,244 | D118: 2767195 | E118: AA | F118: AA | G118: BB | H118: NC | I118: BB | J118: BB | K118: AB | L118: BB | M118: BB | N118: AA | O118: NC | P118: NC | Q118: NC | R118: NC | S118: NC | T118: NC | U118: BB | V118: BB | W118: BB | X118: BB | Y118: BB | Z118: BB | AA118: BB | AB118: BB | AC118: BB | AD118: BB | AE118: BB | AF118: BB | AG118: BB | AH118: BB | AI118: BB | AJ118: BB | AK118: BB | AL118: BB | AM118: BB | AN118: BB | AO118: BB | AP118: BB | AQ118: BB | AR118: BB | AS118: BB | AT118: BB | AU118: BB | AV118: BB | AW118: BB | AX118: BB | AY118: BB | AZ118: BB | BA118: BB | BB118: NC | BC118: NC | BD118: NC | BE118: NC | BF118: NC | BG118: NC | BH118: NC | BI118: NC | BJ118: NC | BK118: NC | BL118: NC | BM118: NC | BN118: NC | BO118: NC | BP118: NC | BQ118: NC | BR118: NC | BS118: NC | BT118: NC | BU118: NC | BV118: NC | BW118: BB | BX118: BB | BY118: BB | BZ118: BB | CA118: BB | CB118: BB | CC118: BB | CD118: BB | CE118: BB | CF118: BB | CG118: BB | CH118: BB | CI118: BB | CJ118: BB | CK118: BB | CL118: BB | CM118: BB | CN118: BB | CO118: NC | CP118: BB | CQ118: BB | CR118: BB | CS118: BB | CT118: BB | CU118: BB | CV118: BB | CW118: BB | CX118: BB | CY118: BB | CZ118: BB | DA118: BB | DB118: BB | DC118: BB | DD118: AA | DE118: AA | DF118: AA | DG118: BB | DH118: BB | DI118: BB | DJ118: BB | DK118: BB | DL118: BB | DM118: BB | DN118: BB | DO118: BB | DP118: BB | DQ118: BB | DR118: BB | DS118: BB | DT118: BB | DU118: BB | DV118: BB | DW118: BB | DX118: BB | DY118: BB | DZ118: BB | EA118: BB | EB118: BB | EC118: BB | ED118: BB | EE118: BB | EF118: BB | EG118: BB | EH118: BB | EI118: BB | EJ118: BB | EK118: BB | EL118: BB | EM118: NC | EN118: 30 | EO118: 6 | EQ118: 1 | ER118: 102 | ES118: 139 | ET118: 109 | EU118: 22 | EV118: 4 | EW118: 73 | EX118: 1
A119: A01 | B119: Bn-A01-p145676 | C119: 2,805,107 | D119: 2805156 | E119: BB | F119: BB | G119: AA | H119: NC | I119: AA | J119: AA | K119: AA | L119: AB | M119: AA | N119: AA | O119: NC | P119: NC | Q119: NC | R119: NC | S119: NC | T119: NC | U119: AA | V119: AA | W119: AA | X119: AA | Y119: AA | Z119: AA | AA119: AA | AB119: AA | AC119: AA | AD119: AA | AE119: AA | AF119: AA | AG119: AA | AH119: AA | AI119: AA | AJ119: AA | AK119: AA | AL119: AA | AM119: AA | AN119: AA | AO119: AA | AP119: AA | AQ119: AA | AR119: AA | AS119: AA | AT119: AA | AU119: AA | AV119: AA | AW119: AA | AX119: AA | AY119: AA | AZ119: AA | BA119: AA | BB119: AA | BC119: AA | BD119: AA | BE119: AA | BF119: AA | BG119: AA | BH119: AA | BI119: AA | BJ119: AA | BK119: AA | BL119: AA | BM119: AA | BN119: AA | BO119: AA | BP119: AA | BQ119: AA | BR119: AA | BS119: AA | BT119: AA | BU119: AA | BV119: AA | BW119: AA | BX119: AA | BY119: AA | BZ119: AA | CA119: AA | CB119: AA | CC119: AA | CD119: AA | CE119: AA | CF119: AA | CG119: AA | CH119: AA | CI119: AA | CJ119: AA | CK119: AA | CL119: AA | CM119: AA | CN119: AA | CO119: NC | CP119: BB | CQ119: AA | CR119: BB | CS119: BB | CT119: BB | CU119: BB | CV119: BB | CW119: BB | CX119: BB | CY119: BB | CZ119: BB | DA119: BB | DB119: BB | DC119: BB | DD119: AA | DE119: AA | DF119: AA | DG119: AA | DH119: AA | DI119: AA | DJ119: AA | DK119: AA | DL119: AA | DM119: AA | DN119: AA | DO119: AA | DP119: AA | DQ119: AA | DR119: AA | DS119: AA | DT119: AA | DU119: AA | DV119: AA | DW119: AA | DX119: AA | DY119: AA | DZ119: AA | EA119: AA | EB119: AA | EC119: AA | ED119: AA | EE119: AA | EF119: AA | EG119: AA | EH119: AA | EI119: AA | EJ119: AA | EK119: AA | EL119: AA | EM119: NC | EN119: 9 | EO119: 114 | EQ119: 1 | ER119: 15 | ES119: 139 | ET119: 130 | EU119: 6 | EV119: 82 | EW119: 11 | EX119: 1
A120: A01 | B120: Bn-A01-p146963 | C120: 2,806,386 | D120: 2806432 | E120: BB | F120: BB | G120: AA | H120: NC | I120: AA | J120: AA | K120: AA | L120: BB | M120: AB | N120: AA | O120: NC | P120: NC | Q120: NC | R120: NC | S120: NC | T120: NC | U120: BB | V120: BB | W120: BB | X120: BB | Y120: BB | Z120: BB | AA120: BB | AB120: BB | AC120: BB | AD120: BB | AE120: BB | AF120: BB | AG120: BB | AH120: BB | AI120: BB | AJ120: BB | AK120: BB | AL120: BB | AM120: BB | AN120: BB | AO120: BB | AP120: AA | AQ120: AA | AR120: AA | AS120: AA | AT120: AA | AU120: AA | AV120: AA | AW120: AA | AX120: AA | AY120: AA | AZ120: AA | BA120: AA | BB120: AA | BC120: AA | BD120: AA | BE120: AA | BF120: AA | BG120: AA | BH120: AA | BI120: AA | BJ120: AA | BK120: AA | BL120: AA | BM120: AA | BN120: AA | BO120: AA | BP120: AA | BQ120: AA | BR120: AA | BS120: AA | BT120: AA | BU120: AA | BV120: AA | BW120: BB | BX120: BB | BY120: BB | BZ120: BB | CA120: BB | CB120: BB | CC120: BB | CD120: BB | CE120: BB | CF120: BB | CG120: BB | CH120: BB | CI120: BB | CJ120: BB | CK120: BB | CL120: BB | CM120: BB | CN120: BB | CO120: NC | CP120: BB | CQ120: BB | CR120: BB | CS120: BB | CT120: BB | CU120: BB | CV120: BB | CW120: BB | CX120: BB | CY120: BB | CZ120: BB | DA120: BB | DB120: BB | DC120: BB | DD120: AA | DE120: AA | DF120: AA | DG120: BB | DH120: BB | DI120: BB | DJ120: BB | DK120: BB | DL120: BB | DM120: BB | DN120: BB | DO120: BB | DP120: BB | DQ120: BB | DR120: BB | DS120: BB | DT120: BB | DU120: BB | DV120: BB | DW120: BB | DX120: BB | DY120: BB | DZ120: BB | EA120: BB | EB120: BB | EC120: BB | ED120: BB | EE120: BB | EF120: BB | EG120: BB | EH120: BB | EI120: BB | EJ120: BB | EK120: AA | EL120: AA | EM120: NC | EN120: 9 | EO120: 43 | EQ120: 1 | ER120: 86 | ES120: 139 | ET120: 130 | EU120: 6 | EV120: 31 | EW120: 62 | EX120: 1
A121: A01 | B121: Bn-A01-p147360 | C121: 2,806,883 | D121: 2806834 | E121: BB | F121: BB | G121: AA | H121: NC | I121: AA | J121: AA | K121: AA | L121: BB | M121: AA | N121: AA | O121: NC | P121: NC | Q121: NC | R121: NC | S121: NC | T121: NC | U121: AA | V121: AA | W121: AA | X121: AA | Y121: AA | Z121: AA | AA121: AA | AB121: AA | AC121: AA | AD121: AA | AE121: AA | AF121: AA | AG121: AA | AH121: AA | AI121: AA | AJ121: AA | AK121: AA | AL121: AA | AM121: AA | AN121: AA | AO121: AA | AP121: AA | AQ121: AA | AR121: AA | AS121: AA | AT121: AA | AU121: AA | AV121: AA | AW121: AA | AX121: AA | AY121: AA | AZ121: AA | BA121: AA | BB121: AA | BC121: AA | BD121: AA | BE121: AA | BF121: AA | BG121: AA | BH121: AA | BI121: AA | BJ121: AA | BK121: AA | BL121: AA | BM121: AA | BN121: AA | BO121: AA | BP121: AA | BQ121: AA | BR121: AA | BS121: AA | BT121: AA | BU121: AA | BV121: AA | BW121: AA | BX121: AA | BY121: AA | BZ121: AA | CA121: AA | CB121: AA | CC121: AA | CD121: AA | CE121: AA | CF121: AA | CG121: AA | CH121: AA | CI121: AA | CJ121: AA | CK121: AA | CL121: AA | CM121: AA | CN121: AA | CO121: NC | CP121: BB | CQ121: AA | CR121: BB | CS121: BB | CT121: BB | CU121: BB | CV121: BB | CW121: BB | CX121: BB | CY121: BB | CZ121: BB | DA121: BB | DB121: BB | DC121: BB | DD121: AA | DE121: AA | DF121: AA | DG121: AA | DH121: AA | DI121: AA | DJ121: AA | DK121: AA | DL121: AA | DM121: AA | DN121: AA | DO121: AA | DP121: AA | DQ121: AA | DR121: AA | DS121: AA | DT121: AA | DU121: AA | DV121: AA | DW121: AA | DX121: AA | DY121: AA | DZ121: AA | EA121: AA | EB121: AA | EC121: AA | ED121: AA | EE121: AA | EF121: AA | EG121: AA | EH121: AA | EI121: AA | EJ121: AA | EK121: AA | EL121: AA | EM121: NC | EN121: 9 | EO121: 114 | EQ121: 0 | ER121: 16 | ES121: 139 | ET121: 130 | EU121: 6 | EV121: 82 | EW121: 12 | EX121: 0
A122: A01 | B122: Bn-A01-p147990 | C122: 2,807,415 | D122: 2807464 | E122: BB | F122: BB | G122: AA | H122: NC | I122: AA | J122: AA | K122: AA | L122: BB | M122: AB | N122: NC | O122: NC | P122: NC | Q122: NC | R122: NC | S122: NC | T122: NC | U122: BB | V122: BB | W122: BB | X122: BB | Y122: BB | Z122: BB | AA122: BB | AB122: BB | AC122: BB | AD122: BB | AE122: BB | AF122: BB | AG122: BB | AH122: BB | AI122: BB | AJ122: BB | AK122: BB | AL122: BB | AM122: BB | AN122: BB | AO122: BB | AP122: AA | AQ122: AA | AR122: AA | AS122: AA | AT122: AA | AU122: AA | AV122: AA | AW122: AA | AX122: AA | AY122: AA | AZ122: AA | BA122: AA | BB122: AA | BC122: AA | BD122: AA | BE122: AA | BF122: AA | BG122: AA | BH122: AA | BI122: AA | BJ122: AA | BK122: AA | BL122: AA | BM122: AA | BN122: AA | BO122: AA | BP122: AA | BQ122: AA | BR122: AA | BS122: AA | BT122: AA | BU122: AA | BV122: AA | BW122: BB | BX122: BB | BY122: BB | BZ122: BB | CA122: BB | CB122: BB | CC122: BB | CD122: BB | CE122: BB | CF122: BB | CG122: BB | CH122: BB | CI122: BB | CJ122: BB | CK122: BB | CL122: BB | CM122: BB | CN122: BB | CO122: NC | CP122: BB | CQ122: BB | CR122: BB | CS122: BB | CT122: BB | CU122: BB | CV122: BB | CW122: BB | CX122: BB | CY122: BB | CZ122: BB | DA122: BB | DB122: BB | DC122: BB | DD122: AA | DE122: AA | DF122: AA | DG122: BB | DH122: BB | DI122: BB | DJ122: BB | DK122: BB | DL122: BB | DM122: BB | DN122: BB | DO122: BB | DP122: BB | DQ122: BB | DR122: BB | DS122: BB | DT122: BB | DU122: BB | DV122: BB | DW122: BB | DX122: BB | DY122: BB | DZ122: BB | EA122: BB | EB122: BB | EC122: BB | ED122: BB | EE122: BB | EF122: BB | EG122: BB | EH122: BB | EI122: BB | EJ122: BB | EK122: AA | EL122: AA | EM122: NC | EN122: 10 | EO122: 42 | EQ122: 1 | ER122: 86 | ES122: 139 | ET122: 129 | EU122: 7 | EV122: 30 | EW122: 62 | EX122: 1
A123: A01 | B123: Bn-A01-p150028 | C123: 2,813,167 | D123: 2813118 | E123: AA | F123: AA | G123: BB | H123: NC | I123: BB | J123: BB | K123: BB | L123: AA | M123: BB | N123: BB | O123: NC | P123: NC | Q123: NC | R123: NC | S123: NC | T123: NC | U123: BB | V123: BB | W123: BB | X123: BB | Y123: BB | Z123: BB | AA123: BB | AB123: BB | AC123: BB | AD123: BB | AE123: BB | AF123: BB | AG123: BB | AH123: BB | AI123: BB | AJ123: BB | AK123: BB | AL123: BB | AM123: BB | AN123: BB | AO123: BB | AP123: BB | AQ123: BB | AR123: BB | AS123: BB | AT123: BB | AU123: BB | AV123: BB | AW123: BB | AX123: BB | AY123: BB | AZ123: BB | BA123: BB | BB123: BB | BC123: BB | BD123: BB | BE123: BB | BF123: BB | BG123: BB | BH123: BB | BI123: BB | BJ123: BB | BK123: BB | BL123: BB | BM123: BB | BN123: BB | BO123: BB | BP123: BB | BQ123: BB | BR123: BB | BS123: BB | BT123: BB | BU123: BB | BV123: BB | BW123: BB | BX123: BB | BY123: BB | BZ123: BB | CA123: BB | CB123: BB | CC123: BB | CD123: BB | CE123: BB | CF123: BB | CG123: BB | CH123: BB | CI123: BB | CJ123: BB | CK123: BB | CL123: BB | CM123: BB | CN123: BB | CO123: NC | CP123: AA | CQ123: BB | CR123: AA | CS123: AA | CT123: AA | CU123: AA | CV123: AA | CW123: AA | CX123: AA | CY123: AA | CZ123: AA | DA123: AA | DB123: AA | DC123: AA | DD123: BB | DE123: BB | DF123: BB | DG123: BB | DH123: BB | DI123: BB | DJ123: BB | DK123: BB | DL123: BB | DM123: BB | DN123: BB | DO123: BB | DP123: BB | DQ123: BB | DR123: BB | DS123: BB | DT123: BB | DU123: BB | DV123: BB | DW123: BB | DX123: BB | DY123: BB | DZ123: BB | EA123: BB | EB123: BB | EC123: BB | ED123: BB | EE123: BB | EF123: BB | EG123: BB | EH123: BB | EI123: BB | EJ123: BB | EK123: BB | EL123: BB | EM123: NC | EN123: 9 | EO123: 16 | EQ123: 0 | ER123: 114 | ES123: 139 | ET123: 130 | EU123: 6 | EV123: 12 | EW123: 82 | EX123: 0
A124: A01 | B124: Bn-A01-p178709 | C124: 2,840,275 | D124: 2840324 | E124: AA | F124: AA | G124: AA | H124: NC | I124: AA | J124: AA | K124: AB | L124: AA | M124: BB | N124: BB | O124: NC | P124: NC | Q124: NC | R124: NC | S124: NC | T124: NC | U124: BB | V124: BB | W124: BB | X124: BB | Y124: BB | Z124: BB | AA124: BB | AB124: BB | AC124: BB | AD124: BB | AE124: BB | AF124: BB | AG124: BB | AH124: BB | AI124: BB | AJ124: BB | AK124: BB | AL124: BB | AM124: BB | AN124: BB | AO124: BB | AP124: AA | AQ124: AA | AR124: AA | AS124: BB | AT124: BB | AU124: BB | AV124: BB | AW124: BB | AX124: BB | AY124: AA | AZ124: AA | BA124: AA | BB124: BB | BC124: BB | BD124: BB | BE124: BB | BF124: BB | BG124: BB | BH124: BB | BI124: BB | BJ124: BB | BK124: BB | BL124: BB | BM124: BB | BN124: BB | BO124: BB | BP124: BB | BQ124: BB | BR124: BB | BS124: BB | BT124: BB | BU124: BB | BV124: BB | BW124: BB | BX124: BB | BY124: BB | BZ124: BB | CA124: BB | CB124: BB | CC124: BB | CD124: BB | CE124: BB | CF124: BB | CG124: BB | CH124: BB | CI124: BB | CJ124: BB | CK124: BB | CL124: BB | CM124: BB | CN124: BB | CO124: NC | CP124: AA | CQ124: BB | CR124: AA | CS124: AA | CT124: AA | CU124: AA | CV124: AA | CW124: AA | CX124: AA | CY124: AA | CZ124: AA | DA124: AA | DB124: AA | DC124: AA | DD124: AA | DE124: AA | DF124: AA | DG124: BB | DH124: BB | DI124: BB | DJ124: BB | DK124: BB | DL124: BB | DM124: BB | DN124: BB | DO124: BB | DP124: BB | DQ124: BB | DR124: BB | DS124: BB | DT124: BB | DU124: BB | DV124: BB | DW124: BB | DX124: BB | DY124: BB | DZ124: BB | EA124: BB | EB124: BB | EC124: BB | ED124: BB | EE124: BB | EF124: BB | EG124: BB | EH124: BB | EI124: BB | EJ124: BB | EK124: AA | EL124: AA | EM124: NC | EN124: 9 | EO124: 30 | EQ124: 1 | ER124: 99 | ES124: 139 | ET124: 130 | EU124: 6 | EV124: 22 | EW124: 71 | EX124: 1
A125: A01 | B125: Bn-A01-p195253 | C125: 2,856,948 | D125: 2856899 | E125: AA | F125: AA | G125: AA | H125: NC | I125: AA | J125: AA | K125: AA | L125: AA | M125: AB | N125: AA | O125: NC | P125: NC | Q125: NC | R125: NC | S125: NC | T125: NC | U125: AA | V125: AA | W125: AA | X125: AA | Y125: AA | Z125: AA | AA125: AA | AB125: AA | AC125: AA | AD125: AA | AE125: AA | AF125: AA | AG125: AA | AH125: AA | AI125: AA | AJ125: AA | AK125: AA | AL125: AA | AM125: AA | AN125: AA | AO125: AA | AP125: AA | AQ125: AA | AR125: AA | AS125: BB | AT125: BB | AU125: BB | AV125: BB | AW125: BB | AX125: BB | AY125: AA | AZ125: AA | BA125: AA | BB125: BB | BC125: BB | BD125: BB | BE125: BB | BF125: BB | BG125: BB | BH125: BB | BI125: BB | BJ125: BB | BK125: BB | BL125: BB | BM125: BB | BN125: BB | BO125: BB | BP125: BB | BQ125: BB | BR125: BB | BS125: BB | BT125: BB | BU125: BB | BV125: BB | BW125: AA | BX125: AA | BY125: AA | BZ125: AA | CA125: AA | CB125: AA | CC125: AA | CD125: AA | CE125: AA | CF125: AA | CG125: AA | CH125: AA | CI125: AA | CJ125: AA | CK125: AA | CL125: AA | CM125: AA | CN125: AA | CO125: NC | CP125: AA | CQ125: AA | CR125: AA | CS125: AA | CT125: AA | CU125: AA | CV125: AA | CW125: AA | CX125: AA | CY125: AA | CZ125: AA | DA125: AA | DB125: AA | DC125: AA | DD125: AA | DE125: AA | DF125: AA | DG125: AA | DH125: AA | DI125: AA | DJ125: AA | DK125: AA | DL125: AA | DM125: AA | DN125: AA | DO125: AA | DP125: AA | DQ125: AA | DR125: AA | DS125: AA | DT125: AA | DU125: AA | DV125: AA | DW125: AA | DX125: AA | DY125: AA | DZ125: AA | EA125: AA | EB125: AA | EC125: AA | ED125: AA | EE125: AA | EF125: AA | EG125: AA | EH125: AA | EI125: AA | EJ125: AA | EK125: AA | EL125: AA | EM125: NC | EN125: 9 | EO125: 102 | EQ125: 1 | ER125: 27 | ES125: 139 | ET125: 130 | EU125: 6 | EV125: 73 | EW125: 19 | EX125: 1
A126: A01 | B126: Bn-A01-p5512 | C126: 3,054,184 | D126: 3054233 | E126: BB | F126: BB | G126: AA | H126: NC | I126: BB | J126: BB | K126: AB | L126: AA | M126: BB | N126: AA | O126: NC | P126: NC | Q126: NC | R126: NC | S126: NC | T126: NC | U126: BB | V126: BB | W126: BB | X126: BB | Y126: BB | Z126: BB | AA126: BB | AB126: BB | AC126: BB | AD126: BB | AE126: BB | AF126: BB | AG126: BB | AH126: BB | AI126: BB | AJ126: BB | AK126: BB | AL126: BB | AM126: BB | AN126: BB | AO126: BB | AP126: AA | AQ126: AA | AR126: AA | AS126: AA | AT126: AA | AU126: AA | AV126: AA | AW126: AA | AX126: AA | AY126: AA | AZ126: AA | BA126: AA | BB126: AA | BC126: AA | BD126: AA | BE126: AA | BF126: AA | BG126: AA | BH126: AA | BI126: AA | BJ126: AA | BK126: AA | BL126: AA | BM126: AA | BN126: AA | BO126: AA | BP126: AA | BQ126: AA | BR126: AA | BS126: AA | BT126: AA | BU126: AA | BV126: AA | BW126: BB | BX126: BB | BY126: BB | BZ126: BB | CA126: BB | CB126: BB | CC126: BB | CD126: BB | CE126: BB | CF126: BB | CG126: BB | CH126: BB | CI126: BB | CJ126: BB | CK126: BB | CL126: BB | CM126: BB | CN126: BB | CO126: NC | CP126: AA | CQ126: BB | CR126: AA | CS126: AA | CT126: AA | CU126: AA | CV126: AA | CW126: AA | CX126: AA | CY126: AA | CZ126: AA | DA126: AA | DB126: AA | DC126: AA | DD126: AA | DE126: AA | DF126: AA | DG126: BB | DH126: BB | DI126: BB | DJ126: BB | DK126: BB | DL126: BB | DM126: BB | DN126: BB | DO126: BB | DP126: BB | DQ126: BB | DR126: BB | DS126: BB | DT126: BB | DU126: BB | DV126: BB | DW126: BB | DX126: BB | DY126: BB | DZ126: BB | EA126: BB | EB126: BB | EC126: BB | ED126: BB | EE126: BB | EF126: BB | EG126: BB | EH126: BB | EI126: BB | EJ126: BB | EK126: AA | EL126: AA | EM126: NC | EN126: 9 | EO126: 54 | EQ126: 1 | ER126: 75 | ES126: 139 | ET126: 130 | EU126: 6 | EV126: 39 | EW126: 54 | EX126: 1
A127: A01 | B127: Bn-A01-p6239 | C127: 3,055,011 | D127: 3054962 | E127: BB | F127: BB | G127: AA | H127: NC | I127: BB | J127: BB | K127: AB | L127: AA | M127: BB | N127: NC | O127: NC | P127: NC | Q127: NC | R127: NC | S127: NC | T127: NC | U127: BB | V127: BB | W127: BB | X127: BB | Y127: BB | Z127: BB | AA127: BB | AB127: BB | AC127: BB | AD127: BB | AE127: BB | AF127: BB | AG127: BB | AH127: BB | AI127: BB | AJ127: BB | AK127: BB | AL127: BB | AM127: BB | AN127: BB | AO127: BB | AP127: AA | AQ127: AA | AR127: AA | AS127: AA | AT127: AA | AU127: AA | AV127: AA | AW127: AA | AX127: AA | AY127: AA | AZ127: AA | BA127: AA | BB127: AA | BC127: AA | BD127: AA | BE127: AA | BF127: AA | BG127: AA | BH127: AA | BI127: AA | BJ127: AA | BK127: AA | BL127: AA | BM127: AA | BN127: AA | BO127: AA | BP127: AA | BQ127: AA | BR127: AA | BS127: AA | BT127: AA | BU127: AA | BV127: AA | BW127: BB | BX127: BB | BY127: BB | BZ127: BB | CA127: BB | CB127: BB | CC127: BB | CD127: BB | CE127: BB | CF127: BB | CG127: BB | CH127: BB | CI127: BB | CJ127: BB | CK127: BB | CL127: BB | CM127: BB | CN127: BB | CO127: NC | CP127: AA | CQ127: BB | CR127: AA | CS127: AA | CT127: AA | CU127: AA | CV127: AA | CW127: AA | CX127: AA | CY127: AA | CZ127: AA | DA127: AA | DB127: AA | DC127: AA | DD127: AA | DE127: AA | DF127: AA | DG127: BB | DH127: BB | DI127: BB | DJ127: BB | DK127: BB | DL127: BB | DM127: BB | DN127: BB | DO127: BB | DP127: BB | DQ127: BB | DR127: BB | DS127: BB | DT127: BB | DU127: BB | DV127: BB | DW127: BB | DX127: BB | DY127: BB | DZ127: BB | EA127: BB | EB127: BB | EC127: BB | ED127: BB | EE127: BB | EF127: BB | EG127: BB | EH127: BB | EI127: BB | EJ127: BB | EK127: AA | EL127: AA | EM127: NC | EN127: 10 | EO127: 53 | EQ127: 1 | ER127: 75 | ES127: 139 | ET127: 129 | EU127: 7 | EV127: 38 | EW127: 54 | EX127: 1
A128: A01 | B128: Bn-A01-p2990104 | C128: 3,089,232 | D128: 3089281 | E128: BB | F128: BB | G128: BB | H128: NC | I128: BB | J128: BB | K128: BB | L128: BB | M128: BB | N128: BB | O128: NC | P128: NC | Q128: NC | R128: NC | S128: NC | T128: NC | U128: BB | V128: BB | W128: BB | X128: BB | Y128: BB | Z128: BB | AA128: BB | AB128: BB | AC128: BB | AD128: BB | AE128: BB | AF128: BB | AG128: BB | AH128: BB | AI128: BB | AJ128: BB | AK128: BB | AL128: BB | AM128: BB | AN128: BB | AO128: BB | AP128: BB | AQ128: BB | AR128: BB | AS128: BB | AT128: BB | AU128: BB | AV128: BB | AW128: BB | AX128: BB | AY128: BB | AZ128: BB | BA128: BB | BB128: BB | BC128: BB | BD128: BB | BE128: BB | BF128: BB | BG128: BB | BH128: BB | BI128: BB | BJ128: BB | BK128: BB | BL128: BB | BM128: BB | BN128: BB | BO128: BB | BP128: BB | BQ128: BB | BR128: BB | BS128: BB | BT128: BB | BU128: BB | BV128: BB | BW128: BB | BX128: BB | BY128: BB | BZ128: BB | CA128: BB | CB128: BB | CC128: BB | CD128: BB | CE128: BB | CF128: BB | CG128: BB | CH128: BB | CI128: BB | CJ128: BB | CK128: BB | CL128: BB | CM128: BB | CN128: BB | CO128: BB | CP128: BB | CQ128: BB | CR128: BB | CS128: BB | CT128: BB | CU128: BB | CV128: BB | CW128: BB | CX128: BB | CY128: BB | CZ128: BB | DA128: BB | DB128: BB | DC128: BB | DD128: BB | DE128: BB | DF128: BB | DG128: BB | DH128: BB | DI128: BB | DJ128: BB | DK128: BB | DL128: BB | DM128: BB | DN128: BB | DO128: BB | DP128: BB | DQ128: BB | DR128: BB | DS128: BB | DT128: BB | DU128: BB | DV128: BB | DW128: BB | DX128: BB | DY128: NC | DZ128: NC | EA128: NC | EB128: BB | EC128: BB | ED128: BB | EE128: BB | EF128: BB | EG128: BB | EH128: BB | EI128: BB | EJ128: BB | EK128: BB | EL128: BB | EM128: BB | EN128: 10 | EO128: 0 | EQ128: 0 | ER128: 129 | ES128: 139 | ET128: 129 | EU128: 7 | EV128: 0 | EW128: 93 | EX128: 0
A129: A01 | B129: Bn-A01-p3005310 | C129: 3,103,471 | D129: 3103520 | E129: AA | F129: AA | G129: NC | H129: NC | I129: BB | J129: BB | K129: BB | L129: NC | M129: NC | N129: BB | O129: NC | P129: NC | Q129: NC | R129: NC | S129: NC | T129: NC | U129: BB | V129: BB | W129: BB | X129: BB | Y129: BB | Z129: BB | AA129: BB | AB129: BB | AC129: BB | AD129: BB | AE129: BB | AF129: BB | AG129: BB | AH129: BB | AI129: BB | AJ129: BB | AK129: BB | AL129: BB | AM129: BB | AN129: BB | AO129: BB | AP129: NC | AQ129: NC | AR129: NC | AS129: AA | AT129: AA | AU129: AA | AV129: AA | AW129: AA | AX129: AA | AY129: NC | AZ129: NC | BA129: NC | BB129: BB | BC129: BB | BD129: BB | BE129: AA | BF129: AA | BG129: AA | BH129: AA | BI129: AA | BJ129: AA | BK129: AA | BL129: AA | BM129: AA | BN129: AA | BO129: AA | BP129: AA | BQ129: AA | BR129: AA | BS129: AA | BT129: NC | BU129: NC | BV129: NC | BW129: BB | BX129: BB | BY129: BB | BZ129: BB | CA129: BB | CB129: BB | CC129: BB | CD129: BB | CE129: BB | CF129: BB | CG129: BB | CH129: BB | CI129: BB | CJ129: BB | CK129: BB | CL129: BB | CM129: BB | CN129: BB | CO129: BB | CP129: BB | CQ129: BB | CR129: BB | CS129: BB | CT129: BB | CU129: BB | CV129: BB | CW129: BB | CX129: BB | CY129: BB | CZ129: BB | DA129: BB | DB129: BB | DC129: BB | DD129: BB | DE129: BB | DF129: BB | DG129: BB | DH129: BB | DI129: BB | DJ129: BB | DK129: BB | DL129: BB | DM129: BB | DN129: BB | DO129: BB | DP129: BB | DQ129: BB | DR129: BB | DS129: BB | DT129: BB | DU129: BB | DV129: BB | DW129: BB | DX129: BB | DY129: NC | DZ129: NC | EA129: NC | EB129: BB | EC129: BB | ED129: BB | EE129: BB | EF129: BB | EG129: BB | EH129: BB | EI129: BB | EJ129: BB | EK129: NC | EL129: NC | EM129: NC | EN129: 25 | EO129: 23 | EQ129: 0 | ER129: 91 | ES129: 139 | ET129: 114 | EU129: 18 | EV129: 17 | EW129: 65 | EX129: 0
A130: A01 | B130: Bn-A01-p3045214 | C130: 3,138,619 | D130: 3138570 | E130: BB | F130: BB | G130: AA | H130: NC | I130: AA | J130: AA | K130: AA | L130: AA | M130: AA | N130: NC | O130: NC | P130: NC | Q130: NC | R130: NC | S130: NC | T130: NC | U130: AA | V130: AA | W130: AA | X130: AA | Y130: AA | Z130: AA | AA130: AA | AB130: AA | AC130: AA | AD130: AA | AE130: AA | AF130: AA | AG130: AA | AH130: AA | AI130: AA | AJ130: AA | AK130: AA | AL130: AA | AM130: AA | AN130: AA | AO130: AA | AP130: AA | AQ130: AA | AR130: AA | AS130: AA | AT130: AA | AU130: AA | AV130: AA | AW130: AA | AX130: AA | AY130: AA | AZ130: AA | BA130: AA | BB130: AA | BC130: AA | BD130: AA | BE130: AA | BF130: AA | BG130: AA | BH130: AA | BI130: AA | BJ130: AA | BK130: AA | BL130: AA | BM130: AA | BN130: AA | BO130: AA | BP130: AA | BQ130: AA | BR130: AA | BS130: AA | BT130: AA | BU130: AA | BV130: AA | BW130: AA | BX130: AA | BY130: AA | BZ130: AA | CA130: AA | CB130: AA | CC130: AA | CD130: AA | CE130: AA | CF130: AA | CG130: AA | CH130: AA | CI130: AA | CJ130: AA | CK130: AA | CL130: AA | CM130: AA | CN130: AA | CO130: AA | CP130: AA | CQ130: AA | CR130: AA | CS130: AA | CT130: AA | CU130: AA | CV130: AA | CW130: AA | CX130: AA | CY130: AA | CZ130: AA | DA130: AA | DB130: AA | DC130: AA | DD130: AA | DE130: AA | DF130: AA | DG130: AA | DH130: AA | DI130: AA | DJ130: AA | DK130: AA | DL130: AA | DM130: AA | DN130: AA | DO130: AA | DP130: AA | DQ130: AA | DR130: AA | DS130: AA | DT130: AA | DU130: AA | DV130: AA | DW130: AA | DX130: AA | DY130: NC | DZ130: NC | EA130: NC | EB130: AA | EC130: AA | ED130: AA | EE130: AA | EF130: AA | EG130: AA | EH130: AA | EI130: AA | EJ130: AA | EK130: AA | EL130: AA | EM130: AA | EN130: 11 | EO130: 126 | EQ130: 0 | ER130: 2 | ES130: 139 | ET130: 128 | EU130: 8 | EV130: 91 | EW130: 1 | EX130: 0
A131: A01 | B131: Bn-A01-p3045984 | C131: 3,139,281 | D131: 3139330 | E131: AA | F131: AA | G131: BB | H131: NC | I131: BB | J131: BB | K131: BB | L131: BB | M131: BB | N131: BB | O131: NC | P131: NC | Q131: NC | R131: NC | S131: NC | T131: NC | U131: BB | V131: BB | W131: BB | X131: BB | Y131: BB | Z131: BB | AA131: BB | AB131: BB | AC131: BB | AD131: BB | AE131: BB | AF131: BB | AG131: BB | AH131: BB | AI131: BB | AJ131: BB | AK131: BB | AL131: BB | AM131: BB | AN131: BB | AO131: BB | AP131: BB | AQ131: BB | AR131: BB | AS131: BB | AT131: BB | AU131: BB | AV131: BB | AW131: BB | AX131: BB | AY131: BB | AZ131: BB | BA131: BB | BB131: BB | BC131: BB | BD131: BB | BE131: BB | BF131: BB | BG131: BB | BH131: BB | BI131: BB | BJ131: BB | BK131: BB | BL131: BB | BM131: BB | BN131: BB | BO131: BB | BP131: BB | BQ131: BB | BR131: BB | BS131: BB | BT131: BB | BU131: BB | BV131: BB | BW131: BB | BX131: BB | BY131: BB | BZ131: BB | CA131: BB | CB131: BB | CC131: BB | CD131: BB | CE131: BB | CF131: BB | CG131: BB | CH131: BB | CI131: BB | CJ131: BB | CK131: BB | CL131: BB | CM131: BB | CN131: BB | CO131: BB | CP131: BB | CQ131: BB | CR131: BB | CS131: BB | CT131: BB | CU131: BB | CV131: BB | CW131: BB | CX131: BB | CY131: BB | CZ131: BB | DA131: BB | DB131: BB | DC131: BB | DD131: BB | DE131: BB | DF131: BB | DG131: BB | DH131: BB | DI131: BB | DJ131: BB | DK131: BB | DL131: BB | DM131: BB | DN131: BB | DO131: BB | DP131: BB | DQ131: BB | DR131: BB | DS131: BB | DT131: BB | DU131: BB | DV131: BB | DW131: BB | DX131: BB | DY131: NC | DZ131: NC | EA131: NC | EB131: BB | EC131: BB | ED131: BB | EE131: BB | EF131: BB | EG131: BB | EH131: BB | EI131: BB | EJ131: BB | EK131: BB | EL131: BB | EM131: BB | EN131: =COUNTIF(E131:EM131,"NC") -> 10 | EO131: =COUNTIF(E131:EM131,"AA") -> 2 | EQ131: =COUNTIF(E131:EM131,"AB") -> 0 | ER131: =COUNTIF(E131:EM131,"BB") -> 127 | ES131: =SUM(EN131:ER131) -> 139 | ET131: =SUM(EO131:ER131) -> 129 | EU131: =EN131/ES131*100 -> 7 | EV131: =EO131/ES131*100 -> 1 | EW131: =ER131/ES131*100 -> 91 | EX131: =EQ131/ES131*100 -> 0
A132: A01 | B132: Bn-A01-p3050613 | C132: 3,143,653 | D132: 3143702 | E132: AA | F132: AA | G132: BB | H132: NC | I132: BB | J132: BB | K132: BB | L132: AA | M132: AA | N132: AA | O132: NC | P132: NC | Q132: NC | R132: NC | S132: NC | T132: NC | U132: BB | V132: BB | W132: BB | X132: BB | Y132: BB | Z132: BB | AA132: BB | AB132: BB | AC132: BB | AD132: BB | AE132: BB | AF132: BB | AG132: BB | AH132: BB | AI132: BB | AJ132: BB | AK132: BB | AL132: BB | AM132: BB | AN132: BB | AO132: BB | AP132: BB | AQ132: BB | AR132: BB | AS132: BB | AT132: BB | AU132: BB | AV132: BB | AW132: BB | AX132: BB | AY132: BB | AZ132: BB | BA132: BB | BB132: BB | BC132: BB | BD132: BB | BE132: BB | BF132: BB | BG132: BB | BH132: BB | BI132: BB | BJ132: BB | BK132: BB | BL132: BB | BM132: BB | BN132: BB | BO132: BB | BP132: BB | BQ132: BB | BR132: BB | BS132: BB | BT132: BB | BU132: BB | BV132: BB | BW132: BB | BX132: BB | BY132: BB | BZ132: BB | CA132: BB | CB132: BB | CC132: BB | CD132: BB | CE132: BB | CF132: BB | CG132: BB | CH132: BB | CI132: BB | CJ132: BB | CK132: BB | CL132: BB | CM132: BB | CN132: BB | CO132: AA | CP132: AA | CQ132: BB | CR132: AA | CS132: AA | CT132: AA | CU132: AA | CV132: AA | CW132: AA | CX132: AA | CY132: AA | CZ132: AA | DA132: AA | DB132: AA | DC132: AA | DD132: BB | DE132: BB | DF132: BB | DG132: BB | DH132: BB | DI132: BB | DJ132: BB | DK132: BB | DL132: BB | DM132: BB | DN132: BB | DO132: BB | DP132: BB | DQ132: BB | DR132: BB | DS132: BB | DT132: BB | DU132: BB | DV132: BB | DW132: BB | DX132: BB | DY132: NC | DZ132: NC | EA132: NC | EB132: BB | EC132: BB | ED132: BB | EE132: BB | EF132: BB | EG132: BB | EH132: BB | EI132: BB | EJ132: BB | EK132: BB | EL132: BB | EM132: BB | EN132: 10 | EO132: 19 | EQ132: 0 | ER132: 110 | ES132: 139 | ET132: 129 | EU132: 7 | EV132: 14 | EW132: 79 | EX132: 0
A133: A01 | B133: Bn-A01-p3061223 | C133: 3,153,268 | D133: 3153317 | E133: BB | F133: BB | G133: AA | H133: NC | I133: AA | J133: AA | K133: BB | L133: NC | M133: NC | N133: NC | O133: NC | P133: NC | Q133: NC | R133: NC | S133: NC | T133: NC | U133: AA | V133: AA | W133: AA | X133: AA | Y133: AA | Z133: AA | AA133: AA | AB133: AA | AC133: AA | AD133: AA | AE133: AA | AF133: AA | AG133: AA | AH133: AA | AI133: AA | AJ133: AA | AK133: AA | AL133: AA | AM133: AA | AN133: AA | AO133: AA | AP133: BB | AQ133: BB | AR133: BB | AS133: NC | AT133: NC | AU133: NC | AV133: NC | AW133: NC | AX133: NC | AY133: BB | AZ133: BB | BA133: BB | BB133: BB | BC133: BB | BD133: BB | BE133: NC | BF133: NC | BG133: NC | BH133: NC | BI133: NC | BJ133: NC | BK133: NC | BL133: NC | BM133: NC | BN133: NC | BO133: NC | BP133: NC | BQ133: NC | BR133: NC | BS133: NC | BT133: BB | BU133: BB | BV133: BB | BW133: AA | BX133: AA | BY133: AA | BZ133: AA | CA133: AA | CB133: AA | CC133: AA | CD133: AA | CE133: AA | CF133: AA | CG133: AA | CH133: AA | CI133: AA | CJ133: AA | CK133: AA | CL133: AA | CM133: AA | CN133: AA | CO133: NC | CP133: NC | CQ133: AA | CR133: NC | CS133: NC | CT133: NC | CU133: NC | CV133: NC | CW133: NC | CX133: NC | CY133: NC | CZ133: NC | DA133: NC | DB133: NC | DC133: NC | DD133: AA | DE133: AA | DF133: AA | DG133: AA | DH133: AA | DI133: AA | DJ133: AA | DK133: AA | DL133: AA | DM133: AA | DN133: AA | DO133: AA | DP133: AA | DQ133: AA | DR133: AA | DS133: AA | DT133: AA | DU133: AA | DV133: AA | DW133: AA | DX133: AA | DY133: NC | DZ133: NC | EA133: NC | EB133: AA | EC133: AA | ED133: AA | EE133: AA | EF133: AA | EG133: AA | EH133: AA | EI133: AA | EJ133: AA | EK133: BB | EL133: BB | EM133: BB | EN133: 48 | EO133: 73 | EQ133: 0 | ER133: 18 | ES133: 139 | ET133: 91 | EU133: 35 | EV133: 53 | EW133: 13 | EX133: 0
A134: A01 | B134: Bn-A01-p3070657 | C134: 3,162,802 | D134: 3162753 | E134: BB | F134: BB | G134: AA | H134: NC | I134: BB | J134: BB | K134: BB | L134: AA | M134: AA | N134: AA | O134: NC | P134: NC | Q134: NC | R134: NC | S134: NC | T134: NC | U134: AA | V134: AA | W134: AA | X134: AA | Y134: AA | Z134: AA | AA134: AA | AB134: AA | AC134: AA | AD134: AA | AE134: AA | AF134: AA | AG134: AA | AH134: AA | AI134: AA | AJ134: AA | AK134: AA | AL134: AA | AM134: AA | AN134: AA | AO134: AA | AP134: AA | AQ134: AA | AR134: AA | AS134: AA | AT134: AA | AU134: AA | AV134: AA | AW134: AA | AX134: AA | AY134: AA | AZ134: AA | BA134: AA | BB134: AA | BC134: AA | BD134: AA | BE134: AA | BF134: AA | BG134: AA | BH134: AA | BI134: AA | BJ134: AA | BK134: AA | BL134: AA | BM134: AA | BN134: AA | BO134: AA | BP134: AA | BQ134: AA | BR134: AA | BS134: AA | BT134: AA | BU134: AA | BV134: AA | BW134: AA | BX134: AA | BY134: AA | BZ134: AA | CA134: AA | CB134: AA | CC134: AA | CD134: AA | CE134: AA | CF134: AA | CG134: AA | CH134: AA | CI134: AA | CJ134: AA | CK134: AA | CL134: AA | CM134: AA | CN134: AA | CO134: AA | CP134: AA | CQ134: AA | CR134: AA | CS134: AA | CT134: AA | CU134: AA | CV134: AA | CW134: AA | CX134: AA | CY134: AA | CZ134: AA | DA134: AA | DB134: AA | DC134: AA | DD134: AA | DE134: AA | DF134: AA | DG134: AA | DH134: AA | DI134: AA | DJ134: AA | DK134: AA | DL134: AA | DM134: AA | DN134: AA | DO134: AA | DP134: AA | DQ134: AA | DR134: AA | DS134: AA | DT134: AA | DU134: AA | DV134: AA | DW134: AA | DX134: AA | DY134: NC | DZ134: NC | EA134: NC | EB134: AA | EC134: AA | ED134: AA | EE134: AA | EF134: AA | EG134: AA | EH134: AA | EI134: AA | EJ134: AA | EK134: AA | EL134: AA | EM134: AA | EN134: 10 | EO134: 124 | EQ134: 0 | ER134: 5 | ES134: 139 | ET134: 129 | EU134: 7 | EV134: 89 | EW134: 4 | EX134: 0
A135: A01 | B135: Bn-A01-p3100346 | C135: 3,191,449 | D135: 3191400 | E135: AA | F135: AA | G135: AA | H135: NC | I135: AA | J135: AA | K135: AA | L135: BB | M135: BB | N135: BB | O135: NC | P135: NC | Q135: NC | R135: NC | S135: NC | T135: NC | U135: BB | V135: BB | W135: BB | X135: BB | Y135: BB | Z135: BB | AA135: BB | AB135: BB | AC135: BB | AD135: BB | AE135: BB | AF135: BB | AG135: BB | AH135: BB | AI135: BB | AJ135: BB | AK135: BB | AL135: BB | AM135: BB | AN135: BB | AO135: BB | AP135: AA | AQ135: AA | AR135: AA | AS135: AA | AT135: AA | AU135: AA | AV135: AA | AW135: AA | AX135: AA | AY135: AA | AZ135: AA | BA135: AA | BB135: BB | BC135: BB | BD135: BB | BE135: AA | BF135: AA | BG135: AA | BH135: AA | BI135: AA | BJ135: AA | BK135: AA | BL135: AA | BM135: AA | BN135: AA | BO135: AA | BP135: AA | BQ135: AA | BR135: AA | BS135: AA | BT135: BB | BU135: BB | BV135: BB | BW135: BB | BX135: BB | BY135: BB | BZ135: BB | CA135: BB | CB135: BB | CC135: BB | CD135: BB | CE135: BB | CF135: BB | CG135: BB | CH135: BB | CI135: BB | CJ135: BB | CK135: BB | CL135: BB | CM135: BB | CN135: BB | CO135: AA | CP135: AA | CQ135: BB | CR135: AA | CS135: AA | CT135: AA | CU135: AA | CV135: AA | CW135: AA | CX135: AA | CY135: AA | CZ135: AA | DA135: AA | DB135: AA | DC135: AA | DD135: AA | DE135: AA | DF135: AA | DG135: BB | DH135: BB | DI135: BB | DJ135: BB | DK135: BB | DL135: BB | DM135: BB | DN135: BB | DO135: BB | DP135: BB | DQ135: BB | DR135: BB | DS135: BB | DT135: BB | DU135: BB | DV135: BB | DW135: BB | DX135: BB | DY135: NC | DZ135: NC | EA135: NC | EB135: BB | EC135: BB | ED135: BB | EE135: BB | EF135: BB | EG135: BB | EH135: BB | EI135: BB | EJ135: BB | EK135: AA | EL135: AA | EM135: AA | EN135: 10 | EO135: 53 | EQ135: 0 | ER135: 76 | ES135: 139 | ET135: 129 | EU135: 7 | EV135: 38 | EW135: 55 | EX135: 0
A136: A01 | B136: Bn-A01-p3134159 | C136: 3,224,148 | D136: 3224099 | E136: BB | F136: BB | G136: AA | H136: NC | I136: BB | J136: BB | K136: BB | L136: AA | M136: AA | N136: AA | O136: NC | P136: NC | Q136: NC | R136: NC | S136: NC | T136: NC | U136: BB | V136: BB | W136: BB | X136: BB | Y136: BB | Z136: BB | AA136: BB | AB136: BB | AC136: BB | AD136: BB | AE136: BB | AF136: BB | AG136: BB | AH136: BB | AI136: BB | AJ136: BB | AK136: BB | AL136: BB | AM136: BB | AN136: BB | AO136: BB | AP136: BB | AQ136: BB | AR136: BB | AS136: BB | AT136: BB | AU136: BB | AV136: BB | AW136: BB | AX136: BB | AY136: BB | AZ136: BB | BA136: BB | BB136: AA | BC136: AA | BD136: AA | BE136: BB | BF136: BB | BG136: BB | BH136: BB | BI136: BB | BJ136: BB | BK136: BB | BL136: BB | BM136: BB | BN136: BB | BO136: BB | BP136: BB | BQ136: BB | BR136: BB | BS136: BB | BT136: AA | BU136: AA | BV136: AA | BW136: BB | BX136: BB | BY136: BB | BZ136: BB | CA136: BB | CB136: BB | CC136: BB | CD136: BB | CE136: BB | CF136: BB | CG136: BB | CH136: BB | CI136: BB | CJ136: BB | CK136: BB | CL136: BB | CM136: BB | CN136: BB | CO136: BB | CP136: BB | CQ136: BB | CR136: BB | CS136: BB | CT136: BB | CU136: BB | CV136: BB | CW136: BB | CX136: BB | CY136: BB | CZ136: BB | DA136: BB | DB136: BB | DC136: BB | DD136: AA | DE136: AA | DF136: AA | DG136: BB | DH136: BB | DI136: BB | DJ136: BB | DK136: BB | DL136: BB | DM136: BB | DN136: BB | DO136: BB | DP136: BB | DQ136: BB | DR136: BB | DS136: BB | DT136: BB | DU136: BB | DV136: BB | DW136: BB | DX136: BB | DY136: NC | DZ136: NC | EA136: NC | EB136: BB | EC136: BB | ED136: BB | EE136: BB | EF136: BB | EG136: BB | EH136: BB | EI136: BB | EJ136: BB | EK136: BB | EL136: BB | EM136: BB | EN136: 10 | EO136: 13 | EQ136: 0 | ER136: 116 | ES136: 139 | ET136: 129 | EU136: 7 | EV136: 9 | EW136: 83 | EX136: 0
A137: A01 | B137: Bn-A01-p3136468 | C137: 3,226,325 | D137: 3226374 | E137: AA | F137: AA | G137: BB | H137: NC | I137: AA | J137: AA | K137: AA | L137: BB | M137: BB | N137: BB | O137: NC | P137: NC | Q137: NC | R137: NC | S137: NC | T137: NC | U137: AA | V137: AA | W137: AA | X137: AA | Y137: AA | Z137: AA | AA137: AA | AB137: AA | AC137: AA | AD137: AA | AE137: AA | AF137: AA | AG137: AA | AH137: AA | AI137: AA | AJ137: AA | AK137: AA | AL137: AA | AM137: AA | AN137: AA | AO137: AA | AP137: NC | AQ137: NC | AR137: NC | AS137: AA | AT137: AA | AU137: AA | AV137: AA | AW137: AA | AX137: AA | AY137: NC | AZ137: NC | BA137: NC | BB137: NC | BC137: NC | BD137: NC | BE137: AA | BF137: AA | BG137: AA | BH137: AA | BI137: AA | BJ137: AA | BK137: AA | BL137: AA | BM137: AA | BN137: AA | BO137: AA | BP137: AA | BQ137: AA | BR137: AA | BS137: AA | BT137: NC | BU137: NC | BV137: NC | BW137: AA | BX137: AA | BY137: AA | BZ137: AA | CA137: AA | CB137: AA | CC137: AA | CD137: AA | CE137: AA | CF137: AA | CG137: AA | CH137: AA | CI137: AA | CJ137: AA | CK137: AA | CL137: AA | CM137: AA | CN137: AA | CO137: AA | CP137: AA | CQ137: AA | CR137: AA | CS137: AA | CT137: AA | CU137: AA | CV137: AA | CW137: AA | CX137: AA | CY137: AA | CZ137: AA | DA137: AA | DB137: AA | DC137: AA | DD137: BB | DE137: BB | DF137: BB | DG137: AA | DH137: AA | DI137: AA | DJ137: AA | DK137: AA | DL137: AA | DM137: AA | DN137: AA | DO137: AA | DP137: AA | DQ137: AA | DR137: AA | DS137: AA | DT137: AA | DU137: AA | DV137: AA | DW137: AA | DX137: AA | DY137: NC | DZ137: NC | EA137: NC | EB137: AA | EC137: AA | ED137: AA | EE137: AA | EF137: AA | EG137: AA | EH137: AA | EI137: AA | EJ137: AA | EK137: NC | EL137: NC | EM137: NC | EN137: 25 | EO137: 107 | EQ137: 0 | ER137: 7 | ES137: 139 | ET137: 114 | EU137: 18 | EV137: 77 | EW137: 5 | EX137: 0
A138: A01 | B138: Bn-A01-p3226309 | C138: 3,307,644 | D138: 3307595 | E138: AA | F138: AA | G138: BB | H138: NC | I138: AA | J138: AA | K138: AA | L138: AA | M138: AA | N138: AA | O138: NC | P138: NC | Q138: NC | R138: NC | S138: NC | T138: NC | U138: AA | V138: AA | W138: AA | X138: AA | Y138: AA | Z138: AA | AA138: AA | AB138: AA | AC138: AA | AD138: AA | AE138: AA | AF138: AA | AG138: AA | AH138: AA | AI138: AA | AJ138: AA | AK138: AA | AL138: AA | AM138: AA | AN138: AA | AO138: AA | AP138: AA | AQ138: AA | AR138: AA | AS138: AA | AT138: AA | AU138: AA | AV138: AA | AW138: AA | AX138: AA | AY138: AA | AZ138: AA | BA138: AA | BB138: AA | BC138: AA | BD138: AA | BE138: AA | BF138: AA | BG138: AA | BH138: AA | BI138: AA | BJ138: AA | BK138: AA | BL138: AA | BM138: AA | BN138: AA | BO138: AA | BP138: AA | BQ138: AA | BR138: AA | BS138: AA | BT138: AA | BU138: AA | BV138: AA | BW138: AA | BX138: AA | BY138: AA | BZ138: AA | CA138: AA | CB138: AA | CC138: AA | CD138: AA | CE138: AA | CF138: AA | CG138: AA | CH138: AA | CI138: AA | CJ138: AA | CK138: AA | CL138: AA | CM138: AA | CN138: AA | CO138: AA | CP138: AA | CQ138: AA | CR138: AA | CS138: AA | CT138: AA | CU138: AA | CV138: AA | CW138: AA | CX138: AA | CY138: AA | CZ138: AA | DA138: AA | DB138: AA | DC138: AA | DD138: AA | DE138: AA | DF138: AA | DG138: AA | DH138: AA | DI138: AA | DJ138: AA | DK138: AA | DL138: AA | DM138: AA | DN138: AA | DO138: AA | DP138: AA | DQ138: AA | DR138: AA | DS138: AA | DT138: AA | DU138: AA | DV138: AA | DW138: AA | DX138: AA | DY138: NC | DZ138: NC | EA138: NC | EB138: AA | EC138: AA | ED138: AA | EE138: AA | EF138: AA | EG138: AA | EH138: AA | EI138: AA | EJ138: AA | EK138: AA | EL138: AA | EM138: AA | EN138: 10 | EO138: 128 | EQ138: 0 | ER138: 1 | ES138: 139 | ET138: 129 | EU138: 7 | EV138: 92 | EW138: 1 | EX138: 0
A139: A01 | B139: Bn-A01-p3306526 | C139: 3,379,915 | D139: 3379866 | E139: BB | F139: BB | G139: BB | H139: NC | I139: BB | J139: BB | K139: AB | L139: BB | M139: BB | N139: BB | O139: NC | P139: NC | Q139: NC | R139: NC | S139: NC | T139: NC | U139: BB | V139: BB | W139: BB | X139: BB | Y139: BB | Z139: BB | AA139: BB | AB139: BB | AC139: BB | AD139: BB | AE139: BB | AF139: BB | AG139: BB | AH139: BB | AI139: BB | AJ139: BB | AK139: BB | AL139: BB | AM139: BB | AN139: BB | AO139: BB | AP139: BB | AQ139: BB | AR139: BB | AS139: AA | AT139: AA | AU139: AA | AV139: AA | AW139: AA | AX139: AA | AY139: BB | AZ139: BB | BA139: BB | BB139: BB | BC139: BB | BD139: BB | BE139: AA | BF139: AA | BG139: AA | BH139: AA | BI139: AA | BJ139: AA | BK139: AA | BL139: AA | BM139: AA | BN139: AA | BO139: AA | BP139: AA | BQ139: AA | BR139: AA | BS139: AA | BT139: BB | BU139: BB | BV139: BB | BW139: BB | BX139: BB | BY139: BB | BZ139: BB | CA139: BB | CB139: BB | CC139: BB | CD139: BB | CE139: BB | CF139: BB | CG139: BB | CH139: BB | CI139: BB | CJ139: BB | CK139: BB | CL139: BB | CM139: BB | CN139: BB | CO139: BB | CP139: BB | CQ139: BB | CR139: BB | CS139: BB | CT139: BB | CU139: BB | CV139: BB | CW139: BB | CX139: BB | CY139: BB | CZ139: BB | DA139: BB | DB139: BB | DC139: BB | DD139: AA | DE139: AA | DF139: AA | DG139: BB | DH139: BB | DI139: BB | DJ139: BB | DK139: BB | DL139: BB | DM139: BB | DN139: BB | DO139: BB | DP139: BB | DQ139: BB | DR139: BB | DS139: BB | DT139: BB | DU139: BB | DV139: BB | DW139: BB | DX139: BB | DY139: NC | DZ139: NC | EA139: NC | EB139: BB | EC139: BB | ED139: BB | EE139: BB | EF139: BB | EG139: BB | EH139: BB | EI139: BB | EJ139: BB | EK139: BB | EL139: BB | EM139: BB | EN139: 10 | EO139: 24 | EQ139: 1 | ER139: 104 | ES139: 139 | ET139: 129 | EU139: 7 | EV139: 17 | EW139: 75 | EX139: 1
A140: A01 | B140: Bn-A01-p3323476 | C140: 3,387,014 | D140: 3386965 | E140: BB | F140: BB | G140: AA | H140: NC | I140: AA | J140: AA | K140: BB | L140: AA | M140: AA | N140: AA | O140: NC | P140: NC | Q140: NC | R140: NC | S140: NC | T140: NC | U140: BB | V140: BB | W140: BB | X140: BB | Y140: BB | Z140: BB | AA140: BB | AB140: BB | AC140: BB | AD140: BB | AE140: BB | AF140: BB | AG140: BB | AH140: BB | AI140: BB | AJ140: BB | AK140: BB | AL140: BB | AM140: BB | AN140: BB | AO140: BB | AP140: AA | AQ140: AA | AR140: AA | AS140: AA | AT140: AA | AU140: AA | AV140: AA | AW140: AA | AX140: AA | AY140: AA | AZ140: AA | BA140: AA | BB140: AA | BC140: AA | BD140: AA | BE140: BB | BF140: BB | BG140: BB | BH140: BB | BI140: BB | BJ140: BB | BK140: BB | BL140: BB | BM140: BB | BN140: BB | BO140: BB | BP140: BB | BQ140: BB | BR140: BB | BS140: BB | BT140: AA | BU140: AA | BV140: AA | BW140: BB | BX140: BB | BY140: BB | BZ140: BB | CA140: BB | CB140: BB | CC140: BB | CD140: BB | CE140: BB | CF140: BB | CG140: BB | CH140: BB | CI140: BB | CJ140: BB | CK140: BB | CL140: BB | CM140: BB | CN140: BB | CO140: AA | CP140: AA | CQ140: BB | CR140: AA | CS140: AA | CT140: AA | CU140: AA | CV140: AA | CW140: AA | CX140: AA | CY140: AA | CZ140: AA | DA140: AA | DB140: AA | DC140: AA | DD140: BB | DE140: BB | DF140: BB | DG140: BB | DH140: BB | DI140: BB | DJ140: BB | DK140: BB | DL140: BB | DM140: BB | DN140: BB | DO140: BB | DP140: BB | DQ140: BB | DR140: BB | DS140: BB | DT140: BB | DU140: BB | DV140: BB | DW140: BB | DX140: BB | DY140: NC | DZ140: NC | EA140: NC | EB140: BB | EC140: BB | ED140: BB | EE140: BB | EF140: BB | EG140: BB | EH140: BB | EI140: BB | EJ140: BB | EK140: AA | EL140: AA | EM140: AA | EN140: 10 | EO140: 41 | EQ140: 0 | ER140: 88 | ES140: 139 | ET140: 129 | EU140: 7 | EV140: 29 | EW140: 63 | EX140: 0
A141: A01 | B141: Bn-A01-p3567127 | C141: 3,626,104 | D141: 3626055 | E141: AA | F141: AA | G141: AA | H141: NC | I141: BB | J141: BB | K141: AB | L141: BB | M141: AA | N141: AA | O141: NC | P141: NC | Q141: NC | R141: NC | S141: NC | T141: NC | U141: AA | V141: AA | W141: AA | X141: AA | Y141: AA | Z141: AA | AA141: AA | AB141: AA | AC141: AA | AD141: AA | AE141: AA | AF141: AA | AG141: AA | AH141: AA | AI141: AA | AJ141: AA | AK141: AA | AL141: AA | AM141: AA | AN141: AA | AO141: AA | AP141: AA | AQ141: AA | AR141: AA | AS141: AA | AT141: AA | AU141: AA | AV141: AA | AW141: AA | AX141: AA | AY141: AA | AZ141: AA | BA141: AA | BB141: BB | BC141: BB | BD141: BB | BE141: AA | BF141: AA | BG141: AA | BH141: AA | BI141: AA | BJ141: AA | BK141: AA | BL141: AA | BM141: AA | BN141: AA | BO141: AA | BP141: AA | BQ141: AA | BR141: AA | BS141: AA | BT141: BB | BU141: BB | BV141: BB | BW141: AA | BX141: AA | BY141: AA | BZ141: AA | CA141: AA | CB141: AA | CC141: AA | CD141: AA | CE141: AA | CF141: AA | CG141: AA | CH141: AA | CI141: AA | CJ141: AA | CK141: AA | CL141: AA | CM141: AA | CN141: AA | CO141: AA | CP141: AA | CQ141: AA | CR141: AA | CS141: AA | CT141: AA | CU141: AA | CV141: AA | CW141: AA | CX141: AA | CY141: AA | CZ141: AA | DA141: AA | DB141: AA | DC141: AA | DD141: AA | DE141: AA | DF141: AA | DG141: AA | DH141: AA | DI141: AA | DJ141: AA | DK141: AA | DL141: AA | DM141: AA | DN141: AA | DO141: AA | DP141: AA | DQ141: AA | DR141: AA | DS141: AA | DT141: AA | DU141: AA | DV141: AA | DW141: AA | DX141: AA | DY141: NC | DZ141: NC | EA141: NC | EB141: AA | EC141: AA | ED141: AA | EE141: AA | EF141: AA | EG141: AA | EH141: AA | EI141: AA | EJ141: AA | EK141: AA | EL141: AA | EM141: AA | EN141: 10 | EO141: 119 | EQ141: 1 | ER141: 9 | ES141: 139 | ET141: 129 | EU141: 7 | EV141: 86 | EW141: 6 | EX141: 1
A142: A01 | B142: Bn-A01-p3586744 | C142: 3,663,377 | D142: 3663426 | E142: BB | F142: BB | G142: BB | H142: AA | I142: AA | J142: AA | K142: AB | L142: BB | M142: BB | N142: NC | O142: NC | P142: NC | Q142: NC | R142: NC | S142: NC | T142: NC | U142: BB | V142: BB | W142: BB | X142: BB | Y142: BB | Z142: BB | AA142: BB | AB142: BB | AC142: BB | AD142: BB | AE142: BB | AF142: BB | AG142: BB | AH142: BB | AI142: BB | AJ142: BB | AK142: BB | AL142: BB | AM142: BB | AN142: BB | AO142: BB | AP142: BB | AQ142: BB | AR142: BB | AS142: BB | AT142: BB | AU142: BB | AV142: BB | AW142: BB | AX142: BB | AY142: BB | AZ142: BB | BA142: BB | BB142: AA | BC142: AA | BD142: AA | BE142: BB | BF142: BB | BG142: BB | BH142: BB | BI142: BB | BJ142: BB | BK142: BB | BL142: BB | BM142: BB | BN142: BB | BO142: BB | BP142: BB | BQ142: BB | BR142: BB | BS142: BB | BT142: AA | BU142: AA | BV142: AA | BW142: BB | BX142: BB | BY142: BB | BZ142: BB | CA142: BB | CB142: BB | CC142: BB | CD142: BB | CE142: BB | CF142: BB | CG142: BB | CH142: BB | CI142: BB | CJ142: BB | CK142: BB | CL142: BB | CM142: BB | CN142: BB | CO142: BB | CP142: BB | CQ142: BB | CR142: BB | CS142: BB | CT142: BB | CU142: BB | CV142: BB | CW142: BB | CX142: BB | CY142: BB | CZ142: BB | DA142: BB | DB142: BB | DC142: BB | DD142: BB | DE142: BB | DF142: BB | DG142: BB | DH142: BB | DI142: BB | DJ142: BB | DK142: BB | DL142: BB | DM142: BB | DN142: BB | DO142: BB | DP142: BB | DQ142: BB | DR142: BB | DS142: BB | DT142: BB | DU142: BB | DV142: BB | DW142: BB | DX142: BB | DY142: NC | DZ142: NC | EA142: NC | EB142: BB | EC142: BB | ED142: BB | EE142: BB | EF142: BB | EG142: BB | EH142: BB | EI142: BB | EJ142: BB | EK142: BB | EL142: BB | EM142: BB | EN142: 10 | EO142: 9 | EQ142: 1 | ER142: 119 | ES142: 139 | ET142: 129 | EU142: 7 | EV142: 6 | EW142: 86 | EX142: 1
A143: A01 | B143: Bn-A01-p3597929 | C143: 3,674,633 | D143: 3674584 | E143: BB | F143: BB | G143: BB | H143: NC | I143: AA | J143: AA | K143: AA | L143: AA | M143: AA | N143: NC | O143: NC | P143: NC | Q143: NC | R143: NC | S143: NC | T143: NC | U143: BB | V143: BB | W143: BB | X143: BB | Y143: BB | Z143: BB | AA143: BB | AB143: BB | AC143: BB | AD143: BB | AE143: BB | AF143: BB | AG143: BB | AH143: BB | AI143: BB | AJ143: BB | AK143: BB | AL143: BB | AM143: BB | AN143: BB | AO143: BB | AP143: AA | AQ143: AA | AR143: AA | AS143: BB | AT143: BB | AU143: BB | AV143: BB | AW143: BB | AX143: BB | AY143: AA | AZ143: AA | BA143: AA | BB143: BB | BC143: BB | BD143: BB | BE143: BB | BF143: BB | BG143: BB | BH143: BB | BI143: BB | BJ143: BB | BK143: BB | BL143: BB | BM143: BB | BN143: BB | BO143: BB | BP143: BB | BQ143: BB | BR143: BB | BS143: BB | BT143: BB | BU143: BB | BV143: BB | BW143: BB | BX143: BB | BY143: BB | BZ143: BB | CA143: BB | CB143: BB | CC143: BB | CD143: BB | CE143: BB | CF143: BB | CG143: BB | CH143: BB | CI143: BB | CJ143: BB | CK143: BB | CL143: BB | CM143: BB | CN143: BB | CO143: BB | CP143: BB | CQ143: BB | CR143: BB | CS143: BB | CT143: BB | CU143: BB | CV143: BB | CW143: BB | CX143: BB | CY143: BB | CZ143: BB | DA143: BB | DB143: BB | DC143: BB | DD143: AA | DE143: AA | DF143: AA | DG143: BB | DH143: BB | DI143: BB | DJ143: BB | DK143: BB | DL143: BB | DM143: BB | DN143: BB | DO143: BB | DP143: BB | DQ143: BB | DR143: BB | DS143: BB | DT143: BB | DU143: BB | DV143: BB | DW143: BB | DX143: BB | DY143: NC | DZ143: NC | EA143: NC | EB143: BB | EC143: BB | ED143: BB | EE143: BB | EF143: BB | EG143: BB | EH143: BB | EI143: BB | EJ143: BB | EK143: AA | EL143: AA | EM143: AA | EN143: 11 | EO143: 17 | EQ143: 0 | ER143: 111 | ES143: 139 | ET143: 128 | EU143: 8 | EV143: 12 | EW143: 80 | EX143: 0
A144: A01 | B144: Bn-A01-p3598097 | C144: 3,674,701 | D144: 3674750 | E144: AA | F144: AA | G144: AA | H144: NC | I144: BB | J144: BB | K144: BB | L144: BB | M144: BB | N144: NC | O144: NC | P144: NC | Q144: NC | R144: NC | S144: NC | T144: NC | U144: BB | V144: BB | W144: BB | X144: BB | Y144: BB | Z144: BB | AA144: BB | AB144: BB | AC144: BB | AD144: BB | AE144: BB | AF144: BB | AG144: BB | AH144: BB | AI144: BB | AJ144: BB | AK144: BB | AL144: BB | AM144: BB | AN144: BB | AO144: BB | AP144: BB | AQ144: BB | AR144: BB | AS144: BB | AT144: BB | AU144: BB | AV144: BB | AW144: BB | AX144: BB | AY144: BB | AZ144: BB | BA144: BB | BB144: BB | BC144: BB | BD144: BB | BE144: BB | BF144: BB | BG144: BB | BH144: BB | BI144: BB | BJ144: BB | BK144: BB | BL144: BB | BM144: BB | BN144: BB | BO144: BB | BP144: BB | BQ144: BB | BR144: BB | BS144: BB | BT144: BB | BU144: BB | BV144: BB | BW144: BB | BX144: BB | BY144: BB | BZ144: BB | CA144: BB | CB144: BB | CC144: BB | CD144: BB | CE144: BB | CF144: BB | CG144: BB | CH144: BB | CI144: BB | CJ144: BB | CK144: BB | CL144: BB | CM144: BB | CN144: BB | CO144: AA | CP144: AA | CQ144: BB | CR144: AA | CS144: AA | CT144: AA | CU144: AA | CV144: AA | CW144: AA | CX144: AA | CY144: AA | CZ144: AA | DA144: AA | DB144: AA | DC144: AA | DD144: BB | DE144: BB | DF144: BB | DG144: BB | DH144: BB | DI144: BB | DJ144: BB | DK144: BB | DL144: BB | DM144: BB | DN144: BB | DO144: BB | DP144: BB | DQ144: BB | DR144: BB | DS144: BB | DT144: BB | DU144: BB | DV144: BB | DW144: BB | DX144: BB | DY144: NC | DZ144: NC | EA144: NC | EB144: BB | EC144: BB | ED144: BB | EE144: BB | EF144: BB | EG144: BB | EH144: BB | EI144: BB | EJ144: BB | EK144: BB | EL144: BB | EM144: BB | EN144: 11 | EO144: 17 | EQ144: 0 | ER144: 111 | ES144: 139 | ET144: 128 | EU144: 8 | EV144: 12 | EW144: 80 | EX144: 0
A145: A01 | B145: Bn-A01-p3598515 | C145: 3,675,118 | D145: 3675167 | E145: AA | F145: AA | G145: AA | H145: NC | I145: BB | J145: BB | K145: AA | L145: BB | M145: BB | N145: BB | O145: NC | P145: NC | Q145: NC | R145: NC | S145: NC | T145: NC | U145: AA | V145: AA | W145: AA | X145: AA | Y145: AA | Z145: AA | AA145: AA | AB145: AA | AC145: AA | AD145: AA | AE145: AA | AF145: AA | AG145: AA | AH145: AA | AI145: AA | AJ145: AA | AK145: AA | AL145: AA | AM145: AA | AN145: AA | AO145: AA | AP145: BB | AQ145: BB | AR145: BB | AS145: AA | AT145: AA | AU145: AA | AV145: AA | AW145: AA | AX145: AA | AY145: BB | AZ145: BB | BA145: BB | BB145: AA | BC145: AA | BD145: AA | BE145: AA | BF145: AA | BG145: AA | BH145: AA | BI145: AA | BJ145: AA | BK145: AA | BL145: AA | BM145: AA | BN145: AA | BO145: AA | BP145: AA | BQ145: AA | BR145: AA | BS145: AA | BT145: AA | BU145: AA | BV145: AA | BW145: AA | BX145: AA | BY145: AA | BZ145: AA | CA145: AA | CB145: AA | CC145: AA | CD145: AA | CE145: AA | CF145: AA | CG145: AA | CH145: AA | CI145: AA | CJ145: AA | CK145: AA | CL145: AA | CM145: AA | CN145: AA | CO145: AA | CP145: AA | CQ145: AA | CR145: AA | CS145: AA | CT145: AA | CU145: AA | CV145: AA | CW145: AA | CX145: AA | CY145: AA | CZ145: AA | DA145: AA | DB145: AA | DC145: AA | DD145: BB | DE145: BB | DF145: BB | DG145: AA | DH145: AA | DI145: AA | DJ145: AA | DK145: AA | DL145: AA | DM145: AA | DN145: AA | DO145: AA | DP145: AA | DQ145: AA | DR145: AA | DS145: AA | DT145: AA | DU145: AA | DV145: AA | DW145: AA | DX145: AA | DY145: NC | DZ145: NC | EA145: NC | EB145: AA | EC145: AA | ED145: AA | EE145: AA | EF145: AA | EG145: AA | EH145: AA | EI145: AA | EJ145: AA | EK145: BB | EL145: BB | EM145: BB | EN145: 10 | EO145: 112 | EQ145: 0 | ER145: 17 | ES145: 139 | ET145: 129 | EU145: 7 | EV145: 81 | EW145: 12 | EX145: 0
A146: A01 | B146: Bn-A01-p3598533 | C146: 3,675,236 | D146: 3675187 | E146: BB | F146: BB | G146: BB | H146: NC | I146: AA | J146: AA | K146: BB | L146: AA | M146: AA | N146: AA | O146: NC | P146: NC | Q146: NC | R146: NC | S146: NC | T146: NC | U146: BB | V146: BB | W146: BB | X146: BB | Y146: BB | Z146: BB | AA146: BB | AB146: BB | AC146: BB | AD146: BB | AE146: BB | AF146: BB | AG146: BB | AH146: BB | AI146: BB | AJ146: BB | AK146: BB | AL146: BB | AM146: BB | AN146: BB | AO146: BB | AP146: AA | AQ146: AA | AR146: AA | AS146: BB | AT146: BB | AU146: BB | AV146: BB | AW146: BB | AX146: BB | AY146: AA | AZ146: AA | BA146: AA | BB146: BB | BC146: BB | BD146: BB | BE146: BB | BF146: BB | BG146: BB | BH146: BB | BI146: BB | BJ146: BB | BK146: BB | BL146: BB | BM146: BB | BN146: BB | BO146: BB | BP146: BB | BQ146: BB | BR146: BB | BS146: BB | BT146: BB | BU146: BB | BV146: BB | BW146: BB | BX146: BB | BY146: BB | BZ146: BB | CA146: BB | CB146: BB | CC146: BB | CD146: BB | CE146: BB | CF146: BB | CG146: BB | CH146: BB | CI146: BB | CJ146: BB | CK146: BB | CL146: BB | CM146: BB | CN146: BB | CO146: BB | CP146: BB | CQ146: BB | CR146: BB | CS146: BB | CT146: BB | CU146: BB | CV146: BB | CW146: BB | CX146: BB | CY146: BB | CZ146: BB | DA146: BB | DB146: BB | DC146: BB | DD146: AA | DE146: AA | DF146: AA | DG146: BB | DH146: BB | DI146: BB | DJ146: BB | DK146: BB | DL146: BB | DM146: BB | DN146: BB | DO146: BB | DP146: BB | DQ146: BB | DR146: BB | DS146: BB | DT146: BB | DU146: BB | DV146: BB | DW146: BB | DX146: BB | DY146: NC | DZ146: NC | EA146: NC | EB146: BB | EC146: BB | ED146: BB | EE146: BB | EF146: BB | EG146: BB | EH146: BB | EI146: BB | EJ146: BB | EK146: AA | EL146: AA | EM146: AA | EN146: 10 | EO146: 17 | EQ146: 0 | ER146: 112 | ES146: 139 | ET146: 129 | EU146: 7 | EV146: 12 | EW146: 81 | EX146: 0
A147: A01 | B147: Bn-A01-p3619975 | C147: 3,692,098 | D147: 3692147 | E147: AA | F147: AA | G147: AA | H147: NC | I147: AA | J147: AA | K147: AA | L147: AA | M147: AA | N147: AA | O147: NC | P147: NC | Q147: NC | R147: NC | S147: NC | T147: NC | U147: AA | V147: AA | W147: AA | X147: AA | Y147: AA | Z147: AA | AA147: AA | AB147: AA | AC147: AA | AD147: AA | AE147: AA | AF147: AA | AG147: AA | AH147: AA | AI147: AA | AJ147: AA | AK147: AA | AL147: AA | AM147: AA | AN147: AA | AO147: AA | AP147: BB | AQ147: BB | AR147: BB | AS147: AA | AT147: AA | AU147: AA | AV147: AA | AW147: AA | AX147: AA | AY147: BB | AZ147: BB | BA147: BB | BB147: BB | BC147: BB | BD147: BB | BE147: AA | BF147: AA | BG147: AA | BH147: AA | BI147: AA | BJ147: AA | BK147: AA | BL147: AA | BM147: AA | BN147: AA | BO147: AA | BP147: AA | BQ147: AA | BR147: AA | BS147: AA | BT147: BB | BU147: BB | BV147: BB | BW147: AA | BX147: AA | BY147: AA | BZ147: AA | CA147: AA | CB147: AA | CC147: AA | CD147: AA | CE147: AA | CF147: AA | CG147: AA | CH147: AA | CI147: AA | CJ147: AA | CK147: AA | CL147: AA | CM147: AA | CN147: AA | CO147: AA | CP147: AA | CQ147: AA | CR147: AA | CS147: AA | CT147: AA | CU147: AA | CV147: AA | CW147: AA | CX147: AA | CY147: AA | CZ147: AA | DA147: AA | DB147: AA | DC147: AA | DD147: AA | DE147: AA | DF147: AA | DG147: AA | DH147: AA | DI147: AA | DJ147: AA | DK147: AA | DL147: AA | DM147: AA | DN147: AA | DO147: AA | DP147: AA | DQ147: AA | DR147: AA | DS147: AA | DT147: AA | DU147: AA | DV147: AA | DW147: AA | DX147: AA | DY147: NC | DZ147: NC | EA147: NC | EB147: AA | EC147: AA | ED147: AA | EE147: AA | EF147: AA | EG147: AA | EH147: AA | EI147: AA | EJ147: AA | EK147: BB | EL147: BB | EM147: BB | EN147: 10 | EO147: 114 | EQ147: 0 | ER147: 15 | ES147: 139 | ET147: 129 | EU147: 7 | EV147: 82 | EW147: 11 | EX147: 0
A148: A01 | B148: Bn-A01-p3789302 | C148: 3,845,704 | D148: 3845753 | E148: AA | F148: BB | G148: BB | H148: NC | I148: AA | J148: AA | K148: AA | L148: AA | M148: AA | N148: NC | O148: NC | P148: NC | Q148: NC | R148: NC | S148: NC | T148: NC | U148: AA | V148: AA | W148: AA | X148: AA | Y148: AA | Z148: AA | AA148: AA | AB148: AA | AC148: AA | AD148: AA | AE148: AA | AF148: AA | AG148: AA | AH148: AA | AI148: AA | AJ148: AA | AK148: AA | AL148: AA | AM148: AA | AN148: AA | AO148: AA | AP148: BB | AQ148: BB | AR148: BB | AS148: AA | AT148: AA | AU148: AA | AV148: AA | AW148: AA | AX148: AA | AY148: BB | AZ148: BB | BA148: BB | BB148: BB | BC148: BB | BD148: BB | BE148: AA | BF148: AA | BG148: AA | BH148: AA | BI148: AA | BJ148: AA | BK148: AA | BL148: AA | BM148: AA | BN148: AA | BO148: AA | BP148: AA | BQ148: AA | BR148: AA | BS148: AA | BT148: BB | BU148: BB | BV148: BB | BW148: AA | BX148: AA | BY148: AA | BZ148: AA | CA148: AA | CB148: AA | CC148: AA | CD148: AA | CE148: AA | CF148: AA | CG148: AA | CH148: AA | CI148: AA | CJ148: AA | CK148: AA | CL148: AA | CM148: AA | CN148: AA | CO148: AA | CP148: AA | CQ148: AA | CR148: AA | CS148: AA | CT148: AA | CU148: AA | CV148: AA | CW148: AA | CX148: AA | CY148: AA | CZ148: AA | DA148: AA | DB148: AA | DC148: AA | DD148: AA | DE148: AA | DF148: AA | DG148: AA | DH148: AA | DI148: AA | DJ148: AA | DK148: AA | DL148: AA | DM148: AA | DN148: AA | DO148: AA | DP148: AA | DQ148: AA | DR148: AA | DS148: AA | DT148: AA | DU148: AA | DV148: AA | DW148: AA | DX148: AA | DY148: NC | DZ148: NC | EA148: NC | EB148: AA | EC148: AA | ED148: AA | EE148: AA | EF148: AA | EG148: AA | EH148: AA | EI148: AA | EJ148: AA | EK148: BB | EL148: BB | EM148: BB | EN148: 11 | EO148: 111 | EQ148: 0 | ER148: 17 | ES148: 139 | ET148: 128 | EU148: 8 | EV148: 80 | EW148: 12 | EX148: 0
A149: A01 | B149: Bn-A01-p3906965 | C149: 3,958,893 | D149: 3958942 | E149: BB | F149: BB | G149: BB | H149: NC | I149: BB | J149: BB | K149: BB | L149: BB | M149: BB | N149: BB | O149: NC | P149: NC | Q149: NC | R149: NC | S149: NC | T149: NC | U149: BB | V149: BB | W149: BB | X149: BB | Y149: BB | Z149: BB | AA149: BB | AB149: BB | AC149: BB | AD149: BB | AE149: BB | AF149: BB | AG149: BB | AH149: BB | AI149: BB | AJ149: BB | AK149: BB | AL149: BB | AM149: BB | AN149: BB | AO149: BB | AP149: BB | AQ149: BB | AR149: BB | AS149: BB | AT149: BB | AU149: BB | AV149: BB | AW149: BB | AX149: BB | AY149: BB | AZ149: BB | BA149: BB | BB149: BB | BC149: BB | BD149: BB | BE149: BB | BF149: BB | BG149: BB | BH149: BB | BI149: BB | BJ149: BB | BK149: BB | BL149: BB | BM149: BB | BN149: BB | BO149: BB | BP149: BB | BQ149: BB | BR149: BB | BS149: BB | BT149: BB | BU149: BB | BV149: BB | BW149: BB | BX149: BB | BY149: BB | BZ149: BB | CA149: BB | CB149: BB | CC149: BB | CD149: BB | CE149: BB | CF149: BB | CG149: BB | CH149: BB | CI149: BB | CJ149: BB | CK149: BB | CL149: BB | CM149: BB | CN149: BB | CO149: BB | CP149: BB | CQ149: BB | CR149: BB | CS149: BB | CT149: BB | CU149: BB | CV149: BB | CW149: BB | CX149: BB | CY149: BB | CZ149: BB | DA149: BB | DB149: BB | DC149: BB | DD149: BB | DE149: BB | DF149: BB | DG149: BB | DH149: BB | DI149: BB | DJ149: BB | DK149: BB | DL149: BB | DM149: BB | DN149: BB | DO149: BB | DP149: BB | DQ149: BB | DR149: BB | DS149: BB | DT149: BB | DU149: BB | DV149: BB | DW149: BB | DX149: BB | DY149: NC | DZ149: NC | EA149: NC | EB149: BB | EC149: BB | ED149: BB | EE149: BB | EF149: BB | EG149: BB | EH149: BB | EI149: BB | EJ149: BB | EK149: BB | EL149: BB | EM149: BB | EN149: 10 | EO149: 0 | EQ149: 0 | ER149: 129 | ES149: 139 | ET149: 129 | EU149: 7 | EV149: 0 | EW149: 93 | EX149: 0
A150: A01 | B150: Bn-A01-p3984534 | C150: 4,044,517 | D150: 4044566 | E150: AA | F150: AA | G150: AA | H150: NC | I150: AA | J150: AA | K150: AA | L150: AA | M150: AA | N150: NC | O150: NC | P150: NC | Q150: NC | R150: NC | S150: NC | T150: NC | U150: BB | V150: BB | W150: BB | X150: BB | Y150: BB | Z150: BB | AA150: BB | AB150: BB | AC150: BB | AD150: BB | AE150: BB | AF150: BB | AG150: BB | AH150: BB | AI150: BB | AJ150: BB | AK150: BB | AL150: BB | AM150: BB | AN150: BB | AO150: BB | AP150: AA | AQ150: AA | AR150: AA | AS150: BB | AT150: BB | AU150: BB | AV150: BB | AW150: BB | AX150: BB | AY150: AA | AZ150: AA | BA150: AA | BB150: BB | BC150: BB | BD150: BB | BE150: NC | BF150: NC | BG150: NC | BH150: NC | BI150: NC | BJ150: NC | BK150: NC | BL150: NC | BM150: NC | BN150: NC | BO150: NC | BP150: NC | BQ150: NC | BR150: NC | BS150: NC | BT150: AA | BU150: AA | BV150: AA | BW150: BB | BX150: BB | BY150: BB | BZ150: BB | CA150: BB | CB150: BB | CC150: BB | CD150: BB | CE150: BB | CF150: BB | CG150: BB | CH150: BB | CI150: BB | CJ150: BB | CK150: BB | CL150: BB | CM150: BB | CN150: BB | CO150: NC | CP150: NC | CQ150: BB | CR150: NC | CS150: NC | CT150: NC | CU150: NC | CV150: NC | CW150: NC | CX150: NC | CY150: NC | CZ150: NC | DA150: NC | DB150: NC | DC150: NC | DD150: AA | DE150: AA | DF150: AA | DG150: BB | DH150: BB | DI150: BB | DJ150: BB | DK150: BB | DL150: BB | DM150: BB | DN150: BB | DO150: BB | DP150: BB | DQ150: BB | DR150: BB | DS150: BB | DT150: BB | DU150: BB | DV150: BB | DW150: BB | DX150: BB | DY150: NC | DZ150: NC | EA150: NC | EB150: BB | EC150: BB | ED150: BB | EE150: BB | EF150: BB | EG150: BB | EH150: BB | EI150: BB | EJ150: BB | EK150: AA | EL150: AA | EM150: AA | EN150: 40 | EO150: 23 | EQ150: 0 | ER150: 76 | ES150: 139 | ET150: 99 | EU150: 29 | EV150: 17 | EW150: 55 | EX150: 0
A151: A01 | B151: Bn-A01-p4041055 | C151: 4,100,765 | D151: 4100814 | E151: BB | F151: BB | G151: BB | H151: NC | I151: AA | J151: AA | K151: NC | L151: AA | M151: AA | N151: NC | O151: NC | P151: NC | Q151: NC | R151: NC | S151: NC | T151: NC | U151: BB | V151: BB | W151: BB | X151: BB | Y151: BB | Z151: BB | AA151: BB | AB151: BB | AC151: BB | AD151: BB | AE151: BB | AF151: BB | AG151: BB | AH151: BB | AI151: BB | AJ151: BB | AK151: BB | AL151: BB | AM151: BB | AN151: BB | AO151: BB | AP151: AA | AQ151: AA | AR151: NC | AS151: BB | AT151: BB | AU151: BB | AV151: BB | AW151: BB | AX151: BB | AY151: AA | AZ151: AA | BA151: AA | BB151: BB | BC151: BB | BD151: BB | BE151: BB | BF151: BB | BG151: BB | BH151: BB | BI151: BB | BJ151: BB | BK151: BB | BL151: BB | BM151: BB | BN151: BB | BO151: BB | BP151: BB | BQ151: BB | BR151: BB | BS151: BB | BT151: AA | BU151: AA | BV151: AA | BW151: BB | BX151: BB | BY151: BB | BZ151: BB | CA151: BB | CB151: BB | CC151: BB | CD151: BB | CE151: BB | CF151: BB | CG151: BB | CH151: BB | CI151: BB | CJ151: BB | CK151: BB | CL151: BB | CM151: BB | CN151: BB | CO151: BB | CP151: BB | CQ151: BB | CR151: BB | CS151: BB | CT151: BB | CU151: BB | CV151: BB | CW151: BB | CX151: BB | CY151: BB | CZ151: BB | DA151: BB | DB151: BB | DC151: BB | DD151: AA | DE151: AA | DF151: AA | DG151: BB | DH151: BB | DI151: BB | DJ151: BB | DK151: BB | DL151: BB | DM151: BB | DN151: BB | DO151: BB | DP151: BB | DQ151: BB | DR151: BB | DS151: BB | DT151: BB | DU151: BB | DV151: BB | DW151: BB | DX151: BB | DY151: NC | DZ151: NC | EA151: NC | EB151: BB | EC151: BB | ED151: BB | EE151: BB | EF151: BB | EG151: BB | EH151: BB | EI151: BB | EJ151: BB | EK151: AA | EL151: AA | EM151: AA | EN151: 13 | EO151: 18 | EQ151: 0 | ER151: 108 | ES151: 139 | ET151: 126 | EU151: 9 | EV151: 13 | EW151: 78 | EX151: 0
A152: A01 | B152: Bn-A01-p4027402 | C152: 4,120,031 | D152: 4120080 | E152: AA | F152: AA | G152: AA | H152: NC | I152: AA | J152: AA | K152: AA | L152: NC | M152: AA | N152: NC | O152: NC | P152: NC | Q152: NC | R152: NC | S152: NC | T152: NC | U152: BB | V152: BB | W152: BB | X152: BB | Y152: BB | Z152: BB | AA152: BB | AB152: BB | AC152: BB | AD152: BB | AE152: BB | AF152: BB | AG152: BB | AH152: BB | AI152: BB | AJ152: BB | AK152: BB | AL152: BB | AM152: BB | AN152: BB | AO152: BB | AP152: AA | AQ152: AA | AR152: AA | AS152: BB | AT152: BB | AU152: BB | AV152: BB | AW152: BB | AX152: BB | AY152: AA | AZ152: AA | BA152: AA | BB152: BB | BC152: BB | BD152: BB | BE152: BB | BF152: BB | BG152: BB | BH152: BB | BI152: BB | BJ152: BB | BK152: BB | BL152: BB | BM152: BB | BN152: BB | BO152: BB | BP152: BB | BQ152: BB | BR152: BB | BS152: BB | BT152: AA | BU152: AA | BV152: AA | BW152: BB | BX152: BB | BY152: BB | BZ152: BB | CA152: BB | CB152: BB | CC152: BB | CD152: BB | CE152: BB | CF152: BB | CG152: BB | CH152: BB | CI152: BB | CJ152: BB | CK152: BB | CL152: BB | CM152: BB | CN152: BB | CO152: BB | CP152: BB | CQ152: BB | CR152: BB | CS152: BB | CT152: BB | CU152: BB | CV152: BB | CW152: BB | CX152: BB | CY152: BB | CZ152: BB | DA152: BB | DB152: BB | DC152: BB | DD152: AA | DE152: AA | DF152: AA | DG152: BB | DH152: BB | DI152: BB | DJ152: BB | DK152: BB | DL152: BB | DM152: BB | DN152: BB | DO152: BB | DP152: BB | DQ152: BB | DR152: BB | DS152: BB | DT152: BB | DU152: BB | DV152: BB | DW152: BB | DX152: BB | DY152: NC | DZ152: NC | EA152: NC | EB152: BB | EC152: BB | ED152: BB | EE152: BB | EF152: BB | EG152: BB | EH152: BB | EI152: BB | EJ152: BB | EK152: AA | EL152: AA | EM152: AA | EN152: 12 | EO152: 22 | EQ152: 0 | ER152: 105 | ES152: 139 | ET152: 127 | EU152: 9 | EV152: 16 | EW152: 76 | EX152: 0
A153: A01 | B153: Bn-A01-p4070059 | C153: 4,228,714 | D153: 4228665 | E153: AA | F153: AA | G153: AA | H153: NC | I153: BB | J153: BB | K153: AB | L153: AA | M153: BB | N153: AA | O153: NC | P153: NC | Q153: NC | R153: NC | S153: NC | T153: NC | U153: AA | V153: AA | W153: AA | X153: AA | Y153: AA | Z153: AA | AA153: AA | AB153: AA | AC153: AA | AD153: AA | AE153: AA | AF153: AA | AG153: AA | AH153: AA | AI153: AA | AJ153: AA | AK153: AA | AL153: AA | AM153: AA | AN153: AA | AO153: AA | AP153: BB | AQ153: NC | AR153: BB | AS153: AA | AT153: AA | AU153: AA | AV153: AA | AW153: AA | AX153: AA | AY153: BB | AZ153: BB | BA153: BB | BB153: AA | BC153: AA | BD153: AA | BE153: AA | BF153: AA | BG153: AA | BH153: AA | BI153: AA | BJ153: AA | BK153: AA | BL153: AA | BM153: AA | BN153: AA | BO153: AA | BP153: AA | BQ153: AA | BR153: AA | BS153: AA | BT153: BB | BU153: BB | BV153: BB | BW153: AA | BX153: AA | BY153: AA | BZ153: AA | CA153: AA | CB153: AA | CC153: AA | CD153: AA | CE153: AA | CF153: AA | CG153: AA | CH153: AA | CI153: AA | CJ153: AA | CK153: AA | CL153: AA | CM153: AA | CN153: AA | CO153: BB | CP153: BB | CQ153: AA | CR153: BB | CS153: BB | CT153: BB | CU153: BB | CV153: BB | CW153: BB | CX153: BB | CY153: BB | CZ153: BB | DA153: BB | DB153: BB | DC153: BB | DD153: BB | DE153: NC | DF153: BB | DG153: AA | DH153: AA | DI153: AA | DJ153: AA | DK153: AA | DL153: AA | DM153: AA | DN153: AA | DO153: AA | DP153: AA | DQ153: AA | DR153: AA | DS153: AA | DT153: AA | DU153: AA | DV153: AA | DW153: AA | DX153: AA | DY153: NC | DZ153: NC | EA153: NC | EB153: AA | EC153: AA | ED153: AA | EE153: AA | EF153: AA | EG153: AA | EH153: AA | EI153: AA | EJ153: AA | EK153: BB | EL153: BB | EM153: BB | EN153: 12 | EO153: 96 | EQ153: 1 | ER153: 30 | ES153: 139 | ET153: 127 | EU153: 9 | EV153: 69 | EW153: 22 | EX153: 1
A154: A01 | B154: Bn-A01-p4084366 | C154: 4,242,696 | D154: 4242647 | E154: AA | F154: AA | G154: AA | H154: NC | I154: BB | J154: BB | K154: AA | L154: AA | M154: AA | N154: AA | O154: NC | P154: NC | Q154: NC | R154: NC | S154: NC | T154: NC | U154: AA | V154: AA | W154: AA | X154: AA | Y154: AA | Z154: AA | AA154: AA | AB154: AA | AC154: AA | AD154: AA | AE154: AA | AF154: AA | AG154: AA | AH154: AA | AI154: AA | AJ154: AA | AK154: AA | AL154: AA | AM154: AA | AN154: AA | AO154: AA | AP154: BB | AQ154: BB | AR154: BB | AS154: BB | AT154: BB | AU154: BB | AV154: BB | AW154: BB | AX154: BB | AY154: BB | AZ154: BB | BA154: BB | BB154: BB | BC154: BB | BD154: BB | BE154: BB | BF154: BB | BG154: BB | BH154: BB | BI154: BB | BJ154: BB | BK154: BB | BL154: BB | BM154: BB | BN154: BB | BO154: BB | BP154: BB | BQ154: BB | BR154: BB | BS154: BB | BT154: BB | BU154: BB | BV154: BB | BW154: AA | BX154: AA | BY154: AA | BZ154: AA | CA154: AA | CB154: AA | CC154: AA | CD154: AA | CE154: AA | CF154: AA | CG154: AA | CH154: AA | CI154: AA | CJ154: AA | CK154: AA | CL154: AA | CM154: AA | CN154: AA | CO154: AA | CP154: AA | CQ154: AA | CR154: AA | CS154: AA | CT154: AA | CU154: AA | CV154: AA | CW154: AA | CX154: AA | CY154: AA | CZ154: AA | DA154: AA | DB154: AA | DC154: AA | DD154: BB | DE154: BB | DF154: BB | DG154: AA | DH154: AA | DI154: AA | DJ154: AA | DK154: AA | DL154: AA | DM154: AA | DN154: AA | DO154: AA | DP154: AA | DQ154: AA | DR154: AA | DS154: AA | DT154: AA | DU154: AA | DV154: AA | DW154: AA | DX154: AA | DY154: NC | DZ154: NC | EA154: NC | EB154: AA | EC154: AA | ED154: AA | EE154: AA | EF154: AA | EG154: AA | EH154: AA | EI154: AA | EJ154: AA | EK154: BB | EL154: BB | EM154: BB | EN154: 10 | EO154: 88 | EQ154: 0 | ER154: 41 | ES154: 139 | ET154: 129 | EU154: 7 | EV154: 63 | EW154: 29 | EX154: 0
A155: A01 | B155: Bn-A01-p4087533 | C155: 4,246,004 | D155: 4246053 | E155: AA | F155: AA | G155: AA | H155: NC | I155: AA | J155: AA | K155: AA | L155: AA | M155: AA | N155: AA | O155: NC | P155: NC | Q155: NC | R155: NC | S155: NC | T155: NC | U155: AA | V155: AA | W155: AA | X155: AA | Y155: AA | Z155: AA | AA155: AA | AB155: AA | AC155: AA | AD155: AA | AE155: AA | AF155: AA | AG155: AA | AH155: AA | AI155: AA | AJ155: AA | AK155: AA | AL155: AA | AM155: AA | AN155: AA | AO155: AA | AP155: BB | AQ155: BB | AR155: BB | AS155: AA | AT155: AA | AU155: AA | AV155: AA | AW155: AA | AX155: AA | AY155: BB | AZ155: BB | BA155: BB | BB155: AA | BC155: AA | BD155: AA | BE155: BB | BF155: BB | BG155: BB | BH155: BB | BI155: BB | BJ155: BB | BK155: BB | BL155: BB | BM155: BB | BN155: BB | BO155: BB | BP155: BB | BQ155: BB | BR155: BB | BS155: BB | BT155: BB | BU155: BB | BV155: BB | BW155: AA | BX155: AA | BY155: AA | BZ155: AA | CA155: AA | CB155: AA | CC155: AA | CD155: AA | CE155: AA | CF155: AA | CG155: AA | CH155: AA | CI155: AA | CJ155: AA | CK155: AA | CL155: AA | CM155: AA | CN155: AA | CO155: NC | CP155: NC | CQ155: AA | CR155: NC | CS155: NC | CT155: NC | CU155: NC | CV155: NC | CW155: NC | CX155: NC | CY155: NC | CZ155: NC | DA155: NC | DB155: NC | DC155: NC | DD155: AA | DE155: AA | DF155: AA | DG155: AA | DH155: AA | DI155: AA | DJ155: AA | DK155: AA | DL155: AA | DM155: AA | DN155: AA | DO155: AA | DP155: AA | DQ155: AA | DR155: AA | DS155: AA | DT155: AA | DU155: AA | DV155: AA | DW155: AA | DX155: AA | DY155: NC | DZ155: NC | EA155: NC | EB155: AA | EC155: AA | ED155: AA | EE155: AA | EF155: AA | EG155: AA | EH155: AA | EI155: AA | EJ155: AA | EK155: BB | EL155: BB | EM155: BB | EN155: 24 | EO155: 88 | EQ155: 0 | ER155: 27 | ES155: 139 | ET155: 115 | EU155: 17 | EV155: 63 | EW155: 19 | EX155: 0
A156: A01 | B156: Bn-A01-p4164843 | C156: 4,339,331 | D156: 4339380 | E156: AA | F156: AA | G156: AA | H156: NC | I156: AA | J156: AA | K156: AA | L156: AA | M156: AA | N156: AA | O156: NC | P156: NC | Q156: NC | R156: NC | S156: NC | T156: NC | U156: AA | V156: AA | W156: AA | X156: AA | Y156: AA | Z156: AA | AA156: AA | AB156: AA | AC156: AA | AD156: AA | AE156: AA | AF156: AA | AG156: AA | AH156: AA | AI156: AA | AJ156: AA | AK156: AA | AL156: AA | AM156: AA | AN156: AA | AO156: AA | AP156: BB | AQ156: BB | AR156: BB | AS156: AA | AT156: AA | AU156: AA | AV156: AA | AW156: AA | AX156: AA | AY156: BB | AZ156: BB | BA156: BB | BB156: AA | BC156: AA | BD156: AA | BE156: BB | BF156: BB | BG156: BB | BH156: BB | BI156: BB | BJ156: BB | BK156: BB | BL156: BB | BM156: BB | BN156: BB | BO156: BB | BP156: BB | BQ156: BB | BR156: BB | BS156: BB | BT156: BB | BU156: BB | BV156: BB | BW156: AA | BX156: AA | BY156: AA | BZ156: AA | CA156: AA | CB156: AA | CC156: AA | CD156: AA | CE156: AA | CF156: AA | CG156: AA | CH156: AA | CI156: AA | CJ156: AA | CK156: AA | CL156: AA | CM156: AA | CN156: AA | CO156: AA | CP156: AA | CQ156: AA | CR156: AA | CS156: AA | CT156: AA | CU156: AA | CV156: AA | CW156: AA | CX156: AA | CY156: AA | CZ156: AA | DA156: AA | DB156: AA | DC156: AA | DD156: AA | DE156: AA | DF156: AA | DG156: AA | DH156: AA | DI156: AA | DJ156: AA | DK156: AA | DL156: AA | DM156: AA | DN156: AA | DO156: AA | DP156: AA | DQ156: AA | DR156: AA | DS156: AA | DT156: AA | DU156: AA | DV156: AA | DW156: AA | DX156: AA | DY156: NC | DZ156: NC | EA156: NC | EB156: AA | EC156: AA | ED156: AA | EE156: AA | EF156: AA | EG156: AA | EH156: AA | EI156: AA | EJ156: AA | EK156: BB | EL156: BB | EM156: BB | EN156: 10 | EO156: 102 | EQ156: 0 | ER156: 27 | ES156: 139 | ET156: 129 | EU156: 7 | EV156: 73 | EW156: 19 | EX156: 0
A157: A01 | B157: Bn-A01-p4173668 | C157: 4,347,780 | D157: 4347829 | E157: AA | F157: AA | G157: AA | H157: NC | I157: BB | J157: BB | K157: BB | L157: BB | M157: BB | N157: BB | O157: NC | P157: NC | Q157: NC | R157: NC | S157: NC | T157: NC | U157: BB | V157: BB | W157: BB | X157: BB | Y157: BB | Z157: BB | AA157: BB | AB157: BB | AC157: BB | AD157: BB | AE157: BB | AF157: BB | AG157: BB | AH157: BB | AI157: BB | AJ157: BB | AK157: BB | AL157: BB | AM157: BB | AN157: BB | AO157: BB | AP157: AA | AQ157: AA | AR157: AA | AS157: AA | AT157: AA | AU157: AA | AV157: AA | AW157: AA | AX157: AA | AY157: AA | AZ157: AA | BA157: AA | BB157: AA | BC157: AA | BD157: AA | BE157: AA | BF157: AA | BG157: AA | BH157: AA | BI157: AA | BJ157: AA | BK157: AA | BL157: AA | BM157: AA | BN157: AA | BO157: AA | BP157: AA | BQ157: AA | BR157: AA | BS157: AA | BT157: AA | BU157: AA | BV157: AA | BW157: BB | BX157: BB | BY157: BB | BZ157: BB | CA157: BB | CB157: BB | CC157: BB | CD157: BB | CE157: BB | CF157: BB | CG157: BB | CH157: BB | CI157: BB | CJ157: BB | CK157: BB | CL157: BB | CM157: BB | CN157: BB | CO157: AA | CP157: AA | CQ157: BB | CR157: AA | CS157: AA | CT157: AA | CU157: AA | CV157: AA | CW157: AA | CX157: AA | CY157: AA | CZ157: AA | DA157: AA | DB157: AA | DC157: AA | DD157: BB | DE157: BB | DF157: BB | DG157: BB | DH157: BB | DI157: BB | DJ157: BB | DK157: BB | DL157: BB | DM157: BB | DN157: BB | DO157: BB | DP157: BB | DQ157: BB | DR157: BB | DS157: BB | DT157: BB | DU157: BB | DV157: BB | DW157: BB | DX157: BB | DY157: NC | DZ157: NC | EA157: NC | EB157: BB | EC157: BB | ED157: BB | EE157: BB | EF157: BB | EG157: BB | EH157: BB | EI157: BB | EJ157: BB | EK157: AA | EL157: AA | EM157: AA | EN157: 10 | EO157: 53 | EQ157: 0 | ER157: 76 | ES157: 139 | ET157: 129 | EU157: 7 | EV157: 38 | EW157: 55 | EX157: 0
A158: A01 | B158: Bn-A01-p4177941 | C158: 4,352,101 | D158: 4352150 | E158: AA | F158: AA | G158: AA | H158: NC | I158: AA | J158: AA | K158: BB | L158: BB | M158: BB | N158: NC | O158: NC | P158: NC | Q158: NC | R158: NC | S158: NC | T158: NC | U158: BB | V158: BB | W158: BB | X158: BB | Y158: BB | Z158: BB | AA158: BB | AB158: BB | AC158: BB | AD158: BB | AE158: BB | AF158: BB | AG158: BB | AH158: BB | AI158: BB | AJ158: BB | AK158: BB | AL158: BB | AM158: BB | AN158: BB | AO158: BB | AP158: AA | AQ158: AA | AR158: AA | AS158: BB | AT158: BB | AU158: BB | AV158: BB | AW158: BB | AX158: BB | AY158: AA | AZ158: AA | BA158: AA | BB158: AA | BC158: AA | BD158: AA | BE158: BB | BF158: BB | BG158: BB | BH158: BB | BI158: BB | BJ158: BB | BK158: BB | BL158: BB | BM158: BB | BN158: BB | BO158: BB | BP158: BB | BQ158: BB | BR158: BB | BS158: BB | BT158: AA | BU158: AA | BV158: AA | BW158: BB | BX158: BB | BY158: BB | BZ158: BB | CA158: BB | CB158: BB | CC158: BB | CD158: BB | CE158: BB | CF158: BB | CG158: BB | CH158: BB | CI158: BB | CJ158: BB | CK158: BB | CL158: BB | CM158: BB | CN158: BB | CO158: AA | CP158: AA | CQ158: BB | CR158: AA | CS158: AA | CT158: AA | CU158: AA | CV158: AA | CW158: AA | CX158: AA | CY158: AA | CZ158: AA | DA158: AA | DB158: AA | DC158: AA | DD158: BB | DE158: BB | DF158: BB | DG158: BB | DH158: BB | DI158: BB | DJ158: BB | DK158: BB | DL158: BB | DM158: BB | DN158: BB | DO158: BB | DP158: BB | DQ158: BB | DR158: BB | DS158: BB | DT158: BB | DU158: BB | DV158: BB | DW158: BB | DX158: BB | DY158: NC | DZ158: NC | EA158: NC | EB158: BB | EC158: BB | ED158: BB | EE158: BB | EF158: BB | EG158: BB | EH158: BB | EI158: BB | EJ158: BB | EK158: AA | EL158: AA | EM158: AA | EN158: 11 | EO158: 34 | EQ158: 0 | ER158: 94 | ES158: 139 | ET158: 128 | EU158: 8 | EV158: 24 | EW158: 68 | EX158: 0
A159: A01 | B159: Bn-A01-p4227703 | C159: 4,399,259 | D159: 4399210 | E159: AA | F159: AA | G159: AA | H159: NC | I159: BB | J159: BB | K159: AB | L159: NC | M159: NC | N159: BB | O159: NC | P159: NC | Q159: NC | R159: NC | S159: NC | T159: NC | U159: AA | V159: AA | W159: AA | X159: AA | Y159: AA | Z159: AA | AA159: AA | AB159: AA | AC159: AA | AD159: AA | AE159: AA | AF159: AA | AG159: AA | AH159: AA | AI159: AA | AJ159: AA | AK159: AA | AL159: AA | AM159: AA | AN159: AA | AO159: AA | AP159: AA | AQ159: AA | AR159: AA | AS159: AA | AT159: AA | AU159: AA | AV159: AA | AW159: AA | AX159: AA | AY159: AA | AZ159: AA | BA159: AA | BB159: BB | BC159: BB | BD159: BB | BE159: AA | BF159: AA | BG159: AA | BH159: AA | BI159: AA | BJ159: AA | BK159: AA | BL159: AA | BM159: AA | BN159: AA | BO159: AA | BP159: AA | BQ159: AA | BR159: AA | BS159: AA | BT159: AA | BU159: AA | BV159: AA | BW159: AA | BX159: AA | BY159: AA | BZ159: AA | CA159: AA | CB159: AA | CC159: AA | CD159: AA | CE159: AA | CF159: AA | CG159: AA | CH159: AA | CI159: AA | CJ159: AA | CK159: AA | CL159: AA | CM159: AA | CN159: AA | CO159: AA | CP159: AA | CQ159: AA | CR159: AA | CS159: AA | CT159: AA | CU159: AA | CV159: AA | CW159: AA | CX159: AA | CY159: AA | CZ159: AA | DA159: AA | DB159: AA | DC159: AA | DD159: BB | DE159: BB | DF159: BB | DG159: AA | DH159: AA | DI159: AA | DJ159: AA | DK159: AA | DL159: AA | DM159: AA | DN159: AA | DO159: AA | DP159: AA | DQ159: AA | DR159: AA | DS159: AA | DT159: AA | DU159: AA | DV159: AA | DW159: AA | DX159: AA | DY159: NC | DZ159: NC | EA159: NC | EB159: AA | EC159: AA | ED159: AA | EE159: AA | EF159: AA | EG159: AA | EH159: AA | EI159: AA | EJ159: AA | EK159: AA | EL159: AA | EM159: AA | EN159: 12 | EO159: 117 | EQ159: 1 | ER159: 9 | ES159: 139 | ET159: 127 | EU159: 9 | EV159: 84 | EW159: 6 | EX159: 1
A160: A01 | B160: Bn-A01-p4233306 | C160: 4,406,109 | D160: 4406060 | E160: BB | F160: BB | G160: BB | H160: NC | I160: BB | J160: BB | K160: BB | L160: BB | M160: BB | N160: NC | O160: NC | P160: NC | Q160: NC | R160: NC | S160: NC | T160: NC | U160: BB | V160: BB | W160: BB | X160: BB | Y160: BB | Z160: BB | AA160: BB | AB160: BB | AC160: BB | AD160: BB | AE160: BB | AF160: BB | AG160: BB | AH160: BB | AI160: BB | AJ160: BB | AK160: BB | AL160: BB | AM160: BB | AN160: BB | AO160: BB | AP160: BB | AQ160: BB | AR160: BB | AS160: BB | AT160: BB | AU160: BB | AV160: BB | AW160: BB | AX160: BB | AY160: BB | AZ160: BB | BA160: BB | BB160: BB | BC160: BB | BD160: BB | BE160: BB | BF160: BB | BG160: BB | BH160: BB | BI160: BB | BJ160: BB | BK160: BB | BL160: BB | BM160: BB | BN160: BB | BO160: BB | BP160: BB | BQ160: BB | BR160: BB | BS160: BB | BT160: BB | BU160: BB | BV160: BB | BW160: BB | BX160: BB | BY160: BB | BZ160: BB | CA160: BB | CB160: BB | CC160: BB | CD160: BB | CE160: BB | CF160: BB | CG160: BB | CH160: BB | CI160: BB | CJ160: BB | CK160: BB | CL160: BB | CM160: BB | CN160: BB | CO160: BB | CP160: BB | CQ160: BB | CR160: BB | CS160: BB | CT160: BB | CU160: BB | CV160: BB | CW160: BB | CX160: BB | CY160: BB | CZ160: BB | DA160: BB | DB160: BB | DC160: BB | DD160: BB | DE160: BB | DF160: BB | DG160: BB | DH160: BB | DI160: BB | DJ160: BB | DK160: BB | DL160: BB | DM160: BB | DN160: BB | DO160: BB | DP160: BB | DQ160: BB | DR160: BB | DS160: BB | DT160: BB | DU160: BB | DV160: BB | DW160: BB | DX160: BB | DY160: NC | DZ160: NC | EA160: NC | EB160: BB | EC160: BB | ED160: BB | EE160: BB | EF160: BB | EG160: BB | EH160: BB | EI160: BB | EJ160: BB | EK160: BB | EL160: BB | EM160: BB | EN160: 11 | EO160: 0 | EQ160: 0 | ER160: 128 | ES160: 139 | ET160: 128 | EU160: 8 | EV160: 0 | EW160: 92 | EX160: 0
A161: A01 | B161: Bn-A01-p4242269 | C161: 4,416,495 | D161: 4416544 | E161: AA | F161: AA | G161: AA | H161: NC | I161: BB | J161: BB | K161: NC | L161: BB | M161: BB | N161: AA | O161: NC | P161: NC | Q161: NC | R161: NC | S161: NC | T161: NC | U161: BB | V161: BB | W161: BB | X161: BB | Y161: BB | Z161: BB | AA161: BB | AB161: BB | AC161: BB | AD161: BB | AE161: BB | AF161: BB | AG161: BB | AH161: BB | AI161: BB | AJ161: BB | AK161: BB | AL161: BB | AM161: BB | AN161: BB | AO161: BB | AP161: AA | AQ161: AA | AR161: AA | AS161: BB | AT161: BB | AU161: BB | AV161: BB | AW161: BB | AX161: BB | AY161: AA | AZ161: AA | BA161: AA | BB161: AA | BC161: AA | BD161: AA | BE161: BB | BF161: BB | BG161: BB | BH161: BB | BI161: BB | BJ161: BB | BK161: BB | BL161: BB | BM161: BB | BN161: BB | BO161: BB | BP161: BB | BQ161: BB | BR161: BB | BS161: BB | BT161: AA | BU161: AA | BV161: AA | BW161: BB | BX161: BB | BY161: BB | BZ161: BB | CA161: BB | CB161: BB | CC161: BB | CD161: BB | CE161: BB | CF161: BB | CG161: BB | CH161: BB | CI161: BB | CJ161: BB | CK161: BB | CL161: BB | CM161: BB | CN161: BB | CO161: AA | CP161: AA | CQ161: BB | CR161: AA | CS161: AA | CT161: AA | CU161: AA | CV161: AA | CW161: AA | CX161: AA | CY161: AA | CZ161: AA | DA161: AA | DB161: AA | DC161: AA | DD161: BB | DE161: BB | DF161: BB | DG161: BB | DH161: BB | DI161: BB | DJ161: BB | DK161: BB | DL161: BB | DM161: BB | DN161: BB | DO161: BB | DP161: BB | DQ161: BB | DR161: BB | DS161: BB | DT161: BB | DU161: BB | DV161: BB | DW161: BB | DX161: BB | DY161: NC | DZ161: NC | EA161: NC | EB161: BB | EC161: BB | ED161: BB | EE161: BB | EF161: BB | EG161: BB | EH161: BB | EI161: BB | EJ161: BB | EK161: AA | EL161: AA | EM161: AA | EN161: 11 | EO161: 33 | EQ161: 0 | ER161: 95 | ES161: 139 | ET161: 128 | EU161: 8 | EV161: 24 | EW161: 68 | EX161: 0
A162: A01 | B162: Bn-A01-p4293878 | C162: 4,461,629 | D162: 4461580 | E162: BB | F162: BB | G162: BB | H162: NC | I162: AA | J162: AA | K162: BB | L162: NC | M162: AA | N162: NC | O162: NC | P162: NC | Q162: NC | R162: NC | S162: AA | T162: AA | U162: BB | V162: BB | W162: BB | X162: BB | Y162: BB | Z162: BB | AA162: BB | AB162: BB | AC162: BB | AD162: BB | AE162: BB | AF162: BB | AG162: BB | AH162: BB | AI162: BB | AJ162: BB | AK162: BB | AL162: BB | AM162: BB | AN162: BB | AO162: BB | AP162: AA | AQ162: AA | AR162: AA | AS162: BB | AT162: BB | AU162: BB | AV162: BB | AW162: BB | AX162: BB | AY162: AA | AZ162: AA | BA162: AA | BB162: AA | BC162: AA | BD162: AA | BE162: AA | BF162: AA | BG162: AA | BH162: AA | BI162: AA | BJ162: AA | BK162: AA | BL162: AA | BM162: AA | BN162: AA | BO162: AA | BP162: AA | BQ162: AA | BR162: AA | BS162: AA | BT162: AA | BU162: AA | BV162: AA | BW162: BB | BX162: BB | BY162: BB | BZ162: BB | CA162: BB | CB162: BB | CC162: BB | CD162: BB | CE162: BB | CF162: BB | CG162: BB | CH162: BB | CI162: BB | CJ162: BB | CK162: BB | CL162: BB | CM162: BB | CN162: BB | CO162: AA | CP162: AA | CQ162: BB | CR162: AA | CS162: AA | CT162: AA | CU162: AA | CV162: AA | CW162: AA | CX162: AA | CY162: AA | CZ162: AA | DA162: AA | DB162: AA | DC162: AA | DD162: BB | DE162: BB | DF162: BB | DG162: BB | DH162: BB | DI162: BB | DJ162: BB | DK162: BB | DL162: BB | DM162: BB | DN162: BB | DO162: BB | DP162: BB | DQ162: BB | DR162: BB | DS162: BB | DT162: BB | DU162: BB | DV162: BB | DW162: BB | DX162: BB | DY162: NC | DZ162: NC | EA162: NC | EB162: BB | EC162: BB | ED162: BB | EE162: BB | EF162: BB | EG162: BB | EH162: BB | EI162: BB | EJ162: BB | EK162: AA | EL162: AA | EM162: AA | EN162: 10 | EO162: 49 | EQ162: 0 | ER162: 80 | ES162: 139 | ET162: 129 | EU162: 7 | EV162: 35 | EW162: 58 | EX162: 0
A163: A01 | B163: Bn-A01-p4353657 | C163: 4,534,081 | D163: 4534032 | E163: AA | F163: AA | G163: AA | H163: NC | I163: AA | J163: AA | K163: BB | L163: BB | M163: BB | N163: AA | O163: NC | P163: NC | Q163: NC | R163: NC | S163: NC | T163: NC | U163: AA | V163: AA | W163: AA | X163: AA | Y163: AA | Z163: AA | AA163: AA | AB163: AA | AC163: AA | AD163: AA | AE163: AA | AF163: AA | AG163: AA | AH163: AA | AI163: AA | AJ163: AA | AK163: AA | AL163: AA | AM163: AA | AN163: AA | AO163: AA | AP163: BB | AQ163: BB | AR163: BB | AS163: AA | AT163: AA | AU163: AA | AV163: AA | AW163: AA | AX163: AA | AY163: BB | AZ163: BB | BA163: BB | BB163: BB | BC163: BB | BD163: BB | BE163: AA | BF163: AA | BG163: AA | BH163: AA | BI163: AA | BJ163: AA | BK163: AA | BL163: AA | BM163: AA | BN163: AA | BO163: AA | BP163: AA | BQ163: AA | BR163: AA | BS163: AA | BT163: BB | BU163: BB | BV163: BB | BW163: AA | BX163: AA | BY163: AA | BZ163: AA | CA163: AA | CB163: AA | CC163: AA | CD163: AA | CE163: AA | CF163: AA | CG163: AA | CH163: AA | CI163: AA | CJ163: AA | CK163: AA | CL163: AA | CM163: AA | CN163: AA | CO163: AA | CP163: AA | CQ163: AA | CR163: AA | CS163: AA | CT163: AA | CU163: AA | CV163: AA | CW163: AA | CX163: AA | CY163: AA | CZ163: AA | DA163: AA | DB163: AA | DC163: AA | DD163: BB | DE163: BB | DF163: BB | DG163: AA | DH163: AA | DI163: AA | DJ163: AA | DK163: AA | DL163: AA | DM163: AA | DN163: AA | DO163: AA | DP163: AA | DQ163: AA | DR163: AA | DS163: AA | DT163: AA | DU163: AA | DV163: AA | DW163: AA | DX163: AA | DY163: NC | DZ163: NC | EA163: NC | EB163: AA | EC163: AA | ED163: AA | EE163: AA | EF163: AA | EG163: AA | EH163: AA | EI163: AA | EJ163: AA | EK163: BB | EL163: BB | EM163: BB | EN163: 10 | EO163: 108 | EQ163: 0 | ER163: 21 | ES163: 139 | ET163: 129 | EU163: 7 | EV163: 78 | EW163: 15 | EX163: 0
A164: A01 | B164: Bn-A01-p4419443 | C164: 4,569,600 | D164: 4569649 | E164: AA | F164: AA | G164: AA | H164: NC | I164: BB | J164: BB | K164: AA | L164: BB | M164: BB | N164: NC | O164: NC | P164: NC | Q164: NC | R164: NC | S164: NC | T164: NC | U164: BB | V164: BB | W164: BB | X164: BB | Y164: BB | Z164: BB | AA164: BB | AB164: BB | AC164: BB | AD164: BB | AE164: BB | AF164: BB | AG164: BB | AH164: BB | AI164: BB | AJ164: BB | AK164: BB | AL164: BB | AM164: BB | AN164: BB | AO164: BB | AP164: BB | AQ164: BB | AR164: BB | AS164: BB | AT164: BB | AU164: BB | AV164: BB | AW164: BB | AX164: BB | AY164: BB | AZ164: BB | BA164: BB | BB164: NC | BC164: NC | BD164: NC | BE164: AA | BF164: AA | BG164: AA | BH164: AA | BI164: AA | BJ164: AA | BK164: AA | BL164: AA | BM164: AA | BN164: AA | BO164: AA | BP164: AA | BQ164: AA | BR164: AA | BS164: AA | BT164: BB | BU164: BB | BV164: BB | BW164: BB | BX164: BB | BY164: BB | BZ164: BB | CA164: BB | CB164: BB | CC164: BB | CD164: BB | CE164: BB | CF164: BB | CG164: BB | CH164: BB | CI164: BB | CJ164: BB | CK164: BB | CL164: BB | CM164: BB | CN164: BB | CO164: AA | CP164: AA | CQ164: BB | CR164: AA | CS164: AA | CT164: AA | CU164: AA | CV164: AA | CW164: AA | CX164: AA | CY164: AA | CZ164: AA | DA164: AA | DB164: AA | DC164: AA | DD164: BB | DE164: BB | DF164: BB | DG164: BB | DH164: BB | DI164: BB | DJ164: BB | DK164: BB | DL164: BB | DM164: BB | DN164: BB | DO164: BB | DP164: BB | DQ164: BB | DR164: BB | DS164: BB | DT164: BB | DU164: BB | DV164: BB | DW164: BB | DX164: BB | DY164: NC | DZ164: NC | EA164: NC | EB164: BB | EC164: BB | ED164: BB | EE164: BB | EF164: BB | EG164: BB | EH164: BB | EI164: BB | EJ164: BB | EK164: BB | EL164: BB | EM164: BB | EN164: 14 | EO164: 33 | EQ164: 0 | ER164: 92 | ES164: 139 | ET164: 125 | EU164: 10 | EV164: 24 | EW164: 66 | EX164: 0
A165: A01 | B165: Bn-A01-p4452779 | C165: 4,596,634 | D165: 4596585 | E165: BB | F165: BB | G165: BB | H165: NC | I165: AA | J165: AA | K165: BB | L165: NC | M165: AA | N165: BB | O165: NC | P165: NC | Q165: NC | R165: NC | S165: NC | T165: NC | U165: AA | V165: AA | W165: AA | X165: AA | Y165: AA | Z165: AA | AA165: AA | AB165: AA | AC165: AA | AD165: AA | AE165: AA | AF165: AA | AG165: AA | AH165: AA | AI165: AA | AJ165: AA | AK165: AA | AL165: AA | AM165: AA | AN165: AA | AO165: AA | AP165: NC | AQ165: NC | AR165: NC | AS165: NC | AT165: NC | AU165: NC | AV165: NC | AW165: NC | AX165: NC | AY165: NC | AZ165: NC | BA165: NC | BB165: BB | BC165: BB | BD165: BB | BE165: BB | BF165: BB | BG165: BB | BH165: BB | BI165: BB | BJ165: BB | BK165: BB | BL165: BB | BM165: BB | BN165: BB | BO165: BB | BP165: BB | BQ165: BB | BR165: BB | BS165: BB | BT165: NC | BU165: NC | BV165: NC | BW165: AA | BX165: AA | BY165: AA | BZ165: AA | CA165: AA | CB165: AA | CC165: AA | CD165: AA | CE165: AA | CF165: AA | CG165: AA | CH165: AA | CI165: AA | CJ165: AA | CK165: AA | CL165: AA | CM165: AA | CN165: AA | CO165: BB | CP165: BB | CQ165: AA | CR165: BB | CS165: BB | CT165: BB | CU165: BB | CV165: BB | CW165: BB | CX165: BB | CY165: BB | CZ165: BB | DA165: BB | DB165: BB | DC165: BB | DD165: AA | DE165: AA | DF165: AA | DG165: AA | DH165: AA | DI165: AA | DJ165: AA | DK165: AA | DL165: AA | DM165: AA | DN165: AA | DO165: AA | DP165: AA | DQ165: AA | DR165: AA | DS165: AA | DT165: AA | DU165: AA | DV165: AA | DW165: AA | DX165: AA | DY165: NC | DZ165: NC | EA165: NC | EB165: AA | EC165: AA | ED165: AA | EE165: AA | EF165: AA | EG165: AA | EH165: AA | EI165: AA | EJ165: AA | EK165: NC | EL165: NC | EM165: NC | EN165: 29 | EO165: 73 | EQ165: 0 | ER165: 37 | ES165: 139 | ET165: 110 | EU165: 21 | EV165: 53 | EW165: 27 | EX165: 0
A166: A01 | B166: Bn-A01-p4612881 | C166: 4,755,513 | D166: 4755464 | E166: AA | F166: BB | G166: BB | H166: NC | I166: AA | J166: AA | K166: AA | L166: AA | M166: AA | N166: AA | O166: NC | P166: NC | Q166: NC | R166: NC | S166: NC | T166: NC | U166: AA | V166: AA | W166: AA | X166: AA | Y166: AA | Z166: AA | AA166: AA | AB166: AA | AC166: AA | AD166: AA | AE166: AA | AF166: AA | AG166: AA | AH166: AA | AI166: AA | AJ166: AA | AK166: AA | AL166: AA | AM166: AA | AN166: AA | AO166: AA | AP166: AA | AQ166: AA | AR166: AA | AS166: AA | AT166: AA | AU166: AA | AV166: AA | AW166: AA | AX166: AA | AY166: AA | AZ166: AA | BA166: AA | BB166: AA | BC166: AA | BD166: AA | BE166: AA | BF166: AA | BG166: AA | BH166: AA | BI166: AA | BJ166: AA | BK166: AA | BL166: AA | BM166: AA | BN166: AA | BO166: AA | BP166: AA | BQ166: AA | BR166: AA | BS166: AA | BT166: AA | BU166: AA | BV166: AA | BW166: AA | BX166: AA | BY166: AA | BZ166: AA | CA166: AA | CB166: AA | CC166: AA | CD166: AA | CE166: AA | CF166: AA | CG166: AA | CH166: AA | CI166: AA | CJ166: AA | CK166: AA | CL166: AA | CM166: AA | CN166: AA | CO166: AA | CP166: AA | CQ166: AA | CR166: AA | CS166: AA | CT166: AA | CU166: AA | CV166: AA | CW166: AA | CX166: AA | CY166: AA | CZ166: AA | DA166: AA | DB166: AA | DC166: AA | DD166: AA | DE166: AA | DF166: AA | DG166: AA | DH166: AA | DI166: AA | DJ166: AA | DK166: AA | DL166: AA | DM166: AA | DN166: AA | DO166: AA | DP166: AA | DQ166: AA | DR166: AA | DS166: AA | DT166: AA | DU166: AA | DV166: AA | DW166: AA | DX166: AA | DY166: NC | DZ166: NC | EA166: NC | EB166: AA | EC166: AA | ED166: AA | EE166: AA | EF166: AA | EG166: AA | EH166: AA | EI166: AA | EJ166: AA | EK166: AA | EL166: AA | EM166: AA | EN166: 10 | EO166: 127 | EQ166: 0 | ER166: 2 | ES166: 139 | ET166: 129 | EU166: 7 | EV166: 91 | EW166: 1 | EX166: 0
A167: A01 | B167: Bn-A01-p4641747 | C167: 4,780,976 | D167: 4781025 | E167: BB | F167: BB | G167: BB | H167: AA | I167: BB | J167: BB | K167: BB | L167: BB | M167: BB | N167: BB | O167: NC | P167: NC | Q167: NC | R167: NC | S167: NC | T167: NC | U167: BB | V167: BB | W167: BB | X167: BB | Y167: BB | Z167: BB | AA167: BB | AB167: BB | AC167: BB | AD167: BB | AE167: BB | AF167: BB | AG167: BB | AH167: BB | AI167: BB | AJ167: BB | AK167: BB | AL167: BB | AM167: BB | AN167: BB | AO167: BB | AP167: BB | AQ167: BB | AR167: BB | AS167: BB | AT167: BB | AU167: BB | AV167: BB | AW167: BB | AX167: BB | AY167: BB | AZ167: BB | BA167: BB | BB167: BB | BC167: BB | BD167: BB | BE167: BB | BF167: BB | BG167: BB | BH167: BB | BI167: BB | BJ167: BB | BK167: BB | BL167: BB | BM167: BB | BN167: BB | BO167: BB | BP167: BB | BQ167: BB | BR167: BB | BS167: BB | BT167: BB | BU167: BB | BV167: BB | BW167: BB | BX167: BB | BY167: BB | BZ167: BB | CA167: BB | CB167: BB | CC167: BB | CD167: BB | CE167: BB | CF167: BB | CG167: BB | CH167: BB | CI167: BB | CJ167: BB | CK167: BB | CL167: BB | CM167: BB | CN167: BB | CO167: BB | CP167: BB | CQ167: BB | CR167: BB | CS167: BB | CT167: BB | CU167: BB | CV167: BB | CW167: BB | CX167: BB | CY167: BB | CZ167: BB | DA167: BB | DB167: BB | DC167: BB | DD167: BB | DE167: BB | DF167: BB | DG167: BB | DH167: BB | DI167: BB | DJ167: BB | DK167: BB | DL167: BB | DM167: BB | DN167: BB | DO167: BB | DP167: BB | DQ167: BB | DR167: BB | DS167: BB | DT167: BB | DU167: BB | DV167: BB | DW167: BB | DX167: BB | DY167: NC | DZ167: NC | EA167: NC | EB167: BB | EC167: BB | ED167: BB | EE167: BB | EF167: BB | EG167: BB | EH167: BB | EI167: BB | EJ167: BB | EK167: BB | EL167: BB | EM167: BB | EN167: 9 | EO167: 1 | EQ167: 0 | ER167: 129 | ES167: 139 | ET167: 130 | EU167: 6 | EV167: 1 | EW167: 93 | EX167: 0
A168: A01 | B168: Bn-A01-p4641802 | C168: 4,781,031 | D168: 4781080 | E168: BB | F168: BB | G168: BB | H168: AA | I168: BB | J168: BB | K168: BB | L168: BB | M168: BB | N168: BB | O168: NC | P168: NC | Q168: NC | R168: NC | S168: NC | T168: NC | U168: BB | V168: BB | W168: BB | X168: BB | Y168: BB | Z168: BB | AA168: BB | AB168: BB | AC168: BB | AD168: BB | AE168: BB | AF168: BB | AG168: BB | AH168: BB | AI168: BB | AJ168: BB | AK168: BB | AL168: BB | AM168: BB | AN168: BB | AO168: BB | AP168: BB | AQ168: BB | AR168: BB | AS168: BB | AT168: BB | AU168: BB | AV168: BB | AW168: BB | AX168: BB | AY168: BB | AZ168: BB | BA168: BB | BB168: BB | BC168: BB | BD168: BB | BE168: BB | BF168: BB | BG168: BB | BH168: BB | BI168: BB | BJ168: BB | BK168: BB | BL168: BB | BM168: BB | BN168: BB | BO168: BB | BP168: BB | BQ168: BB | BR168: BB | BS168: BB | BT168: BB | BU168: BB | BV168: BB | BW168: BB | BX168: BB | BY168: BB | BZ168: BB | CA168: BB | CB168: BB | CC168: BB | CD168: BB | CE168: BB | CF168: BB | CG168: BB | CH168: BB | CI168: BB | CJ168: BB | CK168: BB | CL168: BB | CM168: BB | CN168: BB | CO168: BB | CP168: BB | CQ168: BB | CR168: BB | CS168: BB | CT168: BB | CU168: BB | CV168: BB | CW168: BB | CX168: BB | CY168: BB | CZ168: BB | DA168: BB | DB168: BB | DC168: BB | DD168: BB | DE168: BB | DF168: BB | DG168: BB | DH168: BB | DI168: BB | DJ168: BB | DK168: BB | DL168: BB | DM168: BB | DN168: BB | DO168: BB | DP168: BB | DQ168: BB | DR168: BB | DS168: BB | DT168: BB | DU168: BB | DV168: BB | DW168: BB | DX168: BB | DY168: NC | DZ168: NC | EA168: NC | EB168: BB | EC168: BB | ED168: BB | EE168: BB | EF168: BB | EG168: BB | EH168: BB | EI168: BB | EJ168: BB | EK168: BB | EL168: BB | EM168: BB | EN168: 9 | EO168: 1 | EQ168: 0 | ER168: 129 | ES168: 139 | ET168: 130 | EU168: 6 | EV168: 1 | EW168: 93 | EX168: 0
A169: A01 | B169: Bn-A01-p4651746 | C169: 4,793,228 | D169: 4793277 | E169: AA | F169: BB | G169: BB | H169: BB | I169: BB | J169: BB | K169: BB | L169: BB | M169: BB | N169: BB | O169: NC | P169: NC | Q169: NC | R169: NC | S169: NC | T169: NC | U169: BB | V169: BB | W169: BB | X169: BB | Y169: BB | Z169: BB | AA169: BB | AB169: BB | AC169: BB | AD169: BB | AE169: BB | AF169: BB | AG169: BB | AH169: BB | AI169: BB | AJ169: BB | AK169: BB | AL169: BB | AM169: BB | AN169: BB | AO169: BB | AP169: BB | AQ169: BB | AR169: BB | AS169: BB | AT169: BB | AU169: BB | AV169: BB | AW169: BB | AX169: BB | AY169: BB | AZ169: BB | BA169: BB | BB169: BB | BC169: BB | BD169: BB | BE169: BB | BF169: BB | BG169: BB | BH169: BB | BI169: BB | BJ169: BB | BK169: BB | BL169: BB | BM169: BB | BN169: BB | BO169: BB | BP169: BB | BQ169: BB | BR169: BB | BS169: BB | BT169: BB | BU169: BB | BV169: BB | BW169: BB | BX169: BB | BY169: BB | BZ169: BB | CA169: BB | CB169: BB | CC169: BB | CD169: BB | CE169: BB | CF169: BB | CG169: BB | CH169: BB | CI169: BB | CJ169: BB | CK169: BB | CL169: BB | CM169: BB | CN169: BB | CO169: BB | CP169: BB | CQ169: BB | CR169: BB | CS169: BB | CT169: BB | CU169: BB | CV169: BB | CW169: BB | CX169: BB | CY169: BB | CZ169: BB | DA169: BB | DB169: BB | DC169: BB | DD169: BB | DE169: BB | DF169: BB | DG169: BB | DH169: BB | DI169: BB | DJ169: BB | DK169: BB | DL169: BB | DM169: BB | DN169: BB | DO169: BB | DP169: BB | DQ169: BB | DR169: BB | DS169: BB | DT169: BB | DU169: BB | DV169: BB | DW169: BB | DX169: BB | DY169: NC | DZ169: NC | EA169: NC | EB169: BB | EC169: BB | ED169: BB | EE169: BB | EF169: BB | EG169: BB | EH169: BB | EI169: BB | EJ169: BB | EK169: BB | EL169: BB | EM169: BB | EN169: 9 | EO169: 1 | EQ169: 0 | ER169: 129 | ES169: 139 | ET169: 130 | EU169: 6 | EV169: 1 | EW169: 93 | EX169: 0
A170: A01 | B170: Bn-A01-p4747874 | C170: 4,870,328 | D170: 4870279 | E170: BB | F170: AA | G170: AA | H170: BB | I170: AA | J170: AA | K170: AA | L170: BB | M170: BB | N170: NC | O170: NC | P170: NC | Q170: NC | R170: NC | S170: NC | T170: NC | U170: AA | V170: AA | W170: AA | X170: AA | Y170: AA | Z170: AA | AA170: AA | AB170: AA | AC170: AA | AD170: AA | AE170: AA | AF170: AA | AG170: AA | AH170: AA | AI170: AA | AJ170: AA | AK170: AA | AL170: AA | AM170: AA | AN170: AA | AO170: AA | AP170: BB | AQ170: BB | AR170: BB | AS170: AA | AT170: AA | AU170: AA | AV170: BB | AW170: BB | AX170: BB | AY170: BB | AZ170: BB | BA170: BB | BB170: AA | BC170: AA | BD170: AA | BE170: BB | BF170: BB | BG170: BB | BH170: BB | BI170: BB | BJ170: BB | BK170: BB | BL170: BB | BM170: BB | BN170: BB | BO170: BB | BP170: BB | BQ170: BB | BR170: BB | BS170: BB | BT170: BB | BU170: BB | BV170: BB | BW170: AA | BX170: AA | BY170: AA | BZ170: AA | CA170: AA | CB170: AA | CC170: AA | CD170: AA | CE170: AA | CF170: AA | CG170: AA | CH170: AA | CI170: AA | CJ170: AA | CK170: AA | CL170: AA | CM170: AA | CN170: AA | CO170: NC | CP170: NC | CQ170: AA | CR170: NC | CS170: NC | CT170: NC | CU170: NC | CV170: NC | CW170: NC | CX170: NC | CY170: NC | CZ170: NC | DA170: NC | DB170: NC | DC170: NC | DD170: AA | DE170: AA | DF170: AA | DG170: AA | DH170: AA | DI170: AA | DJ170: AA | DK170: AA | DL170: AA | DM170: AA | DN170: AA | DO170: AA | DP170: AA | DQ170: AA | DR170: AA | DS170: AA | DT170: AA | DU170: AA | DV170: AA | DW170: AA | DX170: AA | DY170: NC | DZ170: NC | EA170: NC | EB170: AA | EC170: AA | ED170: AA | EE170: AA | EF170: AA | EG170: AA | EH170: AA | EI170: AA | EJ170: AA | EK170: BB | EL170: BB | EM170: BB | EN170: 24 | EO170: 81 | EQ170: 0 | ER170: 34 | ES170: 139 | ET170: 115 | EU170: 17 | EV170: 58 | EW170: 24 | EX170: 0
A171: A01 | B171: Bn-A01-p4750734 | C171: 4,873,089 | D171: 4873138 | E171: BB | F171: BB | G171: BB | H171: AA | I171: AA | J171: AA | K171: BB | L171: AA | M171: BB | N171: NC | O171: NC | P171: NC | Q171: NC | R171: NC | S171: NC | T171: NC | U171: BB | V171: BB | W171: BB | X171: BB | Y171: BB | Z171: BB | AA171: BB | AB171: BB | AC171: BB | AD171: BB | AE171: BB | AF171: BB | AG171: BB | AH171: BB | AI171: BB | AJ171: BB | AK171: BB | AL171: BB | AM171: BB | AN171: BB | AO171: BB | AP171: BB | AQ171: BB | AR171: BB | AS171: BB | AT171: BB | AU171: BB | AV171: BB | AW171: BB | AX171: BB | AY171: BB | AZ171: BB | BA171: BB | BB171: BB | BC171: BB | BD171: BB | BE171: BB | BF171: BB | BG171: BB | BH171: BB | BI171: BB | BJ171: BB | BK171: BB | BL171: BB | BM171: BB | BN171: BB | BO171: BB | BP171: BB | BQ171: BB | BR171: BB | BS171: BB | BT171: BB | BU171: BB | BV171: BB | BW171: BB | BX171: BB | BY171: BB | BZ171: BB | CA171: BB | CB171: BB | CC171: BB | CD171: BB | CE171: BB | CF171: BB | CG171: BB | CH171: BB | CI171: BB | CJ171: BB | CK171: BB | CL171: BB | CM171: BB | CN171: BB | CO171: BB | CP171: BB | CQ171: BB | CR171: BB | CS171: BB | CT171: BB | CU171: BB | CV171: BB | CW171: BB | CX171: BB | CY171: BB | CZ171: BB | DA171: BB | DB171: BB | DC171: BB | DD171: BB | DE171: BB | DF171: BB | DG171: BB | DH171: BB | DI171: BB | DJ171: BB | DK171: BB | DL171: BB | DM171: BB | DN171: BB | DO171: BB | DP171: BB | DQ171: BB | DR171: BB | DS171: BB | DT171: BB | DU171: BB | DV171: BB | DW171: BB | DX171: BB | DY171: NC | DZ171: NC | EA171: NC | EB171: BB | EC171: BB | ED171: BB | EE171: BB | EF171: BB | EG171: BB | EH171: BB | EI171: BB | EJ171: BB | EK171: BB | EL171: BB | EM171: BB | EN171: 10 | EO171: 4 | EQ171: 0 | ER171: 125 | ES171: 139 | ET171: 129 | EU171: 7 | EV171: 3 | EW171: 90 | EX171: 0
A172: A01 | B172: Bn-A01-p4773772 | C172: 4,899,733 | D172: 4899684 | E172: BB | F172: AA | G172: AA | H172: AA | I172: BB | J172: BB | K172: BB | L172: BB | M172: BB | N172: BB | O172: NC | P172: NC | Q172: NC | R172: NC | S172: NC | T172: NC | U172: BB | V172: BB | W172: BB | X172: BB | Y172: BB | Z172: BB | AA172: BB | AB172: BB | AC172: BB | AD172: BB | AE172: BB | AF172: BB | AG172: BB | AH172: BB | AI172: BB | AJ172: BB | AK172: BB | AL172: BB | AM172: BB | AN172: BB | AO172: BB | AP172: BB | AQ172: BB | AR172: BB | AS172: BB | AT172: BB | AU172: BB | AV172: BB | AW172: BB | AX172: BB | AY172: BB | AZ172: BB | BA172: BB | BB172: BB | BC172: BB | BD172: BB | BE172: BB | BF172: BB | BG172: BB | BH172: BB | BI172: BB | BJ172: BB | BK172: BB | BL172: BB | BM172: BB | BN172: BB | BO172: BB | BP172: BB | BQ172: BB | BR172: BB | BS172: BB | BT172: BB | BU172: BB | BV172: BB | BW172: BB | BX172: BB | BY172: BB | BZ172: BB | CA172: BB | CB172: BB | CC172: BB | CD172: BB | CE172: BB | CF172: BB | CG172: BB | CH172: BB | CI172: BB | CJ172: BB | CK172: BB | CL172: BB | CM172: BB | CN172: BB | CO172: BB | CP172: BB | CQ172: BB | CR172: BB | CS172: BB | CT172: BB | CU172: BB | CV172: BB | CW172: BB | CX172: BB | CY172: BB | CZ172: BB | DA172: BB | DB172: BB | DC172: BB | DD172: BB | DE172: BB | DF172: BB | DG172: BB | DH172: BB | DI172: BB | DJ172: BB | DK172: BB | DL172: BB | DM172: BB | DN172: BB | DO172: BB | DP172: BB | DQ172: BB | DR172: BB | DS172: BB | DT172: BB | DU172: BB | DV172: BB | DW172: BB | DX172: BB | DY172: NC | DZ172: NC | EA172: NC | EB172: BB | EC172: BB | ED172: BB | EE172: BB | EF172: BB | EG172: BB | EH172: BB | EI172: BB | EJ172: BB | EK172: BB | EL172: BB | EM172: BB | EN172: 9 | EO172: 3 | EQ172: 0 | ER172: 127 | ES172: 139 | ET172: 130 | EU172: 6 | EV172: 2 | EW172: 91 | EX172: 0
